Workbook

Sheet Control
A1: Sheets | B1: Text File Names | C1: Description | E1: Notes: 50 sheets maximum
A2: O2Depth | B2: O2_Depth.txt | C2: Depth to which oxygen can diffuse before it is fully consumed | E2: Referenced text files must be in same root folder as this spreadsheet

Sheet PlotControl
A2: Model Name: | B2: Plant Site Version 6.0
A4: Plot: | B4: Annual Average | C4: =B2 & " Model " & IF(B4="Annual Max", "Annual Maximum", B4) & " of Result Statistics " & "O2 Diffusion Depth in the " & B8 -> Plant Site Version 6.0 Model Annual Average of Result Statistics O2 Diffusion Depth in the Cell 2E Fines | V4: Directory to save PDFs to: | W4: P:\Mpls\23 MN\69\2369862\WorkFiles\APA\Support Docs\Surface WQ\Workfiles\Models\GoldSim\Tailings Basin\2012 MODEL\Base Model\Output_Data\LTVSMC_Tailings\plots
C5: =B2 & " Model Monthly Result Statistics O2 Diffusion Depth in the " & B8 -> Plant Site Version 6.0 Model Monthly Result Statistics O2 Diffusion Depth in the Cell 2E Fines | V5: Starting figure caption | W5: Figure A-1-0001
V7: Note: This loops through the plots and location drop down menus.
A8: Location to Plot (dropdown): | B8: Cell 2E Fines | C8: =MATCH(B8,$A$15:$A$22,0) -> 4
A10: Initial Time for Monthly Plot (yr): | B10: 0
B11: =B10+20 -> 20
A12: Standard | B12: =VLOOKUP($B$6,$A$25:$B$52,2,FALSE) -> 
A14: Locations
A15: Cell 2W Fines
A16: Cell 2W Coarse
A17: Cell 2W Banks
A18: Cell 2E Fines
A19: Cell 2E Coarse
A20: Cell 2E Banks
A21: Cell 1E Fines
A22: Cell 1E Coarse
I23: Annual Project Results | S23: Monthly Project Results
A24: Plot | H24: Time | I24: P10 | J24: P50 | K24: P90 | L24: Mean | R24: Time | S24: P10 | T24: P50 | U24: P90 | V24: Mean
A25: Annual Max | H25: 0 | I25: =IF($B$4="Annual Average", AVERAGE(OFFSET(O2Depth!$A$10,$H25*12,4*($C$8-1)+2,12,1)), MAX(OFFSET(O2Depth!$A$10,$H25*12,4*($C$8-1)+2,12,1))) / 0.3048 -> 54.98988408 | J25: =IF($B$4="Annual Average", AVERAGE(OFFSET(O2Depth!$A$10,$H25*12,4*($C$8-1)+3,12,1)), MAX(OFFSET(O2Depth!$A$10,$H25*12,4*($C$8-1)+3,12,1))) / 0.3048 -> 67.75153106 | K25: =IF($B$4="Annual Average", AVERAGE(OFFSET(O2Depth!$A$10,$H25*12,4*($C$8-1)+4,12,1)), MAX(OFFSET(O2Depth!$A$10,$H25*12,4*($C$8-1)+4,12,1))) / 0.3048 -> 91.12423447 | L25: =IF($B$4="Annual Average", AVERAGE(OFFSET(O2Depth!$A$10,$H25*12,4*($C$8-1)+1,12,1)), MAX(OFFSET(O2Depth!$A$10,$H25*12,4*($C$8-1)+1,12,1))) / 0.3048 -> 70.83634077 | R25: =B10 -> 0 | S25: =VLOOKUP($R25,O2Depth!$A$10:$AG$2410,4*($C$8-1)+3) / 0.3048 -> 55.0656168 | T25: =VLOOKUP($R25,O2Depth!$A$10:$AG$2410,4*($C$8-1)+4) / 0.3048 -> 66.72572178 | U25: =VLOOKUP($R25,O2Depth!$A$10:$AG$2410,4*($C$8-1)+5) / 0.3048 -> 87.28346457 | V25: =VLOOKUP($R25,O2Depth!$A$10:$AG$2410,4*($C$8-1)+2) / 0.3048 -> 69.23228346
A26: Annual Average | H26: 1 | I26: =IF($B$4="Annual Average", AVERAGE(OFFSET(O2Depth!$A$10,$H26*12,4*($C$8-1)+2,12,1)), MAX(OFFSET(O2Depth!$A$10,$H26*12,4*($C$8-1)+2,12,1))) / 0.3048 -> 54.31977253 | J26: =IF($B$4="Annual Average", AVERAGE(OFFSET(O2Depth!$A$10,$H26*12,4*($C$8-1)+3,12,1)), MAX(OFFSET(O2Depth!$A$10,$H26*12,4*($C$8-1)+3,12,1))) / 0.3048 -> 68.45855206 | K26: =IF($B$4="Annual Average", AVERAGE(OFFSET(O2Depth!$A$10,$H26*12,4*($C$8-1)+4,12,1)), MAX(OFFSET(O2Depth!$A$10,$H26*12,4*($C$8-1)+4,12,1))) / 0.3048 -> 95.51700569 | L26: =IF($B$4="Annual Average", AVERAGE(OFFSET(O2Depth!$A$10,$H26*12,4*($C$8-1)+1,12,1)), MAX(OFFSET(O2Depth!$A$10,$H26*12,4*($C$8-1)+1,12,1))) / 0.3048 -> 72.02947288 | R26: =R25+1/12 -> 0.08333333333 | S26: =VLOOKUP($R26,O2Depth!$A$10:$AG$2410,4*($C$8-1)+3) / 0.3048 -> 55.25918635 | T26: =VLOOKUP($R26,O2Depth!$A$10:$AG$2410,4*($C$8-1)+4) / 0.3048 -> 67.06692913 | U26: =VLOOKUP($R26,O2Depth!$A$10:$AG$2410,4*($C$8-1)+5) / 0.3048 -> 87.88385827 | V26: =VLOOKUP($R26,O2Depth!$A$10:$AG$2410,4*($C$8-1)+2) / 0.3048 -> 69.50459318
H27: 2 | I27: =IF($B$4="Annual Average", AVERAGE(OFFSET(O2Depth!$A$10,$H27*12,4*($C$8-1)+2,12,1)), MAX(OFFSET(O2Depth!$A$10,$H27*12,4*($C$8-1)+2,12,1))) / 0.3048 -> 54.08519248 | J27: =IF($B$4="Annual Average", AVERAGE(OFFSET(O2Depth!$A$10,$H27*12,4*($C$8-1)+3,12,1)), MAX(OFFSET(O2Depth!$A$10,$H27*12,4*($C$8-1)+3,12,1))) / 0.3048 -> 68.51323272 | K27: =IF($B$4="Annual Average", AVERAGE(OFFSET(O2Depth!$A$10,$H27*12,4*($C$8-1)+4,12,1)), MAX(OFFSET(O2Depth!$A$10,$H27*12,4*($C$8-1)+4,12,1))) / 0.3048 -> 94.88161636 | L27: =IF($B$4="Annual Average", AVERAGE(OFFSET(O2Depth!$A$10,$H27*12,4*($C$8-1)+1,12,1)), MAX(OFFSET(O2Depth!$A$10,$H27*12,4*($C$8-1)+1,12,1))) / 0.3048 -> 72.07759186 | R27: =R26+1/12 -> 0.1666666667 | S27: =VLOOKUP($R27,O2Depth!$A$10:$AG$2410,4*($C$8-1)+3) / 0.3048 -> 55.25918635 | T27: =VLOOKUP($R27,O2Depth!$A$10:$AG$2410,4*($C$8-1)+4) / 0.3048 -> 67.06692913 | U27: =VLOOKUP($R27,O2Depth!$A$10:$AG$2410,4*($C$8-1)+5) / 0.3048 -> 87.88385827 | V27: =VLOOKUP($R27,O2Depth!$A$10:$AG$2410,4*($C$8-1)+2) / 0.3048 -> 69.50459318
H28: 3 | I28: =IF($B$4="Annual Average", AVERAGE(OFFSET(O2Depth!$A$10,$H28*12,4*($C$8-1)+2,12,1)), MAX(OFFSET(O2Depth!$A$10,$H28*12,4*($C$8-1)+2,12,1))) / 0.3048 -> 54.52892607 | J28: =IF($B$4="Annual Average", AVERAGE(OFFSET(O2Depth!$A$10,$H28*12,4*($C$8-1)+3,12,1)), MAX(OFFSET(O2Depth!$A$10,$H28*12,4*($C$8-1)+3,12,1))) / 0.3048 -> 68.76202975 | K28: =IF($B$4="Annual Average", AVERAGE(OFFSET(O2Depth!$A$10,$H28*12,4*($C$8-1)+4,12,1)), MAX(OFFSET(O2Depth!$A$10,$H28*12,4*($C$8-1)+4,12,1))) / 0.3048 -> 94.42175197 | L28: =IF($B$4="Annual Average", AVERAGE(OFFSET(O2Depth!$A$10,$H28*12,4*($C$8-1)+1,12,1)), MAX(OFFSET(O2Depth!$A$10,$H28*12,4*($C$8-1)+1,12,1))) / 0.3048 -> 72.3520888 | R28: 0.25 | S28: =VLOOKUP($R28,O2Depth!$A$10:$AG$2410,4*($C$8-1)+3) / 0.3048 -> 55.31167979 | T28: =VLOOKUP($R28,O2Depth!$A$10:$AG$2410,4*($C$8-1)+4) / 0.3048 -> 67.38188976 | U28: =VLOOKUP($R28,O2Depth!$A$10:$AG$2410,4*($C$8-1)+5) / 0.3048 -> 89.02559055 | V28: =VLOOKUP($R28,O2Depth!$A$10:$AG$2410,4*($C$8-1)+2) / 0.3048 -> 70.0656168
H29: 4 | I29: =IF($B$4="Annual Average", AVERAGE(OFFSET(O2Depth!$A$10,$H29*12,4*($C$8-1)+2,12,1)), MAX(OFFSET(O2Depth!$A$10,$H29*12,4*($C$8-1)+2,12,1))) / 0.3048 -> 54.38074147 | J29: =IF($B$4="Annual Average", AVERAGE(OFFSET(O2Depth!$A$10,$H29*12,4*($C$8-1)+3,12,1)), MAX(OFFSET(O2Depth!$A$10,$H29*12,4*($C$8-1)+3,12,1))) / 0.3048 -> 68.13620954 | K29: =IF($B$4="Annual Average", AVERAGE(OFFSET(O2Depth!$A$10,$H29*12,4*($C$8-1)+4,12,1)), MAX(OFFSET(O2Depth!$A$10,$H29*12,4*($C$8-1)+4,12,1))) / 0.3048 -> 95.67612642 | L29: =IF($B$4="Annual Average", AVERAGE(OFFSET(O2Depth!$A$10,$H29*12,4*($C$8-1)+1,12,1)), MAX(OFFSET(O2Depth!$A$10,$H29*12,4*($C$8-1)+1,12,1))) / 0.3048 -> 72.2367126 | R29: 0.3333333333 | S29: =VLOOKUP($R29,O2Depth!$A$10:$AG$2410,4*($C$8-1)+3) / 0.3048 -> 55.07217848 | T29: =VLOOKUP($R29,O2Depth!$A$10:$AG$2410,4*($C$8-1)+4) / 0.3048 -> 67.80839895 | U29: =VLOOKUP($R29,O2Depth!$A$10:$AG$2410,4*($C$8-1)+5) / 0.3048 -> 90.04265092 | V29: =VLOOKUP($R29,O2Depth!$A$10:$AG$2410,4*($C$8-1)+2) / 0.3048 -> 70.35433071
H30: 5 | I30: =IF($B$4="Annual Average", AVERAGE(OFFSET(O2Depth!$A$10,$H30*12,4*($C$8-1)+2,12,1)), MAX(OFFSET(O2Depth!$A$10,$H30*12,4*($C$8-1)+2,12,1))) / 0.3048 -> 54.78483158 | J30: =IF($B$4="Annual Average", AVERAGE(OFFSET(O2Depth!$A$10,$H30*12,4*($C$8-1)+3,12,1)), MAX(OFFSET(O2Depth!$A$10,$H30*12,4*($C$8-1)+3,12,1))) / 0.3048 -> 69.71511374 | K30: =IF($B$4="Annual Average", AVERAGE(OFFSET(O2Depth!$A$10,$H30*12,4*($C$8-1)+4,12,1)), MAX(OFFSET(O2Depth!$A$10,$H30*12,4*($C$8-1)+4,12,1))) / 0.3048 -> 96.31069554 | L30: =IF($B$4="Annual Average", AVERAGE(OFFSET(O2Depth!$A$10,$H30*12,4*($C$8-1)+1,12,1)), MAX(OFFSET(O2Depth!$A$10,$H30*12,4*($C$8-1)+1,12,1))) / 0.3048 -> 73.22287839 | R30: 0.4166666667 | S30: =VLOOKUP($R30,O2Depth!$A$10:$AG$2410,4*($C$8-1)+3) / 0.3048 -> 55.07217848 | T30: =VLOOKUP($R30,O2Depth!$A$10:$AG$2410,4*($C$8-1)+4) / 0.3048 -> 67.80839895 | U30: =VLOOKUP($R30,O2Depth!$A$10:$AG$2410,4*($C$8-1)+5) / 0.3048 -> 90.04265092 | V30: =VLOOKUP($R30,O2Depth!$A$10:$AG$2410,4*($C$8-1)+2) / 0.3048 -> 70.35433071
H31: 6 | I31: =IF($B$4="Annual Average", AVERAGE(OFFSET(O2Depth!$A$10,$H31*12,4*($C$8-1)+2,12,1)), MAX(OFFSET(O2Depth!$A$10,$H31*12,4*($C$8-1)+2,12,1))) / 0.3048 -> 54.28176947 | J31: =IF($B$4="Annual Average", AVERAGE(OFFSET(O2Depth!$A$10,$H31*12,4*($C$8-1)+3,12,1)), MAX(OFFSET(O2Depth!$A$10,$H31*12,4*($C$8-1)+3,12,1))) / 0.3048 -> 69.63281934 | K31: =IF($B$4="Annual Average", AVERAGE(OFFSET(O2Depth!$A$10,$H31*12,4*($C$8-1)+4,12,1)), MAX(OFFSET(O2Depth!$A$10,$H31*12,4*($C$8-1)+4,12,1))) / 0.3048 -> 96.77520779 | L31: =IF($B$4="Annual Average", AVERAGE(OFFSET(O2Depth!$A$10,$H31*12,4*($C$8-1)+1,12,1)), MAX(OFFSET(O2Depth!$A$10,$H31*12,4*($C$8-1)+1,12,1))) / 0.3048 -> 73.17749344 | R31: 0.5 | S31: =VLOOKUP($R31,O2Depth!$A$10:$AG$2410,4*($C$8-1)+3) / 0.3048 -> 55.30839895 | T31: =VLOOKUP($R31,O2Depth!$A$10:$AG$2410,4*($C$8-1)+4) / 0.3048 -> 67.96587927 | U31: =VLOOKUP($R31,O2Depth!$A$10:$AG$2410,4*($C$8-1)+5) / 0.3048 -> 90.39041995 | V31: =VLOOKUP($R31,O2Depth!$A$10:$AG$2410,4*($C$8-1)+2) / 0.3048 -> 70.65288714
H32: 7 | I32: =IF($B$4="Annual Average", AVERAGE(OFFSET(O2Depth!$A$10,$H32*12,4*($C$8-1)+2,12,1)), MAX(OFFSET(O2Depth!$A$10,$H32*12,4*($C$8-1)+2,12,1))) / 0.3048 -> 54.87150044 | J32: =IF($B$4="Annual Average", AVERAGE(OFFSET(O2Depth!$A$10,$H32*12,4*($C$8-1)+3,12,1)), MAX(OFFSET(O2Depth!$A$10,$H32*12,4*($C$8-1)+3,12,1))) / 0.3048 -> 69.0542979 | K32: =IF($B$4="Annual Average", AVERAGE(OFFSET(O2Depth!$A$10,$H32*12,4*($C$8-1)+4,12,1)), MAX(OFFSET(O2Depth!$A$10,$H32*12,4*($C$8-1)+4,12,1))) / 0.3048 -> 94.2519685 | L32: =IF($B$4="Annual Average", AVERAGE(OFFSET(O2Depth!$A$10,$H32*12,4*($C$8-1)+1,12,1)), MAX(OFFSET(O2Depth!$A$10,$H32*12,4*($C$8-1)+1,12,1))) / 0.3048 -> 72.69083552 | R32: 0.5833333333 | S32: =VLOOKUP($R32,O2Depth!$A$10:$AG$2410,4*($C$8-1)+3) / 0.3048 -> 54.98031496 | T32: =VLOOKUP($R32,O2Depth!$A$10:$AG$2410,4*($C$8-1)+4) / 0.3048 -> 67.84448819 | U32: =VLOOKUP($R32,O2Depth!$A$10:$AG$2410,4*($C$8-1)+5) / 0.3048 -> 92.10629921 | V32: =VLOOKUP($R32,O2Depth!$A$10:$AG$2410,4*($C$8-1)+2) / 0.3048 -> 71.25984252
H33: 8 | I33: =IF($B$4="Annual Average", AVERAGE(OFFSET(O2Depth!$A$10,$H33*12,4*($C$8-1)+2,12,1)), MAX(OFFSET(O2Depth!$A$10,$H33*12,4*($C$8-1)+2,12,1))) / 0.3048 -> 54.917979 | J33: =IF($B$4="Annual Average", AVERAGE(OFFSET(O2Depth!$A$10,$H33*12,4*($C$8-1)+3,12,1)), MAX(OFFSET(O2Depth!$A$10,$H33*12,4*($C$8-1)+3,12,1))) / 0.3048 -> 69.14342738 | K33: =IF($B$4="Annual Average", AVERAGE(OFFSET(O2Depth!$A$10,$H33*12,4*($C$8-1)+4,12,1)), MAX(OFFSET(O2Depth!$A$10,$H33*12,4*($C$8-1)+4,12,1))) / 0.3048 -> 93.69094488 | L33: =IF($B$4="Annual Average", AVERAGE(OFFSET(O2Depth!$A$10,$H33*12,4*($C$8-1)+1,12,1)), MAX(OFFSET(O2Depth!$A$10,$H33*12,4*($C$8-1)+1,12,1))) / 0.3048 -> 72.30178259 | R33: 0.6666666667 | S33: =VLOOKUP($R33,O2Depth!$A$10:$AG$2410,4*($C$8-1)+3) / 0.3048 -> 54.98031496 | T33: =VLOOKUP($R33,O2Depth!$A$10:$AG$2410,4*($C$8-1)+4) / 0.3048 -> 67.84448819 | U33: =VLOOKUP($R33,O2Depth!$A$10:$AG$2410,4*($C$8-1)+5) / 0.3048 -> 92.10629921 | V33: =VLOOKUP($R33,O2Depth!$A$10:$AG$2410,4*($C$8-1)+2) / 0.3048 -> 71.25984252
H34: 9 | I34: =IF($B$4="Annual Average", AVERAGE(OFFSET(O2Depth!$A$10,$H34*12,4*($C$8-1)+2,12,1)), MAX(OFFSET(O2Depth!$A$10,$H34*12,4*($C$8-1)+2,12,1))) / 0.3048 -> 53.69449913 | J34: =IF($B$4="Annual Average", AVERAGE(OFFSET(O2Depth!$A$10,$H34*12,4*($C$8-1)+3,12,1)), MAX(OFFSET(O2Depth!$A$10,$H34*12,4*($C$8-1)+3,12,1))) / 0.3048 -> 68.42465004 | K34: =IF($B$4="Annual Average", AVERAGE(OFFSET(O2Depth!$A$10,$H34*12,4*($C$8-1)+4,12,1)), MAX(OFFSET(O2Depth!$A$10,$H34*12,4*($C$8-1)+4,12,1))) / 0.3048 -> 94.42065836 | L34: =IF($B$4="Annual Average", AVERAGE(OFFSET(O2Depth!$A$10,$H34*12,4*($C$8-1)+1,12,1)), MAX(OFFSET(O2Depth!$A$10,$H34*12,4*($C$8-1)+1,12,1))) / 0.3048 -> 71.80582896 | R34: 0.75 | S34: =VLOOKUP($R34,O2Depth!$A$10:$AG$2410,4*($C$8-1)+3) / 0.3048 -> 54.65223097 | T34: =VLOOKUP($R34,O2Depth!$A$10:$AG$2410,4*($C$8-1)+4) / 0.3048 -> 68.37270341 | U34: =VLOOKUP($R34,O2Depth!$A$10:$AG$2410,4*($C$8-1)+5) / 0.3048 -> 93.49081365 | V34: =VLOOKUP($R34,O2Depth!$A$10:$AG$2410,4*($C$8-1)+2) / 0.3048 -> 71.89304462
H35: 10 | I35: =IF($B$4="Annual Average", AVERAGE(OFFSET(O2Depth!$A$10,$H35*12,4*($C$8-1)+2,12,1)), MAX(OFFSET(O2Depth!$A$10,$H35*12,4*($C$8-1)+2,12,1))) / 0.3048 -> 55.14107612 | J35: =IF($B$4="Annual Average", AVERAGE(OFFSET(O2Depth!$A$10,$H35*12,4*($C$8-1)+3,12,1)), MAX(OFFSET(O2Depth!$A$10,$H35*12,4*($C$8-1)+3,12,1))) / 0.3048 -> 68.68711724 | K35: =IF($B$4="Annual Average", AVERAGE(OFFSET(O2Depth!$A$10,$H35*12,4*($C$8-1)+4,12,1)), MAX(OFFSET(O2Depth!$A$10,$H35*12,4*($C$8-1)+4,12,1))) / 0.3048 -> 95.5347769 | L35: =IF($B$4="Annual Average", AVERAGE(OFFSET(O2Depth!$A$10,$H35*12,4*($C$8-1)+1,12,1)), MAX(OFFSET(O2Depth!$A$10,$H35*12,4*($C$8-1)+1,12,1))) / 0.3048 -> 72.57327209 | R35: 0.8333333333 | S35: =VLOOKUP($R35,O2Depth!$A$10:$AG$2410,4*($C$8-1)+3) / 0.3048 -> 54.50131234 | T35: =VLOOKUP($R35,O2Depth!$A$10:$AG$2410,4*($C$8-1)+4) / 0.3048 -> 68.31364829 | U35: =VLOOKUP($R35,O2Depth!$A$10:$AG$2410,4*($C$8-1)+5) / 0.3048 -> 94.62270341 | V35: =VLOOKUP($R35,O2Depth!$A$10:$AG$2410,4*($C$8-1)+2) / 0.3048 -> 72.21456693
H36: 11 | I36: =IF($B$4="Annual Average", AVERAGE(OFFSET(O2Depth!$A$10,$H36*12,4*($C$8-1)+2,12,1)), MAX(OFFSET(O2Depth!$A$10,$H36*12,4*($C$8-1)+2,12,1))) / 0.3048 -> 55.02624672 | J36: =IF($B$4="Annual Average", AVERAGE(OFFSET(O2Depth!$A$10,$H36*12,4*($C$8-1)+3,12,1)), MAX(OFFSET(O2Depth!$A$10,$H36*12,4*($C$8-1)+3,12,1))) / 0.3048 -> 69.71046588 | K36: =IF($B$4="Annual Average", AVERAGE(OFFSET(O2Depth!$A$10,$H36*12,4*($C$8-1)+4,12,1)), MAX(OFFSET(O2Depth!$A$10,$H36*12,4*($C$8-1)+4,12,1))) / 0.3048 -> 97.05954724 | L36: =IF($B$4="Annual Average", AVERAGE(OFFSET(O2Depth!$A$10,$H36*12,4*($C$8-1)+1,12,1)), MAX(OFFSET(O2Depth!$A$10,$H36*12,4*($C$8-1)+1,12,1))) / 0.3048 -> 73.34126203 | R36: 0.9166666667 | S36: =VLOOKUP($R36,O2Depth!$A$10:$AG$2410,4*($C$8-1)+3) / 0.3048 -> 54.50131234 | T36: =VLOOKUP($R36,O2Depth!$A$10:$AG$2410,4*($C$8-1)+4) / 0.3048 -> 68.31364829 | U36: =VLOOKUP($R36,O2Depth!$A$10:$AG$2410,4*($C$8-1)+5) / 0.3048 -> 94.62270341 | V36: =VLOOKUP($R36,O2Depth!$A$10:$AG$2410,4*($C$8-1)+2) / 0.3048 -> 72.21456693
H37: 12 | I37: =IF($B$4="Annual Average", AVERAGE(OFFSET(O2Depth!$A$10,$H37*12,4*($C$8-1)+2,12,1)), MAX(OFFSET(O2Depth!$A$10,$H37*12,4*($C$8-1)+2,12,1))) / 0.3048 -> 54.8274825 | J37: =IF($B$4="Annual Average", AVERAGE(OFFSET(O2Depth!$A$10,$H37*12,4*($C$8-1)+3,12,1)), MAX(OFFSET(O2Depth!$A$10,$H37*12,4*($C$8-1)+3,12,1))) / 0.3048 -> 69.23419729 | K37: =IF($B$4="Annual Average", AVERAGE(OFFSET(O2Depth!$A$10,$H37*12,4*($C$8-1)+4,12,1)), MAX(OFFSET(O2Depth!$A$10,$H37*12,4*($C$8-1)+4,12,1))) / 0.3048 -> 95.95663823 | L37: =IF($B$4="Annual Average", AVERAGE(OFFSET(O2Depth!$A$10,$H37*12,4*($C$8-1)+1,12,1)), MAX(OFFSET(O2Depth!$A$10,$H37*12,4*($C$8-1)+1,12,1))) / 0.3048 -> 73.03340989 | R37: 1 | S37: =VLOOKUP($R37,O2Depth!$A$10:$AG$2410,4*($C$8-1)+3) / 0.3048 -> 54.3503937 | T37: =VLOOKUP($R37,O2Depth!$A$10:$AG$2410,4*($C$8-1)+4) / 0.3048 -> 67.94619423 | U37: =VLOOKUP($R37,O2Depth!$A$10:$AG$2410,4*($C$8-1)+5) / 0.3048 -> 97.73622047 | V37: =VLOOKUP($R37,O2Depth!$A$10:$AG$2410,4*($C$8-1)+2) / 0.3048 -> 72.57545932
H38: 13 | I38: =IF($B$4="Annual Average", AVERAGE(OFFSET(O2Depth!$A$10,$H38*12,4*($C$8-1)+2,12,1)), MAX(OFFSET(O2Depth!$A$10,$H38*12,4*($C$8-1)+2,12,1))) / 0.3048 -> 53.68875766 | J38: =IF($B$4="Annual Average", AVERAGE(OFFSET(O2Depth!$A$10,$H38*12,4*($C$8-1)+3,12,1)), MAX(OFFSET(O2Depth!$A$10,$H38*12,4*($C$8-1)+3,12,1))) / 0.3048 -> 69.53521435 | K38: =IF($B$4="Annual Average", AVERAGE(OFFSET(O2Depth!$A$10,$H38*12,4*($C$8-1)+4,12,1)), MAX(OFFSET(O2Depth!$A$10,$H38*12,4*($C$8-1)+4,12,1))) / 0.3048 -> 97.25858486 | L38: =IF($B$4="Annual Average", AVERAGE(OFFSET(O2Depth!$A$10,$H38*12,4*($C$8-1)+1,12,1)), MAX(OFFSET(O2Depth!$A$10,$H38*12,4*($C$8-1)+1,12,1))) / 0.3048 -> 73.25896763 | R38: 1.083333333 | S38: =VLOOKUP($R38,O2Depth!$A$10:$AG$2410,4*($C$8-1)+3) / 0.3048 -> 54.55052493 | T38: =VLOOKUP($R38,O2Depth!$A$10:$AG$2410,4*($C$8-1)+4) / 0.3048 -> 68.58923885 | U38: =VLOOKUP($R38,O2Depth!$A$10:$AG$2410,4*($C$8-1)+5) / 0.3048 -> 95.98097113 | V38: =VLOOKUP($R38,O2Depth!$A$10:$AG$2410,4*($C$8-1)+2) / 0.3048 -> 72.44094488
H39: 14 | I39: =IF($B$4="Annual Average", AVERAGE(OFFSET(O2Depth!$A$10,$H39*12,4*($C$8-1)+2,12,1)), MAX(OFFSET(O2Depth!$A$10,$H39*12,4*($C$8-1)+2,12,1))) / 0.3048 -> 55.0164042 | J39: =IF($B$4="Annual Average", AVERAGE(OFFSET(O2Depth!$A$10,$H39*12,4*($C$8-1)+3,12,1)), MAX(OFFSET(O2Depth!$A$10,$H39*12,4*($C$8-1)+3,12,1))) / 0.3048 -> 69.46084864 | K39: =IF($B$4="Annual Average", AVERAGE(OFFSET(O2Depth!$A$10,$H39*12,4*($C$8-1)+4,12,1)), MAX(OFFSET(O2Depth!$A$10,$H39*12,4*($C$8-1)+4,12,1))) / 0.3048 -> 98.0016951 | L39: =IF($B$4="Annual Average", AVERAGE(OFFSET(O2Depth!$A$10,$H39*12,4*($C$8-1)+1,12,1)), MAX(OFFSET(O2Depth!$A$10,$H39*12,4*($C$8-1)+1,12,1))) / 0.3048 -> 73.30134514 | R39: 1.166666667 | S39: =VLOOKUP($R39,O2Depth!$A$10:$AG$2410,4*($C$8-1)+3) / 0.3048 -> 54.55052493 | T39: =VLOOKUP($R39,O2Depth!$A$10:$AG$2410,4*($C$8-1)+4) / 0.3048 -> 68.58923885 | U39: =VLOOKUP($R39,O2Depth!$A$10:$AG$2410,4*($C$8-1)+5) / 0.3048 -> 95.98097113 | V39: =VLOOKUP($R39,O2Depth!$A$10:$AG$2410,4*($C$8-1)+2) / 0.3048 -> 72.44094488
H40: 15 | I40: =IF($B$4="Annual Average", AVERAGE(OFFSET(O2Depth!$A$10,$H40*12,4*($C$8-1)+2,12,1)), MAX(OFFSET(O2Depth!$A$10,$H40*12,4*($C$8-1)+2,12,1))) / 0.3048 -> 54.33535652 | J40: =IF($B$4="Annual Average", AVERAGE(OFFSET(O2Depth!$A$10,$H40*12,4*($C$8-1)+3,12,1)), MAX(OFFSET(O2Depth!$A$10,$H40*12,4*($C$8-1)+3,12,1))) / 0.3048 -> 70.31332021 | K40: =IF($B$4="Annual Average", AVERAGE(OFFSET(O2Depth!$A$10,$H40*12,4*($C$8-1)+4,12,1)), MAX(OFFSET(O2Depth!$A$10,$H40*12,4*($C$8-1)+4,12,1))) / 0.3048 -> 95.73764217 | L40: =IF($B$4="Annual Average", AVERAGE(OFFSET(O2Depth!$A$10,$H40*12,4*($C$8-1)+1,12,1)), MAX(OFFSET(O2Depth!$A$10,$H40*12,4*($C$8-1)+1,12,1))) / 0.3048 -> 73.15616798 | R40: 1.25 | S40: =VLOOKUP($R40,O2Depth!$A$10:$AG$2410,4*($C$8-1)+3) / 0.3048 -> 54.8523622 | T40: =VLOOKUP($R40,O2Depth!$A$10:$AG$2410,4*($C$8-1)+4) / 0.3048 -> 68.28412073 | U40: =VLOOKUP($R40,O2Depth!$A$10:$AG$2410,4*($C$8-1)+5) / 0.3048 -> 96.13188976 | V40: =VLOOKUP($R40,O2Depth!$A$10:$AG$2410,4*($C$8-1)+2) / 0.3048 -> 72.31955381
H41: 16 | I41: =IF($B$4="Annual Average", AVERAGE(OFFSET(O2Depth!$A$10,$H41*12,4*($C$8-1)+2,12,1)), MAX(OFFSET(O2Depth!$A$10,$H41*12,4*($C$8-1)+2,12,1))) / 0.3048 -> 54.66672135 | J41: =IF($B$4="Annual Average", AVERAGE(OFFSET(O2Depth!$A$10,$H41*12,4*($C$8-1)+3,12,1)), MAX(OFFSET(O2Depth!$A$10,$H41*12,4*($C$8-1)+3,12,1))) / 0.3048 -> 69.39851269 | K41: =IF($B$4="Annual Average", AVERAGE(OFFSET(O2Depth!$A$10,$H41*12,4*($C$8-1)+4,12,1)), MAX(OFFSET(O2Depth!$A$10,$H41*12,4*($C$8-1)+4,12,1))) / 0.3048 -> 95.86750875 | L41: =IF($B$4="Annual Average", AVERAGE(OFFSET(O2Depth!$A$10,$H41*12,4*($C$8-1)+1,12,1)), MAX(OFFSET(O2Depth!$A$10,$H41*12,4*($C$8-1)+1,12,1))) / 0.3048 -> 73.05528215 | R41: 1.333333333 | S41: =VLOOKUP($R41,O2Depth!$A$10:$AG$2410,4*($C$8-1)+3) / 0.3048 -> 54.73425197 | T41: =VLOOKUP($R41,O2Depth!$A$10:$AG$2410,4*($C$8-1)+4) / 0.3048 -> 68.82545932 | U41: =VLOOKUP($R41,O2Depth!$A$10:$AG$2410,4*($C$8-1)+5) / 0.3048 -> 95.06233596 | V41: =VLOOKUP($R41,O2Depth!$A$10:$AG$2410,4*($C$8-1)+2) / 0.3048 -> 72.10301837
H42: 17 | I42: =IF($B$4="Annual Average", AVERAGE(OFFSET(O2Depth!$A$10,$H42*12,4*($C$8-1)+2,12,1)), MAX(OFFSET(O2Depth!$A$10,$H42*12,4*($C$8-1)+2,12,1))) / 0.3048 -> 54.98632983 | J42: =IF($B$4="Annual Average", AVERAGE(OFFSET(O2Depth!$A$10,$H42*12,4*($C$8-1)+3,12,1)), MAX(OFFSET(O2Depth!$A$10,$H42*12,4*($C$8-1)+3,12,1))) / 0.3048 -> 69.47424541 | K42: =IF($B$4="Annual Average", AVERAGE(OFFSET(O2Depth!$A$10,$H42*12,4*($C$8-1)+4,12,1)), MAX(OFFSET(O2Depth!$A$10,$H42*12,4*($C$8-1)+4,12,1))) / 0.3048 -> 96.54090114 | L42: =IF($B$4="Annual Average", AVERAGE(OFFSET(O2Depth!$A$10,$H42*12,4*($C$8-1)+1,12,1)), MAX(OFFSET(O2Depth!$A$10,$H42*12,4*($C$8-1)+1,12,1))) / 0.3048 -> 73.37762467 | R42: 1.416666667 | S42: =VLOOKUP($R42,O2Depth!$A$10:$AG$2410,4*($C$8-1)+3) / 0.3048 -> 54.73425197 | T42: =VLOOKUP($R42,O2Depth!$A$10:$AG$2410,4*($C$8-1)+4) / 0.3048 -> 68.82545932 | U42: =VLOOKUP($R42,O2Depth!$A$10:$AG$2410,4*($C$8-1)+5) / 0.3048 -> 95.06233596 | V42: =VLOOKUP($R42,O2Depth!$A$10:$AG$2410,4*($C$8-1)+2) / 0.3048 -> 72.10301837
H43: 18 | I43: =IF($B$4="Annual Average", AVERAGE(OFFSET(O2Depth!$A$10,$H43*12,4*($C$8-1)+2,12,1)), MAX(OFFSET(O2Depth!$A$10,$H43*12,4*($C$8-1)+2,12,1))) / 0.3048 -> 54.78428478 | J43: =IF($B$4="Annual Average", AVERAGE(OFFSET(O2Depth!$A$10,$H43*12,4*($C$8-1)+3,12,1)), MAX(OFFSET(O2Depth!$A$10,$H43*12,4*($C$8-1)+3,12,1))) / 0.3048 -> 69.79002625 | K43: =IF($B$4="Annual Average", AVERAGE(OFFSET(O2Depth!$A$10,$H43*12,4*($C$8-1)+4,12,1)), MAX(OFFSET(O2Depth!$A$10,$H43*12,4*($C$8-1)+4,12,1))) / 0.3048 -> 95.41611986 | L43: =IF($B$4="Annual Average", AVERAGE(OFFSET(O2Depth!$A$10,$H43*12,4*($C$8-1)+1,12,1)), MAX(OFFSET(O2Depth!$A$10,$H43*12,4*($C$8-1)+1,12,1))) / 0.3048 -> 72.8368329 | R43: 1.5 | S43: =VLOOKUP($R43,O2Depth!$A$10:$AG$2410,4*($C$8-1)+3) / 0.3048 -> 54.63910761 | T43: =VLOOKUP($R43,O2Depth!$A$10:$AG$2410,4*($C$8-1)+4) / 0.3048 -> 68.92060367 | U43: =VLOOKUP($R43,O2Depth!$A$10:$AG$2410,4*($C$8-1)+5) / 0.3048 -> 94.74081365 | V43: =VLOOKUP($R43,O2Depth!$A$10:$AG$2410,4*($C$8-1)+2) / 0.3048 -> 72.01115486
H44: 19 | I44: =IF($B$4="Annual Average", AVERAGE(OFFSET(O2Depth!$A$10,$H44*12,4*($C$8-1)+2,12,1)), MAX(OFFSET(O2Depth!$A$10,$H44*12,4*($C$8-1)+2,12,1))) / 0.3048 -> 54.55079834 | J44: =IF($B$4="Annual Average", AVERAGE(OFFSET(O2Depth!$A$10,$H44*12,4*($C$8-1)+3,12,1)), MAX(OFFSET(O2Depth!$A$10,$H44*12,4*($C$8-1)+3,12,1))) / 0.3048 -> 68.85963473 | K44: =IF($B$4="Annual Average", AVERAGE(OFFSET(O2Depth!$A$10,$H44*12,4*($C$8-1)+4,12,1)), MAX(OFFSET(O2Depth!$A$10,$H44*12,4*($C$8-1)+4,12,1))) / 0.3048 -> 94.49256343 | L44: =IF($B$4="Annual Average", AVERAGE(OFFSET(O2Depth!$A$10,$H44*12,4*($C$8-1)+1,12,1)), MAX(OFFSET(O2Depth!$A$10,$H44*12,4*($C$8-1)+1,12,1))) / 0.3048 -> 72.18667979 | R44: 1.583333333 | S44: =VLOOKUP($R44,O2Depth!$A$10:$AG$2410,4*($C$8-1)+3) / 0.3048 -> 54.27821522 | T44: =VLOOKUP($R44,O2Depth!$A$10:$AG$2410,4*($C$8-1)+4) / 0.3048 -> 68.22834646 | U44: =VLOOKUP($R44,O2Depth!$A$10:$AG$2410,4*($C$8-1)+5) / 0.3048 -> 94.45209974 | V44: =VLOOKUP($R44,O2Depth!$A$10:$AG$2410,4*($C$8-1)+2) / 0.3048 -> 71.85695538
H45: 20 | I45: =IF($B$4="Annual Average", AVERAGE(OFFSET(O2Depth!$A$10,$H45*12,4*($C$8-1)+2,12,1)), MAX(OFFSET(O2Depth!$A$10,$H45*12,4*($C$8-1)+2,12,1))) / 0.3048 -> 54.82201444 | J45: =IF($B$4="Annual Average", AVERAGE(OFFSET(O2Depth!$A$10,$H45*12,4*($C$8-1)+3,12,1)), MAX(OFFSET(O2Depth!$A$10,$H45*12,4*($C$8-1)+3,12,1))) / 0.3048 -> 69.4160105 | K45: =IF($B$4="Annual Average", AVERAGE(OFFSET(O2Depth!$A$10,$H45*12,4*($C$8-1)+4,12,1)), MAX(OFFSET(O2Depth!$A$10,$H45*12,4*($C$8-1)+4,12,1))) / 0.3048 -> 95.48939195 | L45: =IF($B$4="Annual Average", AVERAGE(OFFSET(O2Depth!$A$10,$H45*12,4*($C$8-1)+1,12,1)), MAX(OFFSET(O2Depth!$A$10,$H45*12,4*($C$8-1)+1,12,1))) / 0.3048 -> 72.61373578 | R45: 1.666666667 | S45: =VLOOKUP($R45,O2Depth!$A$10:$AG$2410,4*($C$8-1)+3) / 0.3048 -> 54.27821522 | T45: =VLOOKUP($R45,O2Depth!$A$10:$AG$2410,4*($C$8-1)+4) / 0.3048 -> 68.22834646 | U45: =VLOOKUP($R45,O2Depth!$A$10:$AG$2410,4*($C$8-1)+5) / 0.3048 -> 94.45209974 | V45: =VLOOKUP($R45,O2Depth!$A$10:$AG$2410,4*($C$8-1)+2) / 0.3048 -> 71.85695538
H46: 21 | I46: =IF($B$4="Annual Average", AVERAGE(OFFSET(O2Depth!$A$10,$H46*12,4*($C$8-1)+2,12,1)), MAX(OFFSET(O2Depth!$A$10,$H46*12,4*($C$8-1)+2,12,1))) / 0.3048 -> 54.68476597 | J46: =IF($B$4="Annual Average", AVERAGE(OFFSET(O2Depth!$A$10,$H46*12,4*($C$8-1)+3,12,1)), MAX(OFFSET(O2Depth!$A$10,$H46*12,4*($C$8-1)+3,12,1))) / 0.3048 -> 68.84131671 | K46: =IF($B$4="Annual Average", AVERAGE(OFFSET(O2Depth!$A$10,$H46*12,4*($C$8-1)+4,12,1)), MAX(OFFSET(O2Depth!$A$10,$H46*12,4*($C$8-1)+4,12,1))) / 0.3048 -> 96.72599519 | L46: =IF($B$4="Annual Average", AVERAGE(OFFSET(O2Depth!$A$10,$H46*12,4*($C$8-1)+1,12,1)), MAX(OFFSET(O2Depth!$A$10,$H46*12,4*($C$8-1)+1,12,1))) / 0.3048 -> 72.7714895 | R46: 1.75 | S46: =VLOOKUP($R46,O2Depth!$A$10:$AG$2410,4*($C$8-1)+3) / 0.3048 -> 54.3011811 | T46: =VLOOKUP($R46,O2Depth!$A$10:$AG$2410,4*($C$8-1)+4) / 0.3048 -> 68.03149606 | U46: =VLOOKUP($R46,O2Depth!$A$10:$AG$2410,4*($C$8-1)+5) / 0.3048 -> 95.1312336 | V46: =VLOOKUP($R46,O2Depth!$A$10:$AG$2410,4*($C$8-1)+2) / 0.3048 -> 71.79461942
H47: 22 | I47: =IF($B$4="Annual Average", AVERAGE(OFFSET(O2Depth!$A$10,$H47*12,4*($C$8-1)+2,12,1)), MAX(OFFSET(O2Depth!$A$10,$H47*12,4*($C$8-1)+2,12,1))) / 0.3048 -> 54.48654856 | J47: =IF($B$4="Annual Average", AVERAGE(OFFSET(O2Depth!$A$10,$H47*12,4*($C$8-1)+3,12,1)), MAX(OFFSET(O2Depth!$A$10,$H47*12,4*($C$8-1)+3,12,1))) / 0.3048 -> 69.22572178 | K47: =IF($B$4="Annual Average", AVERAGE(OFFSET(O2Depth!$A$10,$H47*12,4*($C$8-1)+4,12,1)), MAX(OFFSET(O2Depth!$A$10,$H47*12,4*($C$8-1)+4,12,1))) / 0.3048 -> 95.50470254 | L47: =IF($B$4="Annual Average", AVERAGE(OFFSET(O2Depth!$A$10,$H47*12,4*($C$8-1)+1,12,1)), MAX(OFFSET(O2Depth!$A$10,$H47*12,4*($C$8-1)+1,12,1))) / 0.3048 -> 72.67771216 | R47: 1.833333333 | S47: =VLOOKUP($R47,O2Depth!$A$10:$AG$2410,4*($C$8-1)+3) / 0.3048 -> 53.61548556 | T47: =VLOOKUP($R47,O2Depth!$A$10:$AG$2410,4*($C$8-1)+4) / 0.3048 -> 68.29396325 | U47: =VLOOKUP($R47,O2Depth!$A$10:$AG$2410,4*($C$8-1)+5) / 0.3048 -> 95.94488189 | V47: =VLOOKUP($R47,O2Depth!$A$10:$AG$2410,4*($C$8-1)+2) / 0.3048 -> 71.70275591
H48: 23 | I48: =IF($B$4="Annual Average", AVERAGE(OFFSET(O2Depth!$A$10,$H48*12,4*($C$8-1)+2,12,1)), MAX(OFFSET(O2Depth!$A$10,$H48*12,4*($C$8-1)+2,12,1))) / 0.3048 -> 55.28570647 | J48: =IF($B$4="Annual Average", AVERAGE(OFFSET(O2Depth!$A$10,$H48*12,4*($C$8-1)+3,12,1)), MAX(OFFSET(O2Depth!$A$10,$H48*12,4*($C$8-1)+3,12,1))) / 0.3048 -> 69.90622266 | K48: =IF($B$4="Annual Average", AVERAGE(OFFSET(O2Depth!$A$10,$H48*12,4*($C$8-1)+4,12,1)), MAX(OFFSET(O2Depth!$A$10,$H48*12,4*($C$8-1)+4,12,1))) / 0.3048 -> 95.36307962 | L48: =IF($B$4="Annual Average", AVERAGE(OFFSET(O2Depth!$A$10,$H48*12,4*($C$8-1)+1,12,1)), MAX(OFFSET(O2Depth!$A$10,$H48*12,4*($C$8-1)+1,12,1))) / 0.3048 -> 73.02548119 | R48: 1.916666667 | S48: =VLOOKUP($R48,O2Depth!$A$10:$AG$2410,4*($C$8-1)+3) / 0.3048 -> 53.61548556 | T48: =VLOOKUP($R48,O2Depth!$A$10:$AG$2410,4*($C$8-1)+4) / 0.3048 -> 68.29396325 | U48: =VLOOKUP($R48,O2Depth!$A$10:$AG$2410,4*($C$8-1)+5) / 0.3048 -> 95.94488189 | V48: =VLOOKUP($R48,O2Depth!$A$10:$AG$2410,4*($C$8-1)+2) / 0.3048 -> 71.70275591
H49: 24 | I49: =IF($B$4="Annual Average", AVERAGE(OFFSET(O2Depth!$A$10,$H49*12,4*($C$8-1)+2,12,1)), MAX(OFFSET(O2Depth!$A$10,$H49*12,4*($C$8-1)+2,12,1))) / 0.3048 -> 54.54177603 | J49: =IF($B$4="Annual Average", AVERAGE(OFFSET(O2Depth!$A$10,$H49*12,4*($C$8-1)+3,12,1)), MAX(OFFSET(O2Depth!$A$10,$H49*12,4*($C$8-1)+3,12,1))) / 0.3048 -> 69.57103018 | K49: =IF($B$4="Annual Average", AVERAGE(OFFSET(O2Depth!$A$10,$H49*12,4*($C$8-1)+4,12,1)), MAX(OFFSET(O2Depth!$A$10,$H49*12,4*($C$8-1)+4,12,1))) / 0.3048 -> 93.99168854 | L49: =IF($B$4="Annual Average", AVERAGE(OFFSET(O2Depth!$A$10,$H49*12,4*($C$8-1)+1,12,1)), MAX(OFFSET(O2Depth!$A$10,$H49*12,4*($C$8-1)+1,12,1))) / 0.3048 -> 72.57272528 | R49: 2 | S49: =VLOOKUP($R49,O2Depth!$A$10:$AG$2410,4*($C$8-1)+3) / 0.3048 -> 53.16929134 | T49: =VLOOKUP($R49,O2Depth!$A$10:$AG$2410,4*($C$8-1)+4) / 0.3048 -> 68.45144357 | U49: =VLOOKUP($R49,O2Depth!$A$10:$AG$2410,4*($C$8-1)+5) / 0.3048 -> 95.78740157 | V49: =VLOOKUP($R49,O2Depth!$A$10:$AG$2410,4*($C$8-1)+2) / 0.3048 -> 71.67322835
H50: 25 | I50: =IF($B$4="Annual Average", AVERAGE(OFFSET(O2Depth!$A$10,$H50*12,4*($C$8-1)+2,12,1)), MAX(OFFSET(O2Depth!$A$10,$H50*12,4*($C$8-1)+2,12,1))) / 0.3048 -> 54.56856955 | J50: =IF($B$4="Annual Average", AVERAGE(OFFSET(O2Depth!$A$10,$H50*12,4*($C$8-1)+3,12,1)), MAX(OFFSET(O2Depth!$A$10,$H50*12,4*($C$8-1)+3,12,1))) / 0.3048 -> 69.98086177 | K50: =IF($B$4="Annual Average", AVERAGE(OFFSET(O2Depth!$A$10,$H50*12,4*($C$8-1)+4,12,1)), MAX(OFFSET(O2Depth!$A$10,$H50*12,4*($C$8-1)+4,12,1))) / 0.3048 -> 97.25557743 | L50: =IF($B$4="Annual Average", AVERAGE(OFFSET(O2Depth!$A$10,$H50*12,4*($C$8-1)+1,12,1)), MAX(OFFSET(O2Depth!$A$10,$H50*12,4*($C$8-1)+1,12,1))) / 0.3048 -> 73.43558618 | R50: 2.083333333 | S50: =VLOOKUP($R50,O2Depth!$A$10:$AG$2410,4*($C$8-1)+3) / 0.3048 -> 53.40879265 | T50: =VLOOKUP($R50,O2Depth!$A$10:$AG$2410,4*($C$8-1)+4) / 0.3048 -> 67.78543307 | U50: =VLOOKUP($R50,O2Depth!$A$10:$AG$2410,4*($C$8-1)+5) / 0.3048 -> 94.90813648 | V50: =VLOOKUP($R50,O2Depth!$A$10:$AG$2410,4*($C$8-1)+2) / 0.3048 -> 71.73884514
H51: 26 | I51: =IF($B$4="Annual Average", AVERAGE(OFFSET(O2Depth!$A$10,$H51*12,4*($C$8-1)+2,12,1)), MAX(OFFSET(O2Depth!$A$10,$H51*12,4*($C$8-1)+2,12,1))) / 0.3048 -> 54.71839458 | J51: =IF($B$4="Annual Average", AVERAGE(OFFSET(O2Depth!$A$10,$H51*12,4*($C$8-1)+3,12,1)), MAX(OFFSET(O2Depth!$A$10,$H51*12,4*($C$8-1)+3,12,1))) / 0.3048 -> 70.23266623 | K51: =IF($B$4="Annual Average", AVERAGE(OFFSET(O2Depth!$A$10,$H51*12,4*($C$8-1)+4,12,1)), MAX(OFFSET(O2Depth!$A$10,$H51*12,4*($C$8-1)+4,12,1))) / 0.3048 -> 97.17300962 | L51: =IF($B$4="Annual Average", AVERAGE(OFFSET(O2Depth!$A$10,$H51*12,4*($C$8-1)+1,12,1)), MAX(OFFSET(O2Depth!$A$10,$H51*12,4*($C$8-1)+1,12,1))) / 0.3048 -> 73.94493657 | R51: 2.166666667 | S51: =VLOOKUP($R51,O2Depth!$A$10:$AG$2410,4*($C$8-1)+3) / 0.3048 -> 53.40879265 | T51: =VLOOKUP($R51,O2Depth!$A$10:$AG$2410,4*($C$8-1)+4) / 0.3048 -> 67.78543307 | U51: =VLOOKUP($R51,O2Depth!$A$10:$AG$2410,4*($C$8-1)+5) / 0.3048 -> 94.90813648 | V51: =VLOOKUP($R51,O2Depth!$A$10:$AG$2410,4*($C$8-1)+2) / 0.3048 -> 71.73884514
H52: 27 | I52: =IF($B$4="Annual Average", AVERAGE(OFFSET(O2Depth!$A$10,$H52*12,4*($C$8-1)+2,12,1)), MAX(OFFSET(O2Depth!$A$10,$H52*12,4*($C$8-1)+2,12,1))) / 0.3048 -> 54.80861767 | J52: =IF($B$4="Annual Average", AVERAGE(OFFSET(O2Depth!$A$10,$H52*12,4*($C$8-1)+3,12,1)), MAX(OFFSET(O2Depth!$A$10,$H52*12,4*($C$8-1)+3,12,1))) / 0.3048 -> 69.66644794 | K52: =IF($B$4="Annual Average", AVERAGE(OFFSET(O2Depth!$A$10,$H52*12,4*($C$8-1)+4,12,1)), MAX(OFFSET(O2Depth!$A$10,$H52*12,4*($C$8-1)+4,12,1))) / 0.3048 -> 93.98485346 | L52: =IF($B$4="Annual Average", AVERAGE(OFFSET(O2Depth!$A$10,$H52*12,4*($C$8-1)+1,12,1)), MAX(OFFSET(O2Depth!$A$10,$H52*12,4*($C$8-1)+1,12,1))) / 0.3048 -> 72.77777778 | R52: 2.25 | S52: =VLOOKUP($R52,O2Depth!$A$10:$AG$2410,4*($C$8-1)+3) / 0.3048 -> 53.90419948 | T52: =VLOOKUP($R52,O2Depth!$A$10:$AG$2410,4*($C$8-1)+4) / 0.3048 -> 68.51706037 | U52: =VLOOKUP($R52,O2Depth!$A$10:$AG$2410,4*($C$8-1)+5) / 0.3048 -> 94.60301837 | V52: =VLOOKUP($R52,O2Depth!$A$10:$AG$2410,4*($C$8-1)+2) / 0.3048 -> 71.7847769
H53: 28 | I53: =IF($B$4="Annual Average", AVERAGE(OFFSET(O2Depth!$A$10,$H53*12,4*($C$8-1)+2,12,1)), MAX(OFFSET(O2Depth!$A$10,$H53*12,4*($C$8-1)+2,12,1))) / 0.3048 -> 54.83213036 | J53: =IF($B$4="Annual Average", AVERAGE(OFFSET(O2Depth!$A$10,$H53*12,4*($C$8-1)+3,12,1)), MAX(OFFSET(O2Depth!$A$10,$H53*12,4*($C$8-1)+3,12,1))) / 0.3048 -> 68.91568241 | K53: =IF($B$4="Annual Average", AVERAGE(OFFSET(O2Depth!$A$10,$H53*12,4*($C$8-1)+4,12,1)), MAX(OFFSET(O2Depth!$A$10,$H53*12,4*($C$8-1)+4,12,1))) / 0.3048 -> 93.23272091 | L53: =IF($B$4="Annual Average", AVERAGE(OFFSET(O2Depth!$A$10,$H53*12,4*($C$8-1)+1,12,1)), MAX(OFFSET(O2Depth!$A$10,$H53*12,4*($C$8-1)+1,12,1))) / 0.3048 -> 72.2859252 | R53: 2.333333333 | S53: =VLOOKUP($R53,O2Depth!$A$10:$AG$2410,4*($C$8-1)+3) / 0.3048 -> 54.26181102 | T53: =VLOOKUP($R53,O2Depth!$A$10:$AG$2410,4*($C$8-1)+4) / 0.3048 -> 68.7828084 | U53: =VLOOKUP($R53,O2Depth!$A$10:$AG$2410,4*($C$8-1)+5) / 0.3048 -> 94.67519685 | V53: =VLOOKUP($R53,O2Depth!$A$10:$AG$2410,4*($C$8-1)+2) / 0.3048 -> 71.90288714
H54: 29 | I54: =IF($B$4="Annual Average", AVERAGE(OFFSET(O2Depth!$A$10,$H54*12,4*($C$8-1)+2,12,1)), MAX(OFFSET(O2Depth!$A$10,$H54*12,4*($C$8-1)+2,12,1))) / 0.3048 -> 54.48682196 | J54: =IF($B$4="Annual Average", AVERAGE(OFFSET(O2Depth!$A$10,$H54*12,4*($C$8-1)+3,12,1)), MAX(OFFSET(O2Depth!$A$10,$H54*12,4*($C$8-1)+3,12,1))) / 0.3048 -> 69.22298775 | K54: =IF($B$4="Annual Average", AVERAGE(OFFSET(O2Depth!$A$10,$H54*12,4*($C$8-1)+4,12,1)), MAX(OFFSET(O2Depth!$A$10,$H54*12,4*($C$8-1)+4,12,1))) / 0.3048 -> 94.7364392 | L54: =IF($B$4="Annual Average", AVERAGE(OFFSET(O2Depth!$A$10,$H54*12,4*($C$8-1)+1,12,1)), MAX(OFFSET(O2Depth!$A$10,$H54*12,4*($C$8-1)+1,12,1))) / 0.3048 -> 72.62029746 | R54: 2.416666667 | S54: =VLOOKUP($R54,O2Depth!$A$10:$AG$2410,4*($C$8-1)+3) / 0.3048 -> 54.26181102 | T54: =VLOOKUP($R54,O2Depth!$A$10:$AG$2410,4*($C$8-1)+4) / 0.3048 -> 68.7828084 | U54: =VLOOKUP($R54,O2Depth!$A$10:$AG$2410,4*($C$8-1)+5) / 0.3048 -> 94.67519685 | V54: =VLOOKUP($R54,O2Depth!$A$10:$AG$2410,4*($C$8-1)+2) / 0.3048 -> 71.90288714
H55: 30 | I55: =IF($B$4="Annual Average", AVERAGE(OFFSET(O2Depth!$A$10,$H55*12,4*($C$8-1)+2,12,1)), MAX(OFFSET(O2Depth!$A$10,$H55*12,4*($C$8-1)+2,12,1))) / 0.3048 -> 55.03991689 | J55: =IF($B$4="Annual Average", AVERAGE(OFFSET(O2Depth!$A$10,$H55*12,4*($C$8-1)+3,12,1)), MAX(OFFSET(O2Depth!$A$10,$H55*12,4*($C$8-1)+3,12,1))) / 0.3048 -> 69.04937664 | K55: =IF($B$4="Annual Average", AVERAGE(OFFSET(O2Depth!$A$10,$H55*12,4*($C$8-1)+4,12,1)), MAX(OFFSET(O2Depth!$A$10,$H55*12,4*($C$8-1)+4,12,1))) / 0.3048 -> 95.35214348 | L55: =IF($B$4="Annual Average", AVERAGE(OFFSET(O2Depth!$A$10,$H55*12,4*($C$8-1)+1,12,1)), MAX(OFFSET(O2Depth!$A$10,$H55*12,4*($C$8-1)+1,12,1))) / 0.3048 -> 72.49125109 | R55: 2.5 | S55: =VLOOKUP($R55,O2Depth!$A$10:$AG$2410,4*($C$8-1)+3) / 0.3048 -> 54.47506562 | T55: =VLOOKUP($R55,O2Depth!$A$10:$AG$2410,4*($C$8-1)+4) / 0.3048 -> 68.84186352 | U55: =VLOOKUP($R55,O2Depth!$A$10:$AG$2410,4*($C$8-1)+5) / 0.3048 -> 94.73425197 | V55: =VLOOKUP($R55,O2Depth!$A$10:$AG$2410,4*($C$8-1)+2) / 0.3048 -> 72.06364829
H56: 31 | I56: =IF($B$4="Annual Average", AVERAGE(OFFSET(O2Depth!$A$10,$H56*12,4*($C$8-1)+2,12,1)), MAX(OFFSET(O2Depth!$A$10,$H56*12,4*($C$8-1)+2,12,1))) / 0.3048 -> 54.59153543 | J56: =IF($B$4="Annual Average", AVERAGE(OFFSET(O2Depth!$A$10,$H56*12,4*($C$8-1)+3,12,1)), MAX(OFFSET(O2Depth!$A$10,$H56*12,4*($C$8-1)+3,12,1))) / 0.3048 -> 69.37746063 | K56: =IF($B$4="Annual Average", AVERAGE(OFFSET(O2Depth!$A$10,$H56*12,4*($C$8-1)+4,12,1)), MAX(OFFSET(O2Depth!$A$10,$H56*12,4*($C$8-1)+4,12,1))) / 0.3048 -> 96.16415136 | L56: =IF($B$4="Annual Average", AVERAGE(OFFSET(O2Depth!$A$10,$H56*12,4*($C$8-1)+1,12,1)), MAX(OFFSET(O2Depth!$A$10,$H56*12,4*($C$8-1)+1,12,1))) / 0.3048 -> 72.83300525 | R56: 2.583333333 | S56: =VLOOKUP($R56,O2Depth!$A$10:$AG$2410,4*($C$8-1)+3) / 0.3048 -> 54.45866142 | T56: =VLOOKUP($R56,O2Depth!$A$10:$AG$2410,4*($C$8-1)+4) / 0.3048 -> 68.87467192 | U56: =VLOOKUP($R56,O2Depth!$A$10:$AG$2410,4*($C$8-1)+5) / 0.3048 -> 94.17650919 | V56: =VLOOKUP($R56,O2Depth!$A$10:$AG$2410,4*($C$8-1)+2) / 0.3048 -> 72.15879265
H57: 32 | I57: =IF($B$4="Annual Average", AVERAGE(OFFSET(O2Depth!$A$10,$H57*12,4*($C$8-1)+2,12,1)), MAX(OFFSET(O2Depth!$A$10,$H57*12,4*($C$8-1)+2,12,1))) / 0.3048 -> 53.87877297 | J57: =IF($B$4="Annual Average", AVERAGE(OFFSET(O2Depth!$A$10,$H57*12,4*($C$8-1)+3,12,1)), MAX(OFFSET(O2Depth!$A$10,$H57*12,4*($C$8-1)+3,12,1))) / 0.3048 -> 68.65376203 | K57: =IF($B$4="Annual Average", AVERAGE(OFFSET(O2Depth!$A$10,$H57*12,4*($C$8-1)+4,12,1)), MAX(OFFSET(O2Depth!$A$10,$H57*12,4*($C$8-1)+4,12,1))) / 0.3048 -> 96.65053587 | L57: =IF($B$4="Annual Average", AVERAGE(OFFSET(O2Depth!$A$10,$H57*12,4*($C$8-1)+1,12,1)), MAX(OFFSET(O2Depth!$A$10,$H57*12,4*($C$8-1)+1,12,1))) / 0.3048 -> 72.53772966 | R57: 2.666666667 | S57: =VLOOKUP($R57,O2Depth!$A$10:$AG$2410,4*($C$8-1)+3) / 0.3048 -> 54.45866142 | T57: =VLOOKUP($R57,O2Depth!$A$10:$AG$2410,4*($C$8-1)+4) / 0.3048 -> 68.87467192 | U57: =VLOOKUP($R57,O2Depth!$A$10:$AG$2410,4*($C$8-1)+5) / 0.3048 -> 94.17650919 | V57: =VLOOKUP($R57,O2Depth!$A$10:$AG$2410,4*($C$8-1)+2) / 0.3048 -> 72.15879265
H58: 33 | I58: =IF($B$4="Annual Average", AVERAGE(OFFSET(O2Depth!$A$10,$H58*12,4*($C$8-1)+2,12,1)), MAX(OFFSET(O2Depth!$A$10,$H58*12,4*($C$8-1)+2,12,1))) / 0.3048 -> 53.90693351 | J58: =IF($B$4="Annual Average", AVERAGE(OFFSET(O2Depth!$A$10,$H58*12,4*($C$8-1)+3,12,1)), MAX(OFFSET(O2Depth!$A$10,$H58*12,4*($C$8-1)+3,12,1))) / 0.3048 -> 68.41234689 | K58: =IF($B$4="Annual Average", AVERAGE(OFFSET(O2Depth!$A$10,$H58*12,4*($C$8-1)+4,12,1)), MAX(OFFSET(O2Depth!$A$10,$H58*12,4*($C$8-1)+4,12,1))) / 0.3048 -> 95.5675853 | L58: =IF($B$4="Annual Average", AVERAGE(OFFSET(O2Depth!$A$10,$H58*12,4*($C$8-1)+1,12,1)), MAX(OFFSET(O2Depth!$A$10,$H58*12,4*($C$8-1)+1,12,1))) / 0.3048 -> 72.29166667 | R58: 2.75 | S58: =VLOOKUP($R58,O2Depth!$A$10:$AG$2410,4*($C$8-1)+3) / 0.3048 -> 54.62926509 | T58: =VLOOKUP($R58,O2Depth!$A$10:$AG$2410,4*($C$8-1)+4) / 0.3048 -> 68.61220472 | U58: =VLOOKUP($R58,O2Depth!$A$10:$AG$2410,4*($C$8-1)+5) / 0.3048 -> 94.28149606 | V58: =VLOOKUP($R58,O2Depth!$A$10:$AG$2410,4*($C$8-1)+2) / 0.3048 -> 72.37204724
H59: 34 | I59: =IF($B$4="Annual Average", AVERAGE(OFFSET(O2Depth!$A$10,$H59*12,4*($C$8-1)+2,12,1)), MAX(OFFSET(O2Depth!$A$10,$H59*12,4*($C$8-1)+2,12,1))) / 0.3048 -> 54.27192695 | J59: =IF($B$4="Annual Average", AVERAGE(OFFSET(O2Depth!$A$10,$H59*12,4*($C$8-1)+3,12,1)), MAX(OFFSET(O2Depth!$A$10,$H59*12,4*($C$8-1)+3,12,1))) / 0.3048 -> 69.37281277 | K59: =IF($B$4="Annual Average", AVERAGE(OFFSET(O2Depth!$A$10,$H59*12,4*($C$8-1)+4,12,1)), MAX(OFFSET(O2Depth!$A$10,$H59*12,4*($C$8-1)+4,12,1))) / 0.3048 -> 93.92388451 | L59: =IF($B$4="Annual Average", AVERAGE(OFFSET(O2Depth!$A$10,$H59*12,4*($C$8-1)+1,12,1)), MAX(OFFSET(O2Depth!$A$10,$H59*12,4*($C$8-1)+1,12,1))) / 0.3048 -> 72.72063648 | R59: 2.833333333 | S59: =VLOOKUP($R59,O2Depth!$A$10:$AG$2410,4*($C$8-1)+3) / 0.3048 -> 54.34055118 | T59: =VLOOKUP($R59,O2Depth!$A$10:$AG$2410,4*($C$8-1)+4) / 0.3048 -> 68.75656168 | U59: =VLOOKUP($R59,O2Depth!$A$10:$AG$2410,4*($C$8-1)+5) / 0.3048 -> 94.90813648 | V59: =VLOOKUP($R59,O2Depth!$A$10:$AG$2410,4*($C$8-1)+2) / 0.3048 -> 72.49671916
H60: 35 | I60: =IF($B$4="Annual Average", AVERAGE(OFFSET(O2Depth!$A$10,$H60*12,4*($C$8-1)+2,12,1)), MAX(OFFSET(O2Depth!$A$10,$H60*12,4*($C$8-1)+2,12,1))) / 0.3048 -> 54.24267279 | J60: =IF($B$4="Annual Average", AVERAGE(OFFSET(O2Depth!$A$10,$H60*12,4*($C$8-1)+3,12,1)), MAX(OFFSET(O2Depth!$A$10,$H60*12,4*($C$8-1)+3,12,1))) / 0.3048 -> 69.23775153 | K60: =IF($B$4="Annual Average", AVERAGE(OFFSET(O2Depth!$A$10,$H60*12,4*($C$8-1)+4,12,1)), MAX(OFFSET(O2Depth!$A$10,$H60*12,4*($C$8-1)+4,12,1))) / 0.3048 -> 95.52274716 | L60: =IF($B$4="Annual Average", AVERAGE(OFFSET(O2Depth!$A$10,$H60*12,4*($C$8-1)+1,12,1)), MAX(OFFSET(O2Depth!$A$10,$H60*12,4*($C$8-1)+1,12,1))) / 0.3048 -> 72.19132765 | R60: 2.916666667 | S60: =VLOOKUP($R60,O2Depth!$A$10:$AG$2410,4*($C$8-1)+3) / 0.3048 -> 54.34055118 | T60: =VLOOKUP($R60,O2Depth!$A$10:$AG$2410,4*($C$8-1)+4) / 0.3048 -> 68.75656168 | U60: =VLOOKUP($R60,O2Depth!$A$10:$AG$2410,4*($C$8-1)+5) / 0.3048 -> 94.90813648 | V60: =VLOOKUP($R60,O2Depth!$A$10:$AG$2410,4*($C$8-1)+2) / 0.3048 -> 72.49671916
H61: 36 | I61: =IF($B$4="Annual Average", AVERAGE(OFFSET(O2Depth!$A$10,$H61*12,4*($C$8-1)+2,12,1)), MAX(OFFSET(O2Depth!$A$10,$H61*12,4*($C$8-1)+2,12,1))) / 0.3048 -> 54.44690507 | J61: =IF($B$4="Annual Average", AVERAGE(OFFSET(O2Depth!$A$10,$H61*12,4*($C$8-1)+3,12,1)), MAX(OFFSET(O2Depth!$A$10,$H61*12,4*($C$8-1)+3,12,1))) / 0.3048 -> 69.30801619 | K61: =IF($B$4="Annual Average", AVERAGE(OFFSET(O2Depth!$A$10,$H61*12,4*($C$8-1)+4,12,1)), MAX(OFFSET(O2Depth!$A$10,$H61*12,4*($C$8-1)+4,12,1))) / 0.3048 -> 96.14802056 | L61: =IF($B$4="Annual Average", AVERAGE(OFFSET(O2Depth!$A$10,$H61*12,4*($C$8-1)+1,12,1)), MAX(OFFSET(O2Depth!$A$10,$H61*12,4*($C$8-1)+1,12,1))) / 0.3048 -> 72.76082677 | R61: 3 | S61: =VLOOKUP($R61,O2Depth!$A$10:$AG$2410,4*($C$8-1)+3) / 0.3048 -> 53.45472441 | T61: =VLOOKUP($R61,O2Depth!$A$10:$AG$2410,4*($C$8-1)+4) / 0.3048 -> 68.48753281 | U61: =VLOOKUP($R61,O2Depth!$A$10:$AG$2410,4*($C$8-1)+5) / 0.3048 -> 97.9691601 | V61: =VLOOKUP($R61,O2Depth!$A$10:$AG$2410,4*($C$8-1)+2) / 0.3048 -> 72.89698163
H62: 37 | I62: =IF($B$4="Annual Average", AVERAGE(OFFSET(O2Depth!$A$10,$H62*12,4*($C$8-1)+2,12,1)), MAX(OFFSET(O2Depth!$A$10,$H62*12,4*($C$8-1)+2,12,1))) / 0.3048 -> 54.9425853 | J62: =IF($B$4="Annual Average", AVERAGE(OFFSET(O2Depth!$A$10,$H62*12,4*($C$8-1)+3,12,1)), MAX(OFFSET(O2Depth!$A$10,$H62*12,4*($C$8-1)+3,12,1))) / 0.3048 -> 69.03871391 | K62: =IF($B$4="Annual Average", AVERAGE(OFFSET(O2Depth!$A$10,$H62*12,4*($C$8-1)+4,12,1)), MAX(OFFSET(O2Depth!$A$10,$H62*12,4*($C$8-1)+4,12,1))) / 0.3048 -> 94.95406824 | L62: =IF($B$4="Annual Average", AVERAGE(OFFSET(O2Depth!$A$10,$H62*12,4*($C$8-1)+1,12,1)), MAX(OFFSET(O2Depth!$A$10,$H62*12,4*($C$8-1)+1,12,1))) / 0.3048 -> 72.55112642 | R62: 3.083333333 | S62: =VLOOKUP($R62,O2Depth!$A$10:$AG$2410,4*($C$8-1)+3) / 0.3048 -> 54.16666667 | T62: =VLOOKUP($R62,O2Depth!$A$10:$AG$2410,4*($C$8-1)+4) / 0.3048 -> 68.44160105 | U62: =VLOOKUP($R62,O2Depth!$A$10:$AG$2410,4*($C$8-1)+5) / 0.3048 -> 96.21391076 | V62: =VLOOKUP($R62,O2Depth!$A$10:$AG$2410,4*($C$8-1)+2) / 0.3048 -> 72.76574803
H63: 38 | I63: =IF($B$4="Annual Average", AVERAGE(OFFSET(O2Depth!$A$10,$H63*12,4*($C$8-1)+2,12,1)), MAX(OFFSET(O2Depth!$A$10,$H63*12,4*($C$8-1)+2,12,1))) / 0.3048 -> 54.83732502 | J63: =IF($B$4="Annual Average", AVERAGE(OFFSET(O2Depth!$A$10,$H63*12,4*($C$8-1)+3,12,1)), MAX(OFFSET(O2Depth!$A$10,$H63*12,4*($C$8-1)+3,12,1))) / 0.3048 -> 69.33863736 | K63: =IF($B$4="Annual Average", AVERAGE(OFFSET(O2Depth!$A$10,$H63*12,4*($C$8-1)+4,12,1)), MAX(OFFSET(O2Depth!$A$10,$H63*12,4*($C$8-1)+4,12,1))) / 0.3048 -> 95.25235127 | L63: =IF($B$4="Annual Average", AVERAGE(OFFSET(O2Depth!$A$10,$H63*12,4*($C$8-1)+1,12,1)), MAX(OFFSET(O2Depth!$A$10,$H63*12,4*($C$8-1)+1,12,1))) / 0.3048 -> 72.7794182 | R63: 3.166666667 | S63: =VLOOKUP($R63,O2Depth!$A$10:$AG$2410,4*($C$8-1)+3) / 0.3048 -> 54.16666667 | T63: =VLOOKUP($R63,O2Depth!$A$10:$AG$2410,4*($C$8-1)+4) / 0.3048 -> 68.44160105 | U63: =VLOOKUP($R63,O2Depth!$A$10:$AG$2410,4*($C$8-1)+5) / 0.3048 -> 96.21391076 | V63: =VLOOKUP($R63,O2Depth!$A$10:$AG$2410,4*($C$8-1)+2) / 0.3048 -> 72.76574803
H64: 39 | I64: =IF($B$4="Annual Average", AVERAGE(OFFSET(O2Depth!$A$10,$H64*12,4*($C$8-1)+2,12,1)), MAX(OFFSET(O2Depth!$A$10,$H64*12,4*($C$8-1)+2,12,1))) / 0.3048 -> 55.01148294 | J64: =IF($B$4="Annual Average", AVERAGE(OFFSET(O2Depth!$A$10,$H64*12,4*($C$8-1)+3,12,1)), MAX(OFFSET(O2Depth!$A$10,$H64*12,4*($C$8-1)+3,12,1))) / 0.3048 -> 69.23474409 | K64: =IF($B$4="Annual Average", AVERAGE(OFFSET(O2Depth!$A$10,$H64*12,4*($C$8-1)+4,12,1)), MAX(OFFSET(O2Depth!$A$10,$H64*12,4*($C$8-1)+4,12,1))) / 0.3048 -> 94.36953193 | L64: =IF($B$4="Annual Average", AVERAGE(OFFSET(O2Depth!$A$10,$H64*12,4*($C$8-1)+1,12,1)), MAX(OFFSET(O2Depth!$A$10,$H64*12,4*($C$8-1)+1,12,1))) / 0.3048 -> 72.73239283 | R64: 3.25 | S64: =VLOOKUP($R64,O2Depth!$A$10:$AG$2410,4*($C$8-1)+3) / 0.3048 -> 54.73425197 | T64: =VLOOKUP($R64,O2Depth!$A$10:$AG$2410,4*($C$8-1)+4) / 0.3048 -> 68.45800525 | U64: =VLOOKUP($R64,O2Depth!$A$10:$AG$2410,4*($C$8-1)+5) / 0.3048 -> 95.08530184 | V64: =VLOOKUP($R64,O2Depth!$A$10:$AG$2410,4*($C$8-1)+2) / 0.3048 -> 72.52952756
H65: 40 | I65: =IF($B$4="Annual Average", AVERAGE(OFFSET(O2Depth!$A$10,$H65*12,4*($C$8-1)+2,12,1)), MAX(OFFSET(O2Depth!$A$10,$H65*12,4*($C$8-1)+2,12,1))) / 0.3048 -> 54.60684602 | J65: =IF($B$4="Annual Average", AVERAGE(OFFSET(O2Depth!$A$10,$H65*12,4*($C$8-1)+3,12,1)), MAX(OFFSET(O2Depth!$A$10,$H65*12,4*($C$8-1)+3,12,1))) / 0.3048 -> 68.86920385 | K65: =IF($B$4="Annual Average", AVERAGE(OFFSET(O2Depth!$A$10,$H65*12,4*($C$8-1)+4,12,1)), MAX(OFFSET(O2Depth!$A$10,$H65*12,4*($C$8-1)+4,12,1))) / 0.3048 -> 95.62308618 | L65: =IF($B$4="Annual Average", AVERAGE(OFFSET(O2Depth!$A$10,$H65*12,4*($C$8-1)+1,12,1)), MAX(OFFSET(O2Depth!$A$10,$H65*12,4*($C$8-1)+1,12,1))) / 0.3048 -> 72.71653543 | R65: 3.333333333 | S65: =VLOOKUP($R65,O2Depth!$A$10:$AG$2410,4*($C$8-1)+3) / 0.3048 -> 54.8523622 | T65: =VLOOKUP($R65,O2Depth!$A$10:$AG$2410,4*($C$8-1)+4) / 0.3048 -> 69.12729659 | U65: =VLOOKUP($R65,O2Depth!$A$10:$AG$2410,4*($C$8-1)+5) / 0.3048 -> 94.3832021 | V65: =VLOOKUP($R65,O2Depth!$A$10:$AG$2410,4*($C$8-1)+2) / 0.3048 -> 72.42782152
H66: 41 | I66: =IF($B$4="Annual Average", AVERAGE(OFFSET(O2Depth!$A$10,$H66*12,4*($C$8-1)+2,12,1)), MAX(OFFSET(O2Depth!$A$10,$H66*12,4*($C$8-1)+2,12,1))) / 0.3048 -> 53.82354549 | J66: =IF($B$4="Annual Average", AVERAGE(OFFSET(O2Depth!$A$10,$H66*12,4*($C$8-1)+3,12,1)), MAX(OFFSET(O2Depth!$A$10,$H66*12,4*($C$8-1)+3,12,1))) / 0.3048 -> 68.88478784 | K66: =IF($B$4="Annual Average", AVERAGE(OFFSET(O2Depth!$A$10,$H66*12,4*($C$8-1)+4,12,1)), MAX(OFFSET(O2Depth!$A$10,$H66*12,4*($C$8-1)+4,12,1))) / 0.3048 -> 95.47353456 | L66: =IF($B$4="Annual Average", AVERAGE(OFFSET(O2Depth!$A$10,$H66*12,4*($C$8-1)+1,12,1)), MAX(OFFSET(O2Depth!$A$10,$H66*12,4*($C$8-1)+1,12,1))) / 0.3048 -> 72.24464129 | R66: 3.416666667 | S66: =VLOOKUP($R66,O2Depth!$A$10:$AG$2410,4*($C$8-1)+3) / 0.3048 -> 54.8523622 | T66: =VLOOKUP($R66,O2Depth!$A$10:$AG$2410,4*($C$8-1)+4) / 0.3048 -> 69.12729659 | U66: =VLOOKUP($R66,O2Depth!$A$10:$AG$2410,4*($C$8-1)+5) / 0.3048 -> 94.3832021 | V66: =VLOOKUP($R66,O2Depth!$A$10:$AG$2410,4*($C$8-1)+2) / 0.3048 -> 72.42782152
H67: 42 | I67: =IF($B$4="Annual Average", AVERAGE(OFFSET(O2Depth!$A$10,$H67*12,4*($C$8-1)+2,12,1)), MAX(OFFSET(O2Depth!$A$10,$H67*12,4*($C$8-1)+2,12,1))) / 0.3048 -> 54.3257874 | J67: =IF($B$4="Annual Average", AVERAGE(OFFSET(O2Depth!$A$10,$H67*12,4*($C$8-1)+3,12,1)), MAX(OFFSET(O2Depth!$A$10,$H67*12,4*($C$8-1)+3,12,1))) / 0.3048 -> 68.9307196 | K67: =IF($B$4="Annual Average", AVERAGE(OFFSET(O2Depth!$A$10,$H67*12,4*($C$8-1)+4,12,1)), MAX(OFFSET(O2Depth!$A$10,$H67*12,4*($C$8-1)+4,12,1))) / 0.3048 -> 96.8585958 | L67: =IF($B$4="Annual Average", AVERAGE(OFFSET(O2Depth!$A$10,$H67*12,4*($C$8-1)+1,12,1)), MAX(OFFSET(O2Depth!$A$10,$H67*12,4*($C$8-1)+1,12,1))) / 0.3048 -> 72.8373797 | R67: 3.5 | S67: =VLOOKUP($R67,O2Depth!$A$10:$AG$2410,4*($C$8-1)+3) / 0.3048 -> 55.14435696 | T67: =VLOOKUP($R67,O2Depth!$A$10:$AG$2410,4*($C$8-1)+4) / 0.3048 -> 69.78674541 | U67: =VLOOKUP($R67,O2Depth!$A$10:$AG$2410,4*($C$8-1)+5) / 0.3048 -> 93.42191601 | V67: =VLOOKUP($R67,O2Depth!$A$10:$AG$2410,4*($C$8-1)+2) / 0.3048 -> 72.25393701
H68: 43 | I68: =IF($B$4="Annual Average", AVERAGE(OFFSET(O2Depth!$A$10,$H68*12,4*($C$8-1)+2,12,1)), MAX(OFFSET(O2Depth!$A$10,$H68*12,4*($C$8-1)+2,12,1))) / 0.3048 -> 54.5395888 | J68: =IF($B$4="Annual Average", AVERAGE(OFFSET(O2Depth!$A$10,$H68*12,4*($C$8-1)+3,12,1)), MAX(OFFSET(O2Depth!$A$10,$H68*12,4*($C$8-1)+3,12,1))) / 0.3048 -> 68.81944444 | K68: =IF($B$4="Annual Average", AVERAGE(OFFSET(O2Depth!$A$10,$H68*12,4*($C$8-1)+4,12,1)), MAX(OFFSET(O2Depth!$A$10,$H68*12,4*($C$8-1)+4,12,1))) / 0.3048 -> 98.09055118 | L68: =IF($B$4="Annual Average", AVERAGE(OFFSET(O2Depth!$A$10,$H68*12,4*($C$8-1)+1,12,1)), MAX(OFFSET(O2Depth!$A$10,$H68*12,4*($C$8-1)+1,12,1))) / 0.3048 -> 73.45827865 | R68: 3.583333333 | S68: =VLOOKUP($R68,O2Depth!$A$10:$AG$2410,4*($C$8-1)+3) / 0.3048 -> 54.79986877 | T68: =VLOOKUP($R68,O2Depth!$A$10:$AG$2410,4*($C$8-1)+4) / 0.3048 -> 69.47178478 | U68: =VLOOKUP($R68,O2Depth!$A$10:$AG$2410,4*($C$8-1)+5) / 0.3048 -> 92.26377953 | V68: =VLOOKUP($R68,O2Depth!$A$10:$AG$2410,4*($C$8-1)+2) / 0.3048 -> 72.18175853
H69: 44 | I69: =IF($B$4="Annual Average", AVERAGE(OFFSET(O2Depth!$A$10,$H69*12,4*($C$8-1)+2,12,1)), MAX(OFFSET(O2Depth!$A$10,$H69*12,4*($C$8-1)+2,12,1))) / 0.3048 -> 53.73414261 | J69: =IF($B$4="Annual Average", AVERAGE(OFFSET(O2Depth!$A$10,$H69*12,4*($C$8-1)+3,12,1)), MAX(OFFSET(O2Depth!$A$10,$H69*12,4*($C$8-1)+3,12,1))) / 0.3048 -> 69.0460958 | K69: =IF($B$4="Annual Average", AVERAGE(OFFSET(O2Depth!$A$10,$H69*12,4*($C$8-1)+4,12,1)), MAX(OFFSET(O2Depth!$A$10,$H69*12,4*($C$8-1)+4,12,1))) / 0.3048 -> 97.33951225 | L69: =IF($B$4="Annual Average", AVERAGE(OFFSET(O2Depth!$A$10,$H69*12,4*($C$8-1)+1,12,1)), MAX(OFFSET(O2Depth!$A$10,$H69*12,4*($C$8-1)+1,12,1))) / 0.3048 -> 72.75071085 | R69: 3.666666667 | S69: =VLOOKUP($R69,O2Depth!$A$10:$AG$2410,4*($C$8-1)+3) / 0.3048 -> 54.79986877 | T69: =VLOOKUP($R69,O2Depth!$A$10:$AG$2410,4*($C$8-1)+4) / 0.3048 -> 69.47178478 | U69: =VLOOKUP($R69,O2Depth!$A$10:$AG$2410,4*($C$8-1)+5) / 0.3048 -> 92.26377953 | V69: =VLOOKUP($R69,O2Depth!$A$10:$AG$2410,4*($C$8-1)+2) / 0.3048 -> 72.18175853
H70: 45 | I70: =IF($B$4="Annual Average", AVERAGE(OFFSET(O2Depth!$A$10,$H70*12,4*($C$8-1)+2,12,1)), MAX(OFFSET(O2Depth!$A$10,$H70*12,4*($C$8-1)+2,12,1))) / 0.3048 -> 54.1778762 | J70: =IF($B$4="Annual Average", AVERAGE(OFFSET(O2Depth!$A$10,$H70*12,4*($C$8-1)+3,12,1)), MAX(OFFSET(O2Depth!$A$10,$H70*12,4*($C$8-1)+3,12,1))) / 0.3048 -> 69.28997157 | K70: =IF($B$4="Annual Average", AVERAGE(OFFSET(O2Depth!$A$10,$H70*12,4*($C$8-1)+4,12,1)), MAX(OFFSET(O2Depth!$A$10,$H70*12,4*($C$8-1)+4,12,1))) / 0.3048 -> 95.21106737 | L70: =IF($B$4="Annual Average", AVERAGE(OFFSET(O2Depth!$A$10,$H70*12,4*($C$8-1)+1,12,1)), MAX(OFFSET(O2Depth!$A$10,$H70*12,4*($C$8-1)+1,12,1))) / 0.3048 -> 72.70450569 | R70: 3.75 | S70: =VLOOKUP($R70,O2Depth!$A$10:$AG$2410,4*($C$8-1)+3) / 0.3048 -> 54.77362205 | T70: =VLOOKUP($R70,O2Depth!$A$10:$AG$2410,4*($C$8-1)+4) / 0.3048 -> 68.52034121 | U70: =VLOOKUP($R70,O2Depth!$A$10:$AG$2410,4*($C$8-1)+5) / 0.3048 -> 93.31364829 | V70: =VLOOKUP($R70,O2Depth!$A$10:$AG$2410,4*($C$8-1)+2) / 0.3048 -> 72.06364829
H71: 46 | I71: =IF($B$4="Annual Average", AVERAGE(OFFSET(O2Depth!$A$10,$H71*12,4*($C$8-1)+2,12,1)), MAX(OFFSET(O2Depth!$A$10,$H71*12,4*($C$8-1)+2,12,1))) / 0.3048 -> 55.59273841 | J71: =IF($B$4="Annual Average", AVERAGE(OFFSET(O2Depth!$A$10,$H71*12,4*($C$8-1)+3,12,1)), MAX(OFFSET(O2Depth!$A$10,$H71*12,4*($C$8-1)+3,12,1))) / 0.3048 -> 70.23430665 | K71: =IF($B$4="Annual Average", AVERAGE(OFFSET(O2Depth!$A$10,$H71*12,4*($C$8-1)+4,12,1)), MAX(OFFSET(O2Depth!$A$10,$H71*12,4*($C$8-1)+4,12,1))) / 0.3048 -> 95.88090551 | L71: =IF($B$4="Annual Average", AVERAGE(OFFSET(O2Depth!$A$10,$H71*12,4*($C$8-1)+1,12,1)), MAX(OFFSET(O2Depth!$A$10,$H71*12,4*($C$8-1)+1,12,1))) / 0.3048 -> 73.4372266 | R71: 3.833333333 | S71: =VLOOKUP($R71,O2Depth!$A$10:$AG$2410,4*($C$8-1)+3) / 0.3048 -> 54.23884514 | T71: =VLOOKUP($R71,O2Depth!$A$10:$AG$2410,4*($C$8-1)+4) / 0.3048 -> 67.94619423 | U71: =VLOOKUP($R71,O2Depth!$A$10:$AG$2410,4*($C$8-1)+5) / 0.3048 -> 93.70406824 | V71: =VLOOKUP($R71,O2Depth!$A$10:$AG$2410,4*($C$8-1)+2) / 0.3048 -> 72.02099738
H72: 47 | I72: =IF($B$4="Annual Average", AVERAGE(OFFSET(O2Depth!$A$10,$H72*12,4*($C$8-1)+2,12,1)), MAX(OFFSET(O2Depth!$A$10,$H72*12,4*($C$8-1)+2,12,1))) / 0.3048 -> 55.16103456 | J72: =IF($B$4="Annual Average", AVERAGE(OFFSET(O2Depth!$A$10,$H72*12,4*($C$8-1)+3,12,1)), MAX(OFFSET(O2Depth!$A$10,$H72*12,4*($C$8-1)+3,12,1))) / 0.3048 -> 70.25863955 | K72: =IF($B$4="Annual Average", AVERAGE(OFFSET(O2Depth!$A$10,$H72*12,4*($C$8-1)+4,12,1)), MAX(OFFSET(O2Depth!$A$10,$H72*12,4*($C$8-1)+4,12,1))) / 0.3048 -> 93.58978565 | L72: =IF($B$4="Annual Average", AVERAGE(OFFSET(O2Depth!$A$10,$H72*12,4*($C$8-1)+1,12,1)), MAX(OFFSET(O2Depth!$A$10,$H72*12,4*($C$8-1)+1,12,1))) / 0.3048 -> 72.92568898 | R72: 3.916666667 | S72: =VLOOKUP($R72,O2Depth!$A$10:$AG$2410,4*($C$8-1)+3) / 0.3048 -> 54.23884514 | T72: =VLOOKUP($R72,O2Depth!$A$10:$AG$2410,4*($C$8-1)+4) / 0.3048 -> 67.94619423 | U72: =VLOOKUP($R72,O2Depth!$A$10:$AG$2410,4*($C$8-1)+5) / 0.3048 -> 93.70406824 | V72: =VLOOKUP($R72,O2Depth!$A$10:$AG$2410,4*($C$8-1)+2) / 0.3048 -> 72.02099738
H73: 48 | I73: =IF($B$4="Annual Average", AVERAGE(OFFSET(O2Depth!$A$10,$H73*12,4*($C$8-1)+2,12,1)), MAX(OFFSET(O2Depth!$A$10,$H73*12,4*($C$8-1)+2,12,1))) / 0.3048 -> 54.59317585 | J73: =IF($B$4="Annual Average", AVERAGE(OFFSET(O2Depth!$A$10,$H73*12,4*($C$8-1)+3,12,1)), MAX(OFFSET(O2Depth!$A$10,$H73*12,4*($C$8-1)+3,12,1))) / 0.3048 -> 69.70117017 | K73: =IF($B$4="Annual Average", AVERAGE(OFFSET(O2Depth!$A$10,$H73*12,4*($C$8-1)+4,12,1)), MAX(OFFSET(O2Depth!$A$10,$H73*12,4*($C$8-1)+4,12,1))) / 0.3048 -> 94.29954068 | L73: =IF($B$4="Annual Average", AVERAGE(OFFSET(O2Depth!$A$10,$H73*12,4*($C$8-1)+1,12,1)), MAX(OFFSET(O2Depth!$A$10,$H73*12,4*($C$8-1)+1,12,1))) / 0.3048 -> 72.71434821 | R73: 4 | S73: =VLOOKUP($R73,O2Depth!$A$10:$AG$2410,4*($C$8-1)+3) / 0.3048 -> 53.42519685 | T73: =VLOOKUP($R73,O2Depth!$A$10:$AG$2410,4*($C$8-1)+4) / 0.3048 -> 67.3523622 | U73: =VLOOKUP($R73,O2Depth!$A$10:$AG$2410,4*($C$8-1)+5) / 0.3048 -> 96.53543307 | V73: =VLOOKUP($R73,O2Depth!$A$10:$AG$2410,4*($C$8-1)+2) / 0.3048 -> 71.84055118
H74: 49 | I74: =IF($B$4="Annual Average", AVERAGE(OFFSET(O2Depth!$A$10,$H74*12,4*($C$8-1)+2,12,1)), MAX(OFFSET(O2Depth!$A$10,$H74*12,4*($C$8-1)+2,12,1))) / 0.3048 -> 54.9341098 | J74: =IF($B$4="Annual Average", AVERAGE(OFFSET(O2Depth!$A$10,$H74*12,4*($C$8-1)+3,12,1)), MAX(OFFSET(O2Depth!$A$10,$H74*12,4*($C$8-1)+3,12,1))) / 0.3048 -> 69.37554681 | K74: =IF($B$4="Annual Average", AVERAGE(OFFSET(O2Depth!$A$10,$H74*12,4*($C$8-1)+4,12,1)), MAX(OFFSET(O2Depth!$A$10,$H74*12,4*($C$8-1)+4,12,1))) / 0.3048 -> 95.91808836 | L74: =IF($B$4="Annual Average", AVERAGE(OFFSET(O2Depth!$A$10,$H74*12,4*($C$8-1)+1,12,1)), MAX(OFFSET(O2Depth!$A$10,$H74*12,4*($C$8-1)+1,12,1))) / 0.3048 -> 73.06430446 | R74: 4.083333333 | S74: =VLOOKUP($R74,O2Depth!$A$10:$AG$2410,4*($C$8-1)+3) / 0.3048 -> 53.79593176 | T74: =VLOOKUP($R74,O2Depth!$A$10:$AG$2410,4*($C$8-1)+4) / 0.3048 -> 67.61811024 | U74: =VLOOKUP($R74,O2Depth!$A$10:$AG$2410,4*($C$8-1)+5) / 0.3048 -> 95.71850394 | V74: =VLOOKUP($R74,O2Depth!$A$10:$AG$2410,4*($C$8-1)+2) / 0.3048 -> 71.87992126
H75: 50 | I75: =IF($B$4="Annual Average", AVERAGE(OFFSET(O2Depth!$A$10,$H75*12,4*($C$8-1)+2,12,1)), MAX(OFFSET(O2Depth!$A$10,$H75*12,4*($C$8-1)+2,12,1))) / 0.3048 -> 54.57759186 | J75: =IF($B$4="Annual Average", AVERAGE(OFFSET(O2Depth!$A$10,$H75*12,4*($C$8-1)+3,12,1)), MAX(OFFSET(O2Depth!$A$10,$H75*12,4*($C$8-1)+3,12,1))) / 0.3048 -> 68.59990157 | K75: =IF($B$4="Annual Average", AVERAGE(OFFSET(O2Depth!$A$10,$H75*12,4*($C$8-1)+4,12,1)), MAX(OFFSET(O2Depth!$A$10,$H75*12,4*($C$8-1)+4,12,1))) / 0.3048 -> 95.84180884 | L75: =IF($B$4="Annual Average", AVERAGE(OFFSET(O2Depth!$A$10,$H75*12,4*($C$8-1)+1,12,1)), MAX(OFFSET(O2Depth!$A$10,$H75*12,4*($C$8-1)+1,12,1))) / 0.3048 -> 72.60608049 | R75: 4.166666667 | S75: =VLOOKUP($R75,O2Depth!$A$10:$AG$2410,4*($C$8-1)+3) / 0.3048 -> 53.79593176 | T75: =VLOOKUP($R75,O2Depth!$A$10:$AG$2410,4*($C$8-1)+4) / 0.3048 -> 67.61811024 | U75: =VLOOKUP($R75,O2Depth!$A$10:$AG$2410,4*($C$8-1)+5) / 0.3048 -> 95.71850394 | V75: =VLOOKUP($R75,O2Depth!$A$10:$AG$2410,4*($C$8-1)+2) / 0.3048 -> 71.87992126
H76: 51 | I76: =IF($B$4="Annual Average", AVERAGE(OFFSET(O2Depth!$A$10,$H76*12,4*($C$8-1)+2,12,1)), MAX(OFFSET(O2Depth!$A$10,$H76*12,4*($C$8-1)+2,12,1))) / 0.3048 -> 55.00519466 | J76: =IF($B$4="Annual Average", AVERAGE(OFFSET(O2Depth!$A$10,$H76*12,4*($C$8-1)+3,12,1)), MAX(OFFSET(O2Depth!$A$10,$H76*12,4*($C$8-1)+3,12,1))) / 0.3048 -> 68.82354549 | K76: =IF($B$4="Annual Average", AVERAGE(OFFSET(O2Depth!$A$10,$H76*12,4*($C$8-1)+4,12,1)), MAX(OFFSET(O2Depth!$A$10,$H76*12,4*($C$8-1)+4,12,1))) / 0.3048 -> 96.59667542 | L76: =IF($B$4="Annual Average", AVERAGE(OFFSET(O2Depth!$A$10,$H76*12,4*($C$8-1)+1,12,1)), MAX(OFFSET(O2Depth!$A$10,$H76*12,4*($C$8-1)+1,12,1))) / 0.3048 -> 72.96451225 | R76: 4.25 | S76: =VLOOKUP($R76,O2Depth!$A$10:$AG$2410,4*($C$8-1)+3) / 0.3048 -> 54.56692913 | T76: =VLOOKUP($R76,O2Depth!$A$10:$AG$2410,4*($C$8-1)+4) / 0.3048 -> 67.83136483 | U76: =VLOOKUP($R76,O2Depth!$A$10:$AG$2410,4*($C$8-1)+5) / 0.3048 -> 95.72506562 | V76: =VLOOKUP($R76,O2Depth!$A$10:$AG$2410,4*($C$8-1)+2) / 0.3048 -> 71.99146982
H77: 52 | I77: =IF($B$4="Annual Average", AVERAGE(OFFSET(O2Depth!$A$10,$H77*12,4*($C$8-1)+2,12,1)), MAX(OFFSET(O2Depth!$A$10,$H77*12,4*($C$8-1)+2,12,1))) / 0.3048 -> 54.72112861 | J77: =IF($B$4="Annual Average", AVERAGE(OFFSET(O2Depth!$A$10,$H77*12,4*($C$8-1)+3,12,1)), MAX(OFFSET(O2Depth!$A$10,$H77*12,4*($C$8-1)+3,12,1))) / 0.3048 -> 70.06042213 | K77: =IF($B$4="Annual Average", AVERAGE(OFFSET(O2Depth!$A$10,$H77*12,4*($C$8-1)+4,12,1)), MAX(OFFSET(O2Depth!$A$10,$H77*12,4*($C$8-1)+4,12,1))) / 0.3048 -> 96.08103675 | L77: =IF($B$4="Annual Average", AVERAGE(OFFSET(O2Depth!$A$10,$H77*12,4*($C$8-1)+1,12,1)), MAX(OFFSET(O2Depth!$A$10,$H77*12,4*($C$8-1)+1,12,1))) / 0.3048 -> 73.22506562 | R77: 4.333333333 | S77: =VLOOKUP($R77,O2Depth!$A$10:$AG$2410,4*($C$8-1)+3) / 0.3048 -> 54.51771654 | T77: =VLOOKUP($R77,O2Depth!$A$10:$AG$2410,4*($C$8-1)+4) / 0.3048 -> 68.03805774 | U77: =VLOOKUP($R77,O2Depth!$A$10:$AG$2410,4*($C$8-1)+5) / 0.3048 -> 94.60958005 | V77: =VLOOKUP($R77,O2Depth!$A$10:$AG$2410,4*($C$8-1)+2) / 0.3048 -> 72.06036745
H78: 53 | I78: =IF($B$4="Annual Average", AVERAGE(OFFSET(O2Depth!$A$10,$H78*12,4*($C$8-1)+2,12,1)), MAX(OFFSET(O2Depth!$A$10,$H78*12,4*($C$8-1)+2,12,1))) / 0.3048 -> 55.22692476 | J78: =IF($B$4="Annual Average", AVERAGE(OFFSET(O2Depth!$A$10,$H78*12,4*($C$8-1)+3,12,1)), MAX(OFFSET(O2Depth!$A$10,$H78*12,4*($C$8-1)+3,12,1))) / 0.3048 -> 69.09202756 | K78: =IF($B$4="Annual Average", AVERAGE(OFFSET(O2Depth!$A$10,$H78*12,4*($C$8-1)+4,12,1)), MAX(OFFSET(O2Depth!$A$10,$H78*12,4*($C$8-1)+4,12,1))) / 0.3048 -> 93.58267717 | L78: =IF($B$4="Annual Average", AVERAGE(OFFSET(O2Depth!$A$10,$H78*12,4*($C$8-1)+1,12,1)), MAX(OFFSET(O2Depth!$A$10,$H78*12,4*($C$8-1)+1,12,1))) / 0.3048 -> 72.28401137 | R78: 4.416666667 | S78: =VLOOKUP($R78,O2Depth!$A$10:$AG$2410,4*($C$8-1)+3) / 0.3048 -> 54.51771654 | T78: =VLOOKUP($R78,O2Depth!$A$10:$AG$2410,4*($C$8-1)+4) / 0.3048 -> 68.03805774 | U78: =VLOOKUP($R78,O2Depth!$A$10:$AG$2410,4*($C$8-1)+5) / 0.3048 -> 94.60958005 | V78: =VLOOKUP($R78,O2Depth!$A$10:$AG$2410,4*($C$8-1)+2) / 0.3048 -> 72.06036745
H79: 54 | I79: =IF($B$4="Annual Average", AVERAGE(OFFSET(O2Depth!$A$10,$H79*12,4*($C$8-1)+2,12,1)), MAX(OFFSET(O2Depth!$A$10,$H79*12,4*($C$8-1)+2,12,1))) / 0.3048 -> 54.23365048 | J79: =IF($B$4="Annual Average", AVERAGE(OFFSET(O2Depth!$A$10,$H79*12,4*($C$8-1)+3,12,1)), MAX(OFFSET(O2Depth!$A$10,$H79*12,4*($C$8-1)+3,12,1))) / 0.3048 -> 69.64020122 | K79: =IF($B$4="Annual Average", AVERAGE(OFFSET(O2Depth!$A$10,$H79*12,4*($C$8-1)+4,12,1)), MAX(OFFSET(O2Depth!$A$10,$H79*12,4*($C$8-1)+4,12,1))) / 0.3048 -> 94.89747375 | L79: =IF($B$4="Annual Average", AVERAGE(OFFSET(O2Depth!$A$10,$H79*12,4*($C$8-1)+1,12,1)), MAX(OFFSET(O2Depth!$A$10,$H79*12,4*($C$8-1)+1,12,1))) / 0.3048 -> 72.63260061 | R79: 4.5 | S79: =VLOOKUP($R79,O2Depth!$A$10:$AG$2410,4*($C$8-1)+3) / 0.3048 -> 54.75065617 | T79: =VLOOKUP($R79,O2Depth!$A$10:$AG$2410,4*($C$8-1)+4) / 0.3048 -> 68.33333333 | U79: =VLOOKUP($R79,O2Depth!$A$10:$AG$2410,4*($C$8-1)+5) / 0.3048 -> 95.16076115 | V79: =VLOOKUP($R79,O2Depth!$A$10:$AG$2410,4*($C$8-1)+2) / 0.3048 -> 72.22769029
H80: 55 | I80: =IF($B$4="Annual Average", AVERAGE(OFFSET(O2Depth!$A$10,$H80*12,4*($C$8-1)+2,12,1)), MAX(OFFSET(O2Depth!$A$10,$H80*12,4*($C$8-1)+2,12,1))) / 0.3048 -> 52.95548994 | J80: =IF($B$4="Annual Average", AVERAGE(OFFSET(O2Depth!$A$10,$H80*12,4*($C$8-1)+3,12,1)), MAX(OFFSET(O2Depth!$A$10,$H80*12,4*($C$8-1)+3,12,1))) / 0.3048 -> 68.60372922 | K80: =IF($B$4="Annual Average", AVERAGE(OFFSET(O2Depth!$A$10,$H80*12,4*($C$8-1)+4,12,1)), MAX(OFFSET(O2Depth!$A$10,$H80*12,4*($C$8-1)+4,12,1))) / 0.3048 -> 95.92000219 | L80: =IF($B$4="Annual Average", AVERAGE(OFFSET(O2Depth!$A$10,$H80*12,4*($C$8-1)+1,12,1)), MAX(OFFSET(O2Depth!$A$10,$H80*12,4*($C$8-1)+1,12,1))) / 0.3048 -> 72.07103018 | R80: 4.583333333 | S80: =VLOOKUP($R80,O2Depth!$A$10:$AG$2410,4*($C$8-1)+3) / 0.3048 -> 54.93766404 | T80: =VLOOKUP($R80,O2Depth!$A$10:$AG$2410,4*($C$8-1)+4) / 0.3048 -> 68.52690289 | U80: =VLOOKUP($R80,O2Depth!$A$10:$AG$2410,4*($C$8-1)+5) / 0.3048 -> 95.55446194 | V80: =VLOOKUP($R80,O2Depth!$A$10:$AG$2410,4*($C$8-1)+2) / 0.3048 -> 72.32283465
H81: 56 | I81: =IF($B$4="Annual Average", AVERAGE(OFFSET(O2Depth!$A$10,$H81*12,4*($C$8-1)+2,12,1)), MAX(OFFSET(O2Depth!$A$10,$H81*12,4*($C$8-1)+2,12,1))) / 0.3048 -> 53.68164917 | J81: =IF($B$4="Annual Average", AVERAGE(OFFSET(O2Depth!$A$10,$H81*12,4*($C$8-1)+3,12,1)), MAX(OFFSET(O2Depth!$A$10,$H81*12,4*($C$8-1)+3,12,1))) / 0.3048 -> 69.35285433 | K81: =IF($B$4="Annual Average", AVERAGE(OFFSET(O2Depth!$A$10,$H81*12,4*($C$8-1)+4,12,1)), MAX(OFFSET(O2Depth!$A$10,$H81*12,4*($C$8-1)+4,12,1))) / 0.3048 -> 94.1114392 | L81: =IF($B$4="Annual Average", AVERAGE(OFFSET(O2Depth!$A$10,$H81*12,4*($C$8-1)+1,12,1)), MAX(OFFSET(O2Depth!$A$10,$H81*12,4*($C$8-1)+1,12,1))) / 0.3048 -> 72.03412073 | R81: 4.666666667 | S81: =VLOOKUP($R81,O2Depth!$A$10:$AG$2410,4*($C$8-1)+3) / 0.3048 -> 54.93766404 | T81: =VLOOKUP($R81,O2Depth!$A$10:$AG$2410,4*($C$8-1)+4) / 0.3048 -> 68.52690289 | U81: =VLOOKUP($R81,O2Depth!$A$10:$AG$2410,4*($C$8-1)+5) / 0.3048 -> 95.55446194 | V81: =VLOOKUP($R81,O2Depth!$A$10:$AG$2410,4*($C$8-1)+2) / 0.3048 -> 72.32283465
H82: 57 | I82: =IF($B$4="Annual Average", AVERAGE(OFFSET(O2Depth!$A$10,$H82*12,4*($C$8-1)+2,12,1)), MAX(OFFSET(O2Depth!$A$10,$H82*12,4*($C$8-1)+2,12,1))) / 0.3048 -> 54.30610236 | J82: =IF($B$4="Annual Average", AVERAGE(OFFSET(O2Depth!$A$10,$H82*12,4*($C$8-1)+3,12,1)), MAX(OFFSET(O2Depth!$A$10,$H82*12,4*($C$8-1)+3,12,1))) / 0.3048 -> 70.11154856 | K82: =IF($B$4="Annual Average", AVERAGE(OFFSET(O2Depth!$A$10,$H82*12,4*($C$8-1)+4,12,1)), MAX(OFFSET(O2Depth!$A$10,$H82*12,4*($C$8-1)+4,12,1))) / 0.3048 -> 94.84935477 | L82: =IF($B$4="Annual Average", AVERAGE(OFFSET(O2Depth!$A$10,$H82*12,4*($C$8-1)+1,12,1)), MAX(OFFSET(O2Depth!$A$10,$H82*12,4*($C$8-1)+1,12,1))) / 0.3048 -> 72.84120735 | R82: 4.75 | S82: =VLOOKUP($R82,O2Depth!$A$10:$AG$2410,4*($C$8-1)+3) / 0.3048 -> 54.3339895 | T82: =VLOOKUP($R82,O2Depth!$A$10:$AG$2410,4*($C$8-1)+4) / 0.3048 -> 68.6023622 | U82: =VLOOKUP($R82,O2Depth!$A$10:$AG$2410,4*($C$8-1)+5) / 0.3048 -> 95.41010499 | V82: =VLOOKUP($R82,O2Depth!$A$10:$AG$2410,4*($C$8-1)+2) / 0.3048 -> 72.54593176
H83: 58 | I83: =IF($B$4="Annual Average", AVERAGE(OFFSET(O2Depth!$A$10,$H83*12,4*($C$8-1)+2,12,1)), MAX(OFFSET(O2Depth!$A$10,$H83*12,4*($C$8-1)+2,12,1))) / 0.3048 -> 54.86302493 | J83: =IF($B$4="Annual Average", AVERAGE(OFFSET(O2Depth!$A$10,$H83*12,4*($C$8-1)+3,12,1)), MAX(OFFSET(O2Depth!$A$10,$H83*12,4*($C$8-1)+3,12,1))) / 0.3048 -> 70.09268373 | K83: =IF($B$4="Annual Average", AVERAGE(OFFSET(O2Depth!$A$10,$H83*12,4*($C$8-1)+4,12,1)), MAX(OFFSET(O2Depth!$A$10,$H83*12,4*($C$8-1)+4,12,1))) / 0.3048 -> 94.1447944 | L83: =IF($B$4="Annual Average", AVERAGE(OFFSET(O2Depth!$A$10,$H83*12,4*($C$8-1)+1,12,1)), MAX(OFFSET(O2Depth!$A$10,$H83*12,4*($C$8-1)+1,12,1))) / 0.3048 -> 73.06676509 | R83: 4.833333333 | S83: =VLOOKUP($R83,O2Depth!$A$10:$AG$2410,4*($C$8-1)+3) / 0.3048 -> 54.26509186 | T83: =VLOOKUP($R83,O2Depth!$A$10:$AG$2410,4*($C$8-1)+4) / 0.3048 -> 68.48753281 | U83: =VLOOKUP($R83,O2Depth!$A$10:$AG$2410,4*($C$8-1)+5) / 0.3048 -> 96.21062992 | V83: =VLOOKUP($R83,O2Depth!$A$10:$AG$2410,4*($C$8-1)+2) / 0.3048 -> 72.67060367
H84: 59 | I84: =IF($B$4="Annual Average", AVERAGE(OFFSET(O2Depth!$A$10,$H84*12,4*($C$8-1)+2,12,1)), MAX(OFFSET(O2Depth!$A$10,$H84*12,4*($C$8-1)+2,12,1))) / 0.3048 -> 55.45795057 | J84: =IF($B$4="Annual Average", AVERAGE(OFFSET(O2Depth!$A$10,$H84*12,4*($C$8-1)+3,12,1)), MAX(OFFSET(O2Depth!$A$10,$H84*12,4*($C$8-1)+3,12,1))) / 0.3048 -> 68.49108705 | K84: =IF($B$4="Annual Average", AVERAGE(OFFSET(O2Depth!$A$10,$H84*12,4*($C$8-1)+4,12,1)), MAX(OFFSET(O2Depth!$A$10,$H84*12,4*($C$8-1)+4,12,1))) / 0.3048 -> 95.53559711 | L84: =IF($B$4="Annual Average", AVERAGE(OFFSET(O2Depth!$A$10,$H84*12,4*($C$8-1)+1,12,1)), MAX(OFFSET(O2Depth!$A$10,$H84*12,4*($C$8-1)+1,12,1))) / 0.3048 -> 72.75207787 | R84: 4.916666667 | S84: =VLOOKUP($R84,O2Depth!$A$10:$AG$2410,4*($C$8-1)+3) / 0.3048 -> 54.26509186 | T84: =VLOOKUP($R84,O2Depth!$A$10:$AG$2410,4*($C$8-1)+4) / 0.3048 -> 68.48753281 | U84: =VLOOKUP($R84,O2Depth!$A$10:$AG$2410,4*($C$8-1)+5) / 0.3048 -> 96.21062992 | V84: =VLOOKUP($R84,O2Depth!$A$10:$AG$2410,4*($C$8-1)+2) / 0.3048 -> 72.67060367
H85: 60 | I85: =IF($B$4="Annual Average", AVERAGE(OFFSET(O2Depth!$A$10,$H85*12,4*($C$8-1)+2,12,1)), MAX(OFFSET(O2Depth!$A$10,$H85*12,4*($C$8-1)+2,12,1))) / 0.3048 -> 55.1230315 | J85: =IF($B$4="Annual Average", AVERAGE(OFFSET(O2Depth!$A$10,$H85*12,4*($C$8-1)+3,12,1)), MAX(OFFSET(O2Depth!$A$10,$H85*12,4*($C$8-1)+3,12,1))) / 0.3048 -> 69.26673228 | K85: =IF($B$4="Annual Average", AVERAGE(OFFSET(O2Depth!$A$10,$H85*12,4*($C$8-1)+4,12,1)), MAX(OFFSET(O2Depth!$A$10,$H85*12,4*($C$8-1)+4,12,1))) / 0.3048 -> 96.42661855 | L85: =IF($B$4="Annual Average", AVERAGE(OFFSET(O2Depth!$A$10,$H85*12,4*($C$8-1)+1,12,1)), MAX(OFFSET(O2Depth!$A$10,$H85*12,4*($C$8-1)+1,12,1))) / 0.3048 -> 72.90463692 | R85: 5 | S85: =VLOOKUP($R85,O2Depth!$A$10:$AG$2410,4*($C$8-1)+3) / 0.3048 -> 54.12073491 | T85: =VLOOKUP($R85,O2Depth!$A$10:$AG$2410,4*($C$8-1)+4) / 0.3048 -> 68.11351706 | U85: =VLOOKUP($R85,O2Depth!$A$10:$AG$2410,4*($C$8-1)+5) / 0.3048 -> 97.39173228 | V85: =VLOOKUP($R85,O2Depth!$A$10:$AG$2410,4*($C$8-1)+2) / 0.3048 -> 72.80183727
H86: 61 | I86: =IF($B$4="Annual Average", AVERAGE(OFFSET(O2Depth!$A$10,$H86*12,4*($C$8-1)+2,12,1)), MAX(OFFSET(O2Depth!$A$10,$H86*12,4*($C$8-1)+2,12,1))) / 0.3048 -> 54.84142607 | J86: =IF($B$4="Annual Average", AVERAGE(OFFSET(O2Depth!$A$10,$H86*12,4*($C$8-1)+3,12,1)), MAX(OFFSET(O2Depth!$A$10,$H86*12,4*($C$8-1)+3,12,1))) / 0.3048 -> 69.82365486 | K86: =IF($B$4="Annual Average", AVERAGE(OFFSET(O2Depth!$A$10,$H86*12,4*($C$8-1)+4,12,1)), MAX(OFFSET(O2Depth!$A$10,$H86*12,4*($C$8-1)+4,12,1))) / 0.3048 -> 95.67749344 | L86: =IF($B$4="Annual Average", AVERAGE(OFFSET(O2Depth!$A$10,$H86*12,4*($C$8-1)+1,12,1)), MAX(OFFSET(O2Depth!$A$10,$H86*12,4*($C$8-1)+1,12,1))) / 0.3048 -> 73.24447725 | R86: 5.083333333 | S86: =VLOOKUP($R86,O2Depth!$A$10:$AG$2410,4*($C$8-1)+3) / 0.3048 -> 54.4324147 | T86: =VLOOKUP($R86,O2Depth!$A$10:$AG$2410,4*($C$8-1)+4) / 0.3048 -> 69.45209974 | U86: =VLOOKUP($R86,O2Depth!$A$10:$AG$2410,4*($C$8-1)+5) / 0.3048 -> 96.01377953 | V86: =VLOOKUP($R86,O2Depth!$A$10:$AG$2410,4*($C$8-1)+2) / 0.3048 -> 72.99868766
H87: 62 | I87: =IF($B$4="Annual Average", AVERAGE(OFFSET(O2Depth!$A$10,$H87*12,4*($C$8-1)+2,12,1)), MAX(OFFSET(O2Depth!$A$10,$H87*12,4*($C$8-1)+2,12,1))) / 0.3048 -> 55.66437008 | J87: =IF($B$4="Annual Average", AVERAGE(OFFSET(O2Depth!$A$10,$H87*12,4*($C$8-1)+3,12,1)), MAX(OFFSET(O2Depth!$A$10,$H87*12,4*($C$8-1)+3,12,1))) / 0.3048 -> 69.3829287 | K87: =IF($B$4="Annual Average", AVERAGE(OFFSET(O2Depth!$A$10,$H87*12,4*($C$8-1)+4,12,1)), MAX(OFFSET(O2Depth!$A$10,$H87*12,4*($C$8-1)+4,12,1))) / 0.3048 -> 95.56403106 | L87: =IF($B$4="Annual Average", AVERAGE(OFFSET(O2Depth!$A$10,$H87*12,4*($C$8-1)+1,12,1)), MAX(OFFSET(O2Depth!$A$10,$H87*12,4*($C$8-1)+1,12,1))) / 0.3048 -> 73.50667104 | R87: 5.166666667 | S87: =VLOOKUP($R87,O2Depth!$A$10:$AG$2410,4*($C$8-1)+3) / 0.3048 -> 54.4324147 | T87: =VLOOKUP($R87,O2Depth!$A$10:$AG$2410,4*($C$8-1)+4) / 0.3048 -> 69.45209974 | U87: =VLOOKUP($R87,O2Depth!$A$10:$AG$2410,4*($C$8-1)+5) / 0.3048 -> 96.01377953 | V87: =VLOOKUP($R87,O2Depth!$A$10:$AG$2410,4*($C$8-1)+2) / 0.3048 -> 72.99868766
H88: 63 | I88: =IF($B$4="Annual Average", AVERAGE(OFFSET(O2Depth!$A$10,$H88*12,4*($C$8-1)+2,12,1)), MAX(OFFSET(O2Depth!$A$10,$H88*12,4*($C$8-1)+2,12,1))) / 0.3048 -> 54.42175197 | J88: =IF($B$4="Annual Average", AVERAGE(OFFSET(O2Depth!$A$10,$H88*12,4*($C$8-1)+3,12,1)), MAX(OFFSET(O2Depth!$A$10,$H88*12,4*($C$8-1)+3,12,1))) / 0.3048 -> 68.81233596 | K88: =IF($B$4="Annual Average", AVERAGE(OFFSET(O2Depth!$A$10,$H88*12,4*($C$8-1)+4,12,1)), MAX(OFFSET(O2Depth!$A$10,$H88*12,4*($C$8-1)+4,12,1))) / 0.3048 -> 96.96057524 | L88: =IF($B$4="Annual Average", AVERAGE(OFFSET(O2Depth!$A$10,$H88*12,4*($C$8-1)+1,12,1)), MAX(OFFSET(O2Depth!$A$10,$H88*12,4*($C$8-1)+1,12,1))) / 0.3048 -> 72.42399388 | R88: 5.25 | S88: =VLOOKUP($R88,O2Depth!$A$10:$AG$2410,4*($C$8-1)+3) / 0.3048 -> 54.70800525 | T88: =VLOOKUP($R88,O2Depth!$A$10:$AG$2410,4*($C$8-1)+4) / 0.3048 -> 69.80971129 | U88: =VLOOKUP($R88,O2Depth!$A$10:$AG$2410,4*($C$8-1)+5) / 0.3048 -> 96.19750656 | V88: =VLOOKUP($R88,O2Depth!$A$10:$AG$2410,4*($C$8-1)+2) / 0.3048 -> 73.01509186
H89: 64 | I89: =IF($B$4="Annual Average", AVERAGE(OFFSET(O2Depth!$A$10,$H89*12,4*($C$8-1)+2,12,1)), MAX(OFFSET(O2Depth!$A$10,$H89*12,4*($C$8-1)+2,12,1))) / 0.3048 -> 53.82108486 | J89: =IF($B$4="Annual Average", AVERAGE(OFFSET(O2Depth!$A$10,$H89*12,4*($C$8-1)+3,12,1)), MAX(OFFSET(O2Depth!$A$10,$H89*12,4*($C$8-1)+3,12,1))) / 0.3048 -> 69.27684821 | K89: =IF($B$4="Annual Average", AVERAGE(OFFSET(O2Depth!$A$10,$H89*12,4*($C$8-1)+4,12,1)), MAX(OFFSET(O2Depth!$A$10,$H89*12,4*($C$8-1)+4,12,1))) / 0.3048 -> 96.19750656 | L89: =IF($B$4="Annual Average", AVERAGE(OFFSET(O2Depth!$A$10,$H89*12,4*($C$8-1)+1,12,1)), MAX(OFFSET(O2Depth!$A$10,$H89*12,4*($C$8-1)+1,12,1))) / 0.3048 -> 72.82753718 | R89: 5.333333333 | S89: =VLOOKUP($R89,O2Depth!$A$10:$AG$2410,4*($C$8-1)+3) / 0.3048 -> 55.28215223 | T89: =VLOOKUP($R89,O2Depth!$A$10:$AG$2410,4*($C$8-1)+4) / 0.3048 -> 70.16076115 | U89: =VLOOKUP($R89,O2Depth!$A$10:$AG$2410,4*($C$8-1)+5) / 0.3048 -> 95.14107612 | V89: =VLOOKUP($R89,O2Depth!$A$10:$AG$2410,4*($C$8-1)+2) / 0.3048 -> 73.08070866
H90: 65 | I90: =IF($B$4="Annual Average", AVERAGE(OFFSET(O2Depth!$A$10,$H90*12,4*($C$8-1)+2,12,1)), MAX(OFFSET(O2Depth!$A$10,$H90*12,4*($C$8-1)+2,12,1))) / 0.3048 -> 54.53029309 | J90: =IF($B$4="Annual Average", AVERAGE(OFFSET(O2Depth!$A$10,$H90*12,4*($C$8-1)+3,12,1)), MAX(OFFSET(O2Depth!$A$10,$H90*12,4*($C$8-1)+3,12,1))) / 0.3048 -> 69.23966535 | K90: =IF($B$4="Annual Average", AVERAGE(OFFSET(O2Depth!$A$10,$H90*12,4*($C$8-1)+4,12,1)), MAX(OFFSET(O2Depth!$A$10,$H90*12,4*($C$8-1)+4,12,1))) / 0.3048 -> 96.42716535 | L90: =IF($B$4="Annual Average", AVERAGE(OFFSET(O2Depth!$A$10,$H90*12,4*($C$8-1)+1,12,1)), MAX(OFFSET(O2Depth!$A$10,$H90*12,4*($C$8-1)+1,12,1))) / 0.3048 -> 72.97052712 | R90: 5.416666667 | S90: =VLOOKUP($R90,O2Depth!$A$10:$AG$2410,4*($C$8-1)+3) / 0.3048 -> 55.28215223 | T90: =VLOOKUP($R90,O2Depth!$A$10:$AG$2410,4*($C$8-1)+4) / 0.3048 -> 70.16076115 | U90: =VLOOKUP($R90,O2Depth!$A$10:$AG$2410,4*($C$8-1)+5) / 0.3048 -> 95.14107612 | V90: =VLOOKUP($R90,O2Depth!$A$10:$AG$2410,4*($C$8-1)+2) / 0.3048 -> 73.08070866
H91: 66 | I91: =IF($B$4="Annual Average", AVERAGE(OFFSET(O2Depth!$A$10,$H91*12,4*($C$8-1)+2,12,1)), MAX(OFFSET(O2Depth!$A$10,$H91*12,4*($C$8-1)+2,12,1))) / 0.3048 -> 55.40162948 | J91: =IF($B$4="Annual Average", AVERAGE(OFFSET(O2Depth!$A$10,$H91*12,4*($C$8-1)+3,12,1)), MAX(OFFSET(O2Depth!$A$10,$H91*12,4*($C$8-1)+3,12,1))) / 0.3048 -> 69.01684164 | K91: =IF($B$4="Annual Average", AVERAGE(OFFSET(O2Depth!$A$10,$H91*12,4*($C$8-1)+4,12,1)), MAX(OFFSET(O2Depth!$A$10,$H91*12,4*($C$8-1)+4,12,1))) / 0.3048 -> 95.20259186 | L91: =IF($B$4="Annual Average", AVERAGE(OFFSET(O2Depth!$A$10,$H91*12,4*($C$8-1)+1,12,1)), MAX(OFFSET(O2Depth!$A$10,$H91*12,4*($C$8-1)+1,12,1))) / 0.3048 -> 72.91447944 | R91: =R90+1/12 -> 5.5 | S91: =VLOOKUP($R91,O2Depth!$A$10:$AG$2410,4*($C$8-1)+3) / 0.3048 -> 55.50524934 | T91: =VLOOKUP($R91,O2Depth!$A$10:$AG$2410,4*($C$8-1)+4) / 0.3048 -> 70.0492126 | U91: =VLOOKUP($R91,O2Depth!$A$10:$AG$2410,4*($C$8-1)+5) / 0.3048 -> 95.37729659 | V91: =VLOOKUP($R91,O2Depth!$A$10:$AG$2410,4*($C$8-1)+2) / 0.3048 -> 73.12992126
H92: 67 | I92: =IF($B$4="Annual Average", AVERAGE(OFFSET(O2Depth!$A$10,$H92*12,4*($C$8-1)+2,12,1)), MAX(OFFSET(O2Depth!$A$10,$H92*12,4*($C$8-1)+2,12,1))) / 0.3048 -> 54.30555556 | J92: =IF($B$4="Annual Average", AVERAGE(OFFSET(O2Depth!$A$10,$H92*12,4*($C$8-1)+3,12,1)), MAX(OFFSET(O2Depth!$A$10,$H92*12,4*($C$8-1)+3,12,1))) / 0.3048 -> 68.70133421 | K92: =IF($B$4="Annual Average", AVERAGE(OFFSET(O2Depth!$A$10,$H92*12,4*($C$8-1)+4,12,1)), MAX(OFFSET(O2Depth!$A$10,$H92*12,4*($C$8-1)+4,12,1))) / 0.3048 -> 95.47654199 | L92: =IF($B$4="Annual Average", AVERAGE(OFFSET(O2Depth!$A$10,$H92*12,4*($C$8-1)+1,12,1)), MAX(OFFSET(O2Depth!$A$10,$H92*12,4*($C$8-1)+1,12,1))) / 0.3048 -> 72.73567367 | R92: 5.583333333 | S92: =VLOOKUP($R92,O2Depth!$A$10:$AG$2410,4*($C$8-1)+3) / 0.3048 -> 55.29855643 | T92: =VLOOKUP($R92,O2Depth!$A$10:$AG$2410,4*($C$8-1)+4) / 0.3048 -> 69.73097113 | U92: =VLOOKUP($R92,O2Depth!$A$10:$AG$2410,4*($C$8-1)+5) / 0.3048 -> 96.05314961 | V92: =VLOOKUP($R92,O2Depth!$A$10:$AG$2410,4*($C$8-1)+2) / 0.3048 -> 73.25787402
H93: 68 | I93: =IF($B$4="Annual Average", AVERAGE(OFFSET(O2Depth!$A$10,$H93*12,4*($C$8-1)+2,12,1)), MAX(OFFSET(O2Depth!$A$10,$H93*12,4*($C$8-1)+2,12,1))) / 0.3048 -> 53.87521872 | J93: =IF($B$4="Annual Average", AVERAGE(OFFSET(O2Depth!$A$10,$H93*12,4*($C$8-1)+3,12,1)), MAX(OFFSET(O2Depth!$A$10,$H93*12,4*($C$8-1)+3,12,1))) / 0.3048 -> 69.8269357 | K93: =IF($B$4="Annual Average", AVERAGE(OFFSET(O2Depth!$A$10,$H93*12,4*($C$8-1)+4,12,1)), MAX(OFFSET(O2Depth!$A$10,$H93*12,4*($C$8-1)+4,12,1))) / 0.3048 -> 95.79040901 | L93: =IF($B$4="Annual Average", AVERAGE(OFFSET(O2Depth!$A$10,$H93*12,4*($C$8-1)+1,12,1)), MAX(OFFSET(O2Depth!$A$10,$H93*12,4*($C$8-1)+1,12,1))) / 0.3048 -> 73.14577865 | R93: 5.666666667 | S93: =VLOOKUP($R93,O2Depth!$A$10:$AG$2410,4*($C$8-1)+3) / 0.3048 -> 55.29855643 | T93: =VLOOKUP($R93,O2Depth!$A$10:$AG$2410,4*($C$8-1)+4) / 0.3048 -> 69.73097113 | U93: =VLOOKUP($R93,O2Depth!$A$10:$AG$2410,4*($C$8-1)+5) / 0.3048 -> 96.05314961 | V93: =VLOOKUP($R93,O2Depth!$A$10:$AG$2410,4*($C$8-1)+2) / 0.3048 -> 73.25787402
H94: 69 | I94: =IF($B$4="Annual Average", AVERAGE(OFFSET(O2Depth!$A$10,$H94*12,4*($C$8-1)+2,12,1)), MAX(OFFSET(O2Depth!$A$10,$H94*12,4*($C$8-1)+2,12,1))) / 0.3048 -> 54.46057524 | J94: =IF($B$4="Annual Average", AVERAGE(OFFSET(O2Depth!$A$10,$H94*12,4*($C$8-1)+3,12,1)), MAX(OFFSET(O2Depth!$A$10,$H94*12,4*($C$8-1)+3,12,1))) / 0.3048 -> 68.7007874 | K94: =IF($B$4="Annual Average", AVERAGE(OFFSET(O2Depth!$A$10,$H94*12,4*($C$8-1)+4,12,1)), MAX(OFFSET(O2Depth!$A$10,$H94*12,4*($C$8-1)+4,12,1))) / 0.3048 -> 94.45018591 | L94: =IF($B$4="Annual Average", AVERAGE(OFFSET(O2Depth!$A$10,$H94*12,4*($C$8-1)+1,12,1)), MAX(OFFSET(O2Depth!$A$10,$H94*12,4*($C$8-1)+1,12,1))) / 0.3048 -> 72.36138451 | R94: 5.75 | S94: =VLOOKUP($R94,O2Depth!$A$10:$AG$2410,4*($C$8-1)+3) / 0.3048 -> 55.08858268 | T94: =VLOOKUP($R94,O2Depth!$A$10:$AG$2410,4*($C$8-1)+4) / 0.3048 -> 69.58661417 | U94: =VLOOKUP($R94,O2Depth!$A$10:$AG$2410,4*($C$8-1)+5) / 0.3048 -> 96.167979 | V94: =VLOOKUP($R94,O2Depth!$A$10:$AG$2410,4*($C$8-1)+2) / 0.3048 -> 73.33989501
H95: 70 | I95: =IF($B$4="Annual Average", AVERAGE(OFFSET(O2Depth!$A$10,$H95*12,4*($C$8-1)+2,12,1)), MAX(OFFSET(O2Depth!$A$10,$H95*12,4*($C$8-1)+2,12,1))) / 0.3048 -> 54.16694007 | J95: =IF($B$4="Annual Average", AVERAGE(OFFSET(O2Depth!$A$10,$H95*12,4*($C$8-1)+3,12,1)), MAX(OFFSET(O2Depth!$A$10,$H95*12,4*($C$8-1)+3,12,1))) / 0.3048 -> 69.02859799 | K95: =IF($B$4="Annual Average", AVERAGE(OFFSET(O2Depth!$A$10,$H95*12,4*($C$8-1)+4,12,1)), MAX(OFFSET(O2Depth!$A$10,$H95*12,4*($C$8-1)+4,12,1))) / 0.3048 -> 94.06878828 | L95: =IF($B$4="Annual Average", AVERAGE(OFFSET(O2Depth!$A$10,$H95*12,4*($C$8-1)+1,12,1)), MAX(OFFSET(O2Depth!$A$10,$H95*12,4*($C$8-1)+1,12,1))) / 0.3048 -> 72.30014217 | R95: 5.833333333 | S95: =VLOOKUP($R95,O2Depth!$A$10:$AG$2410,4*($C$8-1)+3) / 0.3048 -> 54.43569554 | T95: =VLOOKUP($R95,O2Depth!$A$10:$AG$2410,4*($C$8-1)+4) / 0.3048 -> 69.38976378 | U95: =VLOOKUP($R95,O2Depth!$A$10:$AG$2410,4*($C$8-1)+5) / 0.3048 -> 97.82152231 | V95: =VLOOKUP($R95,O2Depth!$A$10:$AG$2410,4*($C$8-1)+2) / 0.3048 -> 73.54002625
H96: 71 | I96: =IF($B$4="Annual Average", AVERAGE(OFFSET(O2Depth!$A$10,$H96*12,4*($C$8-1)+2,12,1)), MAX(OFFSET(O2Depth!$A$10,$H96*12,4*($C$8-1)+2,12,1))) / 0.3048 -> 55.49896107 | J96: =IF($B$4="Annual Average", AVERAGE(OFFSET(O2Depth!$A$10,$H96*12,4*($C$8-1)+3,12,1)), MAX(OFFSET(O2Depth!$A$10,$H96*12,4*($C$8-1)+3,12,1))) / 0.3048 -> 70.53286308 | K96: =IF($B$4="Annual Average", AVERAGE(OFFSET(O2Depth!$A$10,$H96*12,4*($C$8-1)+4,12,1)), MAX(OFFSET(O2Depth!$A$10,$H96*12,4*($C$8-1)+4,12,1))) / 0.3048 -> 95.00874891 | L96: =IF($B$4="Annual Average", AVERAGE(OFFSET(O2Depth!$A$10,$H96*12,4*($C$8-1)+1,12,1)), MAX(OFFSET(O2Depth!$A$10,$H96*12,4*($C$8-1)+1,12,1))) / 0.3048 -> 73.26224847 | R96: 5.916666667 | S96: =VLOOKUP($R96,O2Depth!$A$10:$AG$2410,4*($C$8-1)+3) / 0.3048 -> 54.43569554 | T96: =VLOOKUP($R96,O2Depth!$A$10:$AG$2410,4*($C$8-1)+4) / 0.3048 -> 69.38976378 | U96: =VLOOKUP($R96,O2Depth!$A$10:$AG$2410,4*($C$8-1)+5) / 0.3048 -> 97.82152231 | V96: =VLOOKUP($R96,O2Depth!$A$10:$AG$2410,4*($C$8-1)+2) / 0.3048 -> 73.54002625
H97: 72 | I97: =IF($B$4="Annual Average", AVERAGE(OFFSET(O2Depth!$A$10,$H97*12,4*($C$8-1)+2,12,1)), MAX(OFFSET(O2Depth!$A$10,$H97*12,4*($C$8-1)+2,12,1))) / 0.3048 -> 54.88052275 | J97: =IF($B$4="Annual Average", AVERAGE(OFFSET(O2Depth!$A$10,$H97*12,4*($C$8-1)+3,12,1)), MAX(OFFSET(O2Depth!$A$10,$H97*12,4*($C$8-1)+3,12,1))) / 0.3048 -> 69.95324803 | K97: =IF($B$4="Annual Average", AVERAGE(OFFSET(O2Depth!$A$10,$H97*12,4*($C$8-1)+4,12,1)), MAX(OFFSET(O2Depth!$A$10,$H97*12,4*($C$8-1)+4,12,1))) / 0.3048 -> 94.2765748 | L97: =IF($B$4="Annual Average", AVERAGE(OFFSET(O2Depth!$A$10,$H97*12,4*($C$8-1)+1,12,1)), MAX(OFFSET(O2Depth!$A$10,$H97*12,4*($C$8-1)+1,12,1))) / 0.3048 -> 72.87483596 | R97: 6 | S97: =VLOOKUP($R97,O2Depth!$A$10:$AG$2410,4*($C$8-1)+3) / 0.3048 -> 53.54986877 | T97: =VLOOKUP($R97,O2Depth!$A$10:$AG$2410,4*($C$8-1)+4) / 0.3048 -> 69.40616798 | U97: =VLOOKUP($R97,O2Depth!$A$10:$AG$2410,4*($C$8-1)+5) / 0.3048 -> 98.0019685 | V97: =VLOOKUP($R97,O2Depth!$A$10:$AG$2410,4*($C$8-1)+2) / 0.3048 -> 73.65485564
H98: 73 | I98: =IF($B$4="Annual Average", AVERAGE(OFFSET(O2Depth!$A$10,$H98*12,4*($C$8-1)+2,12,1)), MAX(OFFSET(O2Depth!$A$10,$H98*12,4*($C$8-1)+2,12,1))) / 0.3048 -> 54.28942476 | J98: =IF($B$4="Annual Average", AVERAGE(OFFSET(O2Depth!$A$10,$H98*12,4*($C$8-1)+3,12,1)), MAX(OFFSET(O2Depth!$A$10,$H98*12,4*($C$8-1)+3,12,1))) / 0.3048 -> 69.15983158 | K98: =IF($B$4="Annual Average", AVERAGE(OFFSET(O2Depth!$A$10,$H98*12,4*($C$8-1)+4,12,1)), MAX(OFFSET(O2Depth!$A$10,$H98*12,4*($C$8-1)+4,12,1))) / 0.3048 -> 95.4604112 | L98: =IF($B$4="Annual Average", AVERAGE(OFFSET(O2Depth!$A$10,$H98*12,4*($C$8-1)+1,12,1)), MAX(OFFSET(O2Depth!$A$10,$H98*12,4*($C$8-1)+1,12,1))) / 0.3048 -> 72.50710849 | R98: 6.083333333 | S98: =VLOOKUP($R98,O2Depth!$A$10:$AG$2410,4*($C$8-1)+3) / 0.3048 -> 53.07414698 | T98: =VLOOKUP($R98,O2Depth!$A$10:$AG$2410,4*($C$8-1)+4) / 0.3048 -> 69.57349081 | U98: =VLOOKUP($R98,O2Depth!$A$10:$AG$2410,4*($C$8-1)+5) / 0.3048 -> 101.0728346 | V98: =VLOOKUP($R98,O2Depth!$A$10:$AG$2410,4*($C$8-1)+2) / 0.3048 -> 73.59580052
H99: 74 | I99: =IF($B$4="Annual Average", AVERAGE(OFFSET(O2Depth!$A$10,$H99*12,4*($C$8-1)+2,12,1)), MAX(OFFSET(O2Depth!$A$10,$H99*12,4*($C$8-1)+2,12,1))) / 0.3048 -> 54.43514873 | J99: =IF($B$4="Annual Average", AVERAGE(OFFSET(O2Depth!$A$10,$H99*12,4*($C$8-1)+3,12,1)), MAX(OFFSET(O2Depth!$A$10,$H99*12,4*($C$8-1)+3,12,1))) / 0.3048 -> 69.04117454 | K99: =IF($B$4="Annual Average", AVERAGE(OFFSET(O2Depth!$A$10,$H99*12,4*($C$8-1)+4,12,1)), MAX(OFFSET(O2Depth!$A$10,$H99*12,4*($C$8-1)+4,12,1))) / 0.3048 -> 96.63823272 | L99: =IF($B$4="Annual Average", AVERAGE(OFFSET(O2Depth!$A$10,$H99*12,4*($C$8-1)+1,12,1)), MAX(OFFSET(O2Depth!$A$10,$H99*12,4*($C$8-1)+1,12,1))) / 0.3048 -> 72.86499344 | R99: 6.166666667 | S99: =VLOOKUP($R99,O2Depth!$A$10:$AG$2410,4*($C$8-1)+3) / 0.3048 -> 53.07414698 | T99: =VLOOKUP($R99,O2Depth!$A$10:$AG$2410,4*($C$8-1)+4) / 0.3048 -> 69.57349081 | U99: =VLOOKUP($R99,O2Depth!$A$10:$AG$2410,4*($C$8-1)+5) / 0.3048 -> 101.0728346 | V99: =VLOOKUP($R99,O2Depth!$A$10:$AG$2410,4*($C$8-1)+2) / 0.3048 -> 73.59580052
H100: 75 | I100: =IF($B$4="Annual Average", AVERAGE(OFFSET(O2Depth!$A$10,$H100*12,4*($C$8-1)+2,12,1)), MAX(OFFSET(O2Depth!$A$10,$H100*12,4*($C$8-1)+2,12,1))) / 0.3048 -> 54.98086177 | J100: =IF($B$4="Annual Average", AVERAGE(OFFSET(O2Depth!$A$10,$H100*12,4*($C$8-1)+3,12,1)), MAX(OFFSET(O2Depth!$A$10,$H100*12,4*($C$8-1)+3,12,1))) / 0.3048 -> 69.73999344 | K100: =IF($B$4="Annual Average", AVERAGE(OFFSET(O2Depth!$A$10,$H100*12,4*($C$8-1)+4,12,1)), MAX(OFFSET(O2Depth!$A$10,$H100*12,4*($C$8-1)+4,12,1))) / 0.3048 -> 93.42683727 | L100: =IF($B$4="Annual Average", AVERAGE(OFFSET(O2Depth!$A$10,$H100*12,4*($C$8-1)+1,12,1)), MAX(OFFSET(O2Depth!$A$10,$H100*12,4*($C$8-1)+1,12,1))) / 0.3048 -> 72.39446632 | R100: 6.25 | S100: =VLOOKUP($R100,O2Depth!$A$10:$AG$2410,4*($C$8-1)+3) / 0.3048 -> 53.45472441 | T100: =VLOOKUP($R100,O2Depth!$A$10:$AG$2410,4*($C$8-1)+4) / 0.3048 -> 69.72769029 | U100: =VLOOKUP($R100,O2Depth!$A$10:$AG$2410,4*($C$8-1)+5) / 0.3048 -> 99.2683727 | V100: =VLOOKUP($R100,O2Depth!$A$10:$AG$2410,4*($C$8-1)+2) / 0.3048 -> 73.46784777
H101: 76 | I101: =IF($B$4="Annual Average", AVERAGE(OFFSET(O2Depth!$A$10,$H101*12,4*($C$8-1)+2,12,1)), MAX(OFFSET(O2Depth!$A$10,$H101*12,4*($C$8-1)+2,12,1))) / 0.3048 -> 54.72550306 | J101: =IF($B$4="Annual Average", AVERAGE(OFFSET(O2Depth!$A$10,$H101*12,4*($C$8-1)+3,12,1)), MAX(OFFSET(O2Depth!$A$10,$H101*12,4*($C$8-1)+3,12,1))) / 0.3048 -> 68.92197069 | K101: =IF($B$4="Annual Average", AVERAGE(OFFSET(O2Depth!$A$10,$H101*12,4*($C$8-1)+4,12,1)), MAX(OFFSET(O2Depth!$A$10,$H101*12,4*($C$8-1)+4,12,1))) / 0.3048 -> 94.40698819 | L101: =IF($B$4="Annual Average", AVERAGE(OFFSET(O2Depth!$A$10,$H101*12,4*($C$8-1)+1,12,1)), MAX(OFFSET(O2Depth!$A$10,$H101*12,4*($C$8-1)+1,12,1))) / 0.3048 -> 72.56807743 | R101: 6.333333333 | S101: =VLOOKUP($R101,O2Depth!$A$10:$AG$2410,4*($C$8-1)+3) / 0.3048 -> 54.36023622 | T101: =VLOOKUP($R101,O2Depth!$A$10:$AG$2410,4*($C$8-1)+4) / 0.3048 -> 70.06233596 | U101: =VLOOKUP($R101,O2Depth!$A$10:$AG$2410,4*($C$8-1)+5) / 0.3048 -> 96.01049869 | V101: =VLOOKUP($R101,O2Depth!$A$10:$AG$2410,4*($C$8-1)+2) / 0.3048 -> 73.2480315
H102: 77 | I102: =IF($B$4="Annual Average", AVERAGE(OFFSET(O2Depth!$A$10,$H102*12,4*($C$8-1)+2,12,1)), MAX(OFFSET(O2Depth!$A$10,$H102*12,4*($C$8-1)+2,12,1))) / 0.3048 -> 54.19974847 | J102: =IF($B$4="Annual Average", AVERAGE(OFFSET(O2Depth!$A$10,$H102*12,4*($C$8-1)+3,12,1)), MAX(OFFSET(O2Depth!$A$10,$H102*12,4*($C$8-1)+3,12,1))) / 0.3048 -> 68.9799322 | K102: =IF($B$4="Annual Average", AVERAGE(OFFSET(O2Depth!$A$10,$H102*12,4*($C$8-1)+4,12,1)), MAX(OFFSET(O2Depth!$A$10,$H102*12,4*($C$8-1)+4,12,1))) / 0.3048 -> 95.81009405 | L102: =IF($B$4="Annual Average", AVERAGE(OFFSET(O2Depth!$A$10,$H102*12,4*($C$8-1)+1,12,1)), MAX(OFFSET(O2Depth!$A$10,$H102*12,4*($C$8-1)+1,12,1))) / 0.3048 -> 72.40294182 | R102: 6.416666667 | S102: =VLOOKUP($R102,O2Depth!$A$10:$AG$2410,4*($C$8-1)+3) / 0.3048 -> 54.36023622 | T102: =VLOOKUP($R102,O2Depth!$A$10:$AG$2410,4*($C$8-1)+4) / 0.3048 -> 70.06233596 | U102: =VLOOKUP($R102,O2Depth!$A$10:$AG$2410,4*($C$8-1)+5) / 0.3048 -> 96.01049869 | V102: =VLOOKUP($R102,O2Depth!$A$10:$AG$2410,4*($C$8-1)+2) / 0.3048 -> 73.2480315
H103: 78 | I103: =IF($B$4="Annual Average", AVERAGE(OFFSET(O2Depth!$A$10,$H103*12,4*($C$8-1)+2,12,1)), MAX(OFFSET(O2Depth!$A$10,$H103*12,4*($C$8-1)+2,12,1))) / 0.3048 -> 54.63582677 | J103: =IF($B$4="Annual Average", AVERAGE(OFFSET(O2Depth!$A$10,$H103*12,4*($C$8-1)+3,12,1)), MAX(OFFSET(O2Depth!$A$10,$H103*12,4*($C$8-1)+3,12,1))) / 0.3048 -> 69.43952318 | K103: =IF($B$4="Annual Average", AVERAGE(OFFSET(O2Depth!$A$10,$H103*12,4*($C$8-1)+4,12,1)), MAX(OFFSET(O2Depth!$A$10,$H103*12,4*($C$8-1)+4,12,1))) / 0.3048 -> 95.04046369 | L103: =IF($B$4="Annual Average", AVERAGE(OFFSET(O2Depth!$A$10,$H103*12,4*($C$8-1)+1,12,1)), MAX(OFFSET(O2Depth!$A$10,$H103*12,4*($C$8-1)+1,12,1))) / 0.3048 -> 73.00743657 | R103: 6.5 | S103: =VLOOKUP($R103,O2Depth!$A$10:$AG$2410,4*($C$8-1)+3) / 0.3048 -> 54.70472441 | T103: =VLOOKUP($R103,O2Depth!$A$10:$AG$2410,4*($C$8-1)+4) / 0.3048 -> 70.00328084 | U103: =VLOOKUP($R103,O2Depth!$A$10:$AG$2410,4*($C$8-1)+5) / 0.3048 -> 94.54068241 | V103: =VLOOKUP($R103,O2Depth!$A$10:$AG$2410,4*($C$8-1)+2) / 0.3048 -> 73.15288714
H104: 79 | I104: =IF($B$4="Annual Average", AVERAGE(OFFSET(O2Depth!$A$10,$H104*12,4*($C$8-1)+2,12,1)), MAX(OFFSET(O2Depth!$A$10,$H104*12,4*($C$8-1)+2,12,1))) / 0.3048 -> 54.39605206 | J104: =IF($B$4="Annual Average", AVERAGE(OFFSET(O2Depth!$A$10,$H104*12,4*($C$8-1)+3,12,1)), MAX(OFFSET(O2Depth!$A$10,$H104*12,4*($C$8-1)+3,12,1))) / 0.3048 -> 69.09120735 | K104: =IF($B$4="Annual Average", AVERAGE(OFFSET(O2Depth!$A$10,$H104*12,4*($C$8-1)+4,12,1)), MAX(OFFSET(O2Depth!$A$10,$H104*12,4*($C$8-1)+4,12,1))) / 0.3048 -> 95.01148294 | L104: =IF($B$4="Annual Average", AVERAGE(OFFSET(O2Depth!$A$10,$H104*12,4*($C$8-1)+1,12,1)), MAX(OFFSET(O2Depth!$A$10,$H104*12,4*($C$8-1)+1,12,1))) / 0.3048 -> 72.19214786 | R104: 6.583333333 | S104: =VLOOKUP($R104,O2Depth!$A$10:$AG$2410,4*($C$8-1)+3) / 0.3048 -> 54.90813648 | T104: =VLOOKUP($R104,O2Depth!$A$10:$AG$2410,4*($C$8-1)+4) / 0.3048 -> 69.8851706 | U104: =VLOOKUP($R104,O2Depth!$A$10:$AG$2410,4*($C$8-1)+5) / 0.3048 -> 94.43897638 | V104: =VLOOKUP($R104,O2Depth!$A$10:$AG$2410,4*($C$8-1)+2) / 0.3048 -> 72.99868766
H105: 80 | I105: =IF($B$4="Annual Average", AVERAGE(OFFSET(O2Depth!$A$10,$H105*12,4*($C$8-1)+2,12,1)), MAX(OFFSET(O2Depth!$A$10,$H105*12,4*($C$8-1)+2,12,1))) / 0.3048 -> 54.84498031 | J105: =IF($B$4="Annual Average", AVERAGE(OFFSET(O2Depth!$A$10,$H105*12,4*($C$8-1)+3,12,1)), MAX(OFFSET(O2Depth!$A$10,$H105*12,4*($C$8-1)+3,12,1))) / 0.3048 -> 69.02258311 | K105: =IF($B$4="Annual Average", AVERAGE(OFFSET(O2Depth!$A$10,$H105*12,4*($C$8-1)+4,12,1)), MAX(OFFSET(O2Depth!$A$10,$H105*12,4*($C$8-1)+4,12,1))) / 0.3048 -> 96.20598206 | L105: =IF($B$4="Annual Average", AVERAGE(OFFSET(O2Depth!$A$10,$H105*12,4*($C$8-1)+1,12,1)), MAX(OFFSET(O2Depth!$A$10,$H105*12,4*($C$8-1)+1,12,1))) / 0.3048 -> 72.54483815 | R105: 6.666666667 | S105: =VLOOKUP($R105,O2Depth!$A$10:$AG$2410,4*($C$8-1)+3) / 0.3048 -> 54.90813648 | T105: =VLOOKUP($R105,O2Depth!$A$10:$AG$2410,4*($C$8-1)+4) / 0.3048 -> 69.8851706 | U105: =VLOOKUP($R105,O2Depth!$A$10:$AG$2410,4*($C$8-1)+5) / 0.3048 -> 94.43897638 | V105: =VLOOKUP($R105,O2Depth!$A$10:$AG$2410,4*($C$8-1)+2) / 0.3048 -> 72.99868766
H106: 81 | I106: =IF($B$4="Annual Average", AVERAGE(OFFSET(O2Depth!$A$10,$H106*12,4*($C$8-1)+2,12,1)), MAX(OFFSET(O2Depth!$A$10,$H106*12,4*($C$8-1)+2,12,1))) / 0.3048 -> 54.72222222 | J106: =IF($B$4="Annual Average", AVERAGE(OFFSET(O2Depth!$A$10,$H106*12,4*($C$8-1)+3,12,1)), MAX(OFFSET(O2Depth!$A$10,$H106*12,4*($C$8-1)+3,12,1))) / 0.3048 -> 70.01230315 | K106: =IF($B$4="Annual Average", AVERAGE(OFFSET(O2Depth!$A$10,$H106*12,4*($C$8-1)+4,12,1)), MAX(OFFSET(O2Depth!$A$10,$H106*12,4*($C$8-1)+4,12,1))) / 0.3048 -> 96.56003937 | L106: =IF($B$4="Annual Average", AVERAGE(OFFSET(O2Depth!$A$10,$H106*12,4*($C$8-1)+1,12,1)), MAX(OFFSET(O2Depth!$A$10,$H106*12,4*($C$8-1)+1,12,1))) / 0.3048 -> 73.31064086 | R106: 6.75 | S106: =VLOOKUP($R106,O2Depth!$A$10:$AG$2410,4*($C$8-1)+3) / 0.3048 -> 55.05249344 | T106: =VLOOKUP($R106,O2Depth!$A$10:$AG$2410,4*($C$8-1)+4) / 0.3048 -> 69.89173228 | U106: =VLOOKUP($R106,O2Depth!$A$10:$AG$2410,4*($C$8-1)+5) / 0.3048 -> 94.9507874 | V106: =VLOOKUP($R106,O2Depth!$A$10:$AG$2410,4*($C$8-1)+2) / 0.3048 -> 72.93963255
H107: 82 | I107: =IF($B$4="Annual Average", AVERAGE(OFFSET(O2Depth!$A$10,$H107*12,4*($C$8-1)+2,12,1)), MAX(OFFSET(O2Depth!$A$10,$H107*12,4*($C$8-1)+2,12,1))) / 0.3048 -> 54.55243876 | J107: =IF($B$4="Annual Average", AVERAGE(OFFSET(O2Depth!$A$10,$H107*12,4*($C$8-1)+3,12,1)), MAX(OFFSET(O2Depth!$A$10,$H107*12,4*($C$8-1)+3,12,1))) / 0.3048 -> 69.93356299 | K107: =IF($B$4="Annual Average", AVERAGE(OFFSET(O2Depth!$A$10,$H107*12,4*($C$8-1)+4,12,1)), MAX(OFFSET(O2Depth!$A$10,$H107*12,4*($C$8-1)+4,12,1))) / 0.3048 -> 93.89927822 | L107: =IF($B$4="Annual Average", AVERAGE(OFFSET(O2Depth!$A$10,$H107*12,4*($C$8-1)+1,12,1)), MAX(OFFSET(O2Depth!$A$10,$H107*12,4*($C$8-1)+1,12,1))) / 0.3048 -> 72.54620516 | R107: 6.833333333 | S107: =VLOOKUP($R107,O2Depth!$A$10:$AG$2410,4*($C$8-1)+3) / 0.3048 -> 54.85564304 | T107: =VLOOKUP($R107,O2Depth!$A$10:$AG$2410,4*($C$8-1)+4) / 0.3048 -> 68.93372703 | U107: =VLOOKUP($R107,O2Depth!$A$10:$AG$2410,4*($C$8-1)+5) / 0.3048 -> 95.38057743 | V107: =VLOOKUP($R107,O2Depth!$A$10:$AG$2410,4*($C$8-1)+2) / 0.3048 -> 72.85433071
H108: 83 | I108: =IF($B$4="Annual Average", AVERAGE(OFFSET(O2Depth!$A$10,$H108*12,4*($C$8-1)+2,12,1)), MAX(OFFSET(O2Depth!$A$10,$H108*12,4*($C$8-1)+2,12,1))) / 0.3048 -> 54.12948381 | J108: =IF($B$4="Annual Average", AVERAGE(OFFSET(O2Depth!$A$10,$H108*12,4*($C$8-1)+3,12,1)), MAX(OFFSET(O2Depth!$A$10,$H108*12,4*($C$8-1)+3,12,1))) / 0.3048 -> 69.11608705 | K108: =IF($B$4="Annual Average", AVERAGE(OFFSET(O2Depth!$A$10,$H108*12,4*($C$8-1)+4,12,1)), MAX(OFFSET(O2Depth!$A$10,$H108*12,4*($C$8-1)+4,12,1))) / 0.3048 -> 95.22255031 | L108: =IF($B$4="Annual Average", AVERAGE(OFFSET(O2Depth!$A$10,$H108*12,4*($C$8-1)+1,12,1)), MAX(OFFSET(O2Depth!$A$10,$H108*12,4*($C$8-1)+1,12,1))) / 0.3048 -> 72.55550087 | R108: 6.916666667 | S108: =VLOOKUP($R108,O2Depth!$A$10:$AG$2410,4*($C$8-1)+3) / 0.3048 -> 54.85564304 | T108: =VLOOKUP($R108,O2Depth!$A$10:$AG$2410,4*($C$8-1)+4) / 0.3048 -> 68.93372703 | U108: =VLOOKUP($R108,O2Depth!$A$10:$AG$2410,4*($C$8-1)+5) / 0.3048 -> 95.38057743 | V108: =VLOOKUP($R108,O2Depth!$A$10:$AG$2410,4*($C$8-1)+2) / 0.3048 -> 72.85433071
H109: 84 | I109: =IF($B$4="Annual Average", AVERAGE(OFFSET(O2Depth!$A$10,$H109*12,4*($C$8-1)+2,12,1)), MAX(OFFSET(O2Depth!$A$10,$H109*12,4*($C$8-1)+2,12,1))) / 0.3048 -> 55.40108268 | J109: =IF($B$4="Annual Average", AVERAGE(OFFSET(O2Depth!$A$10,$H109*12,4*($C$8-1)+3,12,1)), MAX(OFFSET(O2Depth!$A$10,$H109*12,4*($C$8-1)+3,12,1))) / 0.3048 -> 70.14873141 | K109: =IF($B$4="Annual Average", AVERAGE(OFFSET(O2Depth!$A$10,$H109*12,4*($C$8-1)+4,12,1)), MAX(OFFSET(O2Depth!$A$10,$H109*12,4*($C$8-1)+4,12,1))) / 0.3048 -> 96.38068679 | L109: =IF($B$4="Annual Average", AVERAGE(OFFSET(O2Depth!$A$10,$H109*12,4*($C$8-1)+1,12,1)), MAX(OFFSET(O2Depth!$A$10,$H109*12,4*($C$8-1)+1,12,1))) / 0.3048 -> 73.60892388 | R109: 7 | S109: =VLOOKUP($R109,O2Depth!$A$10:$AG$2410,4*($C$8-1)+3) / 0.3048 -> 54.38648294 | T109: =VLOOKUP($R109,O2Depth!$A$10:$AG$2410,4*($C$8-1)+4) / 0.3048 -> 68.6023622 | U109: =VLOOKUP($R109,O2Depth!$A$10:$AG$2410,4*($C$8-1)+5) / 0.3048 -> 96.18110236 | V109: =VLOOKUP($R109,O2Depth!$A$10:$AG$2410,4*($C$8-1)+2) / 0.3048 -> 72.82480315
H110: 85 | I110: =IF($B$4="Annual Average", AVERAGE(OFFSET(O2Depth!$A$10,$H110*12,4*($C$8-1)+2,12,1)), MAX(OFFSET(O2Depth!$A$10,$H110*12,4*($C$8-1)+2,12,1))) / 0.3048 -> 54.58360674 | J110: =IF($B$4="Annual Average", AVERAGE(OFFSET(O2Depth!$A$10,$H110*12,4*($C$8-1)+3,12,1)), MAX(OFFSET(O2Depth!$A$10,$H110*12,4*($C$8-1)+3,12,1))) / 0.3048 -> 69.50103893 | K110: =IF($B$4="Annual Average", AVERAGE(OFFSET(O2Depth!$A$10,$H110*12,4*($C$8-1)+4,12,1)), MAX(OFFSET(O2Depth!$A$10,$H110*12,4*($C$8-1)+4,12,1))) / 0.3048 -> 97.30697725 | L110: =IF($B$4="Annual Average", AVERAGE(OFFSET(O2Depth!$A$10,$H110*12,4*($C$8-1)+1,12,1)), MAX(OFFSET(O2Depth!$A$10,$H110*12,4*($C$8-1)+1,12,1))) / 0.3048 -> 73.17968066 | R110: 7.083333333 | S110: =VLOOKUP($R110,O2Depth!$A$10:$AG$2410,4*($C$8-1)+3) / 0.3048 -> 54.46194226 | T110: =VLOOKUP($R110,O2Depth!$A$10:$AG$2410,4*($C$8-1)+4) / 0.3048 -> 69.13713911 | U110: =VLOOKUP($R110,O2Depth!$A$10:$AG$2410,4*($C$8-1)+5) / 0.3048 -> 96.05314961 | V110: =VLOOKUP($R110,O2Depth!$A$10:$AG$2410,4*($C$8-1)+2) / 0.3048 -> 72.78543307
H111: 86 | I111: =IF($B$4="Annual Average", AVERAGE(OFFSET(O2Depth!$A$10,$H111*12,4*($C$8-1)+2,12,1)), MAX(OFFSET(O2Depth!$A$10,$H111*12,4*($C$8-1)+2,12,1))) / 0.3048 -> 54.33891076 | J111: =IF($B$4="Annual Average", AVERAGE(OFFSET(O2Depth!$A$10,$H111*12,4*($C$8-1)+3,12,1)), MAX(OFFSET(O2Depth!$A$10,$H111*12,4*($C$8-1)+3,12,1))) / 0.3048 -> 68.70625547 | K111: =IF($B$4="Annual Average", AVERAGE(OFFSET(O2Depth!$A$10,$H111*12,4*($C$8-1)+4,12,1)), MAX(OFFSET(O2Depth!$A$10,$H111*12,4*($C$8-1)+4,12,1))) / 0.3048 -> 96.54117454 | L111: =IF($B$4="Annual Average", AVERAGE(OFFSET(O2Depth!$A$10,$H111*12,4*($C$8-1)+1,12,1)), MAX(OFFSET(O2Depth!$A$10,$H111*12,4*($C$8-1)+1,12,1))) / 0.3048 -> 72.82726378 | R111: 7.166666667 | S111: =VLOOKUP($R111,O2Depth!$A$10:$AG$2410,4*($C$8-1)+3) / 0.3048 -> 54.46194226 | T111: =VLOOKUP($R111,O2Depth!$A$10:$AG$2410,4*($C$8-1)+4) / 0.3048 -> 69.13713911 | U111: =VLOOKUP($R111,O2Depth!$A$10:$AG$2410,4*($C$8-1)+5) / 0.3048 -> 96.05314961 | V111: =VLOOKUP($R111,O2Depth!$A$10:$AG$2410,4*($C$8-1)+2) / 0.3048 -> 72.78543307
H112: 87 | I112: =IF($B$4="Annual Average", AVERAGE(OFFSET(O2Depth!$A$10,$H112*12,4*($C$8-1)+2,12,1)), MAX(OFFSET(O2Depth!$A$10,$H112*12,4*($C$8-1)+2,12,1))) / 0.3048 -> 54.3585958 | J112: =IF($B$4="Annual Average", AVERAGE(OFFSET(O2Depth!$A$10,$H112*12,4*($C$8-1)+3,12,1)), MAX(OFFSET(O2Depth!$A$10,$H112*12,4*($C$8-1)+3,12,1))) / 0.3048 -> 69.24978128 | K112: =IF($B$4="Annual Average", AVERAGE(OFFSET(O2Depth!$A$10,$H112*12,4*($C$8-1)+4,12,1)), MAX(OFFSET(O2Depth!$A$10,$H112*12,4*($C$8-1)+4,12,1))) / 0.3048 -> 95.68924978 | L112: =IF($B$4="Annual Average", AVERAGE(OFFSET(O2Depth!$A$10,$H112*12,4*($C$8-1)+1,12,1)), MAX(OFFSET(O2Depth!$A$10,$H112*12,4*($C$8-1)+1,12,1))) / 0.3048 -> 72.76602143 | R112: 7.25 | S112: =VLOOKUP($R112,O2Depth!$A$10:$AG$2410,4*($C$8-1)+3) / 0.3048 -> 54.90813648 | T112: =VLOOKUP($R112,O2Depth!$A$10:$AG$2410,4*($C$8-1)+4) / 0.3048 -> 68.8484252 | U112: =VLOOKUP($R112,O2Depth!$A$10:$AG$2410,4*($C$8-1)+5) / 0.3048 -> 95.0164042 | V112: =VLOOKUP($R112,O2Depth!$A$10:$AG$2410,4*($C$8-1)+2) / 0.3048 -> 72.73293963
H113: 88 | I113: =IF($B$4="Annual Average", AVERAGE(OFFSET(O2Depth!$A$10,$H113*12,4*($C$8-1)+2,12,1)), MAX(OFFSET(O2Depth!$A$10,$H113*12,4*($C$8-1)+2,12,1))) / 0.3048 -> 53.9966098 | J113: =IF($B$4="Annual Average", AVERAGE(OFFSET(O2Depth!$A$10,$H113*12,4*($C$8-1)+3,12,1)), MAX(OFFSET(O2Depth!$A$10,$H113*12,4*($C$8-1)+3,12,1))) / 0.3048 -> 69.3421916 | K113: =IF($B$4="Annual Average", AVERAGE(OFFSET(O2Depth!$A$10,$H113*12,4*($C$8-1)+4,12,1)), MAX(OFFSET(O2Depth!$A$10,$H113*12,4*($C$8-1)+4,12,1))) / 0.3048 -> 95.61160324 | L113: =IF($B$4="Annual Average", AVERAGE(OFFSET(O2Depth!$A$10,$H113*12,4*($C$8-1)+1,12,1)), MAX(OFFSET(O2Depth!$A$10,$H113*12,4*($C$8-1)+1,12,1))) / 0.3048 -> 72.76902887 | R113: 7.333333333 | S113: =VLOOKUP($R113,O2Depth!$A$10:$AG$2410,4*($C$8-1)+3) / 0.3048 -> 55.31824147 | T113: =VLOOKUP($R113,O2Depth!$A$10:$AG$2410,4*($C$8-1)+4) / 0.3048 -> 69.39632546 | U113: =VLOOKUP($R113,O2Depth!$A$10:$AG$2410,4*($C$8-1)+5) / 0.3048 -> 93.22178478 | V113: =VLOOKUP($R113,O2Depth!$A$10:$AG$2410,4*($C$8-1)+2) / 0.3048 -> 72.65748031
H114: 89 | I114: =IF($B$4="Annual Average", AVERAGE(OFFSET(O2Depth!$A$10,$H114*12,4*($C$8-1)+2,12,1)), MAX(OFFSET(O2Depth!$A$10,$H114*12,4*($C$8-1)+2,12,1))) / 0.3048 -> 54.72304243 | J114: =IF($B$4="Annual Average", AVERAGE(OFFSET(O2Depth!$A$10,$H114*12,4*($C$8-1)+3,12,1)), MAX(OFFSET(O2Depth!$A$10,$H114*12,4*($C$8-1)+3,12,1))) / 0.3048 -> 69.8848972 | K114: =IF($B$4="Annual Average", AVERAGE(OFFSET(O2Depth!$A$10,$H114*12,4*($C$8-1)+4,12,1)), MAX(OFFSET(O2Depth!$A$10,$H114*12,4*($C$8-1)+4,12,1))) / 0.3048 -> 95.90687883 | L114: =IF($B$4="Annual Average", AVERAGE(OFFSET(O2Depth!$A$10,$H114*12,4*($C$8-1)+1,12,1)), MAX(OFFSET(O2Depth!$A$10,$H114*12,4*($C$8-1)+1,12,1))) / 0.3048 -> 73.25158574 | R114: 7.416666667 | S114: =VLOOKUP($R114,O2Depth!$A$10:$AG$2410,4*($C$8-1)+3) / 0.3048 -> 55.31824147 | T114: =VLOOKUP($R114,O2Depth!$A$10:$AG$2410,4*($C$8-1)+4) / 0.3048 -> 69.39632546 | U114: =VLOOKUP($R114,O2Depth!$A$10:$AG$2410,4*($C$8-1)+5) / 0.3048 -> 93.22178478 | V114: =VLOOKUP($R114,O2Depth!$A$10:$AG$2410,4*($C$8-1)+2) / 0.3048 -> 72.65748031
H115: 90 | I115: =IF($B$4="Annual Average", AVERAGE(OFFSET(O2Depth!$A$10,$H115*12,4*($C$8-1)+2,12,1)), MAX(OFFSET(O2Depth!$A$10,$H115*12,4*($C$8-1)+2,12,1))) / 0.3048 -> 54.3342629 | J115: =IF($B$4="Annual Average", AVERAGE(OFFSET(O2Depth!$A$10,$H115*12,4*($C$8-1)+3,12,1)), MAX(OFFSET(O2Depth!$A$10,$H115*12,4*($C$8-1)+3,12,1))) / 0.3048 -> 70.96757437 | K115: =IF($B$4="Annual Average", AVERAGE(OFFSET(O2Depth!$A$10,$H115*12,4*($C$8-1)+4,12,1)), MAX(OFFSET(O2Depth!$A$10,$H115*12,4*($C$8-1)+4,12,1))) / 0.3048 -> 96.67213473 | L115: =IF($B$4="Annual Average", AVERAGE(OFFSET(O2Depth!$A$10,$H115*12,4*($C$8-1)+1,12,1)), MAX(OFFSET(O2Depth!$A$10,$H115*12,4*($C$8-1)+1,12,1))) / 0.3048 -> 73.59853456 | R115: 7.5 | S115: =VLOOKUP($R115,O2Depth!$A$10:$AG$2410,4*($C$8-1)+3) / 0.3048 -> 55.19685039 | T115: =VLOOKUP($R115,O2Depth!$A$10:$AG$2410,4*($C$8-1)+4) / 0.3048 -> 69.03871391 | U115: =VLOOKUP($R115,O2Depth!$A$10:$AG$2410,4*($C$8-1)+5) / 0.3048 -> 93.0183727 | V115: =VLOOKUP($R115,O2Depth!$A$10:$AG$2410,4*($C$8-1)+2) / 0.3048 -> 72.63779528
H116: 91 | I116: =IF($B$4="Annual Average", AVERAGE(OFFSET(O2Depth!$A$10,$H116*12,4*($C$8-1)+2,12,1)), MAX(OFFSET(O2Depth!$A$10,$H116*12,4*($C$8-1)+2,12,1))) / 0.3048 -> 54.7285105 | J116: =IF($B$4="Annual Average", AVERAGE(OFFSET(O2Depth!$A$10,$H116*12,4*($C$8-1)+3,12,1)), MAX(OFFSET(O2Depth!$A$10,$H116*12,4*($C$8-1)+3,12,1))) / 0.3048 -> 69.5062336 | K116: =IF($B$4="Annual Average", AVERAGE(OFFSET(O2Depth!$A$10,$H116*12,4*($C$8-1)+4,12,1)), MAX(OFFSET(O2Depth!$A$10,$H116*12,4*($C$8-1)+4,12,1))) / 0.3048 -> 96.93514873 | L116: =IF($B$4="Annual Average", AVERAGE(OFFSET(O2Depth!$A$10,$H116*12,4*($C$8-1)+1,12,1)), MAX(OFFSET(O2Depth!$A$10,$H116*12,4*($C$8-1)+1,12,1))) / 0.3048 -> 73.23818898 | R116: 7.583333333 | S116: =VLOOKUP($R116,O2Depth!$A$10:$AG$2410,4*($C$8-1)+3) / 0.3048 -> 55.36417323 | T116: =VLOOKUP($R116,O2Depth!$A$10:$AG$2410,4*($C$8-1)+4) / 0.3048 -> 69.13713911 | U116: =VLOOKUP($R116,O2Depth!$A$10:$AG$2410,4*($C$8-1)+5) / 0.3048 -> 93.49081365 | V116: =VLOOKUP($R116,O2Depth!$A$10:$AG$2410,4*($C$8-1)+2) / 0.3048 -> 72.62467192
H117: 92 | I117: =IF($B$4="Annual Average", AVERAGE(OFFSET(O2Depth!$A$10,$H117*12,4*($C$8-1)+2,12,1)), MAX(OFFSET(O2Depth!$A$10,$H117*12,4*($C$8-1)+2,12,1))) / 0.3048 -> 55.08694226 | J117: =IF($B$4="Annual Average", AVERAGE(OFFSET(O2Depth!$A$10,$H117*12,4*($C$8-1)+3,12,1)), MAX(OFFSET(O2Depth!$A$10,$H117*12,4*($C$8-1)+3,12,1))) / 0.3048 -> 69.1691273 | K117: =IF($B$4="Annual Average", AVERAGE(OFFSET(O2Depth!$A$10,$H117*12,4*($C$8-1)+4,12,1)), MAX(OFFSET(O2Depth!$A$10,$H117*12,4*($C$8-1)+4,12,1))) / 0.3048 -> 96.93514873 | L117: =IF($B$4="Annual Average", AVERAGE(OFFSET(O2Depth!$A$10,$H117*12,4*($C$8-1)+1,12,1)), MAX(OFFSET(O2Depth!$A$10,$H117*12,4*($C$8-1)+1,12,1))) / 0.3048 -> 72.99103237 | R117: 7.666666667 | S117: =VLOOKUP($R117,O2Depth!$A$10:$AG$2410,4*($C$8-1)+3) / 0.3048 -> 55.36417323 | T117: =VLOOKUP($R117,O2Depth!$A$10:$AG$2410,4*($C$8-1)+4) / 0.3048 -> 69.13713911 | U117: =VLOOKUP($R117,O2Depth!$A$10:$AG$2410,4*($C$8-1)+5) / 0.3048 -> 93.49081365 | V117: =VLOOKUP($R117,O2Depth!$A$10:$AG$2410,4*($C$8-1)+2) / 0.3048 -> 72.62467192
H118: 93 | I118: =IF($B$4="Annual Average", AVERAGE(OFFSET(O2Depth!$A$10,$H118*12,4*($C$8-1)+2,12,1)), MAX(OFFSET(O2Depth!$A$10,$H118*12,4*($C$8-1)+2,12,1))) / 0.3048 -> 55.45822397 | J118: =IF($B$4="Annual Average", AVERAGE(OFFSET(O2Depth!$A$10,$H118*12,4*($C$8-1)+3,12,1)), MAX(OFFSET(O2Depth!$A$10,$H118*12,4*($C$8-1)+3,12,1))) / 0.3048 -> 70.25672572 | K118: =IF($B$4="Annual Average", AVERAGE(OFFSET(O2Depth!$A$10,$H118*12,4*($C$8-1)+4,12,1)), MAX(OFFSET(O2Depth!$A$10,$H118*12,4*($C$8-1)+4,12,1))) / 0.3048 -> 93.74917979 | L118: =IF($B$4="Annual Average", AVERAGE(OFFSET(O2Depth!$A$10,$H118*12,4*($C$8-1)+1,12,1)), MAX(OFFSET(O2Depth!$A$10,$H118*12,4*($C$8-1)+1,12,1))) / 0.3048 -> 73.11324366 | R118: 7.75 | S118: =VLOOKUP($R118,O2Depth!$A$10:$AG$2410,4*($C$8-1)+3) / 0.3048 -> 55.05249344 | T118: =VLOOKUP($R118,O2Depth!$A$10:$AG$2410,4*($C$8-1)+4) / 0.3048 -> 69.11745407 | U118: =VLOOKUP($R118,O2Depth!$A$10:$AG$2410,4*($C$8-1)+5) / 0.3048 -> 93.93372703 | V118: =VLOOKUP($R118,O2Depth!$A$10:$AG$2410,4*($C$8-1)+2) / 0.3048 -> 72.63451444
H119: 94 | I119: =IF($B$4="Annual Average", AVERAGE(OFFSET(O2Depth!$A$10,$H119*12,4*($C$8-1)+2,12,1)), MAX(OFFSET(O2Depth!$A$10,$H119*12,4*($C$8-1)+2,12,1))) / 0.3048 -> 54.04882983 | J119: =IF($B$4="Annual Average", AVERAGE(OFFSET(O2Depth!$A$10,$H119*12,4*($C$8-1)+3,12,1)), MAX(OFFSET(O2Depth!$A$10,$H119*12,4*($C$8-1)+3,12,1))) / 0.3048 -> 69.2106846 | K119: =IF($B$4="Annual Average", AVERAGE(OFFSET(O2Depth!$A$10,$H119*12,4*($C$8-1)+4,12,1)), MAX(OFFSET(O2Depth!$A$10,$H119*12,4*($C$8-1)+4,12,1))) / 0.3048 -> 93.32677165 | L119: =IF($B$4="Annual Average", AVERAGE(OFFSET(O2Depth!$A$10,$H119*12,4*($C$8-1)+1,12,1)), MAX(OFFSET(O2Depth!$A$10,$H119*12,4*($C$8-1)+1,12,1))) / 0.3048 -> 72.66568241 | R119: 7.833333333 | S119: =VLOOKUP($R119,O2Depth!$A$10:$AG$2410,4*($C$8-1)+3) / 0.3048 -> 54.47834646 | T119: =VLOOKUP($R119,O2Depth!$A$10:$AG$2410,4*($C$8-1)+4) / 0.3048 -> 69.18307087 | U119: =VLOOKUP($R119,O2Depth!$A$10:$AG$2410,4*($C$8-1)+5) / 0.3048 -> 94.60629921 | V119: =VLOOKUP($R119,O2Depth!$A$10:$AG$2410,4*($C$8-1)+2) / 0.3048 -> 72.68044619
H120: 95 | I120: =IF($B$4="Annual Average", AVERAGE(OFFSET(O2Depth!$A$10,$H120*12,4*($C$8-1)+2,12,1)), MAX(OFFSET(O2Depth!$A$10,$H120*12,4*($C$8-1)+2,12,1))) / 0.3048 -> 55.19958443 | J120: =IF($B$4="Annual Average", AVERAGE(OFFSET(O2Depth!$A$10,$H120*12,4*($C$8-1)+3,12,1)), MAX(OFFSET(O2Depth!$A$10,$H120*12,4*($C$8-1)+3,12,1))) / 0.3048 -> 69.08628609 | K120: =IF($B$4="Annual Average", AVERAGE(OFFSET(O2Depth!$A$10,$H120*12,4*($C$8-1)+4,12,1)), MAX(OFFSET(O2Depth!$A$10,$H120*12,4*($C$8-1)+4,12,1))) / 0.3048 -> 95.20067804 | L120: =IF($B$4="Annual Average", AVERAGE(OFFSET(O2Depth!$A$10,$H120*12,4*($C$8-1)+1,12,1)), MAX(OFFSET(O2Depth!$A$10,$H120*12,4*($C$8-1)+1,12,1))) / 0.3048 -> 72.45652887 | R120: 7.916666667 | S120: =VLOOKUP($R120,O2Depth!$A$10:$AG$2410,4*($C$8-1)+3) / 0.3048 -> 54.47834646 | T120: =VLOOKUP($R120,O2Depth!$A$10:$AG$2410,4*($C$8-1)+4) / 0.3048 -> 69.18307087 | U120: =VLOOKUP($R120,O2Depth!$A$10:$AG$2410,4*($C$8-1)+5) / 0.3048 -> 94.60629921 | V120: =VLOOKUP($R120,O2Depth!$A$10:$AG$2410,4*($C$8-1)+2) / 0.3048 -> 72.68044619
H121: 96 | I121: =IF($B$4="Annual Average", AVERAGE(OFFSET(O2Depth!$A$10,$H121*12,4*($C$8-1)+2,12,1)), MAX(OFFSET(O2Depth!$A$10,$H121*12,4*($C$8-1)+2,12,1))) / 0.3048 -> 55.03226159 | J121: =IF($B$4="Annual Average", AVERAGE(OFFSET(O2Depth!$A$10,$H121*12,4*($C$8-1)+3,12,1)), MAX(OFFSET(O2Depth!$A$10,$H121*12,4*($C$8-1)+3,12,1))) / 0.3048 -> 69.64840332 | K121: =IF($B$4="Annual Average", AVERAGE(OFFSET(O2Depth!$A$10,$H121*12,4*($C$8-1)+4,12,1)), MAX(OFFSET(O2Depth!$A$10,$H121*12,4*($C$8-1)+4,12,1))) / 0.3048 -> 94.22244094 | L121: =IF($B$4="Annual Average", AVERAGE(OFFSET(O2Depth!$A$10,$H121*12,4*($C$8-1)+1,12,1)), MAX(OFFSET(O2Depth!$A$10,$H121*12,4*($C$8-1)+1,12,1))) / 0.3048 -> 72.43739064 | R121: 8 | S121: =VLOOKUP($R121,O2Depth!$A$10:$AG$2410,4*($C$8-1)+3) / 0.3048 -> 54.01574803 | T121: =VLOOKUP($R121,O2Depth!$A$10:$AG$2410,4*($C$8-1)+4) / 0.3048 -> 68.64173228 | U121: =VLOOKUP($R121,O2Depth!$A$10:$AG$2410,4*($C$8-1)+5) / 0.3048 -> 95.4855643 | V121: =VLOOKUP($R121,O2Depth!$A$10:$AG$2410,4*($C$8-1)+2) / 0.3048 -> 72.71981627
H122: 97 | I122: =IF($B$4="Annual Average", AVERAGE(OFFSET(O2Depth!$A$10,$H122*12,4*($C$8-1)+2,12,1)), MAX(OFFSET(O2Depth!$A$10,$H122*12,4*($C$8-1)+2,12,1))) / 0.3048 -> 53.99715661 | J122: =IF($B$4="Annual Average", AVERAGE(OFFSET(O2Depth!$A$10,$H122*12,4*($C$8-1)+3,12,1)), MAX(OFFSET(O2Depth!$A$10,$H122*12,4*($C$8-1)+3,12,1))) / 0.3048 -> 69.04008093 | K122: =IF($B$4="Annual Average", AVERAGE(OFFSET(O2Depth!$A$10,$H122*12,4*($C$8-1)+4,12,1)), MAX(OFFSET(O2Depth!$A$10,$H122*12,4*($C$8-1)+4,12,1))) / 0.3048 -> 94.48490814 | L122: =IF($B$4="Annual Average", AVERAGE(OFFSET(O2Depth!$A$10,$H122*12,4*($C$8-1)+1,12,1)), MAX(OFFSET(O2Depth!$A$10,$H122*12,4*($C$8-1)+1,12,1))) / 0.3048 -> 72.54620516 | R122: 8.083333333 | S122: =VLOOKUP($R122,O2Depth!$A$10:$AG$2410,4*($C$8-1)+3) / 0.3048 -> 54.44225722 | T122: =VLOOKUP($R122,O2Depth!$A$10:$AG$2410,4*($C$8-1)+4) / 0.3048 -> 69.46850394 | U122: =VLOOKUP($R122,O2Depth!$A$10:$AG$2410,4*($C$8-1)+5) / 0.3048 -> 95.25590551 | V122: =VLOOKUP($R122,O2Depth!$A$10:$AG$2410,4*($C$8-1)+2) / 0.3048 -> 72.65091864
H123: 98 | I123: =IF($B$4="Annual Average", AVERAGE(OFFSET(O2Depth!$A$10,$H123*12,4*($C$8-1)+2,12,1)), MAX(OFFSET(O2Depth!$A$10,$H123*12,4*($C$8-1)+2,12,1))) / 0.3048 -> 54.43542213 | J123: =IF($B$4="Annual Average", AVERAGE(OFFSET(O2Depth!$A$10,$H123*12,4*($C$8-1)+3,12,1)), MAX(OFFSET(O2Depth!$A$10,$H123*12,4*($C$8-1)+3,12,1))) / 0.3048 -> 68.64720035 | K123: =IF($B$4="Annual Average", AVERAGE(OFFSET(O2Depth!$A$10,$H123*12,4*($C$8-1)+4,12,1)), MAX(OFFSET(O2Depth!$A$10,$H123*12,4*($C$8-1)+4,12,1))) / 0.3048 -> 93.52498906 | L123: =IF($B$4="Annual Average", AVERAGE(OFFSET(O2Depth!$A$10,$H123*12,4*($C$8-1)+1,12,1)), MAX(OFFSET(O2Depth!$A$10,$H123*12,4*($C$8-1)+1,12,1))) / 0.3048 -> 72.2039042 | R123: 8.166666667 | S123: =VLOOKUP($R123,O2Depth!$A$10:$AG$2410,4*($C$8-1)+3) / 0.3048 -> 54.44225722 | T123: =VLOOKUP($R123,O2Depth!$A$10:$AG$2410,4*($C$8-1)+4) / 0.3048 -> 69.46850394 | U123: =VLOOKUP($R123,O2Depth!$A$10:$AG$2410,4*($C$8-1)+5) / 0.3048 -> 95.25590551 | V123: =VLOOKUP($R123,O2Depth!$A$10:$AG$2410,4*($C$8-1)+2) / 0.3048 -> 72.65091864
H124: 99 | I124: =IF($B$4="Annual Average", AVERAGE(OFFSET(O2Depth!$A$10,$H124*12,4*($C$8-1)+2,12,1)), MAX(OFFSET(O2Depth!$A$10,$H124*12,4*($C$8-1)+2,12,1))) / 0.3048 -> 53.59880796 | J124: =IF($B$4="Annual Average", AVERAGE(OFFSET(O2Depth!$A$10,$H124*12,4*($C$8-1)+3,12,1)), MAX(OFFSET(O2Depth!$A$10,$H124*12,4*($C$8-1)+3,12,1))) / 0.3048 -> 68.90091864 | K124: =IF($B$4="Annual Average", AVERAGE(OFFSET(O2Depth!$A$10,$H124*12,4*($C$8-1)+4,12,1)), MAX(OFFSET(O2Depth!$A$10,$H124*12,4*($C$8-1)+4,12,1))) / 0.3048 -> 95.64058399 | L124: =IF($B$4="Annual Average", AVERAGE(OFFSET(O2Depth!$A$10,$H124*12,4*($C$8-1)+1,12,1)), MAX(OFFSET(O2Depth!$A$10,$H124*12,4*($C$8-1)+1,12,1))) / 0.3048 -> 72.40294182 | R124: 8.25 | S124: =VLOOKUP($R124,O2Depth!$A$10:$AG$2410,4*($C$8-1)+3) / 0.3048 -> 54.95734908 | T124: =VLOOKUP($R124,O2Depth!$A$10:$AG$2410,4*($C$8-1)+4) / 0.3048 -> 69.30774278 | U124: =VLOOKUP($R124,O2Depth!$A$10:$AG$2410,4*($C$8-1)+5) / 0.3048 -> 95.77099738 | V124: =VLOOKUP($R124,O2Depth!$A$10:$AG$2410,4*($C$8-1)+2) / 0.3048 -> 72.54265092
H125: 100 | I125: =IF($B$4="Annual Average", AVERAGE(OFFSET(O2Depth!$A$10,$H125*12,4*($C$8-1)+2,12,1)), MAX(OFFSET(O2Depth!$A$10,$H125*12,4*($C$8-1)+2,12,1))) / 0.3048 -> 54.1529965 | J125: =IF($B$4="Annual Average", AVERAGE(OFFSET(O2Depth!$A$10,$H125*12,4*($C$8-1)+3,12,1)), MAX(OFFSET(O2Depth!$A$10,$H125*12,4*($C$8-1)+3,12,1))) / 0.3048 -> 70.01202975 | K125: =IF($B$4="Annual Average", AVERAGE(OFFSET(O2Depth!$A$10,$H125*12,4*($C$8-1)+4,12,1)), MAX(OFFSET(O2Depth!$A$10,$H125*12,4*($C$8-1)+4,12,1))) / 0.3048 -> 97.04943132 | L125: =IF($B$4="Annual Average", AVERAGE(OFFSET(O2Depth!$A$10,$H125*12,4*($C$8-1)+1,12,1)), MAX(OFFSET(O2Depth!$A$10,$H125*12,4*($C$8-1)+1,12,1))) / 0.3048 -> 73.17284558 | R125: 8.333333333 | S125: =VLOOKUP($R125,O2Depth!$A$10:$AG$2410,4*($C$8-1)+3) / 0.3048 -> 55.13451444 | T125: =VLOOKUP($R125,O2Depth!$A$10:$AG$2410,4*($C$8-1)+4) / 0.3048 -> 69.72112861 | U125: =VLOOKUP($R125,O2Depth!$A$10:$AG$2410,4*($C$8-1)+5) / 0.3048 -> 92.98228346 | V125: =VLOOKUP($R125,O2Depth!$A$10:$AG$2410,4*($C$8-1)+2) / 0.3048 -> 72.35564304
H126: 101 | I126: =IF($B$4="Annual Average", AVERAGE(OFFSET(O2Depth!$A$10,$H126*12,4*($C$8-1)+2,12,1)), MAX(OFFSET(O2Depth!$A$10,$H126*12,4*($C$8-1)+2,12,1))) / 0.3048 -> 54.97293307 | J126: =IF($B$4="Annual Average", AVERAGE(OFFSET(O2Depth!$A$10,$H126*12,4*($C$8-1)+3,12,1)), MAX(OFFSET(O2Depth!$A$10,$H126*12,4*($C$8-1)+3,12,1))) / 0.3048 -> 68.71609799 | K126: =IF($B$4="Annual Average", AVERAGE(OFFSET(O2Depth!$A$10,$H126*12,4*($C$8-1)+4,12,1)), MAX(OFFSET(O2Depth!$A$10,$H126*12,4*($C$8-1)+4,12,1))) / 0.3048 -> 95.05550087 | L126: =IF($B$4="Annual Average", AVERAGE(OFFSET(O2Depth!$A$10,$H126*12,4*($C$8-1)+1,12,1)), MAX(OFFSET(O2Depth!$A$10,$H126*12,4*($C$8-1)+1,12,1))) / 0.3048 -> 72.36712598 | R126: 8.416666667 | S126: =VLOOKUP($R126,O2Depth!$A$10:$AG$2410,4*($C$8-1)+3) / 0.3048 -> 55.13451444 | T126: =VLOOKUP($R126,O2Depth!$A$10:$AG$2410,4*($C$8-1)+4) / 0.3048 -> 69.72112861 | U126: =VLOOKUP($R126,O2Depth!$A$10:$AG$2410,4*($C$8-1)+5) / 0.3048 -> 92.98228346 | V126: =VLOOKUP($R126,O2Depth!$A$10:$AG$2410,4*($C$8-1)+2) / 0.3048 -> 72.35564304
H127: 102 | I127: =IF($B$4="Annual Average", AVERAGE(OFFSET(O2Depth!$A$10,$H127*12,4*($C$8-1)+2,12,1)), MAX(OFFSET(O2Depth!$A$10,$H127*12,4*($C$8-1)+2,12,1))) / 0.3048 -> 54.82010061 | J127: =IF($B$4="Annual Average", AVERAGE(OFFSET(O2Depth!$A$10,$H127*12,4*($C$8-1)+3,12,1)), MAX(OFFSET(O2Depth!$A$10,$H127*12,4*($C$8-1)+3,12,1))) / 0.3048 -> 69.17049431 | K127: =IF($B$4="Annual Average", AVERAGE(OFFSET(O2Depth!$A$10,$H127*12,4*($C$8-1)+4,12,1)), MAX(OFFSET(O2Depth!$A$10,$H127*12,4*($C$8-1)+4,12,1))) / 0.3048 -> 95.7480315 | L127: =IF($B$4="Annual Average", AVERAGE(OFFSET(O2Depth!$A$10,$H127*12,4*($C$8-1)+1,12,1)), MAX(OFFSET(O2Depth!$A$10,$H127*12,4*($C$8-1)+1,12,1))) / 0.3048 -> 72.64572397 | R127: 8.5 | S127: =VLOOKUP($R127,O2Depth!$A$10:$AG$2410,4*($C$8-1)+3) / 0.3048 -> 55.30183727 | T127: =VLOOKUP($R127,O2Depth!$A$10:$AG$2410,4*($C$8-1)+4) / 0.3048 -> 69.59645669 | U127: =VLOOKUP($R127,O2Depth!$A$10:$AG$2410,4*($C$8-1)+5) / 0.3048 -> 92.68044619 | V127: =VLOOKUP($R127,O2Depth!$A$10:$AG$2410,4*($C$8-1)+2) / 0.3048 -> 72.27690289
H128: 103 | I128: =IF($B$4="Annual Average", AVERAGE(OFFSET(O2Depth!$A$10,$H128*12,4*($C$8-1)+2,12,1)), MAX(OFFSET(O2Depth!$A$10,$H128*12,4*($C$8-1)+2,12,1))) / 0.3048 -> 54.47807305 | J128: =IF($B$4="Annual Average", AVERAGE(OFFSET(O2Depth!$A$10,$H128*12,4*($C$8-1)+3,12,1)), MAX(OFFSET(O2Depth!$A$10,$H128*12,4*($C$8-1)+3,12,1))) / 0.3048 -> 68.75410105 | K128: =IF($B$4="Annual Average", AVERAGE(OFFSET(O2Depth!$A$10,$H128*12,4*($C$8-1)+4,12,1)), MAX(OFFSET(O2Depth!$A$10,$H128*12,4*($C$8-1)+4,12,1))) / 0.3048 -> 96.40201225 | L128: =IF($B$4="Annual Average", AVERAGE(OFFSET(O2Depth!$A$10,$H128*12,4*($C$8-1)+1,12,1)), MAX(OFFSET(O2Depth!$A$10,$H128*12,4*($C$8-1)+1,12,1))) / 0.3048 -> 72.74332896 | R128: 8.583333333 | S128: =VLOOKUP($R128,O2Depth!$A$10:$AG$2410,4*($C$8-1)+3) / 0.3048 -> 55.47244094 | T128: =VLOOKUP($R128,O2Depth!$A$10:$AG$2410,4*($C$8-1)+4) / 0.3048 -> 69.15682415 | U128: =VLOOKUP($R128,O2Depth!$A$10:$AG$2410,4*($C$8-1)+5) / 0.3048 -> 91.71587927 | V128: =VLOOKUP($R128,O2Depth!$A$10:$AG$2410,4*($C$8-1)+2) / 0.3048 -> 72.14895013
H129: 104 | I129: =IF($B$4="Annual Average", AVERAGE(OFFSET(O2Depth!$A$10,$H129*12,4*($C$8-1)+2,12,1)), MAX(OFFSET(O2Depth!$A$10,$H129*12,4*($C$8-1)+2,12,1))) / 0.3048 -> 53.91568241 | J129: =IF($B$4="Annual Average", AVERAGE(OFFSET(O2Depth!$A$10,$H129*12,4*($C$8-1)+3,12,1)), MAX(OFFSET(O2Depth!$A$10,$H129*12,4*($C$8-1)+3,12,1))) / 0.3048 -> 69.73507218 | K129: =IF($B$4="Annual Average", AVERAGE(OFFSET(O2Depth!$A$10,$H129*12,4*($C$8-1)+4,12,1)), MAX(OFFSET(O2Depth!$A$10,$H129*12,4*($C$8-1)+4,12,1))) / 0.3048 -> 95.49212598 | L129: =IF($B$4="Annual Average", AVERAGE(OFFSET(O2Depth!$A$10,$H129*12,4*($C$8-1)+1,12,1)), MAX(OFFSET(O2Depth!$A$10,$H129*12,4*($C$8-1)+1,12,1))) / 0.3048 -> 72.85815836 | R129: 8.666666667 | S129: =VLOOKUP($R129,O2Depth!$A$10:$AG$2410,4*($C$8-1)+3) / 0.3048 -> 55.47244094 | T129: =VLOOKUP($R129,O2Depth!$A$10:$AG$2410,4*($C$8-1)+4) / 0.3048 -> 69.15682415 | U129: =VLOOKUP($R129,O2Depth!$A$10:$AG$2410,4*($C$8-1)+5) / 0.3048 -> 91.71587927 | V129: =VLOOKUP($R129,O2Depth!$A$10:$AG$2410,4*($C$8-1)+2) / 0.3048 -> 72.14895013
H130: 105 | I130: =IF($B$4="Annual Average", AVERAGE(OFFSET(O2Depth!$A$10,$H130*12,4*($C$8-1)+2,12,1)), MAX(OFFSET(O2Depth!$A$10,$H130*12,4*($C$8-1)+2,12,1))) / 0.3048 -> 54.60137795 | J130: =IF($B$4="Annual Average", AVERAGE(OFFSET(O2Depth!$A$10,$H130*12,4*($C$8-1)+3,12,1)), MAX(OFFSET(O2Depth!$A$10,$H130*12,4*($C$8-1)+3,12,1))) / 0.3048 -> 69.62817148 | K130: =IF($B$4="Annual Average", AVERAGE(OFFSET(O2Depth!$A$10,$H130*12,4*($C$8-1)+4,12,1)), MAX(OFFSET(O2Depth!$A$10,$H130*12,4*($C$8-1)+4,12,1))) / 0.3048 -> 96.42935258 | L130: =IF($B$4="Annual Average", AVERAGE(OFFSET(O2Depth!$A$10,$H130*12,4*($C$8-1)+1,12,1)), MAX(OFFSET(O2Depth!$A$10,$H130*12,4*($C$8-1)+1,12,1))) / 0.3048 -> 73.07059274 | R130: 8.75 | S130: =VLOOKUP($R130,O2Depth!$A$10:$AG$2410,4*($C$8-1)+3) / 0.3048 -> 55.48884514 | T130: =VLOOKUP($R130,O2Depth!$A$10:$AG$2410,4*($C$8-1)+4) / 0.3048 -> 68.87795276 | U130: =VLOOKUP($R130,O2Depth!$A$10:$AG$2410,4*($C$8-1)+5) / 0.3048 -> 92.52952756 | V130: =VLOOKUP($R130,O2Depth!$A$10:$AG$2410,4*($C$8-1)+2) / 0.3048 -> 72.10301837
H131: 106 | I131: =IF($B$4="Annual Average", AVERAGE(OFFSET(O2Depth!$A$10,$H131*12,4*($C$8-1)+2,12,1)), MAX(OFFSET(O2Depth!$A$10,$H131*12,4*($C$8-1)+2,12,1))) / 0.3048 -> 53.79866579 | J131: =IF($B$4="Annual Average", AVERAGE(OFFSET(O2Depth!$A$10,$H131*12,4*($C$8-1)+3,12,1)), MAX(OFFSET(O2Depth!$A$10,$H131*12,4*($C$8-1)+3,12,1))) / 0.3048 -> 68.51596675 | K131: =IF($B$4="Annual Average", AVERAGE(OFFSET(O2Depth!$A$10,$H131*12,4*($C$8-1)+4,12,1)), MAX(OFFSET(O2Depth!$A$10,$H131*12,4*($C$8-1)+4,12,1))) / 0.3048 -> 95.82157699 | L131: =IF($B$4="Annual Average", AVERAGE(OFFSET(O2Depth!$A$10,$H131*12,4*($C$8-1)+1,12,1)), MAX(OFFSET(O2Depth!$A$10,$H131*12,4*($C$8-1)+1,12,1))) / 0.3048 -> 72.20281059 | R131: 8.833333333 | S131: =VLOOKUP($R131,O2Depth!$A$10:$AG$2410,4*($C$8-1)+3) / 0.3048 -> 54.62598425 | T131: =VLOOKUP($R131,O2Depth!$A$10:$AG$2410,4*($C$8-1)+4) / 0.3048 -> 68.68110236 | U131: =VLOOKUP($R131,O2Depth!$A$10:$AG$2410,4*($C$8-1)+5) / 0.3048 -> 94.13713911 | V131: =VLOOKUP($R131,O2Depth!$A$10:$AG$2410,4*($C$8-1)+2) / 0.3048 -> 72.03740157
H132: 107 | I132: =IF($B$4="Annual Average", AVERAGE(OFFSET(O2Depth!$A$10,$H132*12,4*($C$8-1)+2,12,1)), MAX(OFFSET(O2Depth!$A$10,$H132*12,4*($C$8-1)+2,12,1))) / 0.3048 -> 54.67164261 | J132: =IF($B$4="Annual Average", AVERAGE(OFFSET(O2Depth!$A$10,$H132*12,4*($C$8-1)+3,12,1)), MAX(OFFSET(O2Depth!$A$10,$H132*12,4*($C$8-1)+3,12,1))) / 0.3048 -> 68.0424322 | K132: =IF($B$4="Annual Average", AVERAGE(OFFSET(O2Depth!$A$10,$H132*12,4*($C$8-1)+4,12,1)), MAX(OFFSET(O2Depth!$A$10,$H132*12,4*($C$8-1)+4,12,1))) / 0.3048 -> 93.88861549 | L132: =IF($B$4="Annual Average", AVERAGE(OFFSET(O2Depth!$A$10,$H132*12,4*($C$8-1)+1,12,1)), MAX(OFFSET(O2Depth!$A$10,$H132*12,4*($C$8-1)+1,12,1))) / 0.3048 -> 71.91081584 | R132: 8.916666667 | S132: =VLOOKUP($R132,O2Depth!$A$10:$AG$2410,4*($C$8-1)+3) / 0.3048 -> 54.62598425 | T132: =VLOOKUP($R132,O2Depth!$A$10:$AG$2410,4*($C$8-1)+4) / 0.3048 -> 68.68110236 | U132: =VLOOKUP($R132,O2Depth!$A$10:$AG$2410,4*($C$8-1)+5) / 0.3048 -> 94.13713911 | V132: =VLOOKUP($R132,O2Depth!$A$10:$AG$2410,4*($C$8-1)+2) / 0.3048 -> 72.03740157
H133: 108 | I133: =IF($B$4="Annual Average", AVERAGE(OFFSET(O2Depth!$A$10,$H133*12,4*($C$8-1)+2,12,1)), MAX(OFFSET(O2Depth!$A$10,$H133*12,4*($C$8-1)+2,12,1))) / 0.3048 -> 54.85263561 | J133: =IF($B$4="Annual Average", AVERAGE(OFFSET(O2Depth!$A$10,$H133*12,4*($C$8-1)+3,12,1)), MAX(OFFSET(O2Depth!$A$10,$H133*12,4*($C$8-1)+3,12,1))) / 0.3048 -> 69.52427822 | K133: =IF($B$4="Annual Average", AVERAGE(OFFSET(O2Depth!$A$10,$H133*12,4*($C$8-1)+4,12,1)), MAX(OFFSET(O2Depth!$A$10,$H133*12,4*($C$8-1)+4,12,1))) / 0.3048 -> 96.01706037 | L133: =IF($B$4="Annual Average", AVERAGE(OFFSET(O2Depth!$A$10,$H133*12,4*($C$8-1)+1,12,1)), MAX(OFFSET(O2Depth!$A$10,$H133*12,4*($C$8-1)+1,12,1))) / 0.3048 -> 73.09301181 | R133: 9 | S133: =VLOOKUP($R133,O2Depth!$A$10:$AG$2410,4*($C$8-1)+3) / 0.3048 -> 53.94685039 | T133: =VLOOKUP($R133,O2Depth!$A$10:$AG$2410,4*($C$8-1)+4) / 0.3048 -> 68.08070866 | U133: =VLOOKUP($R133,O2Depth!$A$10:$AG$2410,4*($C$8-1)+5) / 0.3048 -> 94.81627297 | V133: =VLOOKUP($R133,O2Depth!$A$10:$AG$2410,4*($C$8-1)+2) / 0.3048 -> 72.02099738
H134: 109 | I134: =IF($B$4="Annual Average", AVERAGE(OFFSET(O2Depth!$A$10,$H134*12,4*($C$8-1)+2,12,1)), MAX(OFFSET(O2Depth!$A$10,$H134*12,4*($C$8-1)+2,12,1))) / 0.3048 -> 53.78062117 | J134: =IF($B$4="Annual Average", AVERAGE(OFFSET(O2Depth!$A$10,$H134*12,4*($C$8-1)+3,12,1)), MAX(OFFSET(O2Depth!$A$10,$H134*12,4*($C$8-1)+3,12,1))) / 0.3048 -> 68.51569335 | K134: =IF($B$4="Annual Average", AVERAGE(OFFSET(O2Depth!$A$10,$H134*12,4*($C$8-1)+4,12,1)), MAX(OFFSET(O2Depth!$A$10,$H134*12,4*($C$8-1)+4,12,1))) / 0.3048 -> 98.00005468 | L134: =IF($B$4="Annual Average", AVERAGE(OFFSET(O2Depth!$A$10,$H134*12,4*($C$8-1)+1,12,1)), MAX(OFFSET(O2Depth!$A$10,$H134*12,4*($C$8-1)+1,12,1))) / 0.3048 -> 73.13210849 | R134: 9.083333333 | S134: =VLOOKUP($R134,O2Depth!$A$10:$AG$2410,4*($C$8-1)+3) / 0.3048 -> 53.2316273 | T134: =VLOOKUP($R134,O2Depth!$A$10:$AG$2410,4*($C$8-1)+4) / 0.3048 -> 67.84776903 | U134: =VLOOKUP($R134,O2Depth!$A$10:$AG$2410,4*($C$8-1)+5) / 0.3048 -> 96.10564304 | V134: =VLOOKUP($R134,O2Depth!$A$10:$AG$2410,4*($C$8-1)+2) / 0.3048 -> 71.76509186
H135: 110 | I135: =IF($B$4="Annual Average", AVERAGE(OFFSET(O2Depth!$A$10,$H135*12,4*($C$8-1)+2,12,1)), MAX(OFFSET(O2Depth!$A$10,$H135*12,4*($C$8-1)+2,12,1))) / 0.3048 -> 54.55079834 | J135: =IF($B$4="Annual Average", AVERAGE(OFFSET(O2Depth!$A$10,$H135*12,4*($C$8-1)+3,12,1)), MAX(OFFSET(O2Depth!$A$10,$H135*12,4*($C$8-1)+3,12,1))) / 0.3048 -> 68.2403762 | K135: =IF($B$4="Annual Average", AVERAGE(OFFSET(O2Depth!$A$10,$H135*12,4*($C$8-1)+4,12,1)), MAX(OFFSET(O2Depth!$A$10,$H135*12,4*($C$8-1)+4,12,1))) / 0.3048 -> 97.56780402 | L135: =IF($B$4="Annual Average", AVERAGE(OFFSET(O2Depth!$A$10,$H135*12,4*($C$8-1)+1,12,1)), MAX(OFFSET(O2Depth!$A$10,$H135*12,4*($C$8-1)+1,12,1))) / 0.3048 -> 72.80019685 | R135: 9.166666667 | S135: =VLOOKUP($R135,O2Depth!$A$10:$AG$2410,4*($C$8-1)+3) / 0.3048 -> 53.2316273 | T135: =VLOOKUP($R135,O2Depth!$A$10:$AG$2410,4*($C$8-1)+4) / 0.3048 -> 67.84776903 | U135: =VLOOKUP($R135,O2Depth!$A$10:$AG$2410,4*($C$8-1)+5) / 0.3048 -> 96.10564304 | V135: =VLOOKUP($R135,O2Depth!$A$10:$AG$2410,4*($C$8-1)+2) / 0.3048 -> 71.76509186
H136: 111 | I136: =IF($B$4="Annual Average", AVERAGE(OFFSET(O2Depth!$A$10,$H136*12,4*($C$8-1)+2,12,1)), MAX(OFFSET(O2Depth!$A$10,$H136*12,4*($C$8-1)+2,12,1))) / 0.3048 -> 54.6300853 | J136: =IF($B$4="Annual Average", AVERAGE(OFFSET(O2Depth!$A$10,$H136*12,4*($C$8-1)+3,12,1)), MAX(OFFSET(O2Depth!$A$10,$H136*12,4*($C$8-1)+3,12,1))) / 0.3048 -> 68.64091207 | K136: =IF($B$4="Annual Average", AVERAGE(OFFSET(O2Depth!$A$10,$H136*12,4*($C$8-1)+4,12,1)), MAX(OFFSET(O2Depth!$A$10,$H136*12,4*($C$8-1)+4,12,1))) / 0.3048 -> 96.56195319 | L136: =IF($B$4="Annual Average", AVERAGE(OFFSET(O2Depth!$A$10,$H136*12,4*($C$8-1)+1,12,1)), MAX(OFFSET(O2Depth!$A$10,$H136*12,4*($C$8-1)+1,12,1))) / 0.3048 -> 72.60279965 | R136: 9.25 | S136: =VLOOKUP($R136,O2Depth!$A$10:$AG$2410,4*($C$8-1)+3) / 0.3048 -> 53.48753281 | T136: =VLOOKUP($R136,O2Depth!$A$10:$AG$2410,4*($C$8-1)+4) / 0.3048 -> 68.32349081 | U136: =VLOOKUP($R136,O2Depth!$A$10:$AG$2410,4*($C$8-1)+5) / 0.3048 -> 95.16076115 | V136: =VLOOKUP($R136,O2Depth!$A$10:$AG$2410,4*($C$8-1)+2) / 0.3048 -> 71.74212598
H137: 112 | I137: =IF($B$4="Annual Average", AVERAGE(OFFSET(O2Depth!$A$10,$H137*12,4*($C$8-1)+2,12,1)), MAX(OFFSET(O2Depth!$A$10,$H137*12,4*($C$8-1)+2,12,1))) / 0.3048 -> 54.74655512 | J137: =IF($B$4="Annual Average", AVERAGE(OFFSET(O2Depth!$A$10,$H137*12,4*($C$8-1)+3,12,1)), MAX(OFFSET(O2Depth!$A$10,$H137*12,4*($C$8-1)+3,12,1))) / 0.3048 -> 69.43460192 | K137: =IF($B$4="Annual Average", AVERAGE(OFFSET(O2Depth!$A$10,$H137*12,4*($C$8-1)+4,12,1)), MAX(OFFSET(O2Depth!$A$10,$H137*12,4*($C$8-1)+4,12,1))) / 0.3048 -> 96.0200678 | L137: =IF($B$4="Annual Average", AVERAGE(OFFSET(O2Depth!$A$10,$H137*12,4*($C$8-1)+1,12,1)), MAX(OFFSET(O2Depth!$A$10,$H137*12,4*($C$8-1)+1,12,1))) / 0.3048 -> 72.87346894 | R137: 9.333333333 | S137: =VLOOKUP($R137,O2Depth!$A$10:$AG$2410,4*($C$8-1)+3) / 0.3048 -> 54.16338583 | T137: =VLOOKUP($R137,O2Depth!$A$10:$AG$2410,4*($C$8-1)+4) / 0.3048 -> 69.02887139 | U137: =VLOOKUP($R137,O2Depth!$A$10:$AG$2410,4*($C$8-1)+5) / 0.3048 -> 93.24475066 | V137: =VLOOKUP($R137,O2Depth!$A$10:$AG$2410,4*($C$8-1)+2) / 0.3048 -> 71.72572178
H138: 113 | I138: =IF($B$4="Annual Average", AVERAGE(OFFSET(O2Depth!$A$10,$H138*12,4*($C$8-1)+2,12,1)), MAX(OFFSET(O2Depth!$A$10,$H138*12,4*($C$8-1)+2,12,1))) / 0.3048 -> 54.56474191 | J138: =IF($B$4="Annual Average", AVERAGE(OFFSET(O2Depth!$A$10,$H138*12,4*($C$8-1)+3,12,1)), MAX(OFFSET(O2Depth!$A$10,$H138*12,4*($C$8-1)+3,12,1))) / 0.3048 -> 69.31239064 | K138: =IF($B$4="Annual Average", AVERAGE(OFFSET(O2Depth!$A$10,$H138*12,4*($C$8-1)+4,12,1)), MAX(OFFSET(O2Depth!$A$10,$H138*12,4*($C$8-1)+4,12,1))) / 0.3048 -> 95.1807196 | L138: =IF($B$4="Annual Average", AVERAGE(OFFSET(O2Depth!$A$10,$H138*12,4*($C$8-1)+1,12,1)), MAX(OFFSET(O2Depth!$A$10,$H138*12,4*($C$8-1)+1,12,1))) / 0.3048 -> 72.74907043 | R138: 9.416666667 | S138: =VLOOKUP($R138,O2Depth!$A$10:$AG$2410,4*($C$8-1)+3) / 0.3048 -> 54.16338583 | T138: =VLOOKUP($R138,O2Depth!$A$10:$AG$2410,4*($C$8-1)+4) / 0.3048 -> 69.02887139 | U138: =VLOOKUP($R138,O2Depth!$A$10:$AG$2410,4*($C$8-1)+5) / 0.3048 -> 93.24475066 | V138: =VLOOKUP($R138,O2Depth!$A$10:$AG$2410,4*($C$8-1)+2) / 0.3048 -> 71.72572178
H139: 114 | I139: =IF($B$4="Annual Average", AVERAGE(OFFSET(O2Depth!$A$10,$H139*12,4*($C$8-1)+2,12,1)), MAX(OFFSET(O2Depth!$A$10,$H139*12,4*($C$8-1)+2,12,1))) / 0.3048 -> 54.85564304 | J139: =IF($B$4="Annual Average", AVERAGE(OFFSET(O2Depth!$A$10,$H139*12,4*($C$8-1)+3,12,1)), MAX(OFFSET(O2Depth!$A$10,$H139*12,4*($C$8-1)+3,12,1))) / 0.3048 -> 69.9753937 | K139: =IF($B$4="Annual Average", AVERAGE(OFFSET(O2Depth!$A$10,$H139*12,4*($C$8-1)+4,12,1)), MAX(OFFSET(O2Depth!$A$10,$H139*12,4*($C$8-1)+4,12,1))) / 0.3048 -> 95.14709099 | L139: =IF($B$4="Annual Average", AVERAGE(OFFSET(O2Depth!$A$10,$H139*12,4*($C$8-1)+1,12,1)), MAX(OFFSET(O2Depth!$A$10,$H139*12,4*($C$8-1)+1,12,1))) / 0.3048 -> 73.08945757 | R139: 9.5 | S139: =VLOOKUP($R139,O2Depth!$A$10:$AG$2410,4*($C$8-1)+3) / 0.3048 -> 54.32414698 | T139: =VLOOKUP($R139,O2Depth!$A$10:$AG$2410,4*($C$8-1)+4) / 0.3048 -> 68.98950131 | U139: =VLOOKUP($R139,O2Depth!$A$10:$AG$2410,4*($C$8-1)+5) / 0.3048 -> 92.49343832 | V139: =VLOOKUP($R139,O2Depth!$A$10:$AG$2410,4*($C$8-1)+2) / 0.3048 -> 71.7355643
H140: 115 | I140: =IF($B$4="Annual Average", AVERAGE(OFFSET(O2Depth!$A$10,$H140*12,4*($C$8-1)+2,12,1)), MAX(OFFSET(O2Depth!$A$10,$H140*12,4*($C$8-1)+2,12,1))) / 0.3048 -> 54.21998031 | J140: =IF($B$4="Annual Average", AVERAGE(OFFSET(O2Depth!$A$10,$H140*12,4*($C$8-1)+3,12,1)), MAX(OFFSET(O2Depth!$A$10,$H140*12,4*($C$8-1)+3,12,1))) / 0.3048 -> 68.89955162 | K140: =IF($B$4="Annual Average", AVERAGE(OFFSET(O2Depth!$A$10,$H140*12,4*($C$8-1)+4,12,1)), MAX(OFFSET(O2Depth!$A$10,$H140*12,4*($C$8-1)+4,12,1))) / 0.3048 -> 96.09060586 | L140: =IF($B$4="Annual Average", AVERAGE(OFFSET(O2Depth!$A$10,$H140*12,4*($C$8-1)+1,12,1)), MAX(OFFSET(O2Depth!$A$10,$H140*12,4*($C$8-1)+1,12,1))) / 0.3048 -> 72.62275809 | R140: 9.583333333 | S140: =VLOOKUP($R140,O2Depth!$A$10:$AG$2410,4*($C$8-1)+3) / 0.3048 -> 54.26181102 | T140: =VLOOKUP($R140,O2Depth!$A$10:$AG$2410,4*($C$8-1)+4) / 0.3048 -> 69.11745407 | U140: =VLOOKUP($R140,O2Depth!$A$10:$AG$2410,4*($C$8-1)+5) / 0.3048 -> 93.81889764 | V140: =VLOOKUP($R140,O2Depth!$A$10:$AG$2410,4*($C$8-1)+2) / 0.3048 -> 71.7847769
H141: 116 | I141: =IF($B$4="Annual Average", AVERAGE(OFFSET(O2Depth!$A$10,$H141*12,4*($C$8-1)+2,12,1)), MAX(OFFSET(O2Depth!$A$10,$H141*12,4*($C$8-1)+2,12,1))) / 0.3048 -> 54.59235564 | J141: =IF($B$4="Annual Average", AVERAGE(OFFSET(O2Depth!$A$10,$H141*12,4*($C$8-1)+3,12,1)), MAX(OFFSET(O2Depth!$A$10,$H141*12,4*($C$8-1)+3,12,1))) / 0.3048 -> 70.45603675 | K141: =IF($B$4="Annual Average", AVERAGE(OFFSET(O2Depth!$A$10,$H141*12,4*($C$8-1)+4,12,1)), MAX(OFFSET(O2Depth!$A$10,$H141*12,4*($C$8-1)+4,12,1))) / 0.3048 -> 97.31408574 | L141: =IF($B$4="Annual Average", AVERAGE(OFFSET(O2Depth!$A$10,$H141*12,4*($C$8-1)+1,12,1)), MAX(OFFSET(O2Depth!$A$10,$H141*12,4*($C$8-1)+1,12,1))) / 0.3048 -> 73.59826115 | R141: 9.666666667 | S141: =VLOOKUP($R141,O2Depth!$A$10:$AG$2410,4*($C$8-1)+3) / 0.3048 -> 54.26181102 | T141: =VLOOKUP($R141,O2Depth!$A$10:$AG$2410,4*($C$8-1)+4) / 0.3048 -> 69.11745407 | U141: =VLOOKUP($R141,O2Depth!$A$10:$AG$2410,4*($C$8-1)+5) / 0.3048 -> 93.81889764 | V141: =VLOOKUP($R141,O2Depth!$A$10:$AG$2410,4*($C$8-1)+2) / 0.3048 -> 71.7847769
H142: 117 | I142: =IF($B$4="Annual Average", AVERAGE(OFFSET(O2Depth!$A$10,$H142*12,4*($C$8-1)+2,12,1)), MAX(OFFSET(O2Depth!$A$10,$H142*12,4*($C$8-1)+2,12,1))) / 0.3048 -> 55.00355424 | J142: =IF($B$4="Annual Average", AVERAGE(OFFSET(O2Depth!$A$10,$H142*12,4*($C$8-1)+3,12,1)), MAX(OFFSET(O2Depth!$A$10,$H142*12,4*($C$8-1)+3,12,1))) / 0.3048 -> 69.98851706 | K142: =IF($B$4="Annual Average", AVERAGE(OFFSET(O2Depth!$A$10,$H142*12,4*($C$8-1)+4,12,1)), MAX(OFFSET(O2Depth!$A$10,$H142*12,4*($C$8-1)+4,12,1))) / 0.3048 -> 96.60897857 | L142: =IF($B$4="Annual Average", AVERAGE(OFFSET(O2Depth!$A$10,$H142*12,4*($C$8-1)+1,12,1)), MAX(OFFSET(O2Depth!$A$10,$H142*12,4*($C$8-1)+1,12,1))) / 0.3048 -> 73.35739283 | R142: 9.75 | S142: =VLOOKUP($R142,O2Depth!$A$10:$AG$2410,4*($C$8-1)+3) / 0.3048 -> 53.70406824 | T142: =VLOOKUP($R142,O2Depth!$A$10:$AG$2410,4*($C$8-1)+4) / 0.3048 -> 68.27755906 | U142: =VLOOKUP($R142,O2Depth!$A$10:$AG$2410,4*($C$8-1)+5) / 0.3048 -> 94.07480315 | V142: =VLOOKUP($R142,O2Depth!$A$10:$AG$2410,4*($C$8-1)+2) / 0.3048 -> 71.87335958
H143: 118 | I143: =IF($B$4="Annual Average", AVERAGE(OFFSET(O2Depth!$A$10,$H143*12,4*($C$8-1)+2,12,1)), MAX(OFFSET(O2Depth!$A$10,$H143*12,4*($C$8-1)+2,12,1))) / 0.3048 -> 55.23649388 | J143: =IF($B$4="Annual Average", AVERAGE(OFFSET(O2Depth!$A$10,$H143*12,4*($C$8-1)+3,12,1)), MAX(OFFSET(O2Depth!$A$10,$H143*12,4*($C$8-1)+3,12,1))) / 0.3048 -> 68.87221129 | K143: =IF($B$4="Annual Average", AVERAGE(OFFSET(O2Depth!$A$10,$H143*12,4*($C$8-1)+4,12,1)), MAX(OFFSET(O2Depth!$A$10,$H143*12,4*($C$8-1)+4,12,1))) / 0.3048 -> 95.59465223 | L143: =IF($B$4="Annual Average", AVERAGE(OFFSET(O2Depth!$A$10,$H143*12,4*($C$8-1)+1,12,1)), MAX(OFFSET(O2Depth!$A$10,$H143*12,4*($C$8-1)+1,12,1))) / 0.3048 -> 72.67689195 | R143: 9.833333333 | S143: =VLOOKUP($R143,O2Depth!$A$10:$AG$2410,4*($C$8-1)+3) / 0.3048 -> 53.02821522 | T143: =VLOOKUP($R143,O2Depth!$A$10:$AG$2410,4*($C$8-1)+4) / 0.3048 -> 68.09055118 | U143: =VLOOKUP($R143,O2Depth!$A$10:$AG$2410,4*($C$8-1)+5) / 0.3048 -> 94.37664042 | V143: =VLOOKUP($R143,O2Depth!$A$10:$AG$2410,4*($C$8-1)+2) / 0.3048 -> 71.9324147
H144: 119 | I144: =IF($B$4="Annual Average", AVERAGE(OFFSET(O2Depth!$A$10,$H144*12,4*($C$8-1)+2,12,1)), MAX(OFFSET(O2Depth!$A$10,$H144*12,4*($C$8-1)+2,12,1))) / 0.3048 -> 55.35870516 | J144: =IF($B$4="Annual Average", AVERAGE(OFFSET(O2Depth!$A$10,$H144*12,4*($C$8-1)+3,12,1)), MAX(OFFSET(O2Depth!$A$10,$H144*12,4*($C$8-1)+3,12,1))) / 0.3048 -> 69.7205818 | K144: =IF($B$4="Annual Average", AVERAGE(OFFSET(O2Depth!$A$10,$H144*12,4*($C$8-1)+4,12,1)), MAX(OFFSET(O2Depth!$A$10,$H144*12,4*($C$8-1)+4,12,1))) / 0.3048 -> 96.10591645 | L144: =IF($B$4="Annual Average", AVERAGE(OFFSET(O2Depth!$A$10,$H144*12,4*($C$8-1)+1,12,1)), MAX(OFFSET(O2Depth!$A$10,$H144*12,4*($C$8-1)+1,12,1))) / 0.3048 -> 73.3798119 | R144: 9.916666667 | S144: =VLOOKUP($R144,O2Depth!$A$10:$AG$2410,4*($C$8-1)+3) / 0.3048 -> 53.02821522 | T144: =VLOOKUP($R144,O2Depth!$A$10:$AG$2410,4*($C$8-1)+4) / 0.3048 -> 68.09055118 | U144: =VLOOKUP($R144,O2Depth!$A$10:$AG$2410,4*($C$8-1)+5) / 0.3048 -> 94.37664042 | V144: =VLOOKUP($R144,O2Depth!$A$10:$AG$2410,4*($C$8-1)+2) / 0.3048 -> 71.9324147
H145: 120 | I145: =IF($B$4="Annual Average", AVERAGE(OFFSET(O2Depth!$A$10,$H145*12,4*($C$8-1)+2,12,1)), MAX(OFFSET(O2Depth!$A$10,$H145*12,4*($C$8-1)+2,12,1))) / 0.3048 -> 54.45784121 | J145: =IF($B$4="Annual Average", AVERAGE(OFFSET(O2Depth!$A$10,$H145*12,4*($C$8-1)+3,12,1)), MAX(OFFSET(O2Depth!$A$10,$H145*12,4*($C$8-1)+3,12,1))) / 0.3048 -> 69.45182633 | K145: =IF($B$4="Annual Average", AVERAGE(OFFSET(O2Depth!$A$10,$H145*12,4*($C$8-1)+4,12,1)), MAX(OFFSET(O2Depth!$A$10,$H145*12,4*($C$8-1)+4,12,1))) / 0.3048 -> 97.11969598 | L145: =IF($B$4="Annual Average", AVERAGE(OFFSET(O2Depth!$A$10,$H145*12,4*($C$8-1)+1,12,1)), MAX(OFFSET(O2Depth!$A$10,$H145*12,4*($C$8-1)+1,12,1))) / 0.3048 -> 73.20866142 | R145: 10 | S145: =VLOOKUP($R145,O2Depth!$A$10:$AG$2410,4*($C$8-1)+3) / 0.3048 -> 54.24868766 | T145: =VLOOKUP($R145,O2Depth!$A$10:$AG$2410,4*($C$8-1)+4) / 0.3048 -> 68.04133858 | U145: =VLOOKUP($R145,O2Depth!$A$10:$AG$2410,4*($C$8-1)+5) / 0.3048 -> 96.09580052 | V145: =VLOOKUP($R145,O2Depth!$A$10:$AG$2410,4*($C$8-1)+2) / 0.3048 -> 72.12270341
H146: 121 | I146: =IF($B$4="Annual Average", AVERAGE(OFFSET(O2Depth!$A$10,$H146*12,4*($C$8-1)+2,12,1)), MAX(OFFSET(O2Depth!$A$10,$H146*12,4*($C$8-1)+2,12,1))) / 0.3048 -> 54.58442695 | J146: =IF($B$4="Annual Average", AVERAGE(OFFSET(O2Depth!$A$10,$H146*12,4*($C$8-1)+3,12,1)), MAX(OFFSET(O2Depth!$A$10,$H146*12,4*($C$8-1)+3,12,1))) / 0.3048 -> 69.9177056 | K146: =IF($B$4="Annual Average", AVERAGE(OFFSET(O2Depth!$A$10,$H146*12,4*($C$8-1)+4,12,1)), MAX(OFFSET(O2Depth!$A$10,$H146*12,4*($C$8-1)+4,12,1))) / 0.3048 -> 93.93454724 | L146: =IF($B$4="Annual Average", AVERAGE(OFFSET(O2Depth!$A$10,$H146*12,4*($C$8-1)+1,12,1)), MAX(OFFSET(O2Depth!$A$10,$H146*12,4*($C$8-1)+1,12,1))) / 0.3048 -> 72.42891514 | R146: 10.08333333 | S146: =VLOOKUP($R146,O2Depth!$A$10:$AG$2410,4*($C$8-1)+3) / 0.3048 -> 54.61942257 | T146: =VLOOKUP($R146,O2Depth!$A$10:$AG$2410,4*($C$8-1)+4) / 0.3048 -> 68.20866142 | U146: =VLOOKUP($R146,O2Depth!$A$10:$AG$2410,4*($C$8-1)+5) / 0.3048 -> 94.84580052 | V146: =VLOOKUP($R146,O2Depth!$A$10:$AG$2410,4*($C$8-1)+2) / 0.3048 -> 72.16863517
H147: 122 | I147: =IF($B$4="Annual Average", AVERAGE(OFFSET(O2Depth!$A$10,$H147*12,4*($C$8-1)+2,12,1)), MAX(OFFSET(O2Depth!$A$10,$H147*12,4*($C$8-1)+2,12,1))) / 0.3048 -> 54.91278434 | J147: =IF($B$4="Annual Average", AVERAGE(OFFSET(O2Depth!$A$10,$H147*12,4*($C$8-1)+3,12,1)), MAX(OFFSET(O2Depth!$A$10,$H147*12,4*($C$8-1)+3,12,1))) / 0.3048 -> 69.58606737 | K147: =IF($B$4="Annual Average", AVERAGE(OFFSET(O2Depth!$A$10,$H147*12,4*($C$8-1)+4,12,1)), MAX(OFFSET(O2Depth!$A$10,$H147*12,4*($C$8-1)+4,12,1))) / 0.3048 -> 95.28570647 | L147: =IF($B$4="Annual Average", AVERAGE(OFFSET(O2Depth!$A$10,$H147*12,4*($C$8-1)+1,12,1)), MAX(OFFSET(O2Depth!$A$10,$H147*12,4*($C$8-1)+1,12,1))) / 0.3048 -> 72.61291557 | R147: 10.16666667 | S147: =VLOOKUP($R147,O2Depth!$A$10:$AG$2410,4*($C$8-1)+3) / 0.3048 -> 54.61942257 | T147: =VLOOKUP($R147,O2Depth!$A$10:$AG$2410,4*($C$8-1)+4) / 0.3048 -> 68.20866142 | U147: =VLOOKUP($R147,O2Depth!$A$10:$AG$2410,4*($C$8-1)+5) / 0.3048 -> 94.84580052 | V147: =VLOOKUP($R147,O2Depth!$A$10:$AG$2410,4*($C$8-1)+2) / 0.3048 -> 72.16863517
H148: 123 | I148: =IF($B$4="Annual Average", AVERAGE(OFFSET(O2Depth!$A$10,$H148*12,4*($C$8-1)+2,12,1)), MAX(OFFSET(O2Depth!$A$10,$H148*12,4*($C$8-1)+2,12,1))) / 0.3048 -> 54.27302056 | J148: =IF($B$4="Annual Average", AVERAGE(OFFSET(O2Depth!$A$10,$H148*12,4*($C$8-1)+3,12,1)), MAX(OFFSET(O2Depth!$A$10,$H148*12,4*($C$8-1)+3,12,1))) / 0.3048 -> 68.72785433 | K148: =IF($B$4="Annual Average", AVERAGE(OFFSET(O2Depth!$A$10,$H148*12,4*($C$8-1)+4,12,1)), MAX(OFFSET(O2Depth!$A$10,$H148*12,4*($C$8-1)+4,12,1))) / 0.3048 -> 96.11739939 | L148: =IF($B$4="Annual Average", AVERAGE(OFFSET(O2Depth!$A$10,$H148*12,4*($C$8-1)+1,12,1)), MAX(OFFSET(O2Depth!$A$10,$H148*12,4*($C$8-1)+1,12,1))) / 0.3048 -> 72.56370297 | R148: 10.25 | S148: =VLOOKUP($R148,O2Depth!$A$10:$AG$2410,4*($C$8-1)+3) / 0.3048 -> 55.31496063 | T148: =VLOOKUP($R148,O2Depth!$A$10:$AG$2410,4*($C$8-1)+4) / 0.3048 -> 68.22506562 | U148: =VLOOKUP($R148,O2Depth!$A$10:$AG$2410,4*($C$8-1)+5) / 0.3048 -> 95.43963255 | V148: =VLOOKUP($R148,O2Depth!$A$10:$AG$2410,4*($C$8-1)+2) / 0.3048 -> 72.29002625
H149: 124 | I149: =IF($B$4="Annual Average", AVERAGE(OFFSET(O2Depth!$A$10,$H149*12,4*($C$8-1)+2,12,1)), MAX(OFFSET(O2Depth!$A$10,$H149*12,4*($C$8-1)+2,12,1))) / 0.3048 -> 55.26383421 | J149: =IF($B$4="Annual Average", AVERAGE(OFFSET(O2Depth!$A$10,$H149*12,4*($C$8-1)+3,12,1)), MAX(OFFSET(O2Depth!$A$10,$H149*12,4*($C$8-1)+3,12,1))) / 0.3048 -> 69.25470254 | K149: =IF($B$4="Annual Average", AVERAGE(OFFSET(O2Depth!$A$10,$H149*12,4*($C$8-1)+4,12,1)), MAX(OFFSET(O2Depth!$A$10,$H149*12,4*($C$8-1)+4,12,1))) / 0.3048 -> 96.01760717 | L149: =IF($B$4="Annual Average", AVERAGE(OFFSET(O2Depth!$A$10,$H149*12,4*($C$8-1)+1,12,1)), MAX(OFFSET(O2Depth!$A$10,$H149*12,4*($C$8-1)+1,12,1))) / 0.3048 -> 73.12117235 | R149: 10.33333333 | S149: =VLOOKUP($R149,O2Depth!$A$10:$AG$2410,4*($C$8-1)+3) / 0.3048 -> 55.31496063 | T149: =VLOOKUP($R149,O2Depth!$A$10:$AG$2410,4*($C$8-1)+4) / 0.3048 -> 68.28740157 | U149: =VLOOKUP($R149,O2Depth!$A$10:$AG$2410,4*($C$8-1)+5) / 0.3048 -> 95.16404199 | V149: =VLOOKUP($R149,O2Depth!$A$10:$AG$2410,4*($C$8-1)+2) / 0.3048 -> 72.3687664
H150: 125 | I150: =IF($B$4="Annual Average", AVERAGE(OFFSET(O2Depth!$A$10,$H150*12,4*($C$8-1)+2,12,1)), MAX(OFFSET(O2Depth!$A$10,$H150*12,4*($C$8-1)+2,12,1))) / 0.3048 -> 54.41874453 | J150: =IF($B$4="Annual Average", AVERAGE(OFFSET(O2Depth!$A$10,$H150*12,4*($C$8-1)+3,12,1)), MAX(OFFSET(O2Depth!$A$10,$H150*12,4*($C$8-1)+3,12,1))) / 0.3048 -> 68.59716754 | K150: =IF($B$4="Annual Average", AVERAGE(OFFSET(O2Depth!$A$10,$H150*12,4*($C$8-1)+4,12,1)), MAX(OFFSET(O2Depth!$A$10,$H150*12,4*($C$8-1)+4,12,1))) / 0.3048 -> 95.98589239 | L150: =IF($B$4="Annual Average", AVERAGE(OFFSET(O2Depth!$A$10,$H150*12,4*($C$8-1)+1,12,1)), MAX(OFFSET(O2Depth!$A$10,$H150*12,4*($C$8-1)+1,12,1))) / 0.3048 -> 72.26104549 | R150: 10.41666667 | S150: =VLOOKUP($R150,O2Depth!$A$10:$AG$2410,4*($C$8-1)+3) / 0.3048 -> 55.31496063 | T150: =VLOOKUP($R150,O2Depth!$A$10:$AG$2410,4*($C$8-1)+4) / 0.3048 -> 68.28740157 | U150: =VLOOKUP($R150,O2Depth!$A$10:$AG$2410,4*($C$8-1)+5) / 0.3048 -> 95.16404199 | V150: =VLOOKUP($R150,O2Depth!$A$10:$AG$2410,4*($C$8-1)+2) / 0.3048 -> 72.3687664
H151: 126 | I151: =IF($B$4="Annual Average", AVERAGE(OFFSET(O2Depth!$A$10,$H151*12,4*($C$8-1)+2,12,1)), MAX(OFFSET(O2Depth!$A$10,$H151*12,4*($C$8-1)+2,12,1))) / 0.3048 -> 53.30025153 | J151: =IF($B$4="Annual Average", AVERAGE(OFFSET(O2Depth!$A$10,$H151*12,4*($C$8-1)+3,12,1)), MAX(OFFSET(O2Depth!$A$10,$H151*12,4*($C$8-1)+3,12,1))) / 0.3048 -> 68.76175634 | K151: =IF($B$4="Annual Average", AVERAGE(OFFSET(O2Depth!$A$10,$H151*12,4*($C$8-1)+4,12,1)), MAX(OFFSET(O2Depth!$A$10,$H151*12,4*($C$8-1)+4,12,1))) / 0.3048 -> 95.7157699 | L151: =IF($B$4="Annual Average", AVERAGE(OFFSET(O2Depth!$A$10,$H151*12,4*($C$8-1)+1,12,1)), MAX(OFFSET(O2Depth!$A$10,$H151*12,4*($C$8-1)+1,12,1))) / 0.3048 -> 72.08743438 | R151: 10.5 | S151: =VLOOKUP($R151,O2Depth!$A$10:$AG$2410,4*($C$8-1)+3) / 0.3048 -> 55.69225722 | T151: =VLOOKUP($R151,O2Depth!$A$10:$AG$2410,4*($C$8-1)+4) / 0.3048 -> 69.05183727 | U151: =VLOOKUP($R151,O2Depth!$A$10:$AG$2410,4*($C$8-1)+5) / 0.3048 -> 95.38385827 | V151: =VLOOKUP($R151,O2Depth!$A$10:$AG$2410,4*($C$8-1)+2) / 0.3048 -> 72.55905512
H152: 127 | I152: =IF($B$4="Annual Average", AVERAGE(OFFSET(O2Depth!$A$10,$H152*12,4*($C$8-1)+2,12,1)), MAX(OFFSET(O2Depth!$A$10,$H152*12,4*($C$8-1)+2,12,1))) / 0.3048 -> 54.09886264 | J152: =IF($B$4="Annual Average", AVERAGE(OFFSET(O2Depth!$A$10,$H152*12,4*($C$8-1)+3,12,1)), MAX(OFFSET(O2Depth!$A$10,$H152*12,4*($C$8-1)+3,12,1))) / 0.3048 -> 70.05358705 | K152: =IF($B$4="Annual Average", AVERAGE(OFFSET(O2Depth!$A$10,$H152*12,4*($C$8-1)+4,12,1)), MAX(OFFSET(O2Depth!$A$10,$H152*12,4*($C$8-1)+4,12,1))) / 0.3048 -> 97.35865048 | L152: =IF($B$4="Annual Average", AVERAGE(OFFSET(O2Depth!$A$10,$H152*12,4*($C$8-1)+1,12,1)), MAX(OFFSET(O2Depth!$A$10,$H152*12,4*($C$8-1)+1,12,1))) / 0.3048 -> 73.20100612 | R152: 10.58333333 | S152: =VLOOKUP($R152,O2Depth!$A$10:$AG$2410,4*($C$8-1)+3) / 0.3048 -> 55.6003937 | T152: =VLOOKUP($R152,O2Depth!$A$10:$AG$2410,4*($C$8-1)+4) / 0.3048 -> 68.69422572 | U152: =VLOOKUP($R152,O2Depth!$A$10:$AG$2410,4*($C$8-1)+5) / 0.3048 -> 94.8523622 | V152: =VLOOKUP($R152,O2Depth!$A$10:$AG$2410,4*($C$8-1)+2) / 0.3048 -> 72.67060367
H153: 128 | I153: =IF($B$4="Annual Average", AVERAGE(OFFSET(O2Depth!$A$10,$H153*12,4*($C$8-1)+2,12,1)), MAX(OFFSET(O2Depth!$A$10,$H153*12,4*($C$8-1)+2,12,1))) / 0.3048 -> 54.82420166 | J153: =IF($B$4="Annual Average", AVERAGE(OFFSET(O2Depth!$A$10,$H153*12,4*($C$8-1)+3,12,1)), MAX(OFFSET(O2Depth!$A$10,$H153*12,4*($C$8-1)+3,12,1))) / 0.3048 -> 69.14288058 | K153: =IF($B$4="Annual Average", AVERAGE(OFFSET(O2Depth!$A$10,$H153*12,4*($C$8-1)+4,12,1)), MAX(OFFSET(O2Depth!$A$10,$H153*12,4*($C$8-1)+4,12,1))) / 0.3048 -> 96.87035214 | L153: =IF($B$4="Annual Average", AVERAGE(OFFSET(O2Depth!$A$10,$H153*12,4*($C$8-1)+1,12,1)), MAX(OFFSET(O2Depth!$A$10,$H153*12,4*($C$8-1)+1,12,1))) / 0.3048 -> 73.26689633 | R153: 10.66666667 | S153: =VLOOKUP($R153,O2Depth!$A$10:$AG$2410,4*($C$8-1)+3) / 0.3048 -> 55.6003937 | T153: =VLOOKUP($R153,O2Depth!$A$10:$AG$2410,4*($C$8-1)+4) / 0.3048 -> 68.69422572 | U153: =VLOOKUP($R153,O2Depth!$A$10:$AG$2410,4*($C$8-1)+5) / 0.3048 -> 94.8523622 | V153: =VLOOKUP($R153,O2Depth!$A$10:$AG$2410,4*($C$8-1)+2) / 0.3048 -> 72.67060367
H154: 129 | I154: =IF($B$4="Annual Average", AVERAGE(OFFSET(O2Depth!$A$10,$H154*12,4*($C$8-1)+2,12,1)), MAX(OFFSET(O2Depth!$A$10,$H154*12,4*($C$8-1)+2,12,1))) / 0.3048 -> 54.91606518 | J154: =IF($B$4="Annual Average", AVERAGE(OFFSET(O2Depth!$A$10,$H154*12,4*($C$8-1)+3,12,1)), MAX(OFFSET(O2Depth!$A$10,$H154*12,4*($C$8-1)+3,12,1))) / 0.3048 -> 69.57841207 | K154: =IF($B$4="Annual Average", AVERAGE(OFFSET(O2Depth!$A$10,$H154*12,4*($C$8-1)+4,12,1)), MAX(OFFSET(O2Depth!$A$10,$H154*12,4*($C$8-1)+4,12,1))) / 0.3048 -> 97.88795932 | L154: =IF($B$4="Annual Average", AVERAGE(OFFSET(O2Depth!$A$10,$H154*12,4*($C$8-1)+1,12,1)), MAX(OFFSET(O2Depth!$A$10,$H154*12,4*($C$8-1)+1,12,1))) / 0.3048 -> 73.2075678 | R154: 10.75 | S154: =VLOOKUP($R154,O2Depth!$A$10:$AG$2410,4*($C$8-1)+3) / 0.3048 -> 55.36417323 | T154: =VLOOKUP($R154,O2Depth!$A$10:$AG$2410,4*($C$8-1)+4) / 0.3048 -> 69.34711286 | U154: =VLOOKUP($R154,O2Depth!$A$10:$AG$2410,4*($C$8-1)+5) / 0.3048 -> 95.90551181 | V154: =VLOOKUP($R154,O2Depth!$A$10:$AG$2410,4*($C$8-1)+2) / 0.3048 -> 72.92650919
H155: 130 | I155: =IF($B$4="Annual Average", AVERAGE(OFFSET(O2Depth!$A$10,$H155*12,4*($C$8-1)+2,12,1)), MAX(OFFSET(O2Depth!$A$10,$H155*12,4*($C$8-1)+2,12,1))) / 0.3048 -> 54.56064086 | J155: =IF($B$4="Annual Average", AVERAGE(OFFSET(O2Depth!$A$10,$H155*12,4*($C$8-1)+3,12,1)), MAX(OFFSET(O2Depth!$A$10,$H155*12,4*($C$8-1)+3,12,1))) / 0.3048 -> 68.7502734 | K155: =IF($B$4="Annual Average", AVERAGE(OFFSET(O2Depth!$A$10,$H155*12,4*($C$8-1)+4,12,1)), MAX(OFFSET(O2Depth!$A$10,$H155*12,4*($C$8-1)+4,12,1))) / 0.3048 -> 94.14014654 | L155: =IF($B$4="Annual Average", AVERAGE(OFFSET(O2Depth!$A$10,$H155*12,4*($C$8-1)+1,12,1)), MAX(OFFSET(O2Depth!$A$10,$H155*12,4*($C$8-1)+1,12,1))) / 0.3048 -> 72.40786308 | R155: =R154+1/12 -> 10.83333333 | S155: =VLOOKUP($R155,O2Depth!$A$10:$AG$2410,4*($C$8-1)+3) / 0.3048 -> 55.01968504 | T155: =VLOOKUP($R155,O2Depth!$A$10:$AG$2410,4*($C$8-1)+4) / 0.3048 -> 69.11745407 | U155: =VLOOKUP($R155,O2Depth!$A$10:$AG$2410,4*($C$8-1)+5) / 0.3048 -> 96.29593176 | V155: =VLOOKUP($R155,O2Depth!$A$10:$AG$2410,4*($C$8-1)+2) / 0.3048 -> 73.07086614
H156: 131 | I156: =IF($B$4="Annual Average", AVERAGE(OFFSET(O2Depth!$A$10,$H156*12,4*($C$8-1)+2,12,1)), MAX(OFFSET(O2Depth!$A$10,$H156*12,4*($C$8-1)+2,12,1))) / 0.3048 -> 53.86209536 | J156: =IF($B$4="Annual Average", AVERAGE(OFFSET(O2Depth!$A$10,$H156*12,4*($C$8-1)+3,12,1)), MAX(OFFSET(O2Depth!$A$10,$H156*12,4*($C$8-1)+3,12,1))) / 0.3048 -> 68.19143701 | K156: =IF($B$4="Annual Average", AVERAGE(OFFSET(O2Depth!$A$10,$H156*12,4*($C$8-1)+4,12,1)), MAX(OFFSET(O2Depth!$A$10,$H156*12,4*($C$8-1)+4,12,1))) / 0.3048 -> 95.43990595 | L156: =IF($B$4="Annual Average", AVERAGE(OFFSET(O2Depth!$A$10,$H156*12,4*($C$8-1)+1,12,1)), MAX(OFFSET(O2Depth!$A$10,$H156*12,4*($C$8-1)+1,12,1))) / 0.3048 -> 72.00978784 | R156: 10.91666667 | S156: =VLOOKUP($R156,O2Depth!$A$10:$AG$2410,4*($C$8-1)+3) / 0.3048 -> 55.01968504 | T156: =VLOOKUP($R156,O2Depth!$A$10:$AG$2410,4*($C$8-1)+4) / 0.3048 -> 69.11745407 | U156: =VLOOKUP($R156,O2Depth!$A$10:$AG$2410,4*($C$8-1)+5) / 0.3048 -> 96.29593176 | V156: =VLOOKUP($R156,O2Depth!$A$10:$AG$2410,4*($C$8-1)+2) / 0.3048 -> 73.07086614
H157: 132 | I157: =IF($B$4="Annual Average", AVERAGE(OFFSET(O2Depth!$A$10,$H157*12,4*($C$8-1)+2,12,1)), MAX(OFFSET(O2Depth!$A$10,$H157*12,4*($C$8-1)+2,12,1))) / 0.3048 -> 54.76870079 | J157: =IF($B$4="Annual Average", AVERAGE(OFFSET(O2Depth!$A$10,$H157*12,4*($C$8-1)+3,12,1)), MAX(OFFSET(O2Depth!$A$10,$H157*12,4*($C$8-1)+3,12,1))) / 0.3048 -> 68.98211942 | K157: =IF($B$4="Annual Average", AVERAGE(OFFSET(O2Depth!$A$10,$H157*12,4*($C$8-1)+4,12,1)), MAX(OFFSET(O2Depth!$A$10,$H157*12,4*($C$8-1)+4,12,1))) / 0.3048 -> 96.07775591 | L157: =IF($B$4="Annual Average", AVERAGE(OFFSET(O2Depth!$A$10,$H157*12,4*($C$8-1)+1,12,1)), MAX(OFFSET(O2Depth!$A$10,$H157*12,4*($C$8-1)+1,12,1))) / 0.3048 -> 72.94209318 | R157: 11 | S157: =VLOOKUP($R157,O2Depth!$A$10:$AG$2410,4*($C$8-1)+3) / 0.3048 -> 54.22900262 | T157: =VLOOKUP($R157,O2Depth!$A$10:$AG$2410,4*($C$8-1)+4) / 0.3048 -> 69.30774278 | U157: =VLOOKUP($R157,O2Depth!$A$10:$AG$2410,4*($C$8-1)+5) / 0.3048 -> 99.4652231 | V157: =VLOOKUP($R157,O2Depth!$A$10:$AG$2410,4*($C$8-1)+2) / 0.3048 -> 73.53674541
H158: 133 | I158: =IF($B$4="Annual Average", AVERAGE(OFFSET(O2Depth!$A$10,$H158*12,4*($C$8-1)+2,12,1)), MAX(OFFSET(O2Depth!$A$10,$H158*12,4*($C$8-1)+2,12,1))) / 0.3048 -> 54.45647419 | J158: =IF($B$4="Annual Average", AVERAGE(OFFSET(O2Depth!$A$10,$H158*12,4*($C$8-1)+3,12,1)), MAX(OFFSET(O2Depth!$A$10,$H158*12,4*($C$8-1)+3,12,1))) / 0.3048 -> 69.54204943 | K158: =IF($B$4="Annual Average", AVERAGE(OFFSET(O2Depth!$A$10,$H158*12,4*($C$8-1)+4,12,1)), MAX(OFFSET(O2Depth!$A$10,$H158*12,4*($C$8-1)+4,12,1))) / 0.3048 -> 96.11083771 | L158: =IF($B$4="Annual Average", AVERAGE(OFFSET(O2Depth!$A$10,$H158*12,4*($C$8-1)+1,12,1)), MAX(OFFSET(O2Depth!$A$10,$H158*12,4*($C$8-1)+1,12,1))) / 0.3048 -> 73.15862861 | R158: 11.08333333 | S158: =VLOOKUP($R158,O2Depth!$A$10:$AG$2410,4*($C$8-1)+3) / 0.3048 -> 54.80643045 | T158: =VLOOKUP($R158,O2Depth!$A$10:$AG$2410,4*($C$8-1)+4) / 0.3048 -> 69.50787402 | U158: =VLOOKUP($R158,O2Depth!$A$10:$AG$2410,4*($C$8-1)+5) / 0.3048 -> 98.14632546 | V158: =VLOOKUP($R158,O2Depth!$A$10:$AG$2410,4*($C$8-1)+2) / 0.3048 -> 73.46128609
H159: 134 | I159: =IF($B$4="Annual Average", AVERAGE(OFFSET(O2Depth!$A$10,$H159*12,4*($C$8-1)+2,12,1)), MAX(OFFSET(O2Depth!$A$10,$H159*12,4*($C$8-1)+2,12,1))) / 0.3048 -> 55.10936133 | J159: =IF($B$4="Annual Average", AVERAGE(OFFSET(O2Depth!$A$10,$H159*12,4*($C$8-1)+3,12,1)), MAX(OFFSET(O2Depth!$A$10,$H159*12,4*($C$8-1)+3,12,1))) / 0.3048 -> 70.03718285 | K159: =IF($B$4="Annual Average", AVERAGE(OFFSET(O2Depth!$A$10,$H159*12,4*($C$8-1)+4,12,1)), MAX(OFFSET(O2Depth!$A$10,$H159*12,4*($C$8-1)+4,12,1))) / 0.3048 -> 96.13571741 | L159: =IF($B$4="Annual Average", AVERAGE(OFFSET(O2Depth!$A$10,$H159*12,4*($C$8-1)+1,12,1)), MAX(OFFSET(O2Depth!$A$10,$H159*12,4*($C$8-1)+1,12,1))) / 0.3048 -> 73.17995407 | R159: 11.16666667 | S159: =VLOOKUP($R159,O2Depth!$A$10:$AG$2410,4*($C$8-1)+3) / 0.3048 -> 54.80643045 | T159: =VLOOKUP($R159,O2Depth!$A$10:$AG$2410,4*($C$8-1)+4) / 0.3048 -> 69.50787402 | U159: =VLOOKUP($R159,O2Depth!$A$10:$AG$2410,4*($C$8-1)+5) / 0.3048 -> 98.14632546 | V159: =VLOOKUP($R159,O2Depth!$A$10:$AG$2410,4*($C$8-1)+2) / 0.3048 -> 73.46128609
H160: 135 | I160: =IF($B$4="Annual Average", AVERAGE(OFFSET(O2Depth!$A$10,$H160*12,4*($C$8-1)+2,12,1)), MAX(OFFSET(O2Depth!$A$10,$H160*12,4*($C$8-1)+2,12,1))) / 0.3048 -> 54.31895232 | J160: =IF($B$4="Annual Average", AVERAGE(OFFSET(O2Depth!$A$10,$H160*12,4*($C$8-1)+3,12,1)), MAX(OFFSET(O2Depth!$A$10,$H160*12,4*($C$8-1)+3,12,1))) / 0.3048 -> 70.92683727 | K160: =IF($B$4="Annual Average", AVERAGE(OFFSET(O2Depth!$A$10,$H160*12,4*($C$8-1)+4,12,1)), MAX(OFFSET(O2Depth!$A$10,$H160*12,4*($C$8-1)+4,12,1))) / 0.3048 -> 95.9951881 | L160: =IF($B$4="Annual Average", AVERAGE(OFFSET(O2Depth!$A$10,$H160*12,4*($C$8-1)+1,12,1)), MAX(OFFSET(O2Depth!$A$10,$H160*12,4*($C$8-1)+1,12,1))) / 0.3048 -> 73.61165792 | R160: 11.25 | S160: =VLOOKUP($R160,O2Depth!$A$10:$AG$2410,4*($C$8-1)+3) / 0.3048 -> 55.41666667 | T160: =VLOOKUP($R160,O2Depth!$A$10:$AG$2410,4*($C$8-1)+4) / 0.3048 -> 69.99015748 | U160: =VLOOKUP($R160,O2Depth!$A$10:$AG$2410,4*($C$8-1)+5) / 0.3048 -> 96.52559055 | V160: =VLOOKUP($R160,O2Depth!$A$10:$AG$2410,4*($C$8-1)+2) / 0.3048 -> 73.34317585
H161: 136 | I161: =IF($B$4="Annual Average", AVERAGE(OFFSET(O2Depth!$A$10,$H161*12,4*($C$8-1)+2,12,1)), MAX(OFFSET(O2Depth!$A$10,$H161*12,4*($C$8-1)+2,12,1))) / 0.3048 -> 54.9256343 | J161: =IF($B$4="Annual Average", AVERAGE(OFFSET(O2Depth!$A$10,$H161*12,4*($C$8-1)+3,12,1)), MAX(OFFSET(O2Depth!$A$10,$H161*12,4*($C$8-1)+3,12,1))) / 0.3048 -> 70.0248797 | K161: =IF($B$4="Annual Average", AVERAGE(OFFSET(O2Depth!$A$10,$H161*12,4*($C$8-1)+4,12,1)), MAX(OFFSET(O2Depth!$A$10,$H161*12,4*($C$8-1)+4,12,1))) / 0.3048 -> 96.51656824 | L161: =IF($B$4="Annual Average", AVERAGE(OFFSET(O2Depth!$A$10,$H161*12,4*($C$8-1)+1,12,1)), MAX(OFFSET(O2Depth!$A$10,$H161*12,4*($C$8-1)+1,12,1))) / 0.3048 -> 73.0921916 | R161: 11.33333333 | S161: =VLOOKUP($R161,O2Depth!$A$10:$AG$2410,4*($C$8-1)+3) / 0.3048 -> 55.36745407 | T161: =VLOOKUP($R161,O2Depth!$A$10:$AG$2410,4*($C$8-1)+4) / 0.3048 -> 70.39698163 | U161: =VLOOKUP($R161,O2Depth!$A$10:$AG$2410,4*($C$8-1)+5) / 0.3048 -> 96.67979003 | V161: =VLOOKUP($R161,O2Depth!$A$10:$AG$2410,4*($C$8-1)+2) / 0.3048 -> 73.30380577
H162: 137 | I162: =IF($B$4="Annual Average", AVERAGE(OFFSET(O2Depth!$A$10,$H162*12,4*($C$8-1)+2,12,1)), MAX(OFFSET(O2Depth!$A$10,$H162*12,4*($C$8-1)+2,12,1))) / 0.3048 -> 54.72167542 | J162: =IF($B$4="Annual Average", AVERAGE(OFFSET(O2Depth!$A$10,$H162*12,4*($C$8-1)+3,12,1)), MAX(OFFSET(O2Depth!$A$10,$H162*12,4*($C$8-1)+3,12,1))) / 0.3048 -> 69.47615923 | K162: =IF($B$4="Annual Average", AVERAGE(OFFSET(O2Depth!$A$10,$H162*12,4*($C$8-1)+4,12,1)), MAX(OFFSET(O2Depth!$A$10,$H162*12,4*($C$8-1)+4,12,1))) / 0.3048 -> 93.45636483 | L162: =IF($B$4="Annual Average", AVERAGE(OFFSET(O2Depth!$A$10,$H162*12,4*($C$8-1)+1,12,1)), MAX(OFFSET(O2Depth!$A$10,$H162*12,4*($C$8-1)+1,12,1))) / 0.3048 -> 72.72883858 | R162: 11.41666667 | S162: =VLOOKUP($R162,O2Depth!$A$10:$AG$2410,4*($C$8-1)+3) / 0.3048 -> 55.36745407 | T162: =VLOOKUP($R162,O2Depth!$A$10:$AG$2410,4*($C$8-1)+4) / 0.3048 -> 70.39698163 | U162: =VLOOKUP($R162,O2Depth!$A$10:$AG$2410,4*($C$8-1)+5) / 0.3048 -> 96.67979003 | V162: =VLOOKUP($R162,O2Depth!$A$10:$AG$2410,4*($C$8-1)+2) / 0.3048 -> 73.30380577
H163: 138 | I163: =IF($B$4="Annual Average", AVERAGE(OFFSET(O2Depth!$A$10,$H163*12,4*($C$8-1)+2,12,1)), MAX(OFFSET(O2Depth!$A$10,$H163*12,4*($C$8-1)+2,12,1))) / 0.3048 -> 55.15529309 | J163: =IF($B$4="Annual Average", AVERAGE(OFFSET(O2Depth!$A$10,$H163*12,4*($C$8-1)+3,12,1)), MAX(OFFSET(O2Depth!$A$10,$H163*12,4*($C$8-1)+3,12,1))) / 0.3048 -> 68.83694226 | K163: =IF($B$4="Annual Average", AVERAGE(OFFSET(O2Depth!$A$10,$H163*12,4*($C$8-1)+4,12,1)), MAX(OFFSET(O2Depth!$A$10,$H163*12,4*($C$8-1)+4,12,1))) / 0.3048 -> 94.75803806 | L163: =IF($B$4="Annual Average", AVERAGE(OFFSET(O2Depth!$A$10,$H163*12,4*($C$8-1)+1,12,1)), MAX(OFFSET(O2Depth!$A$10,$H163*12,4*($C$8-1)+1,12,1))) / 0.3048 -> 72.55304024 | R163: 11.5 | S163: =VLOOKUP($R163,O2Depth!$A$10:$AG$2410,4*($C$8-1)+3) / 0.3048 -> 55.32152231 | T163: =VLOOKUP($R163,O2Depth!$A$10:$AG$2410,4*($C$8-1)+4) / 0.3048 -> 70.21981627 | U163: =VLOOKUP($R163,O2Depth!$A$10:$AG$2410,4*($C$8-1)+5) / 0.3048 -> 95.89238845 | V163: =VLOOKUP($R163,O2Depth!$A$10:$AG$2410,4*($C$8-1)+2) / 0.3048 -> 73.26115486
H164: 139 | I164: =IF($B$4="Annual Average", AVERAGE(OFFSET(O2Depth!$A$10,$H164*12,4*($C$8-1)+2,12,1)), MAX(OFFSET(O2Depth!$A$10,$H164*12,4*($C$8-1)+2,12,1))) / 0.3048 -> 54.94887358 | J164: =IF($B$4="Annual Average", AVERAGE(OFFSET(O2Depth!$A$10,$H164*12,4*($C$8-1)+3,12,1)), MAX(OFFSET(O2Depth!$A$10,$H164*12,4*($C$8-1)+3,12,1))) / 0.3048 -> 69.04937664 | K164: =IF($B$4="Annual Average", AVERAGE(OFFSET(O2Depth!$A$10,$H164*12,4*($C$8-1)+4,12,1)), MAX(OFFSET(O2Depth!$A$10,$H164*12,4*($C$8-1)+4,12,1))) / 0.3048 -> 97.4177056 | L164: =IF($B$4="Annual Average", AVERAGE(OFFSET(O2Depth!$A$10,$H164*12,4*($C$8-1)+1,12,1)), MAX(OFFSET(O2Depth!$A$10,$H164*12,4*($C$8-1)+1,12,1))) / 0.3048 -> 73.10148731 | R164: 11.58333333 | S164: =VLOOKUP($R164,O2Depth!$A$10:$AG$2410,4*($C$8-1)+3) / 0.3048 -> 55.22965879 | T164: =VLOOKUP($R164,O2Depth!$A$10:$AG$2410,4*($C$8-1)+4) / 0.3048 -> 69.81299213 | U164: =VLOOKUP($R164,O2Depth!$A$10:$AG$2410,4*($C$8-1)+5) / 0.3048 -> 95.91207349 | V164: =VLOOKUP($R164,O2Depth!$A$10:$AG$2410,4*($C$8-1)+2) / 0.3048 -> 73.25787402
H165: 140 | I165: =IF($B$4="Annual Average", AVERAGE(OFFSET(O2Depth!$A$10,$H165*12,4*($C$8-1)+2,12,1)), MAX(OFFSET(O2Depth!$A$10,$H165*12,4*($C$8-1)+2,12,1))) / 0.3048 -> 54.98797025 | J165: =IF($B$4="Annual Average", AVERAGE(OFFSET(O2Depth!$A$10,$H165*12,4*($C$8-1)+3,12,1)), MAX(OFFSET(O2Depth!$A$10,$H165*12,4*($C$8-1)+3,12,1))) / 0.3048 -> 69.92180665 | K165: =IF($B$4="Annual Average", AVERAGE(OFFSET(O2Depth!$A$10,$H165*12,4*($C$8-1)+4,12,1)), MAX(OFFSET(O2Depth!$A$10,$H165*12,4*($C$8-1)+4,12,1))) / 0.3048 -> 96.97971347 | L165: =IF($B$4="Annual Average", AVERAGE(OFFSET(O2Depth!$A$10,$H165*12,4*($C$8-1)+1,12,1)), MAX(OFFSET(O2Depth!$A$10,$H165*12,4*($C$8-1)+1,12,1))) / 0.3048 -> 73.30982065 | R165: 11.66666667 | S165: =VLOOKUP($R165,O2Depth!$A$10:$AG$2410,4*($C$8-1)+3) / 0.3048 -> 55.22965879 | T165: =VLOOKUP($R165,O2Depth!$A$10:$AG$2410,4*($C$8-1)+4) / 0.3048 -> 69.81299213 | U165: =VLOOKUP($R165,O2Depth!$A$10:$AG$2410,4*($C$8-1)+5) / 0.3048 -> 95.91207349 | V165: =VLOOKUP($R165,O2Depth!$A$10:$AG$2410,4*($C$8-1)+2) / 0.3048 -> 73.25787402
H166: 141 | I166: =IF($B$4="Annual Average", AVERAGE(OFFSET(O2Depth!$A$10,$H166*12,4*($C$8-1)+2,12,1)), MAX(OFFSET(O2Depth!$A$10,$H166*12,4*($C$8-1)+2,12,1))) / 0.3048 -> 55.3122266 | J166: =IF($B$4="Annual Average", AVERAGE(OFFSET(O2Depth!$A$10,$H166*12,4*($C$8-1)+3,12,1)), MAX(OFFSET(O2Depth!$A$10,$H166*12,4*($C$8-1)+3,12,1))) / 0.3048 -> 68.61630577 | K166: =IF($B$4="Annual Average", AVERAGE(OFFSET(O2Depth!$A$10,$H166*12,4*($C$8-1)+4,12,1)), MAX(OFFSET(O2Depth!$A$10,$H166*12,4*($C$8-1)+4,12,1))) / 0.3048 -> 94.64867673 | L166: =IF($B$4="Annual Average", AVERAGE(OFFSET(O2Depth!$A$10,$H166*12,4*($C$8-1)+1,12,1)), MAX(OFFSET(O2Depth!$A$10,$H166*12,4*($C$8-1)+1,12,1))) / 0.3048 -> 72.25120297 | R166: 11.75 | S166: =VLOOKUP($R166,O2Depth!$A$10:$AG$2410,4*($C$8-1)+3) / 0.3048 -> 55.20013123 | T166: =VLOOKUP($R166,O2Depth!$A$10:$AG$2410,4*($C$8-1)+4) / 0.3048 -> 69.63254593 | U166: =VLOOKUP($R166,O2Depth!$A$10:$AG$2410,4*($C$8-1)+5) / 0.3048 -> 95.39370079 | V166: =VLOOKUP($R166,O2Depth!$A$10:$AG$2410,4*($C$8-1)+2) / 0.3048 -> 73.29068241
H167: 142 | I167: =IF($B$4="Annual Average", AVERAGE(OFFSET(O2Depth!$A$10,$H167*12,4*($C$8-1)+2,12,1)), MAX(OFFSET(O2Depth!$A$10,$H167*12,4*($C$8-1)+2,12,1))) / 0.3048 -> 54.63445976 | J167: =IF($B$4="Annual Average", AVERAGE(OFFSET(O2Depth!$A$10,$H167*12,4*($C$8-1)+3,12,1)), MAX(OFFSET(O2Depth!$A$10,$H167*12,4*($C$8-1)+3,12,1))) / 0.3048 -> 68.55123578 | K167: =IF($B$4="Annual Average", AVERAGE(OFFSET(O2Depth!$A$10,$H167*12,4*($C$8-1)+4,12,1)), MAX(OFFSET(O2Depth!$A$10,$H167*12,4*($C$8-1)+4,12,1))) / 0.3048 -> 92.14375547 | L167: =IF($B$4="Annual Average", AVERAGE(OFFSET(O2Depth!$A$10,$H167*12,4*($C$8-1)+1,12,1)), MAX(OFFSET(O2Depth!$A$10,$H167*12,4*($C$8-1)+1,12,1))) / 0.3048 -> 71.47883858 | R167: 11.83333333 | S167: =VLOOKUP($R167,O2Depth!$A$10:$AG$2410,4*($C$8-1)+3) / 0.3048 -> 54.62270341 | T167: =VLOOKUP($R167,O2Depth!$A$10:$AG$2410,4*($C$8-1)+4) / 0.3048 -> 69.11417323 | U167: =VLOOKUP($R167,O2Depth!$A$10:$AG$2410,4*($C$8-1)+5) / 0.3048 -> 97.41469816 | V167: =VLOOKUP($R167,O2Depth!$A$10:$AG$2410,4*($C$8-1)+2) / 0.3048 -> 73.32677165
H168: 143 | I168: =IF($B$4="Annual Average", AVERAGE(OFFSET(O2Depth!$A$10,$H168*12,4*($C$8-1)+2,12,1)), MAX(OFFSET(O2Depth!$A$10,$H168*12,4*($C$8-1)+2,12,1))) / 0.3048 -> 54.89774716 | J168: =IF($B$4="Annual Average", AVERAGE(OFFSET(O2Depth!$A$10,$H168*12,4*($C$8-1)+3,12,1)), MAX(OFFSET(O2Depth!$A$10,$H168*12,4*($C$8-1)+3,12,1))) / 0.3048 -> 69.29051837 | K168: =IF($B$4="Annual Average", AVERAGE(OFFSET(O2Depth!$A$10,$H168*12,4*($C$8-1)+4,12,1)), MAX(OFFSET(O2Depth!$A$10,$H168*12,4*($C$8-1)+4,12,1))) / 0.3048 -> 95.86504812 | L168: =IF($B$4="Annual Average", AVERAGE(OFFSET(O2Depth!$A$10,$H168*12,4*($C$8-1)+1,12,1)), MAX(OFFSET(O2Depth!$A$10,$H168*12,4*($C$8-1)+1,12,1))) / 0.3048 -> 72.85679134 | R168: 11.91666667 | S168: =VLOOKUP($R168,O2Depth!$A$10:$AG$2410,4*($C$8-1)+3) / 0.3048 -> 54.62270341 | T168: =VLOOKUP($R168,O2Depth!$A$10:$AG$2410,4*($C$8-1)+4) / 0.3048 -> 69.11417323 | U168: =VLOOKUP($R168,O2Depth!$A$10:$AG$2410,4*($C$8-1)+5) / 0.3048 -> 97.41469816 | V168: =VLOOKUP($R168,O2Depth!$A$10:$AG$2410,4*($C$8-1)+2) / 0.3048 -> 73.32677165
H169: 144 | I169: =IF($B$4="Annual Average", AVERAGE(OFFSET(O2Depth!$A$10,$H169*12,4*($C$8-1)+2,12,1)), MAX(OFFSET(O2Depth!$A$10,$H169*12,4*($C$8-1)+2,12,1))) / 0.3048 -> 55.06124234 | J169: =IF($B$4="Annual Average", AVERAGE(OFFSET(O2Depth!$A$10,$H169*12,4*($C$8-1)+3,12,1)), MAX(OFFSET(O2Depth!$A$10,$H169*12,4*($C$8-1)+3,12,1))) / 0.3048 -> 69.5641951 | K169: =IF($B$4="Annual Average", AVERAGE(OFFSET(O2Depth!$A$10,$H169*12,4*($C$8-1)+4,12,1)), MAX(OFFSET(O2Depth!$A$10,$H169*12,4*($C$8-1)+4,12,1))) / 0.3048 -> 96.14747375 | L169: =IF($B$4="Annual Average", AVERAGE(OFFSET(O2Depth!$A$10,$H169*12,4*($C$8-1)+1,12,1)), MAX(OFFSET(O2Depth!$A$10,$H169*12,4*($C$8-1)+1,12,1))) / 0.3048 -> 72.69794401 | R169: 12 | S169: =VLOOKUP($R169,O2Depth!$A$10:$AG$2410,4*($C$8-1)+3) / 0.3048 -> 53.76968504 | T169: =VLOOKUP($R169,O2Depth!$A$10:$AG$2410,4*($C$8-1)+4) / 0.3048 -> 69.28805774 | U169: =VLOOKUP($R169,O2Depth!$A$10:$AG$2410,4*($C$8-1)+5) / 0.3048 -> 98.832021 | V169: =VLOOKUP($R169,O2Depth!$A$10:$AG$2410,4*($C$8-1)+2) / 0.3048 -> 73.2316273
H170: 145 | I170: =IF($B$4="Annual Average", AVERAGE(OFFSET(O2Depth!$A$10,$H170*12,4*($C$8-1)+2,12,1)), MAX(OFFSET(O2Depth!$A$10,$H170*12,4*($C$8-1)+2,12,1))) / 0.3048 -> 54.78346457 | J170: =IF($B$4="Annual Average", AVERAGE(OFFSET(O2Depth!$A$10,$H170*12,4*($C$8-1)+3,12,1)), MAX(OFFSET(O2Depth!$A$10,$H170*12,4*($C$8-1)+3,12,1))) / 0.3048 -> 70.14545057 | K170: =IF($B$4="Annual Average", AVERAGE(OFFSET(O2Depth!$A$10,$H170*12,4*($C$8-1)+4,12,1)), MAX(OFFSET(O2Depth!$A$10,$H170*12,4*($C$8-1)+4,12,1))) / 0.3048 -> 94.74573491 | L170: =IF($B$4="Annual Average", AVERAGE(OFFSET(O2Depth!$A$10,$H170*12,4*($C$8-1)+1,12,1)), MAX(OFFSET(O2Depth!$A$10,$H170*12,4*($C$8-1)+1,12,1))) / 0.3048 -> 73.14605206 | R170: 12.08333333 | S170: =VLOOKUP($R170,O2Depth!$A$10:$AG$2410,4*($C$8-1)+3) / 0.3048 -> 54.40616798 | T170: =VLOOKUP($R170,O2Depth!$A$10:$AG$2410,4*($C$8-1)+4) / 0.3048 -> 69.14041995 | U170: =VLOOKUP($R170,O2Depth!$A$10:$AG$2410,4*($C$8-1)+5) / 0.3048 -> 98.2808399 | V170: =VLOOKUP($R170,O2Depth!$A$10:$AG$2410,4*($C$8-1)+2) / 0.3048 -> 73.15944882
H171: 146 | I171: =IF($B$4="Annual Average", AVERAGE(OFFSET(O2Depth!$A$10,$H171*12,4*($C$8-1)+2,12,1)), MAX(OFFSET(O2Depth!$A$10,$H171*12,4*($C$8-1)+2,12,1))) / 0.3048 -> 54.8518154 | J171: =IF($B$4="Annual Average", AVERAGE(OFFSET(O2Depth!$A$10,$H171*12,4*($C$8-1)+3,12,1)), MAX(OFFSET(O2Depth!$A$10,$H171*12,4*($C$8-1)+3,12,1))) / 0.3048 -> 69.786472 | K171: =IF($B$4="Annual Average", AVERAGE(OFFSET(O2Depth!$A$10,$H171*12,4*($C$8-1)+4,12,1)), MAX(OFFSET(O2Depth!$A$10,$H171*12,4*($C$8-1)+4,12,1))) / 0.3048 -> 95.47517498 | L171: =IF($B$4="Annual Average", AVERAGE(OFFSET(O2Depth!$A$10,$H171*12,4*($C$8-1)+1,12,1)), MAX(OFFSET(O2Depth!$A$10,$H171*12,4*($C$8-1)+1,12,1))) / 0.3048 -> 72.95412292 | R171: 12.16666667 | S171: =VLOOKUP($R171,O2Depth!$A$10:$AG$2410,4*($C$8-1)+3) / 0.3048 -> 54.40616798 | T171: =VLOOKUP($R171,O2Depth!$A$10:$AG$2410,4*($C$8-1)+4) / 0.3048 -> 69.14041995 | U171: =VLOOKUP($R171,O2Depth!$A$10:$AG$2410,4*($C$8-1)+5) / 0.3048 -> 98.2808399 | V171: =VLOOKUP($R171,O2Depth!$A$10:$AG$2410,4*($C$8-1)+2) / 0.3048 -> 73.15944882
H172: 147 | I172: =IF($B$4="Annual Average", AVERAGE(OFFSET(O2Depth!$A$10,$H172*12,4*($C$8-1)+2,12,1)), MAX(OFFSET(O2Depth!$A$10,$H172*12,4*($C$8-1)+2,12,1))) / 0.3048 -> 54.73944663 | J172: =IF($B$4="Annual Average", AVERAGE(OFFSET(O2Depth!$A$10,$H172*12,4*($C$8-1)+3,12,1)), MAX(OFFSET(O2Depth!$A$10,$H172*12,4*($C$8-1)+3,12,1))) / 0.3048 -> 69.07589676 | K172: =IF($B$4="Annual Average", AVERAGE(OFFSET(O2Depth!$A$10,$H172*12,4*($C$8-1)+4,12,1)), MAX(OFFSET(O2Depth!$A$10,$H172*12,4*($C$8-1)+4,12,1))) / 0.3048 -> 95.67065836 | L172: =IF($B$4="Annual Average", AVERAGE(OFFSET(O2Depth!$A$10,$H172*12,4*($C$8-1)+1,12,1)), MAX(OFFSET(O2Depth!$A$10,$H172*12,4*($C$8-1)+1,12,1))) / 0.3048 -> 72.76875547 | R172: 12.25 | S172: =VLOOKUP($R172,O2Depth!$A$10:$AG$2410,4*($C$8-1)+3) / 0.3048 -> 55.16404199 | T172: =VLOOKUP($R172,O2Depth!$A$10:$AG$2410,4*($C$8-1)+4) / 0.3048 -> 69.4160105 | U172: =VLOOKUP($R172,O2Depth!$A$10:$AG$2410,4*($C$8-1)+5) / 0.3048 -> 96.40091864 | V172: =VLOOKUP($R172,O2Depth!$A$10:$AG$2410,4*($C$8-1)+2) / 0.3048 -> 73.04461942
H173: 148 | I173: =IF($B$4="Annual Average", AVERAGE(OFFSET(O2Depth!$A$10,$H173*12,4*($C$8-1)+2,12,1)), MAX(OFFSET(O2Depth!$A$10,$H173*12,4*($C$8-1)+2,12,1))) / 0.3048 -> 54.27821522 | J173: =IF($B$4="Annual Average", AVERAGE(OFFSET(O2Depth!$A$10,$H173*12,4*($C$8-1)+3,12,1)), MAX(OFFSET(O2Depth!$A$10,$H173*12,4*($C$8-1)+3,12,1))) / 0.3048 -> 68.82956037 | K173: =IF($B$4="Annual Average", AVERAGE(OFFSET(O2Depth!$A$10,$H173*12,4*($C$8-1)+4,12,1)), MAX(OFFSET(O2Depth!$A$10,$H173*12,4*($C$8-1)+4,12,1))) / 0.3048 -> 95.19466317 | L173: =IF($B$4="Annual Average", AVERAGE(OFFSET(O2Depth!$A$10,$H173*12,4*($C$8-1)+1,12,1)), MAX(OFFSET(O2Depth!$A$10,$H173*12,4*($C$8-1)+1,12,1))) / 0.3048 -> 72.6476378 | R173: 12.33333333 | S173: =VLOOKUP($R173,O2Depth!$A$10:$AG$2410,4*($C$8-1)+3) / 0.3048 -> 55.12467192 | T173: =VLOOKUP($R173,O2Depth!$A$10:$AG$2410,4*($C$8-1)+4) / 0.3048 -> 69.80643045 | U173: =VLOOKUP($R173,O2Depth!$A$10:$AG$2410,4*($C$8-1)+5) / 0.3048 -> 95.0328084 | V173: =VLOOKUP($R173,O2Depth!$A$10:$AG$2410,4*($C$8-1)+2) / 0.3048 -> 73.00853018
H174: 149 | I174: =IF($B$4="Annual Average", AVERAGE(OFFSET(O2Depth!$A$10,$H174*12,4*($C$8-1)+2,12,1)), MAX(OFFSET(O2Depth!$A$10,$H174*12,4*($C$8-1)+2,12,1))) / 0.3048 -> 54.74464129 | J174: =IF($B$4="Annual Average", AVERAGE(OFFSET(O2Depth!$A$10,$H174*12,4*($C$8-1)+3,12,1)), MAX(OFFSET(O2Depth!$A$10,$H174*12,4*($C$8-1)+3,12,1))) / 0.3048 -> 69.56911636 | K174: =IF($B$4="Annual Average", AVERAGE(OFFSET(O2Depth!$A$10,$H174*12,4*($C$8-1)+4,12,1)), MAX(OFFSET(O2Depth!$A$10,$H174*12,4*($C$8-1)+4,12,1))) / 0.3048 -> 96.56687445 | L174: =IF($B$4="Annual Average", AVERAGE(OFFSET(O2Depth!$A$10,$H174*12,4*($C$8-1)+1,12,1)), MAX(OFFSET(O2Depth!$A$10,$H174*12,4*($C$8-1)+1,12,1))) / 0.3048 -> 72.70450569 | R174: 12.41666667 | S174: =VLOOKUP($R174,O2Depth!$A$10:$AG$2410,4*($C$8-1)+3) / 0.3048 -> 55.12467192 | T174: =VLOOKUP($R174,O2Depth!$A$10:$AG$2410,4*($C$8-1)+4) / 0.3048 -> 69.80643045 | U174: =VLOOKUP($R174,O2Depth!$A$10:$AG$2410,4*($C$8-1)+5) / 0.3048 -> 95.0328084 | V174: =VLOOKUP($R174,O2Depth!$A$10:$AG$2410,4*($C$8-1)+2) / 0.3048 -> 73.00853018
H175: 150 | I175: =IF($B$4="Annual Average", AVERAGE(OFFSET(O2Depth!$A$10,$H175*12,4*($C$8-1)+2,12,1)), MAX(OFFSET(O2Depth!$A$10,$H175*12,4*($C$8-1)+2,12,1))) / 0.3048 -> 54.84853456 | J175: =IF($B$4="Annual Average", AVERAGE(OFFSET(O2Depth!$A$10,$H175*12,4*($C$8-1)+3,12,1)), MAX(OFFSET(O2Depth!$A$10,$H175*12,4*($C$8-1)+3,12,1))) / 0.3048 -> 69.37964786 | K175: =IF($B$4="Annual Average", AVERAGE(OFFSET(O2Depth!$A$10,$H175*12,4*($C$8-1)+4,12,1)), MAX(OFFSET(O2Depth!$A$10,$H175*12,4*($C$8-1)+4,12,1))) / 0.3048 -> 95.06096894 | L175: =IF($B$4="Annual Average", AVERAGE(OFFSET(O2Depth!$A$10,$H175*12,4*($C$8-1)+1,12,1)), MAX(OFFSET(O2Depth!$A$10,$H175*12,4*($C$8-1)+1,12,1))) / 0.3048 -> 72.63287402 | R175: 12.5 | S175: =VLOOKUP($R175,O2Depth!$A$10:$AG$2410,4*($C$8-1)+3) / 0.3048 -> 55.11154856 | T175: =VLOOKUP($R175,O2Depth!$A$10:$AG$2410,4*($C$8-1)+4) / 0.3048 -> 69.95734908 | U175: =VLOOKUP($R175,O2Depth!$A$10:$AG$2410,4*($C$8-1)+5) / 0.3048 -> 94.79658793 | V175: =VLOOKUP($R175,O2Depth!$A$10:$AG$2410,4*($C$8-1)+2) / 0.3048 -> 72.96259843
H176: 151 | I176: =IF($B$4="Annual Average", AVERAGE(OFFSET(O2Depth!$A$10,$H176*12,4*($C$8-1)+2,12,1)), MAX(OFFSET(O2Depth!$A$10,$H176*12,4*($C$8-1)+2,12,1))) / 0.3048 -> 54.18935914 | J176: =IF($B$4="Annual Average", AVERAGE(OFFSET(O2Depth!$A$10,$H176*12,4*($C$8-1)+3,12,1)), MAX(OFFSET(O2Depth!$A$10,$H176*12,4*($C$8-1)+3,12,1))) / 0.3048 -> 69.87341426 | K176: =IF($B$4="Annual Average", AVERAGE(OFFSET(O2Depth!$A$10,$H176*12,4*($C$8-1)+4,12,1)), MAX(OFFSET(O2Depth!$A$10,$H176*12,4*($C$8-1)+4,12,1))) / 0.3048 -> 95.74584427 | L176: =IF($B$4="Annual Average", AVERAGE(OFFSET(O2Depth!$A$10,$H176*12,4*($C$8-1)+1,12,1)), MAX(OFFSET(O2Depth!$A$10,$H176*12,4*($C$8-1)+1,12,1))) / 0.3048 -> 72.81578084 | R176: 12.58333333 | S176: =VLOOKUP($R176,O2Depth!$A$10:$AG$2410,4*($C$8-1)+3) / 0.3048 -> 54.96062992 | T176: =VLOOKUP($R176,O2Depth!$A$10:$AG$2410,4*($C$8-1)+4) / 0.3048 -> 69.45209974 | U176: =VLOOKUP($R176,O2Depth!$A$10:$AG$2410,4*($C$8-1)+5) / 0.3048 -> 94.58333333 | V176: =VLOOKUP($R176,O2Depth!$A$10:$AG$2410,4*($C$8-1)+2) / 0.3048 -> 72.95275591
H177: 152 | I177: =IF($B$4="Annual Average", AVERAGE(OFFSET(O2Depth!$A$10,$H177*12,4*($C$8-1)+2,12,1)), MAX(OFFSET(O2Depth!$A$10,$H177*12,4*($C$8-1)+2,12,1))) / 0.3048 -> 53.75902231 | J177: =IF($B$4="Annual Average", AVERAGE(OFFSET(O2Depth!$A$10,$H177*12,4*($C$8-1)+3,12,1)), MAX(OFFSET(O2Depth!$A$10,$H177*12,4*($C$8-1)+3,12,1))) / 0.3048 -> 70.14080271 | K177: =IF($B$4="Annual Average", AVERAGE(OFFSET(O2Depth!$A$10,$H177*12,4*($C$8-1)+4,12,1)), MAX(OFFSET(O2Depth!$A$10,$H177*12,4*($C$8-1)+4,12,1))) / 0.3048 -> 95.96866798 | L177: =IF($B$4="Annual Average", AVERAGE(OFFSET(O2Depth!$A$10,$H177*12,4*($C$8-1)+1,12,1)), MAX(OFFSET(O2Depth!$A$10,$H177*12,4*($C$8-1)+1,12,1))) / 0.3048 -> 72.96615267 | R177: 12.66666667 | S177: =VLOOKUP($R177,O2Depth!$A$10:$AG$2410,4*($C$8-1)+3) / 0.3048 -> 54.96062992 | T177: =VLOOKUP($R177,O2Depth!$A$10:$AG$2410,4*($C$8-1)+4) / 0.3048 -> 69.45209974 | U177: =VLOOKUP($R177,O2Depth!$A$10:$AG$2410,4*($C$8-1)+5) / 0.3048 -> 94.58333333 | V177: =VLOOKUP($R177,O2Depth!$A$10:$AG$2410,4*($C$8-1)+2) / 0.3048 -> 72.95275591
H178: 153 | I178: =IF($B$4="Annual Average", AVERAGE(OFFSET(O2Depth!$A$10,$H178*12,4*($C$8-1)+2,12,1)), MAX(OFFSET(O2Depth!$A$10,$H178*12,4*($C$8-1)+2,12,1))) / 0.3048 -> 54.47506562 | J178: =IF($B$4="Annual Average", AVERAGE(OFFSET(O2Depth!$A$10,$H178*12,4*($C$8-1)+3,12,1)), MAX(OFFSET(O2Depth!$A$10,$H178*12,4*($C$8-1)+3,12,1))) / 0.3048 -> 70.18482065 | K178: =IF($B$4="Annual Average", AVERAGE(OFFSET(O2Depth!$A$10,$H178*12,4*($C$8-1)+4,12,1)), MAX(OFFSET(O2Depth!$A$10,$H178*12,4*($C$8-1)+4,12,1))) / 0.3048 -> 96.90316054 | L178: =IF($B$4="Annual Average", AVERAGE(OFFSET(O2Depth!$A$10,$H178*12,4*($C$8-1)+1,12,1)), MAX(OFFSET(O2Depth!$A$10,$H178*12,4*($C$8-1)+1,12,1))) / 0.3048 -> 72.98939195 | R178: 12.75 | S178: =VLOOKUP($R178,O2Depth!$A$10:$AG$2410,4*($C$8-1)+3) / 0.3048 -> 54.88188976 | T178: =VLOOKUP($R178,O2Depth!$A$10:$AG$2410,4*($C$8-1)+4) / 0.3048 -> 68.7335958 | U178: =VLOOKUP($R178,O2Depth!$A$10:$AG$2410,4*($C$8-1)+5) / 0.3048 -> 94.62926509 | V178: =VLOOKUP($R178,O2Depth!$A$10:$AG$2410,4*($C$8-1)+2) / 0.3048 -> 72.97244094
H179: 154 | I179: =IF($B$4="Annual Average", AVERAGE(OFFSET(O2Depth!$A$10,$H179*12,4*($C$8-1)+2,12,1)), MAX(OFFSET(O2Depth!$A$10,$H179*12,4*($C$8-1)+2,12,1))) / 0.3048 -> 55.17825897 | J179: =IF($B$4="Annual Average", AVERAGE(OFFSET(O2Depth!$A$10,$H179*12,4*($C$8-1)+3,12,1)), MAX(OFFSET(O2Depth!$A$10,$H179*12,4*($C$8-1)+3,12,1))) / 0.3048 -> 69.12073491 | K179: =IF($B$4="Annual Average", AVERAGE(OFFSET(O2Depth!$A$10,$H179*12,4*($C$8-1)+4,12,1)), MAX(OFFSET(O2Depth!$A$10,$H179*12,4*($C$8-1)+4,12,1))) / 0.3048 -> 94.93821085 | L179: =IF($B$4="Annual Average", AVERAGE(OFFSET(O2Depth!$A$10,$H179*12,4*($C$8-1)+1,12,1)), MAX(OFFSET(O2Depth!$A$10,$H179*12,4*($C$8-1)+1,12,1))) / 0.3048 -> 72.33021654 | R179: 12.83333333 | S179: =VLOOKUP($R179,O2Depth!$A$10:$AG$2410,4*($C$8-1)+3) / 0.3048 -> 55.10498688 | T179: =VLOOKUP($R179,O2Depth!$A$10:$AG$2410,4*($C$8-1)+4) / 0.3048 -> 68.75 | U179: =VLOOKUP($R179,O2Depth!$A$10:$AG$2410,4*($C$8-1)+5) / 0.3048 -> 95.15419948 | V179: =VLOOKUP($R179,O2Depth!$A$10:$AG$2410,4*($C$8-1)+2) / 0.3048 -> 72.99868766
H180: 155 | I180: =IF($B$4="Annual Average", AVERAGE(OFFSET(O2Depth!$A$10,$H180*12,4*($C$8-1)+2,12,1)), MAX(OFFSET(O2Depth!$A$10,$H180*12,4*($C$8-1)+2,12,1))) / 0.3048 -> 54.48600175 | J180: =IF($B$4="Annual Average", AVERAGE(OFFSET(O2Depth!$A$10,$H180*12,4*($C$8-1)+3,12,1)), MAX(OFFSET(O2Depth!$A$10,$H180*12,4*($C$8-1)+3,12,1))) / 0.3048 -> 69.02641076 | K180: =IF($B$4="Annual Average", AVERAGE(OFFSET(O2Depth!$A$10,$H180*12,4*($C$8-1)+4,12,1)), MAX(OFFSET(O2Depth!$A$10,$H180*12,4*($C$8-1)+4,12,1))) / 0.3048 -> 94.34164479 | L180: =IF($B$4="Annual Average", AVERAGE(OFFSET(O2Depth!$A$10,$H180*12,4*($C$8-1)+1,12,1)), MAX(OFFSET(O2Depth!$A$10,$H180*12,4*($C$8-1)+1,12,1))) / 0.3048 -> 72.53226159 | R180: 12.91666667 | S180: =VLOOKUP($R180,O2Depth!$A$10:$AG$2410,4*($C$8-1)+3) / 0.3048 -> 55.10498688 | T180: =VLOOKUP($R180,O2Depth!$A$10:$AG$2410,4*($C$8-1)+4) / 0.3048 -> 68.75 | U180: =VLOOKUP($R180,O2Depth!$A$10:$AG$2410,4*($C$8-1)+5) / 0.3048 -> 95.15419948 | V180: =VLOOKUP($R180,O2Depth!$A$10:$AG$2410,4*($C$8-1)+2) / 0.3048 -> 72.99868766
H181: 156 | I181: =IF($B$4="Annual Average", AVERAGE(OFFSET(O2Depth!$A$10,$H181*12,4*($C$8-1)+2,12,1)), MAX(OFFSET(O2Depth!$A$10,$H181*12,4*($C$8-1)+2,12,1))) / 0.3048 -> 54.51224847 | J181: =IF($B$4="Annual Average", AVERAGE(OFFSET(O2Depth!$A$10,$H181*12,4*($C$8-1)+3,12,1)), MAX(OFFSET(O2Depth!$A$10,$H181*12,4*($C$8-1)+3,12,1))) / 0.3048 -> 68.94411636 | K181: =IF($B$4="Annual Average", AVERAGE(OFFSET(O2Depth!$A$10,$H181*12,4*($C$8-1)+4,12,1)), MAX(OFFSET(O2Depth!$A$10,$H181*12,4*($C$8-1)+4,12,1))) / 0.3048 -> 93.65075459 | L181: =IF($B$4="Annual Average", AVERAGE(OFFSET(O2Depth!$A$10,$H181*12,4*($C$8-1)+1,12,1)), MAX(OFFSET(O2Depth!$A$10,$H181*12,4*($C$8-1)+1,12,1))) / 0.3048 -> 72.33267717 | R181: 13 | S181: =VLOOKUP($R181,O2Depth!$A$10:$AG$2410,4*($C$8-1)+3) / 0.3048 -> 53.56299213 | T181: =VLOOKUP($R181,O2Depth!$A$10:$AG$2410,4*($C$8-1)+4) / 0.3048 -> 68.70734908 | U181: =VLOOKUP($R181,O2Depth!$A$10:$AG$2410,4*($C$8-1)+5) / 0.3048 -> 99.58333333 | V181: =VLOOKUP($R181,O2Depth!$A$10:$AG$2410,4*($C$8-1)+2) / 0.3048 -> 73.20866142
H182: 157 | I182: =IF($B$4="Annual Average", AVERAGE(OFFSET(O2Depth!$A$10,$H182*12,4*($C$8-1)+2,12,1)), MAX(OFFSET(O2Depth!$A$10,$H182*12,4*($C$8-1)+2,12,1))) / 0.3048 -> 53.79538495 | J182: =IF($B$4="Annual Average", AVERAGE(OFFSET(O2Depth!$A$10,$H182*12,4*($C$8-1)+3,12,1)), MAX(OFFSET(O2Depth!$A$10,$H182*12,4*($C$8-1)+3,12,1))) / 0.3048 -> 69.22927603 | K182: =IF($B$4="Annual Average", AVERAGE(OFFSET(O2Depth!$A$10,$H182*12,4*($C$8-1)+4,12,1)), MAX(OFFSET(O2Depth!$A$10,$H182*12,4*($C$8-1)+4,12,1))) / 0.3048 -> 95.32999781 | L182: =IF($B$4="Annual Average", AVERAGE(OFFSET(O2Depth!$A$10,$H182*12,4*($C$8-1)+1,12,1)), MAX(OFFSET(O2Depth!$A$10,$H182*12,4*($C$8-1)+1,12,1))) / 0.3048 -> 72.5328084 | R182: 13.08333333 | S182: =VLOOKUP($R182,O2Depth!$A$10:$AG$2410,4*($C$8-1)+3) / 0.3048 -> 53.59251969 | T182: =VLOOKUP($R182,O2Depth!$A$10:$AG$2410,4*($C$8-1)+4) / 0.3048 -> 69.22244094 | U182: =VLOOKUP($R182,O2Depth!$A$10:$AG$2410,4*($C$8-1)+5) / 0.3048 -> 98.34973753 | V182: =VLOOKUP($R182,O2Depth!$A$10:$AG$2410,4*($C$8-1)+2) / 0.3048 -> 73.17913386
H183: 158 | I183: =IF($B$4="Annual Average", AVERAGE(OFFSET(O2Depth!$A$10,$H183*12,4*($C$8-1)+2,12,1)), MAX(OFFSET(O2Depth!$A$10,$H183*12,4*($C$8-1)+2,12,1))) / 0.3048 -> 53.87986658 | J183: =IF($B$4="Annual Average", AVERAGE(OFFSET(O2Depth!$A$10,$H183*12,4*($C$8-1)+3,12,1)), MAX(OFFSET(O2Depth!$A$10,$H183*12,4*($C$8-1)+3,12,1))) / 0.3048 -> 68.64391951 | K183: =IF($B$4="Annual Average", AVERAGE(OFFSET(O2Depth!$A$10,$H183*12,4*($C$8-1)+4,12,1)), MAX(OFFSET(O2Depth!$A$10,$H183*12,4*($C$8-1)+4,12,1))) / 0.3048 -> 94.99507874 | L183: =IF($B$4="Annual Average", AVERAGE(OFFSET(O2Depth!$A$10,$H183*12,4*($C$8-1)+1,12,1)), MAX(OFFSET(O2Depth!$A$10,$H183*12,4*($C$8-1)+1,12,1))) / 0.3048 -> 72.18531277 | R183: 13.16666667 | S183: =VLOOKUP($R183,O2Depth!$A$10:$AG$2410,4*($C$8-1)+3) / 0.3048 -> 53.59251969 | T183: =VLOOKUP($R183,O2Depth!$A$10:$AG$2410,4*($C$8-1)+4) / 0.3048 -> 69.22244094 | U183: =VLOOKUP($R183,O2Depth!$A$10:$AG$2410,4*($C$8-1)+5) / 0.3048 -> 98.34973753 | V183: =VLOOKUP($R183,O2Depth!$A$10:$AG$2410,4*($C$8-1)+2) / 0.3048 -> 73.17913386
H184: 159 | I184: =IF($B$4="Annual Average", AVERAGE(OFFSET(O2Depth!$A$10,$H184*12,4*($C$8-1)+2,12,1)), MAX(OFFSET(O2Depth!$A$10,$H184*12,4*($C$8-1)+2,12,1))) / 0.3048 -> 55.27285652 | J184: =IF($B$4="Annual Average", AVERAGE(OFFSET(O2Depth!$A$10,$H184*12,4*($C$8-1)+3,12,1)), MAX(OFFSET(O2Depth!$A$10,$H184*12,4*($C$8-1)+3,12,1))) / 0.3048 -> 69.19974847 | K184: =IF($B$4="Annual Average", AVERAGE(OFFSET(O2Depth!$A$10,$H184*12,4*($C$8-1)+4,12,1)), MAX(OFFSET(O2Depth!$A$10,$H184*12,4*($C$8-1)+4,12,1))) / 0.3048 -> 96.72162073 | L184: =IF($B$4="Annual Average", AVERAGE(OFFSET(O2Depth!$A$10,$H184*12,4*($C$8-1)+1,12,1)), MAX(OFFSET(O2Depth!$A$10,$H184*12,4*($C$8-1)+1,12,1))) / 0.3048 -> 73.11023622 | R184: 13.25 | S184: =VLOOKUP($R184,O2Depth!$A$10:$AG$2410,4*($C$8-1)+3) / 0.3048 -> 53.81889764 | T184: =VLOOKUP($R184,O2Depth!$A$10:$AG$2410,4*($C$8-1)+4) / 0.3048 -> 69.58005249 | U184: =VLOOKUP($R184,O2Depth!$A$10:$AG$2410,4*($C$8-1)+5) / 0.3048 -> 96.01706037 | V184: =VLOOKUP($R184,O2Depth!$A$10:$AG$2410,4*($C$8-1)+2) / 0.3048 -> 73.15288714
H185: 160 | I185: =IF($B$4="Annual Average", AVERAGE(OFFSET(O2Depth!$A$10,$H185*12,4*($C$8-1)+2,12,1)), MAX(OFFSET(O2Depth!$A$10,$H185*12,4*($C$8-1)+2,12,1))) / 0.3048 -> 55.14900481 | J185: =IF($B$4="Annual Average", AVERAGE(OFFSET(O2Depth!$A$10,$H185*12,4*($C$8-1)+3,12,1)), MAX(OFFSET(O2Depth!$A$10,$H185*12,4*($C$8-1)+3,12,1))) / 0.3048 -> 70.11346238 | K185: =IF($B$4="Annual Average", AVERAGE(OFFSET(O2Depth!$A$10,$H185*12,4*($C$8-1)+4,12,1)), MAX(OFFSET(O2Depth!$A$10,$H185*12,4*($C$8-1)+4,12,1))) / 0.3048 -> 95.4524825 | L185: =IF($B$4="Annual Average", AVERAGE(OFFSET(O2Depth!$A$10,$H185*12,4*($C$8-1)+1,12,1)), MAX(OFFSET(O2Depth!$A$10,$H185*12,4*($C$8-1)+1,12,1))) / 0.3048 -> 73.32294401 | R185: 13.33333333 | S185: =VLOOKUP($R185,O2Depth!$A$10:$AG$2410,4*($C$8-1)+3) / 0.3048 -> 53.82874016 | T185: =VLOOKUP($R185,O2Depth!$A$10:$AG$2410,4*($C$8-1)+4) / 0.3048 -> 69.86548556 | U185: =VLOOKUP($R185,O2Depth!$A$10:$AG$2410,4*($C$8-1)+5) / 0.3048 -> 95.90551181 | V185: =VLOOKUP($R185,O2Depth!$A$10:$AG$2410,4*($C$8-1)+2) / 0.3048 -> 73.15944882
H186: 161 | I186: =IF($B$4="Annual Average", AVERAGE(OFFSET(O2Depth!$A$10,$H186*12,4*($C$8-1)+2,12,1)), MAX(OFFSET(O2Depth!$A$10,$H186*12,4*($C$8-1)+2,12,1))) / 0.3048 -> 54.32442038 | J186: =IF($B$4="Annual Average", AVERAGE(OFFSET(O2Depth!$A$10,$H186*12,4*($C$8-1)+3,12,1)), MAX(OFFSET(O2Depth!$A$10,$H186*12,4*($C$8-1)+3,12,1))) / 0.3048 -> 69.86384514 | K186: =IF($B$4="Annual Average", AVERAGE(OFFSET(O2Depth!$A$10,$H186*12,4*($C$8-1)+4,12,1)), MAX(OFFSET(O2Depth!$A$10,$H186*12,4*($C$8-1)+4,12,1))) / 0.3048 -> 95.40655074 | L186: =IF($B$4="Annual Average", AVERAGE(OFFSET(O2Depth!$A$10,$H186*12,4*($C$8-1)+1,12,1)), MAX(OFFSET(O2Depth!$A$10,$H186*12,4*($C$8-1)+1,12,1))) / 0.3048 -> 72.21866798 | R186: 13.41666667 | S186: =VLOOKUP($R186,O2Depth!$A$10:$AG$2410,4*($C$8-1)+3) / 0.3048 -> 53.82874016 | T186: =VLOOKUP($R186,O2Depth!$A$10:$AG$2410,4*($C$8-1)+4) / 0.3048 -> 69.86548556 | U186: =VLOOKUP($R186,O2Depth!$A$10:$AG$2410,4*($C$8-1)+5) / 0.3048 -> 95.90551181 | V186: =VLOOKUP($R186,O2Depth!$A$10:$AG$2410,4*($C$8-1)+2) / 0.3048 -> 73.15944882
H187: 162 | I187: =IF($B$4="Annual Average", AVERAGE(OFFSET(O2Depth!$A$10,$H187*12,4*($C$8-1)+2,12,1)), MAX(OFFSET(O2Depth!$A$10,$H187*12,4*($C$8-1)+2,12,1))) / 0.3048 -> 54.38894357 | J187: =IF($B$4="Annual Average", AVERAGE(OFFSET(O2Depth!$A$10,$H187*12,4*($C$8-1)+3,12,1)), MAX(OFFSET(O2Depth!$A$10,$H187*12,4*($C$8-1)+3,12,1))) / 0.3048 -> 69.15491032 | K187: =IF($B$4="Annual Average", AVERAGE(OFFSET(O2Depth!$A$10,$H187*12,4*($C$8-1)+4,12,1)), MAX(OFFSET(O2Depth!$A$10,$H187*12,4*($C$8-1)+4,12,1))) / 0.3048 -> 96.24316492 | L187: =IF($B$4="Annual Average", AVERAGE(OFFSET(O2Depth!$A$10,$H187*12,4*($C$8-1)+1,12,1)), MAX(OFFSET(O2Depth!$A$10,$H187*12,4*($C$8-1)+1,12,1))) / 0.3048 -> 72.69821741 | R187: 13.5 | S187: =VLOOKUP($R187,O2Depth!$A$10:$AG$2410,4*($C$8-1)+3) / 0.3048 -> 54.14041995 | T187: =VLOOKUP($R187,O2Depth!$A$10:$AG$2410,4*($C$8-1)+4) / 0.3048 -> 69.71784777 | U187: =VLOOKUP($R187,O2Depth!$A$10:$AG$2410,4*($C$8-1)+5) / 0.3048 -> 96.41404199 | V187: =VLOOKUP($R187,O2Depth!$A$10:$AG$2410,4*($C$8-1)+2) / 0.3048 -> 73.20538058
H188: 163 | I188: =IF($B$4="Annual Average", AVERAGE(OFFSET(O2Depth!$A$10,$H188*12,4*($C$8-1)+2,12,1)), MAX(OFFSET(O2Depth!$A$10,$H188*12,4*($C$8-1)+2,12,1))) / 0.3048 -> 54.25825678 | J188: =IF($B$4="Annual Average", AVERAGE(OFFSET(O2Depth!$A$10,$H188*12,4*($C$8-1)+3,12,1)), MAX(OFFSET(O2Depth!$A$10,$H188*12,4*($C$8-1)+3,12,1))) / 0.3048 -> 68.81151575 | K188: =IF($B$4="Annual Average", AVERAGE(OFFSET(O2Depth!$A$10,$H188*12,4*($C$8-1)+4,12,1)), MAX(OFFSET(O2Depth!$A$10,$H188*12,4*($C$8-1)+4,12,1))) / 0.3048 -> 95.24278215 | L188: =IF($B$4="Annual Average", AVERAGE(OFFSET(O2Depth!$A$10,$H188*12,4*($C$8-1)+1,12,1)), MAX(OFFSET(O2Depth!$A$10,$H188*12,4*($C$8-1)+1,12,1))) / 0.3048 -> 72.65064523 | R188: 13.58333333 | S188: =VLOOKUP($R188,O2Depth!$A$10:$AG$2410,4*($C$8-1)+3) / 0.3048 -> 53.94028871 | T188: =VLOOKUP($R188,O2Depth!$A$10:$AG$2410,4*($C$8-1)+4) / 0.3048 -> 70.41994751 | U188: =VLOOKUP($R188,O2Depth!$A$10:$AG$2410,4*($C$8-1)+5) / 0.3048 -> 96.90616798 | V188: =VLOOKUP($R188,O2Depth!$A$10:$AG$2410,4*($C$8-1)+2) / 0.3048 -> 73.24475066
H189: 164 | I189: =IF($B$4="Annual Average", AVERAGE(OFFSET(O2Depth!$A$10,$H189*12,4*($C$8-1)+2,12,1)), MAX(OFFSET(O2Depth!$A$10,$H189*12,4*($C$8-1)+2,12,1))) / 0.3048 -> 54.05949256 | J189: =IF($B$4="Annual Average", AVERAGE(OFFSET(O2Depth!$A$10,$H189*12,4*($C$8-1)+3,12,1)), MAX(OFFSET(O2Depth!$A$10,$H189*12,4*($C$8-1)+3,12,1))) / 0.3048 -> 70.2217301 | K189: =IF($B$4="Annual Average", AVERAGE(OFFSET(O2Depth!$A$10,$H189*12,4*($C$8-1)+4,12,1)), MAX(OFFSET(O2Depth!$A$10,$H189*12,4*($C$8-1)+4,12,1))) / 0.3048 -> 94.0045385 | L189: =IF($B$4="Annual Average", AVERAGE(OFFSET(O2Depth!$A$10,$H189*12,4*($C$8-1)+1,12,1)), MAX(OFFSET(O2Depth!$A$10,$H189*12,4*($C$8-1)+1,12,1))) / 0.3048 -> 72.47730752 | R189: 13.66666667 | S189: =VLOOKUP($R189,O2Depth!$A$10:$AG$2410,4*($C$8-1)+3) / 0.3048 -> 53.94028871 | T189: =VLOOKUP($R189,O2Depth!$A$10:$AG$2410,4*($C$8-1)+4) / 0.3048 -> 70.41994751 | U189: =VLOOKUP($R189,O2Depth!$A$10:$AG$2410,4*($C$8-1)+5) / 0.3048 -> 96.90616798 | V189: =VLOOKUP($R189,O2Depth!$A$10:$AG$2410,4*($C$8-1)+2) / 0.3048 -> 73.24475066
H190: 165 | I190: =IF($B$4="Annual Average", AVERAGE(OFFSET(O2Depth!$A$10,$H190*12,4*($C$8-1)+2,12,1)), MAX(OFFSET(O2Depth!$A$10,$H190*12,4*($C$8-1)+2,12,1))) / 0.3048 -> 54.88681102 | J190: =IF($B$4="Annual Average", AVERAGE(OFFSET(O2Depth!$A$10,$H190*12,4*($C$8-1)+3,12,1)), MAX(OFFSET(O2Depth!$A$10,$H190*12,4*($C$8-1)+3,12,1))) / 0.3048 -> 70.10608049 | K190: =IF($B$4="Annual Average", AVERAGE(OFFSET(O2Depth!$A$10,$H190*12,4*($C$8-1)+4,12,1)), MAX(OFFSET(O2Depth!$A$10,$H190*12,4*($C$8-1)+4,12,1))) / 0.3048 -> 95.66710411 | L190: =IF($B$4="Annual Average", AVERAGE(OFFSET(O2Depth!$A$10,$H190*12,4*($C$8-1)+1,12,1)), MAX(OFFSET(O2Depth!$A$10,$H190*12,4*($C$8-1)+1,12,1))) / 0.3048 -> 73.03040245 | R190: 13.75 | S190: =VLOOKUP($R190,O2Depth!$A$10:$AG$2410,4*($C$8-1)+3) / 0.3048 -> 53.48425197 | T190: =VLOOKUP($R190,O2Depth!$A$10:$AG$2410,4*($C$8-1)+4) / 0.3048 -> 69.81955381 | U190: =VLOOKUP($R190,O2Depth!$A$10:$AG$2410,4*($C$8-1)+5) / 0.3048 -> 97.51312336 | V190: =VLOOKUP($R190,O2Depth!$A$10:$AG$2410,4*($C$8-1)+2) / 0.3048 -> 73.36286089
H191: 166 | I191: =IF($B$4="Annual Average", AVERAGE(OFFSET(O2Depth!$A$10,$H191*12,4*($C$8-1)+2,12,1)), MAX(OFFSET(O2Depth!$A$10,$H191*12,4*($C$8-1)+2,12,1))) / 0.3048 -> 55.59957349 | J191: =IF($B$4="Annual Average", AVERAGE(OFFSET(O2Depth!$A$10,$H191*12,4*($C$8-1)+3,12,1)), MAX(OFFSET(O2Depth!$A$10,$H191*12,4*($C$8-1)+3,12,1))) / 0.3048 -> 69.70691164 | K191: =IF($B$4="Annual Average", AVERAGE(OFFSET(O2Depth!$A$10,$H191*12,4*($C$8-1)+4,12,1)), MAX(OFFSET(O2Depth!$A$10,$H191*12,4*($C$8-1)+4,12,1))) / 0.3048 -> 95.06315617 | L191: =IF($B$4="Annual Average", AVERAGE(OFFSET(O2Depth!$A$10,$H191*12,4*($C$8-1)+1,12,1)), MAX(OFFSET(O2Depth!$A$10,$H191*12,4*($C$8-1)+1,12,1))) / 0.3048 -> 73.15042651 | R191: 13.83333333 | S191: =VLOOKUP($R191,O2Depth!$A$10:$AG$2410,4*($C$8-1)+3) / 0.3048 -> 53.18569554 | T191: =VLOOKUP($R191,O2Depth!$A$10:$AG$2410,4*($C$8-1)+4) / 0.3048 -> 69.19291339 | U191: =VLOOKUP($R191,O2Depth!$A$10:$AG$2410,4*($C$8-1)+5) / 0.3048 -> 96.87992126 | V191: =VLOOKUP($R191,O2Depth!$A$10:$AG$2410,4*($C$8-1)+2) / 0.3048 -> 73.43832021
H192: 167 | I192: =IF($B$4="Annual Average", AVERAGE(OFFSET(O2Depth!$A$10,$H192*12,4*($C$8-1)+2,12,1)), MAX(OFFSET(O2Depth!$A$10,$H192*12,4*($C$8-1)+2,12,1))) / 0.3048 -> 54.09968285 | J192: =IF($B$4="Annual Average", AVERAGE(OFFSET(O2Depth!$A$10,$H192*12,4*($C$8-1)+3,12,1)), MAX(OFFSET(O2Depth!$A$10,$H192*12,4*($C$8-1)+3,12,1))) / 0.3048 -> 69.43760936 | K192: =IF($B$4="Annual Average", AVERAGE(OFFSET(O2Depth!$A$10,$H192*12,4*($C$8-1)+4,12,1)), MAX(OFFSET(O2Depth!$A$10,$H192*12,4*($C$8-1)+4,12,1))) / 0.3048 -> 94.74874234 | L192: =IF($B$4="Annual Average", AVERAGE(OFFSET(O2Depth!$A$10,$H192*12,4*($C$8-1)+1,12,1)), MAX(OFFSET(O2Depth!$A$10,$H192*12,4*($C$8-1)+1,12,1))) / 0.3048 -> 72.47949475 | R192: 13.91666667 | S192: =VLOOKUP($R192,O2Depth!$A$10:$AG$2410,4*($C$8-1)+3) / 0.3048 -> 53.18569554 | T192: =VLOOKUP($R192,O2Depth!$A$10:$AG$2410,4*($C$8-1)+4) / 0.3048 -> 69.19291339 | U192: =VLOOKUP($R192,O2Depth!$A$10:$AG$2410,4*($C$8-1)+5) / 0.3048 -> 96.87992126 | V192: =VLOOKUP($R192,O2Depth!$A$10:$AG$2410,4*($C$8-1)+2) / 0.3048 -> 73.43832021
H193: 168 | I193: =IF($B$4="Annual Average", AVERAGE(OFFSET(O2Depth!$A$10,$H193*12,4*($C$8-1)+2,12,1)), MAX(OFFSET(O2Depth!$A$10,$H193*12,4*($C$8-1)+2,12,1))) / 0.3048 -> 54.68339895 | J193: =IF($B$4="Annual Average", AVERAGE(OFFSET(O2Depth!$A$10,$H193*12,4*($C$8-1)+3,12,1)), MAX(OFFSET(O2Depth!$A$10,$H193*12,4*($C$8-1)+3,12,1))) / 0.3048 -> 69.21806649 | K193: =IF($B$4="Annual Average", AVERAGE(OFFSET(O2Depth!$A$10,$H193*12,4*($C$8-1)+4,12,1)), MAX(OFFSET(O2Depth!$A$10,$H193*12,4*($C$8-1)+4,12,1))) / 0.3048 -> 94.71374672 | L193: =IF($B$4="Annual Average", AVERAGE(OFFSET(O2Depth!$A$10,$H193*12,4*($C$8-1)+1,12,1)), MAX(OFFSET(O2Depth!$A$10,$H193*12,4*($C$8-1)+1,12,1))) / 0.3048 -> 72.51421697 | R193: 14 | S193: =VLOOKUP($R193,O2Depth!$A$10:$AG$2410,4*($C$8-1)+3) / 0.3048 -> 53.6023622 | T193: =VLOOKUP($R193,O2Depth!$A$10:$AG$2410,4*($C$8-1)+4) / 0.3048 -> 69.34711286 | U193: =VLOOKUP($R193,O2Depth!$A$10:$AG$2410,4*($C$8-1)+5) / 0.3048 -> 100.2329396 | V193: =VLOOKUP($R193,O2Depth!$A$10:$AG$2410,4*($C$8-1)+2) / 0.3048 -> 73.48425197
H194: 169 | I194: =IF($B$4="Annual Average", AVERAGE(OFFSET(O2Depth!$A$10,$H194*12,4*($C$8-1)+2,12,1)), MAX(OFFSET(O2Depth!$A$10,$H194*12,4*($C$8-1)+2,12,1))) / 0.3048 -> 54.23583771 | J194: =IF($B$4="Annual Average", AVERAGE(OFFSET(O2Depth!$A$10,$H194*12,4*($C$8-1)+3,12,1)), MAX(OFFSET(O2Depth!$A$10,$H194*12,4*($C$8-1)+3,12,1))) / 0.3048 -> 69.54341645 | K194: =IF($B$4="Annual Average", AVERAGE(OFFSET(O2Depth!$A$10,$H194*12,4*($C$8-1)+4,12,1)), MAX(OFFSET(O2Depth!$A$10,$H194*12,4*($C$8-1)+4,12,1))) / 0.3048 -> 96.36674322 | L194: =IF($B$4="Annual Average", AVERAGE(OFFSET(O2Depth!$A$10,$H194*12,4*($C$8-1)+1,12,1)), MAX(OFFSET(O2Depth!$A$10,$H194*12,4*($C$8-1)+1,12,1))) / 0.3048 -> 72.83245844 | R194: 14.08333333 | S194: =VLOOKUP($R194,O2Depth!$A$10:$AG$2410,4*($C$8-1)+3) / 0.3048 -> 54.05183727 | T194: =VLOOKUP($R194,O2Depth!$A$10:$AG$2410,4*($C$8-1)+4) / 0.3048 -> 69.4652231 | U194: =VLOOKUP($R194,O2Depth!$A$10:$AG$2410,4*($C$8-1)+5) / 0.3048 -> 100.2034121 | V194: =VLOOKUP($R194,O2Depth!$A$10:$AG$2410,4*($C$8-1)+2) / 0.3048 -> 73.41207349
H195: 170 | I195: =IF($B$4="Annual Average", AVERAGE(OFFSET(O2Depth!$A$10,$H195*12,4*($C$8-1)+2,12,1)), MAX(OFFSET(O2Depth!$A$10,$H195*12,4*($C$8-1)+2,12,1))) / 0.3048 -> 53.1170713 | J195: =IF($B$4="Annual Average", AVERAGE(OFFSET(O2Depth!$A$10,$H195*12,4*($C$8-1)+3,12,1)), MAX(OFFSET(O2Depth!$A$10,$H195*12,4*($C$8-1)+3,12,1))) / 0.3048 -> 69.84662073 | K195: =IF($B$4="Annual Average", AVERAGE(OFFSET(O2Depth!$A$10,$H195*12,4*($C$8-1)+4,12,1)), MAX(OFFSET(O2Depth!$A$10,$H195*12,4*($C$8-1)+4,12,1))) / 0.3048 -> 95.20477909 | L195: =IF($B$4="Annual Average", AVERAGE(OFFSET(O2Depth!$A$10,$H195*12,4*($C$8-1)+1,12,1)), MAX(OFFSET(O2Depth!$A$10,$H195*12,4*($C$8-1)+1,12,1))) / 0.3048 -> 72.54237752 | R195: 14.16666667 | S195: =VLOOKUP($R195,O2Depth!$A$10:$AG$2410,4*($C$8-1)+3) / 0.3048 -> 54.05183727 | T195: =VLOOKUP($R195,O2Depth!$A$10:$AG$2410,4*($C$8-1)+4) / 0.3048 -> 69.4652231 | U195: =VLOOKUP($R195,O2Depth!$A$10:$AG$2410,4*($C$8-1)+5) / 0.3048 -> 100.2034121 | V195: =VLOOKUP($R195,O2Depth!$A$10:$AG$2410,4*($C$8-1)+2) / 0.3048 -> 73.41207349
H196: 171 | I196: =IF($B$4="Annual Average", AVERAGE(OFFSET(O2Depth!$A$10,$H196*12,4*($C$8-1)+2,12,1)), MAX(OFFSET(O2Depth!$A$10,$H196*12,4*($C$8-1)+2,12,1))) / 0.3048 -> 54.63227253 | J196: =IF($B$4="Annual Average", AVERAGE(OFFSET(O2Depth!$A$10,$H196*12,4*($C$8-1)+3,12,1)), MAX(OFFSET(O2Depth!$A$10,$H196*12,4*($C$8-1)+3,12,1))) / 0.3048 -> 69.21205162 | K196: =IF($B$4="Annual Average", AVERAGE(OFFSET(O2Depth!$A$10,$H196*12,4*($C$8-1)+4,12,1)), MAX(OFFSET(O2Depth!$A$10,$H196*12,4*($C$8-1)+4,12,1))) / 0.3048 -> 95.84782371 | L196: =IF($B$4="Annual Average", AVERAGE(OFFSET(O2Depth!$A$10,$H196*12,4*($C$8-1)+1,12,1)), MAX(OFFSET(O2Depth!$A$10,$H196*12,4*($C$8-1)+1,12,1))) / 0.3048 -> 72.7712161 | R196: 14.25 | S196: =VLOOKUP($R196,O2Depth!$A$10:$AG$2410,4*($C$8-1)+3) / 0.3048 -> 55.21981627 | T196: =VLOOKUP($R196,O2Depth!$A$10:$AG$2410,4*($C$8-1)+4) / 0.3048 -> 69.28149606 | U196: =VLOOKUP($R196,O2Depth!$A$10:$AG$2410,4*($C$8-1)+5) / 0.3048 -> 97.79199475 | V196: =VLOOKUP($R196,O2Depth!$A$10:$AG$2410,4*($C$8-1)+2) / 0.3048 -> 73.30708661
H197: 172 | I197: =IF($B$4="Annual Average", AVERAGE(OFFSET(O2Depth!$A$10,$H197*12,4*($C$8-1)+2,12,1)), MAX(OFFSET(O2Depth!$A$10,$H197*12,4*($C$8-1)+2,12,1))) / 0.3048 -> 55.03526903 | J197: =IF($B$4="Annual Average", AVERAGE(OFFSET(O2Depth!$A$10,$H197*12,4*($C$8-1)+3,12,1)), MAX(OFFSET(O2Depth!$A$10,$H197*12,4*($C$8-1)+3,12,1))) / 0.3048 -> 69.2601706 | K197: =IF($B$4="Annual Average", AVERAGE(OFFSET(O2Depth!$A$10,$H197*12,4*($C$8-1)+4,12,1)), MAX(OFFSET(O2Depth!$A$10,$H197*12,4*($C$8-1)+4,12,1))) / 0.3048 -> 94.88763123 | L197: =IF($B$4="Annual Average", AVERAGE(OFFSET(O2Depth!$A$10,$H197*12,4*($C$8-1)+1,12,1)), MAX(OFFSET(O2Depth!$A$10,$H197*12,4*($C$8-1)+1,12,1))) / 0.3048 -> 72.8127734 | R197: 14.33333333 | S197: =VLOOKUP($R197,O2Depth!$A$10:$AG$2410,4*($C$8-1)+3) / 0.3048 -> 55.49212598 | T197: =VLOOKUP($R197,O2Depth!$A$10:$AG$2410,4*($C$8-1)+4) / 0.3048 -> 69.05511811 | U197: =VLOOKUP($R197,O2Depth!$A$10:$AG$2410,4*($C$8-1)+5) / 0.3048 -> 97.26706037 | V197: =VLOOKUP($R197,O2Depth!$A$10:$AG$2410,4*($C$8-1)+2) / 0.3048 -> 73.27099738
H198: 173 | I198: =IF($B$4="Annual Average", AVERAGE(OFFSET(O2Depth!$A$10,$H198*12,4*($C$8-1)+2,12,1)), MAX(OFFSET(O2Depth!$A$10,$H198*12,4*($C$8-1)+2,12,1))) / 0.3048 -> 54.3670713 | J198: =IF($B$4="Annual Average", AVERAGE(OFFSET(O2Depth!$A$10,$H198*12,4*($C$8-1)+3,12,1)), MAX(OFFSET(O2Depth!$A$10,$H198*12,4*($C$8-1)+3,12,1))) / 0.3048 -> 69.94504593 | K198: =IF($B$4="Annual Average", AVERAGE(OFFSET(O2Depth!$A$10,$H198*12,4*($C$8-1)+4,12,1)), MAX(OFFSET(O2Depth!$A$10,$H198*12,4*($C$8-1)+4,12,1))) / 0.3048 -> 94.63172572 | L198: =IF($B$4="Annual Average", AVERAGE(OFFSET(O2Depth!$A$10,$H198*12,4*($C$8-1)+1,12,1)), MAX(OFFSET(O2Depth!$A$10,$H198*12,4*($C$8-1)+1,12,1))) / 0.3048 -> 72.76930227 | R198: 14.41666667 | S198: =VLOOKUP($R198,O2Depth!$A$10:$AG$2410,4*($C$8-1)+3) / 0.3048 -> 55.49212598 | T198: =VLOOKUP($R198,O2Depth!$A$10:$AG$2410,4*($C$8-1)+4) / 0.3048 -> 69.05511811 | U198: =VLOOKUP($R198,O2Depth!$A$10:$AG$2410,4*($C$8-1)+5) / 0.3048 -> 97.26706037 | V198: =VLOOKUP($R198,O2Depth!$A$10:$AG$2410,4*($C$8-1)+2) / 0.3048 -> 73.27099738
H199: 174 | I199: =IF($B$4="Annual Average", AVERAGE(OFFSET(O2Depth!$A$10,$H199*12,4*($C$8-1)+2,12,1)), MAX(OFFSET(O2Depth!$A$10,$H199*12,4*($C$8-1)+2,12,1))) / 0.3048 -> 55.50743657 | J199: =IF($B$4="Annual Average", AVERAGE(OFFSET(O2Depth!$A$10,$H199*12,4*($C$8-1)+3,12,1)), MAX(OFFSET(O2Depth!$A$10,$H199*12,4*($C$8-1)+3,12,1))) / 0.3048 -> 69.52045057 | K199: =IF($B$4="Annual Average", AVERAGE(OFFSET(O2Depth!$A$10,$H199*12,4*($C$8-1)+4,12,1)), MAX(OFFSET(O2Depth!$A$10,$H199*12,4*($C$8-1)+4,12,1))) / 0.3048 -> 95.31031277 | L199: =IF($B$4="Annual Average", AVERAGE(OFFSET(O2Depth!$A$10,$H199*12,4*($C$8-1)+1,12,1)), MAX(OFFSET(O2Depth!$A$10,$H199*12,4*($C$8-1)+1,12,1))) / 0.3048 -> 72.97954943 | R199: 14.5 | S199: =VLOOKUP($R199,O2Depth!$A$10:$AG$2410,4*($C$8-1)+3) / 0.3048 -> 56.09908136 | T199: =VLOOKUP($R199,O2Depth!$A$10:$AG$2410,4*($C$8-1)+4) / 0.3048 -> 69.82939633 | U199: =VLOOKUP($R199,O2Depth!$A$10:$AG$2410,4*($C$8-1)+5) / 0.3048 -> 96.7355643 | V199: =VLOOKUP($R199,O2Depth!$A$10:$AG$2410,4*($C$8-1)+2) / 0.3048 -> 73.2316273
H200: 175 | I200: =IF($B$4="Annual Average", AVERAGE(OFFSET(O2Depth!$A$10,$H200*12,4*($C$8-1)+2,12,1)), MAX(OFFSET(O2Depth!$A$10,$H200*12,4*($C$8-1)+2,12,1))) / 0.3048 -> 55.10799431 | J200: =IF($B$4="Annual Average", AVERAGE(OFFSET(O2Depth!$A$10,$H200*12,4*($C$8-1)+3,12,1)), MAX(OFFSET(O2Depth!$A$10,$H200*12,4*($C$8-1)+3,12,1))) / 0.3048 -> 69.42667323 | K200: =IF($B$4="Annual Average", AVERAGE(OFFSET(O2Depth!$A$10,$H200*12,4*($C$8-1)+4,12,1)), MAX(OFFSET(O2Depth!$A$10,$H200*12,4*($C$8-1)+4,12,1))) / 0.3048 -> 94.66890857 | L200: =IF($B$4="Annual Average", AVERAGE(OFFSET(O2Depth!$A$10,$H200*12,4*($C$8-1)+1,12,1)), MAX(OFFSET(O2Depth!$A$10,$H200*12,4*($C$8-1)+1,12,1))) / 0.3048 -> 72.8455818 | R200: 14.58333333 | S200: =VLOOKUP($R200,O2Depth!$A$10:$AG$2410,4*($C$8-1)+3) / 0.3048 -> 56.01049869 | T200: =VLOOKUP($R200,O2Depth!$A$10:$AG$2410,4*($C$8-1)+4) / 0.3048 -> 70.20341207 | U200: =VLOOKUP($R200,O2Depth!$A$10:$AG$2410,4*($C$8-1)+5) / 0.3048 -> 96.95866142 | V200: =VLOOKUP($R200,O2Depth!$A$10:$AG$2410,4*($C$8-1)+2) / 0.3048 -> 73.22506562
H201: 176 | I201: =IF($B$4="Annual Average", AVERAGE(OFFSET(O2Depth!$A$10,$H201*12,4*($C$8-1)+2,12,1)), MAX(OFFSET(O2Depth!$A$10,$H201*12,4*($C$8-1)+2,12,1))) / 0.3048 -> 54.57950569 | J201: =IF($B$4="Annual Average", AVERAGE(OFFSET(O2Depth!$A$10,$H201*12,4*($C$8-1)+3,12,1)), MAX(OFFSET(O2Depth!$A$10,$H201*12,4*($C$8-1)+3,12,1))) / 0.3048 -> 69.97457349 | K201: =IF($B$4="Annual Average", AVERAGE(OFFSET(O2Depth!$A$10,$H201*12,4*($C$8-1)+4,12,1)), MAX(OFFSET(O2Depth!$A$10,$H201*12,4*($C$8-1)+4,12,1))) / 0.3048 -> 95.51645888 | L201: =IF($B$4="Annual Average", AVERAGE(OFFSET(O2Depth!$A$10,$H201*12,4*($C$8-1)+1,12,1)), MAX(OFFSET(O2Depth!$A$10,$H201*12,4*($C$8-1)+1,12,1))) / 0.3048 -> 73.16437008 | R201: 14.66666667 | S201: =VLOOKUP($R201,O2Depth!$A$10:$AG$2410,4*($C$8-1)+3) / 0.3048 -> 56.01049869 | T201: =VLOOKUP($R201,O2Depth!$A$10:$AG$2410,4*($C$8-1)+4) / 0.3048 -> 70.20341207 | U201: =VLOOKUP($R201,O2Depth!$A$10:$AG$2410,4*($C$8-1)+5) / 0.3048 -> 96.95866142 | V201: =VLOOKUP($R201,O2Depth!$A$10:$AG$2410,4*($C$8-1)+2) / 0.3048 -> 73.22506562
H202: 177 | I202: =IF($B$4="Annual Average", AVERAGE(OFFSET(O2Depth!$A$10,$H202*12,4*($C$8-1)+2,12,1)), MAX(OFFSET(O2Depth!$A$10,$H202*12,4*($C$8-1)+2,12,1))) / 0.3048 -> 54.82830271 | J202: =IF($B$4="Annual Average", AVERAGE(OFFSET(O2Depth!$A$10,$H202*12,4*($C$8-1)+3,12,1)), MAX(OFFSET(O2Depth!$A$10,$H202*12,4*($C$8-1)+3,12,1))) / 0.3048 -> 69.63309274 | K202: =IF($B$4="Annual Average", AVERAGE(OFFSET(O2Depth!$A$10,$H202*12,4*($C$8-1)+4,12,1)), MAX(OFFSET(O2Depth!$A$10,$H202*12,4*($C$8-1)+4,12,1))) / 0.3048 -> 95.84262905 | L202: =IF($B$4="Annual Average", AVERAGE(OFFSET(O2Depth!$A$10,$H202*12,4*($C$8-1)+1,12,1)), MAX(OFFSET(O2Depth!$A$10,$H202*12,4*($C$8-1)+1,12,1))) / 0.3048 -> 72.89233377 | R202: 14.75 | S202: =VLOOKUP($R202,O2Depth!$A$10:$AG$2410,4*($C$8-1)+3) / 0.3048 -> 55.09514436 | T202: =VLOOKUP($R202,O2Depth!$A$10:$AG$2410,4*($C$8-1)+4) / 0.3048 -> 69.75393701 | U202: =VLOOKUP($R202,O2Depth!$A$10:$AG$2410,4*($C$8-1)+5) / 0.3048 -> 97.73293963 | V202: =VLOOKUP($R202,O2Depth!$A$10:$AG$2410,4*($C$8-1)+2) / 0.3048 -> 73.25131234
H203: 178 | I203: =IF($B$4="Annual Average", AVERAGE(OFFSET(O2Depth!$A$10,$H203*12,4*($C$8-1)+2,12,1)), MAX(OFFSET(O2Depth!$A$10,$H203*12,4*($C$8-1)+2,12,1))) / 0.3048 -> 55.34120735 | J203: =IF($B$4="Annual Average", AVERAGE(OFFSET(O2Depth!$A$10,$H203*12,4*($C$8-1)+3,12,1)), MAX(OFFSET(O2Depth!$A$10,$H203*12,4*($C$8-1)+3,12,1))) / 0.3048 -> 69.32496719 | K203: =IF($B$4="Annual Average", AVERAGE(OFFSET(O2Depth!$A$10,$H203*12,4*($C$8-1)+4,12,1)), MAX(OFFSET(O2Depth!$A$10,$H203*12,4*($C$8-1)+4,12,1))) / 0.3048 -> 95.57715442 | L203: =IF($B$4="Annual Average", AVERAGE(OFFSET(O2Depth!$A$10,$H203*12,4*($C$8-1)+1,12,1)), MAX(OFFSET(O2Depth!$A$10,$H203*12,4*($C$8-1)+1,12,1))) / 0.3048 -> 72.63396763 | R203: 14.83333333 | S203: =VLOOKUP($R203,O2Depth!$A$10:$AG$2410,4*($C$8-1)+3) / 0.3048 -> 54.54068241 | T203: =VLOOKUP($R203,O2Depth!$A$10:$AG$2410,4*($C$8-1)+4) / 0.3048 -> 69.3667979 | U203: =VLOOKUP($R203,O2Depth!$A$10:$AG$2410,4*($C$8-1)+5) / 0.3048 -> 97.49671916 | V203: =VLOOKUP($R203,O2Depth!$A$10:$AG$2410,4*($C$8-1)+2) / 0.3048 -> 73.2808399
H204: 179 | I204: =IF($B$4="Annual Average", AVERAGE(OFFSET(O2Depth!$A$10,$H204*12,4*($C$8-1)+2,12,1)), MAX(OFFSET(O2Depth!$A$10,$H204*12,4*($C$8-1)+2,12,1))) / 0.3048 -> 53.8733049 | J204: =IF($B$4="Annual Average", AVERAGE(OFFSET(O2Depth!$A$10,$H204*12,4*($C$8-1)+3,12,1)), MAX(OFFSET(O2Depth!$A$10,$H204*12,4*($C$8-1)+3,12,1))) / 0.3048 -> 69.34738626 | K204: =IF($B$4="Annual Average", AVERAGE(OFFSET(O2Depth!$A$10,$H204*12,4*($C$8-1)+4,12,1)), MAX(OFFSET(O2Depth!$A$10,$H204*12,4*($C$8-1)+4,12,1))) / 0.3048 -> 91.95209974 | L204: =IF($B$4="Annual Average", AVERAGE(OFFSET(O2Depth!$A$10,$H204*12,4*($C$8-1)+1,12,1)), MAX(OFFSET(O2Depth!$A$10,$H204*12,4*($C$8-1)+1,12,1))) / 0.3048 -> 71.82879484 | R204: 14.91666667 | S204: =VLOOKUP($R204,O2Depth!$A$10:$AG$2410,4*($C$8-1)+3) / 0.3048 -> 54.54068241 | T204: =VLOOKUP($R204,O2Depth!$A$10:$AG$2410,4*($C$8-1)+4) / 0.3048 -> 69.3667979 | U204: =VLOOKUP($R204,O2Depth!$A$10:$AG$2410,4*($C$8-1)+5) / 0.3048 -> 97.49671916 | V204: =VLOOKUP($R204,O2Depth!$A$10:$AG$2410,4*($C$8-1)+2) / 0.3048 -> 73.2808399
H205: 180 | I205: =IF($B$4="Annual Average", AVERAGE(OFFSET(O2Depth!$A$10,$H205*12,4*($C$8-1)+2,12,1)), MAX(OFFSET(O2Depth!$A$10,$H205*12,4*($C$8-1)+2,12,1))) / 0.3048 -> 54.34574584 | J205: =IF($B$4="Annual Average", AVERAGE(OFFSET(O2Depth!$A$10,$H205*12,4*($C$8-1)+3,12,1)), MAX(OFFSET(O2Depth!$A$10,$H205*12,4*($C$8-1)+3,12,1))) / 0.3048 -> 69.69488189 | K205: =IF($B$4="Annual Average", AVERAGE(OFFSET(O2Depth!$A$10,$H205*12,4*($C$8-1)+4,12,1)), MAX(OFFSET(O2Depth!$A$10,$H205*12,4*($C$8-1)+4,12,1))) / 0.3048 -> 96.37658574 | L205: =IF($B$4="Annual Average", AVERAGE(OFFSET(O2Depth!$A$10,$H205*12,4*($C$8-1)+1,12,1)), MAX(OFFSET(O2Depth!$A$10,$H205*12,4*($C$8-1)+1,12,1))) / 0.3048 -> 72.63560805 | R205: 15 | S205: =VLOOKUP($R205,O2Depth!$A$10:$AG$2410,4*($C$8-1)+3) / 0.3048 -> 53.13648294 | T205: =VLOOKUP($R205,O2Depth!$A$10:$AG$2410,4*($C$8-1)+4) / 0.3048 -> 69.56692913 | U205: =VLOOKUP($R205,O2Depth!$A$10:$AG$2410,4*($C$8-1)+5) / 0.3048 -> 98.01181102 | V205: =VLOOKUP($R205,O2Depth!$A$10:$AG$2410,4*($C$8-1)+2) / 0.3048 -> 73.47112861
... 60 more rows

Sheet O2Depth
A1: =A7 -> ! GoldSim Time History Results,GSVersion:10.50.300
A2: =C7 -> Element:\Results\PROJECT_results\Unsat_Zones\LTVSMC\LTVSMC_O2_Depth
A3: =D7 -> Model:C:\Tailings Basin\Version 6.0\NorthMet_PlantSite_FEIS_BiggerWWTP.gsm
A4: =E7 -> Time:12/15/2014 16:12:17
A5: Copied | B5: 2014-12-16T08:42:34
B6: Cell 2W Fines | F6: Cell 2W Coarse | J6: Cell 2W Embankments | N6: Cell 2E Fines | R6: Cell 2E Coarse | V6: Cell 2E Embankments | Z6: Cell 1E Fines | AD6: Cell 1E Coarse
A7: ! GoldSim Time History Results,GSVersion:10.50.300 | B7: Result:Statistics | C7: Element:\Results\PROJECT_results\Unsat_Zones\LTVSMC\LTVSMC_O2_Depth | D7: Model:C:\Tailings Basin\Version 6.0\NorthMet_PlantSite_FEIS_BiggerWWTP.gsm | E7: Time:12/15/2014 16:12:17
A8: !Statistics
A9: Time (yr) | B9: Depth_to_Zero_O2 [m],Mean | C9: Depth_to_Zero_O2 [m],10% | D9: Depth_to_Zero_O2 [m],Median | E9: Depth_to_Zero_O2 [m],90% | F9: Depth_to_Zero_O2 [m],Mean | G9: Depth_to_Zero_O2 [m],10% | H9: Depth_to_Zero_O2 [m],Median | I9: Depth_to_Zero_O2 [m],90% | J9: Depth_to_Zero_O2 [m],Mean | K9: Depth_to_Zero_O2 [m],10% | L9: Depth_to_Zero_O2 [m],Median | M9: Depth_to_Zero_O2 [m],90% | N9: Depth_to_Zero_O2 [m],Mean | O9: Depth_to_Zero_O2 [m],10% | P9: Depth_to_Zero_O2 [m],Median | Q9: Depth_to_Zero_O2 [m],90% | R9: Depth_to_Zero_O2 [m],Mean | S9: Depth_to_Zero_O2 [m],10% | T9: Depth_to_Zero_O2 [m],Median | U9: Depth_to_Zero_O2 [m],90% | V9: Depth_to_Zero_O2 [m],Mean | W9: Depth_to_Zero_O2 [m],10% | X9: Depth_to_Zero_O2 [m],Median | Y9: Depth_to_Zero_O2 [m],90% | Z9: Depth_to_Zero_O2 [m],Mean | AA9: Depth_to_Zero_O2 [m],10% | AB9: Depth_to_Zero_O2 [m],Median | AC9: Depth_to_Zero_O2 [m],90% | AD9: Depth_to_Zero_O2 [m],Mean | AE9: Depth_to_Zero_O2 [m],10% | AF9: Depth_to_Zero_O2 [m],Median | AG9: Depth_to_Zero_O2 [m],90%
A10: 0 | B10: 7.6464 | C10: 6.0815 | D10: 7.3695 | E10: 9.64 | F10: 47.941 | G10: 38.13 | H10: 46.205 | I10: 60.441 | J10: 52.953 | K10: 42.116 | L10: 51.035 | M10: 66.759 | N10: 21.102 | O10: 16.784 | P10: 20.338 | Q10: 26.604 | R10: 56.838 | S10: 45.206 | T10: 54.78 | U10: 71.657 | V10: 55.531 | W10: 44.166 | X10: 53.52 | Y10: 70.01 | Z10: 8.0992 | AA10: 6.4417 | AB10: 7.806 | AC10: 10.211 | AD10: 62.183 | AE10: 49.457 | AF10: 59.932 | AG10: 78.397
A11: 0.0833333 | B11: 7.6402 | C11: 6.0772 | D11: 7.3198 | E11: 9.6433 | F11: 47.937 | G11: 38.056 | H11: 46.108 | I11: 60.459 | J11: 52.899 | K11: 42.062 | L11: 50.882 | M11: 66.718 | N11: 21.185 | O11: 16.843 | P11: 20.442 | Q11: 26.787 | R11: 56.807 | S11: 45.096 | T11: 54.655 | U11: 71.633 | V11: 55.592 | W11: 44.246 | X11: 53.531 | Y11: 70.094 | Z11: 8.1661 | AA11: 6.4659 | AB11: 7.8454 | AC11: 10.507 | AD11: 62.26 | AE11: 49.343 | AF11: 59.916 | AG11: 78.855
A12: 0.166667 | B12: 7.6343 | C12: 6.0819 | D12: 7.3415 | E12: 9.6815 | F12: 47.933 | G12: 37.999 | H12: 46.038 | I12: 60.505 | J12: 52.846 | K12: 42.096 | L12: 50.865 | M12: 66.527 | N12: 21.27 | O12: 16.843 | P12: 20.494 | Q12: 26.9 | R12: 56.777 | S12: 45.159 | T12: 54.618 | U12: 71.61 | V12: 55.653 | W12: 44.265 | X12: 53.557 | Y12: 70.237 | Z12: 8.2365 | AA12: 6.4427 | AB12: 7.8857 | AC12: 10.601 | AD12: 62.337 | AE12: 49.455 | AF12: 59.983 | AG12: 79.372
A13: 0.25 | B13: 7.6285 | C13: 6.0569 | D13: 7.3373 | E13: 9.6842 | F13: 47.928 | G13: 38.045 | H13: 45.954 | I13: 60.525 | J13: 52.793 | K13: 42.098 | L13: 50.799 | M13: 66.485 | N13: 21.356 | O13: 16.859 | P13: 20.538 | Q13: 27.135 | R13: 56.747 | S13: 45.146 | T13: 54.482 | U13: 71.638 | V13: 55.715 | W13: 44.303 | X13: 53.562 | Y13: 70.173 | Z13: 8.3101 | AA13: 6.4278 | AB13: 7.9424 | AC13: 10.787 | AD13: 62.415 | AE13: 49.477 | AF13: 60.018 | AG13: 79.134
A14: 0.333333 | B14: 7.6229 | C14: 6.0772 | D14: 7.3491 | E14: 9.6398 | F14: 47.924 | G14: 38.159 | H14: 45.915 | I14: 60.496 | J14: 52.74 | K14: 42.093 | L14: 50.698 | M14: 66.543 | N14: 21.444 | O14: 16.786 | P14: 20.668 | Q14: 27.445 | R14: 56.718 | S14: 45.089 | T14: 54.261 | U14: 71.47 | V14: 55.777 | W14: 44.413 | X14: 53.568 | Y14: 70.069 | Z14: 8.3868 | AA14: 6.3914 | AB14: 7.9644 | AC14: 11.04 | AD14: 62.493 | AE14: 49.64 | AF14: 60.194 | AG14: 78.968
A15: 0.416667 | B15: 7.6174 | C15: 6.0601 | D15: 7.3291 | E15: 9.6386 | F15: 47.92 | G15: 38.202 | H15: 45.929 | I15: 60.612 | J15: 52.687 | K15: 42.055 | L15: 50.657 | M15: 66.623 | N15: 21.535 | O15: 16.858 | P15: 20.716 | Q15: 27.551 | R15: 56.689 | S15: 45.114 | T15: 54.339 | U15: 71.497 | V15: 55.839 | W15: 44.481 | X15: 53.609 | Y15: 70.215 | Z15: 8.4667 | AA15: 6.3884 | AB15: 7.9639 | AC15: 11.229 | AD15: 62.572 | AE15: 49.634 | AF15: 60.202 | AG15: 78.973
A16: 0.5 | B16: 7.6121 | C16: 6.0478 | D16: 7.3196 | E16: 9.6601 | F16: 47.916 | G16: 38.212 | H16: 45.981 | I16: 60.632 | J16: 52.635 | K16: 42.029 | L16: 50.573 | M16: 66.706 | N16: 21.627 | O16: 16.815 | P16: 20.67 | Q16: 27.8 | R16: 56.66 | S16: 45.051 | T16: 54.328 | U16: 71.59 | V16: 55.902 | W16: 44.435 | X16: 53.819 | Y16: 70.291 | Z16: 8.5498 | AA16: 6.3112 | AB16: 8.0007 | AC16: 11.676 | AD16: 62.651 | AE16: 49.702 | AF16: 60.331 | AG16: 79.052
A17: 0.583333 | B17: 7.6069 | C17: 5.9992 | D17: 7.2781 | E17: 9.7111 | F17: 47.913 | G17: 38.183 | H17: 46.025 | I17: 60.722 | J17: 52.582 | K17: 41.972 | L17: 50.502 | M17: 66.623 | N17: 21.72 | O17: 16.758 | P17: 20.679 | Q17: 28.074 | R17: 56.631 | S17: 44.995 | T17: 54.288 | U17: 71.647 | V17: 55.964 | W17: 44.458 | X17: 53.778 | Y17: 70.416 | Z17: 8.6361 | AA17: 6.1852 | AB17: 8.0258 | AC17: 11.938 | AD17: 62.731 | AE17: 49.721 | AF17: 60.53 | AG17: 79.273
A18: 0.666667 | B18: 7.6019 | C18: 5.9673 | D18: 7.2614 | E18: 9.7016 | F18: 47.909 | G18: 38.155 | H18: 46.084 | I18: 60.787 | J18: 52.53 | K18: 41.855 | L18: 50.459 | M18: 66.666 | N18: 21.816 | O18: 16.7 | P18: 20.754 | Q18: 28.31 | R18: 56.603 | S18: 44.964 | T18: 54.278 | U18: 71.853 | V18: 56.027 | W18: 44.43 | X18: 53.78 | Y18: 70.541 | Z18: 8.7254 | AA18: 6.0841 | AB18: 8.099 | AC18: 12.413 | AD18: 62.811 | AE18: 49.593 | AF18: 60.641 | AG18: 79.419
A19: 0.75 | B19: 7.597 | C19: 5.9408 | D19: 7.2378 | E19: 9.7324 | F19: 47.905 | G19: 38.094 | H19: 46.099 | I19: 60.793 | J19: 52.478 | K19: 41.798 | L19: 50.465 | M19: 66.606 | N19: 21.913 | O19: 16.658 | P19: 20.84 | Q19: 28.496 | R19: 56.575 | S19: 45.011 | T19: 54.266 | U19: 71.791 | V19: 56.09 | W19: 44.385 | X19: 53.873 | Y19: 70.667 | Z19: 8.8177 | AA19: 5.9996 | AB19: 8.0698 | AC19: 12.708 | AD19: 62.891 | AE19: 49.499 | AF19: 60.764 | AG19: 79.468
A20: 0.833333 | B20: 7.5923 | C20: 5.9091 | D20: 7.2502 | E20: 9.7622 | F20: 47.901 | G20: 38.072 | H20: 46.085 | I20: 60.79 | J20: 52.426 | K20: 41.649 | L20: 50.392 | M20: 66.597 | N20: 22.011 | O20: 16.612 | P20: 20.822 | Q20: 28.841 | R20: 56.547 | S20: 44.853 | T20: 54.357 | U20: 71.524 | V20: 56.153 | W20: 44.344 | X20: 54.006 | Y20: 70.887 | Z20: 8.9131 | AA20: 5.8809 | AB20: 8.0469 | AC20: 13.083 | AD20: 62.972 | AE20: 49.514 | AF20: 60.988 | AG20: 79.451
A21: 0.916667 | B21: 7.5877 | C21: 5.8553 | D21: 7.2383 | E21: 9.7916 | F21: 47.898 | G21: 38.026 | H21: 46.077 | I21: 60.813 | J21: 52.374 | K21: 41.582 | L21: 50.327 | M21: 66.652 | N21: 22.112 | O21: 16.615 | P21: 20.847 | Q21: 29.353 | R21: 56.519 | S21: 44.816 | T21: 54.3 | U21: 71.318 | V21: 56.217 | W21: 44.309 | X21: 54.059 | Y21: 70.93 | Z21: 9.0115 | AA21: 5.78 | AB21: 8.0331 | AC21: 13.443 | AD21: 63.054 | AE21: 49.507 | AF21: 60.99 | AG21: 79.689
A22: 1 | B22: 7.5609 | C22: 5.8477 | D22: 7.1981 | E22: 9.8658 | F22: 47.766 | G22: 38.189 | H22: 45.677 | I22: 61.852 | J22: 52.187 | K22: 41.686 | L22: 49.796 | M22: 66.841 | N22: 22.121 | O22: 16.566 | P22: 20.71 | Q22: 29.79 | R22: 56.332 | S22: 44.912 | T22: 54.101 | U22: 71.725 | V22: 56.132 | W22: 44.775 | X22: 54 | Y22: 72.224 | Z22: 9.0811 | AA22: 5.7497 | AB22: 8.024 | AC22: 13.832 | AD22: 62.975 | AE22: 49.634 | AF22: 60.26 | AG22: 80.423
A23: 1.08333 | B23: 7.5542 | C23: 5.8781 | D23: 7.1977 | E23: 9.8656 | F23: 47.757 | G23: 38.248 | H23: 45.589 | I23: 61.683 | J23: 52.181 | K23: 41.595 | L23: 49.915 | M23: 66.763 | N23: 22.08 | O23: 16.627 | P23: 20.906 | Q23: 29.255 | R23: 56.317 | S23: 44.895 | T23: 53.932 | U23: 71.78 | V23: 56.122 | W23: 44.588 | X23: 54.042 | Y23: 72.118 | Z23: 9.0401 | AA23: 5.8484 | AB23: 8.0274 | AC23: 13.453 | AD23: 62.943 | AE23: 49.995 | AF23: 60.158 | AG23: 80.665
A24: 1.16667 | B24: 7.5479 | C24: 5.9074 | D24: 7.2166 | E24: 9.845 | F24: 47.747 | G24: 38.262 | H24: 45.523 | I24: 61.621 | J24: 52.174 | K24: 41.522 | L24: 50.036 | M24: 66.683 | N24: 22.043 | O24: 16.719 | P24: 20.813 | Q24: 29.301 | R24: 56.302 | S24: 44.894 | T24: 53.87 | U24: 71.747 | V24: 56.113 | W24: 44.389 | X24: 54.181 | Y24: 72.012 | Z24: 9.0049 | AA24: 5.9012 | AB24: 8.0953 | AC24: 13.251 | AD24: 62.913 | AE24: 49.936 | AF24: 60.115 | AG24: 80.829
A25: 1.25 | B25: 7.5418 | C25: 5.903 | D25: 7.1926 | E25: 9.8597 | F25: 47.738 | G25: 38.198 | H25: 45.583 | I25: 61.491 | J25: 52.168 | K25: 41.315 | L25: 50.061 | M25: 66.488 | N25: 22.008 | O25: 16.696 | P25: 20.914 | Q25: 29.067 | R25: 56.287 | S25: 44.865 | T25: 53.851 | U25: 71.615 | V25: 56.104 | W25: 44.26 | X25: 54.051 | Y25: 71.832 | Z25: 8.9753 | AA25: 5.9131 | AB25: 8.1435 | AC25: 13.171 | AD25: 62.883 | AE25: 49.986 | AF25: 59.897 | AG25: 80.478
A26: 1.33333 | B26: 7.5361 | C26: 5.8697 | D26: 7.2033 | E26: 9.8628 | F26: 47.729 | G26: 38.13 | H26: 45.584 | I26: 61.429 | J26: 52.163 | K26: 41.315 | L26: 49.917 | M26: 66.427 | N26: 21.977 | O26: 16.683 | P26: 20.978 | Q26: 28.975 | R26: 56.273 | S26: 44.79 | T26: 53.784 | U26: 71.505 | V26: 56.095 | W26: 44.337 | X26: 53.92 | Y26: 71.44 | Z26: 8.9515 | AA26: 5.9441 | AB26: 8.1369 | AC26: 13.016 | AD26: 62.854 | AE26: 50.132 | AF26: 59.828 | AG26: 80.327
A27: 1.41667 | B27: 7.5306 | C27: 5.8893 | D27: 7.206 | E27: 9.8941 | F27: 47.72 | G27: 38.087 | H27: 45.554 | I27: 61.37 | J27: 52.157 | K27: 41.324 | L27: 49.87 | M27: 66.293 | N27: 21.949 | O27: 16.654 | P27: 21.007 | Q27: 28.877 | R27: 56.26 | S27: 44.801 | T27: 53.8 | U27: 71.457 | V27: 56.087 | W27: 44.377 | X27: 53.788 | Y27: 71.162 | Z27: 8.933 | AA27: 5.9931 | AB27: 8.2079 | AC27: 12.766 | AD27: 62.825 | AE27: 50.177 | AF27: 59.903 | AG27: 80.282
A28: 1.5 | B28: 7.5253 | C28: 5.9045 | D28: 7.1787 | E28: 9.8441 | F28: 47.711 | G28: 38.057 | H28: 45.632 | I28: 61.334 | J28: 52.152 | K28: 41.333 | L28: 49.921 | M28: 66.322 | N28: 21.923 | O28: 16.613 | P28: 20.985 | Q28: 28.89 | R28: 56.247 | S28: 44.808 | T28: 53.799 | U28: 71.57 | V28: 56.079 | W28: 44.363 | X28: 53.876 | Y28: 71.158 | Z28: 8.9199 | AA28: 5.9402 | AB28: 8.1797 | AC28: 12.84 | AD28: 62.798 | AE28: 50.115 | AF28: 59.875 | AG28: 80.083
A29: 1.58333 | B29: 7.5204 | C29: 5.8938 | D29: 7.2094 | E29: 9.8477 | F29: 47.703 | G29: 38.032 | H29: 45.6 | I29: 61.2 | J29: 52.147 | K29: 41.242 | L29: 49.872 | M29: 66.493 | N29: 21.902 | O29: 16.544 | P29: 20.796 | Q29: 28.789 | R29: 56.234 | S29: 44.614 | T29: 53.779 | U29: 71.812 | V29: 56.072 | W29: 44.344 | X29: 53.935 | Y29: 71.195 | Z29: 8.9127 | AA29: 5.9448 | AB29: 8.1703 | AC29: 12.759 | AD29: 62.771 | AE29: 49.851 | AF29: 59.931 | AG29: 80.377
A30: 1.66667 | B30: 7.5157 | C30: 5.8783 | D30: 7.215 | E30: 9.8015 | F30: 47.694 | G30: 37.941 | H30: 45.655 | I30: 61.256 | J30: 52.142 | K30: 41.191 | L30: 49.803 | M30: 66.407 | N30: 21.883 | O30: 16.551 | P30: 20.736 | Q30: 28.996 | R30: 56.223 | S30: 44.452 | T30: 53.751 | U30: 71.733 | V30: 56.065 | W30: 44.341 | X30: 54.067 | Y30: 71.148 | Z30: 8.9115 | AA30: 5.914 | AB30: 8.2061 | AC30: 12.822 | AD30: 62.745 | AE30: 49.865 | AF30: 59.741 | AG30: 80.557
A31: 1.75 | B31: 7.5114 | C31: 5.8671 | D31: 7.2084 | E31: 9.8242 | F31: 47.686 | G31: 37.873 | H31: 45.775 | I31: 61.169 | J31: 52.137 | K31: 41.204 | L31: 49.732 | M31: 66.546 | N31: 21.868 | O31: 16.479 | P31: 20.869 | Q31: 28.983 | R31: 56.212 | S31: 44.391 | T31: 53.754 | U31: 71.752 | V31: 56.059 | W31: 44.188 | X31: 54.046 | Y31: 71.229 | Z31: 8.9159 | AA31: 5.8751 | AB31: 8.2234 | AC31: 12.81 | AD31: 62.72 | AE31: 49.673 | AF31: 59.541 | AG31: 80.803
A32: 1.83333 | B32: 7.5073 | C32: 5.8047 | D32: 7.236 | E32: 9.803 | F32: 47.678 | G32: 37.829 | H32: 45.789 | I32: 61.317 | J32: 52.133 | K32: 41.33 | L32: 49.86 | M32: 66.671 | N32: 21.855 | O32: 16.342 | P32: 20.816 | Q32: 29.244 | R32: 56.201 | S32: 44.19 | T32: 53.734 | U32: 71.803 | V32: 56.053 | W32: 44.155 | X32: 54.115 | Y32: 71.12 | Z32: 8.9259 | AA32: 5.7911 | AB32: 8.196 | AC32: 12.727 | AD32: 62.696 | AE32: 49.522 | AF32: 59.587 | AG32: 80.647
A33: 1.91667 | B33: 7.5035 | C33: 5.7949 | D33: 7.2167 | E33: 9.8194 | F33: 47.67 | G33: 37.766 | H33: 45.789 | I33: 61.433 | J33: 52.129 | K33: 41.26 | L33: 49.86 | M33: 66.599 | N33: 21.846 | O33: 16.206 | P33: 20.864 | Q33: 29.196 | R33: 56.191 | S33: 44.058 | T33: 53.736 | U33: 71.912 | V33: 56.047 | W33: 44.052 | X33: 54.177 | Y33: 71.05 | Z33: 8.9417 | AA33: 5.687 | AB33: 8.135 | AC33: 12.918 | AD33: 62.672 | AE33: 49.327 | AF33: 59.647 | AG33: 80.806
A34: 2 | B34: 7.5009 | C34: 5.7963 | D34: 7.1112 | E34: 9.5393 | F34: 47.678 | G34: 37.552 | H34: 45.659 | I34: 60.909 | J34: 52.15 | K34: 41.062 | L34: 50.122 | M34: 66.695 | N34: 21.855 | O34: 16.091 | P34: 20.421 | Q34: 29.249 | R34: 56.19 | S34: 44.348 | T34: 53.69 | U34: 71.739 | V34: 56.066 | W34: 44.01 | X34: 54.162 | Y34: 71.364 | Z34: 8.9469 | AA34: 5.5669 | AB34: 8.0029 | AC34: 13.212 | AD34: 62.693 | AE34: 49.127 | AF34: 59.846 | AG34: 80.716
A35: 2.08333 | B35: 7.5064 | C35: 5.8519 | D35: 7.1472 | E35: 9.5765 | F35: 47.69 | G35: 37.627 | H35: 45.642 | I35: 60.984 | J35: 52.161 | K35: 41.111 | L35: 50.098 | M35: 66.612 | N35: 21.866 | O35: 16.279 | P35: 20.661 | Q35: 28.928 | R35: 56.206 | S35: 44.417 | T35: 53.705 | U35: 71.68 | V35: 56.088 | W35: 44.167 | X35: 54.226 | Y35: 71.253 | Z35: 8.9361 | AA35: 5.7031 | AB35: 8.0992 | AC35: 12.963 | AD35: 62.71 | AE35: 49.33 | AF35: 60.02 | AG35: 80.91
A36: 2.16667 | B36: 7.5123 | C36: 5.8744 | D36: 7.1781 | E36: 9.6496 | F36: 47.701 | G36: 37.653 | H36: 45.655 | I36: 60.894 | J36: 52.172 | K36: 41.181 | L36: 50.071 | M36: 66.777 | N36: 21.88 | O36: 16.43 | P36: 20.884 | Q36: 28.835 | R36: 56.224 | S36: 44.302 | T36: 53.652 | U36: 71.739 | V36: 56.111 | W36: 44.237 | X36: 54.265 | Y36: 71.274 | Z36: 8.9306 | AA36: 5.7717 | AB36: 8.1298 | AC36: 12.849 | AD36: 62.728 | AE36: 49.662 | AF36: 60.081 | AG36: 81.078
A37: 2.25 | B37: 7.5185 | C37: 5.8996 | D37: 7.2155 | E37: 9.6854 | F37: 47.713 | G37: 37.631 | H37: 45.67 | I37: 60.734 | J37: 52.183 | K37: 41.174 | L37: 50.01 | M37: 66.778 | N37: 21.897 | O37: 16.468 | P37: 20.946 | Q37: 28.978 | R37: 56.242 | S37: 44.16 | T37: 53.58 | U37: 71.67 | V37: 56.134 | W37: 44.325 | X37: 54.355 | Y37: 71.298 | Z37: 8.9304 | AA37: 5.8747 | AB37: 8.236 | AC37: 12.726 | AD37: 62.746 | AE37: 49.625 | AF37: 60.093 | AG37: 81.02
A38: 2.33333 | B38: 7.5249 | C38: 5.9444 | D38: 7.2264 | E38: 9.6912 | F38: 47.725 | G38: 37.717 | H38: 45.655 | I38: 60.721 | J38: 52.195 | K38: 41.237 | L38: 49.974 | M38: 66.64 | N38: 21.916 | O38: 16.539 | P38: 20.965 | Q38: 28.857 | R38: 56.261 | S38: 44.119 | T38: 53.558 | U38: 71.498 | V38: 56.158 | W38: 44.329 | X38: 54.313 | Y38: 71.193 | Z38: 8.9357 | AA38: 5.9743 | AB38: 8.2723 | AC38: 12.789 | AD38: 62.766 | AE38: 49.522 | AF38: 60.114 | AG38: 81.052
A39: 2.41667 | B39: 7.5316 | C39: 5.9367 | D39: 7.2308 | E39: 9.7025 | F39: 47.737 | G39: 37.792 | H39: 45.672 | I39: 60.738 | J39: 52.207 | K39: 41.191 | L39: 49.925 | M39: 66.366 | N39: 21.939 | O39: 16.583 | P39: 20.94 | Q39: 28.96 | R39: 56.281 | S39: 44.121 | T39: 53.547 | U39: 71.672 | V39: 56.182 | W39: 44.272 | X39: 54.283 | Y39: 71.296 | Z39: 8.9462 | AA39: 6.0411 | AB39: 8.2933 | AC39: 12.701 | AD39: 62.786 | AE39: 49.664 | AF39: 59.992 | AG39: 80.89
A40: 2.5 | B40: 7.5386 | C40: 5.9274 | D40: 7.2362 | E40: 9.6874 | F40: 47.749 | G40: 37.833 | H40: 45.68 | I40: 60.698 | J40: 52.219 | K40: 41.161 | L40: 49.945 | M40: 66.192 | N40: 21.965 | O40: 16.604 | P40: 20.983 | Q40: 28.875 | R40: 56.301 | S40: 44.11 | T40: 53.585 | U40: 71.726 | V40: 56.207 | W40: 44.222 | X40: 54.216 | Y40: 71.296 | Z40: 8.9619 | AA40: 6.0251 | AB40: 8.2704 | AC40: 12.826 | AD40: 62.807 | AE40: 49.647 | AF40: 60.054 | AG40: 80.924
A41: 2.58333 | B41: 7.5459 | C41: 5.9211 | D41: 7.2294 | E41: 9.7189 | F41: 47.762 | G41: 37.851 | H41: 45.707 | I41: 60.73 | J41: 52.231 | K41: 41.115 | L41: 49.979 | M41: 66.269 | N41: 21.994 | O41: 16.599 | P41: 20.993 | Q41: 28.705 | R41: 56.321 | S41: 44.143 | T41: 53.766 | U41: 71.815 | V41: 56.232 | W41: 44.211 | X41: 54.093 | Y41: 71.409 | Z41: 8.9829 | AA41: 6.0477 | AB41: 8.3304 | AC41: 12.914 | AD41: 62.829 | AE41: 49.499 | AF41: 60.008 | AG41: 80.751
A42: 2.66667 | B42: 7.5535 | C42: 5.9031 | D42: 7.2524 | E42: 9.6684 | F42: 47.774 | G42: 37.81 | H42: 45.687 | I42: 60.767 | J42: 52.244 | K42: 41.095 | L42: 49.971 | M42: 66.388 | N42: 22.025 | O42: 16.638 | P42: 20.932 | Q42: 28.682 | R42: 56.342 | S42: 44.275 | T42: 53.75 | U42: 71.893 | V42: 56.257 | W42: 44.217 | X42: 54.14 | Y42: 71.47 | Z42: 9.009 | AA42: 5.9565 | AB42: 8.3619 | AC42: 12.942 | AD42: 62.852 | AE42: 49.55 | AF42: 59.991 | AG42: 80.266
A43: 2.75 | B43: 7.5613 | C43: 5.9105 | D43: 7.264 | E43: 9.6874 | F43: 47.787 | G43: 37.671 | H43: 45.722 | I43: 60.724 | J43: 52.256 | K43: 41.134 | L43: 49.964 | M43: 66.571 | N43: 22.059 | O43: 16.651 | P43: 20.913 | Q43: 28.737 | R43: 56.363 | S43: 44.359 | T43: 53.815 | U43: 71.941 | V43: 56.283 | W43: 44.183 | X43: 54.113 | Y43: 71.533 | Z43: 9.0406 | AA43: 5.9053 | AB43: 8.3747 | AC43: 12.922 | AD43: 62.876 | AE43: 49.551 | AF43: 60.228 | AG43: 80.166
A44: 2.83333 | B44: 7.5694 | C44: 5.9074 | D44: 7.2605 | E44: 9.6942 | F44: 47.799 | G44: 37.727 | H44: 45.776 | I44: 60.818 | J44: 52.269 | K44: 41.226 | L44: 50.024 | M44: 66.578 | N44: 22.097 | O44: 16.563 | P44: 20.957 | Q44: 28.928 | R44: 56.385 | S44: 44.202 | T44: 53.806 | U44: 71.703 | V44: 56.31 | W44: 44.096 | X44: 54.023 | Y44: 71.636 | Z44: 9.0772 | AA44: 5.8503 | AB44: 8.3963 | AC44: 13.063 | AD44: 62.9 | AE44: 49.487 | AF44: 60.194 | AG44: 80.115
A45: 2.91667 | B45: 7.5778 | C45: 5.856 | D45: 7.2851 | E45: 9.7994 | F45: 47.812 | G45: 37.829 | H45: 45.888 | I45: 61.059 | J45: 52.283 | K45: 41.238 | L45: 50.155 | M45: 66.532 | N45: 22.138 | O45: 16.377 | P45: 20.999 | Q45: 29.305 | R45: 56.407 | S45: 44.096 | T45: 53.787 | U45: 71.657 | V45: 56.337 | W45: 44.084 | X45: 53.982 | Y45: 71.664 | Z45: 9.1193 | AA45: 5.7503 | AB45: 8.3173 | AC45: 13.18 | AD45: 62.926 | AE45: 49.284 | AF45: 60.102 | AG45: 80.351
A46: 3 | B46: 7.5978 | C46: 5.9106 | D46: 7.2897 | E46: 9.9022 | F46: 47.896 | G46: 38.688 | H46: 45.661 | I46: 61.092 | J46: 52.373 | K46: 41.922 | L46: 49.712 | M46: 66.922 | N46: 22.219 | O46: 16.293 | P46: 20.875 | Q46: 29.861 | R46: 56.524 | S46: 45.124 | T46: 53.871 | U46: 72.842 | V46: 56.457 | W46: 45.183 | X46: 53.872 | Y46: 72.198 | Z46: 9.1854 | AA46: 5.6299 | AB46: 8.3303 | AC46: 13.314 | AD46: 63.034 | AE46: 50.808 | AF46: 60.48 | AG46: 79.704
A47: 3.08333 | B47: 7.5945 | C47: 5.9885 | D47: 7.2837 | E47: 9.8462 | F47: 47.892 | G47: 38.644 | H47: 45.656 | I47: 61.106 | J47: 52.355 | K47: 41.953 | L47: 49.802 | M47: 66.857 | N47: 22.179 | O47: 16.51 | P47: 20.861 | Q47: 29.326 | R47: 56.525 | S47: 45.099 | T47: 53.824 | U47: 72.759 | V47: 56.426 | W47: 45.129 | X47: 53.75 | Y47: 72.313 | Z47: 9.1222 | AA47: 5.7919 | AB47: 8.3484 | AC47: 13.146 | AD47: 63.034 | AE47: 50.86 | AF47: 60.458 | AG47: 79.514
A48: 3.16667 | B48: 7.5915 | C48: 5.9849 | D48: 7.2476 | E48: 9.8368 | F48: 47.888 | G48: 38.697 | H48: 45.65 | I48: 61.137 | J48: 52.337 | K48: 42.029 | L48: 49.835 | M48: 66.675 | N48: 22.142 | O48: 16.598 | P48: 20.854 | Q48: 29.128 | R48: 56.528 | S48: 45.113 | T48: 54.008 | U48: 72.744 | V48: 56.396 | W48: 45.226 | X48: 53.841 | Y48: 72.166 | Z48: 9.0649 | AA48: 5.953 | AB48: 8.4074 | AC48: 12.908 | AD48: 63.036 | AE48: 50.816 | AF48: 60.487 | AG48: 79.238
A49: 3.25 | B49: 7.5888 | C49: 5.9677 | D49: 7.2668 | E49: 9.8454 | F49: 47.884 | G49: 38.737 | H49: 45.686 | I49: 61.033 | J49: 52.32 | K49: 42.131 | L49: 49.946 | M49: 66.492 | N49: 22.107 | O49: 16.683 | P49: 20.866 | Q49: 28.982 | R49: 56.531 | S49: 45.181 | T49: 53.93 | U49: 72.616 | V49: 56.367 | W49: 45.119 | X49: 53.816 | Y49: 72.049 | Z49: 9.0129 | AA49: 6.0441 | AB49: 8.2921 | AC49: 12.973 | AD49: 63.039 | AE49: 50.673 | AF49: 60.483 | AG49: 79.282
A50: 3.33333 | B50: 7.5864 | C50: 5.9833 | D50: 7.2684 | E50: 9.8202 | F50: 47.881 | G50: 38.771 | H50: 45.646 | I50: 61.08 | J50: 52.304 | K50: 42.157 | L50: 49.99 | M50: 66.31 | N50: 22.076 | O50: 16.719 | P50: 21.07 | Q50: 28.768 | R50: 56.535 | S50: 45.23 | T50: 53.997 | U50: 72.663 | V50: 56.338 | W50: 45.12 | X50: 53.808 | Y50: 72.125 | Z50: 8.9659 | AA50: 6.0993 | AB50: 8.233 | AC50: 12.857 | AD50: 63.042 | AE50: 50.628 | AF50: 60.384 | AG50: 79.208
A51: 3.41667 | B51: 7.5842 | C51: 5.9939 | D51: 7.2863 | E51: 9.806 | F51: 47.878 | G51: 38.761 | H51: 45.653 | I51: 61.16 | J51: 52.287 | K51: 42.184 | L51: 49.902 | M51: 66.278 | N51: 22.048 | O51: 16.762 | P51: 21.163 | Q51: 28.476 | R51: 56.539 | S51: 45.337 | T51: 53.951 | U51: 72.775 | V51: 56.31 | W51: 45.22 | X51: 53.793 | Y51: 72.269 | Z51: 8.9242 | AA51: 6.1247 | AB51: 8.1595 | AC51: 12.564 | AD51: 63.046 | AE51: 50.735 | AF51: 60.407 | AG51: 79.133
A52: 3.5 | B52: 7.5823 | C52: 5.9841 | D52: 7.2835 | E52: 9.875 | F52: 47.875 | G52: 38.823 | H52: 45.648 | I52: 61.088 | J52: 52.271 | K52: 42.305 | L52: 49.81 | M52: 66.322 | N52: 22.023 | O52: 16.808 | P52: 21.271 | Q52: 28.475 | R52: 56.545 | S52: 45.206 | T52: 53.95 | U52: 72.684 | V52: 56.282 | W52: 45.145 | X52: 53.796 | Y52: 71.763 | Z52: 8.8877 | AA52: 6.093 | AB52: 8.2367 | AC52: 12.584 | AD52: 63.052 | AE52: 50.822 | AF52: 60.449 | AG52: 79.249
A53: 3.58333 | B53: 7.5807 | C53: 5.9988 | D53: 7.2748 | E53: 9.891 | F53: 47.871 | G53: 38.763 | H53: 45.676 | I53: 61.011 | J53: 52.254 | K53: 42.395 | L53: 49.851 | M53: 66.59 | N53: 22.001 | O53: 16.703 | P53: 21.175 | Q53: 28.122 | R53: 56.551 | S53: 45.252 | T53: 54.063 | U53: 72.669 | V53: 56.255 | W53: 45.142 | X53: 53.708 | Y53: 71.553 | Z53: 8.8559 | AA53: 6.0802 | AB53: 8.2221 | AC53: 12.382 | AD53: 63.058 | AE53: 50.787 | AF53: 60.484 | AG53: 79.671
A54: 3.66667 | B54: 7.5794 | C54: 5.963 | D54: 7.2794 | E54: 9.8576 | F54: 47.869 | G54: 38.685 | H54: 45.663 | I54: 60.932 | J54: 52.238 | K54: 42.323 | L54: 49.894 | M54: 66.876 | N54: 21.982 | O54: 16.664 | P54: 21.092 | Q54: 28.235 | R54: 56.558 | S54: 45.287 | T54: 54.178 | U54: 72.583 | V54: 56.228 | W54: 45.17 | X54: 53.762 | Y54: 71.413 | Z54: 8.8294 | AA54: 6.0222 | AB54: 8.1232 | AC54: 12.309 | AD54: 63.065 | AE54: 50.705 | AF54: 60.412 | AG54: 79.894
A55: 3.75 | B55: 7.5783 | C55: 5.9281 | D55: 7.2612 | E55: 9.8974 | F55: 47.866 | G55: 38.691 | H55: 45.668 | I55: 60.838 | J55: 52.223 | K55: 42.323 | L55: 49.912 | M55: 66.653 | N55: 21.965 | O55: 16.695 | P55: 20.885 | Q55: 28.442 | R55: 56.566 | S55: 45.248 | T55: 54.312 | U55: 72.474 | V55: 56.202 | W55: 45.157 | X55: 53.809 | Y55: 71.502 | Z55: 8.8082 | AA55: 5.8762 | AB55: 8.1699 | AC55: 12.246 | AD55: 63.073 | AE55: 50.597 | AF55: 60.652 | AG55: 80.226
A56: 3.83333 | B56: 7.5775 | C56: 5.9324 | D56: 7.2601 | E56: 9.8682 | F56: 47.863 | G56: 38.602 | H56: 45.711 | I56: 60.86 | J56: 52.207 | K56: 42.358 | L56: 49.87 | M56: 66.521 | N56: 21.952 | O56: 16.532 | P56: 20.71 | Q56: 28.561 | R56: 56.574 | S56: 45.28 | T56: 54.362 | U56: 72.481 | V56: 56.176 | W56: 45.1 | X56: 53.933 | Y56: 71.527 | Z56: 8.7926 | AA56: 5.7474 | AB56: 8.1229 | AC56: 12.438 | AD56: 63.083 | AE56: 50.541 | AF56: 60.583 | AG56: 80.595
A57: 3.91667 | B57: 7.5771 | C57: 5.9052 | D57: 7.2593 | E57: 9.8731 | F57: 47.86 | G57: 38.53 | H57: 45.809 | I57: 60.902 | J57: 52.192 | K57: 42.37 | L57: 49.893 | M57: 66.572 | N57: 21.941 | O57: 16.478 | P57: 20.682 | Q57: 28.981 | R57: 56.584 | S57: 45.182 | T57: 54.12 | U57: 72.429 | V57: 56.15 | W57: 45.052 | X57: 54.053 | Y57: 71.561 | Z57: 8.7822 | AA57: 5.5698 | AB57: 8.1027 | AC57: 12.758 | AD57: 63.092 | AE57: 50.537 | AF57: 60.546 | AG57: 80.487
A58: 4 | B58: 7.5646 | C58: 5.858 | D58: 7.1524 | E58: 10.058 | F58: 47.776 | G58: 37.926 | H58: 45.408 | I58: 62.174 | J58: 52.09 | K58: 41.522 | L58: 49.466 | M58: 67.616 | N58: 21.897 | O58: 16.284 | P58: 20.529 | Q58: 29.424 | R58: 56.497 | S58: 44.39 | T58: 53.698 | U58: 72.786 | V58: 56.02 | W58: 44.388 | X58: 53.309 | Y58: 72.757 | Z58: 8.7576 | AA58: 5.392 | AB58: 7.9536 | AC58: 12.88 | AD58: 62.991 | AE58: 49.839 | AF58: 59.769 | AG58: 82.441
A59: 4.08333 | B59: 7.565 | C59: 5.8609 | D59: 7.1635 | E59: 10.026 | F59: 47.779 | G59: 38.01 | H59: 45.482 | I59: 62.155 | J59: 52.096 | K59: 41.509 | L59: 49.559 | M59: 67.699 | N59: 21.909 | O59: 16.397 | P59: 20.61 | Q59: 29.175 | R59: 56.504 | S59: 44.4 | T59: 53.676 | U59: 72.784 | V59: 56.037 | W59: 44.418 | X59: 53.226 | Y59: 72.826 | Z59: 8.7334 | AA59: 5.5809 | AB59: 7.9647 | AC59: 12.611 | AD59: 62.979 | AE59: 49.948 | AF59: 59.774 | AG59: 82.434
A60: 4.16667 | B60: 7.5657 | C60: 5.8899 | D60: 7.1652 | E60: 9.9739 | F60: 47.782 | G60: 38.067 | H60: 45.559 | I60: 62.071 | J60: 52.104 | K60: 41.429 | L60: 49.58 | M60: 67.552 | N60: 21.924 | O60: 16.614 | P60: 20.686 | Q60: 29.162 | R60: 56.512 | S60: 44.542 | T60: 53.735 | U60: 73.178 | V60: 56.056 | W60: 44.405 | X60: 53.214 | Y60: 72.857 | Z60: 8.7142 | AA60: 5.6525 | AB60: 8.0594 | AC60: 12.378 | AD60: 62.968 | AE60: 50.048 | AF60: 59.83 | AG60: 82.434
A61: 4.25 | B61: 7.5667 | C61: 5.9078 | D61: 7.168 | E61: 9.9934 | F61: 47.785 | G61: 38.032 | H61: 45.611 | I61: 62.015 | J61: 52.111 | K61: 41.442 | L61: 49.564 | M61: 67.561 | N61: 21.943 | O61: 16.632 | P61: 20.675 | Q61: 29.177 | R61: 56.521 | S61: 44.672 | T61: 53.798 | U61: 73.139 | V61: 56.075 | W61: 44.483 | X61: 53.265 | Y61: 72.884 | Z61: 8.6999 | AA61: 5.7687 | AB61: 8.0622 | AC61: 12.363 | AD61: 62.958 | AE61: 49.864 | AF61: 59.73 | AG61: 82.507
A62: 4.33333 | B62: 7.568 | C62: 5.9257 | D62: 7.1827 | E62: 9.9485 | F62: 47.788 | G62: 38.089 | H62: 45.609 | I62: 62.031 | J62: 52.119 | K62: 41.477 | L62: 49.532 | M62: 67.419 | N62: 21.964 | O62: 16.617 | P62: 20.738 | Q62: 28.837 | R62: 56.529 | S62: 44.727 | T62: 53.778 | U62: 73.101 | V62: 56.094 | W62: 44.653 | X62: 53.451 | Y62: 72.538 | Z62: 8.6905 | AA62: 5.8584 | AB62: 8.0665 | AC62: 12.37 | AD62: 62.949 | AE62: 49.848 | AF62: 59.798 | AG62: 82.168
A63: 4.41667 | B63: 7.5695 | C63: 5.9454 | D63: 7.1855 | E63: 9.8999 | F63: 47.791 | G63: 38.084 | H63: 45.594 | I63: 62.109 | J63: 52.126 | K63: 41.452 | L63: 49.497 | M63: 67.543 | N63: 21.988 | O63: 16.692 | P63: 20.805 | Q63: 28.905 | R63: 56.539 | S63: 44.806 | T63: 53.698 | U63: 73.404 | V63: 56.114 | W63: 44.703 | X63: 53.432 | Y63: 72.544 | Z63: 8.6861 | AA63: 5.8517 | AB63: 8.0476 | AC63: 12.266 | AD63: 62.941 | AE63: 49.798 | AF63: 59.71 | AG63: 81.939
A64: 4.5 | B64: 7.5714 | C64: 5.9343 | D64: 7.1946 | E64: 9.8803 | F64: 47.795 | G64: 38.138 | H64: 45.585 | I64: 62.157 | J64: 52.134 | K64: 41.431 | L64: 49.503 | M64: 67.59 | N64: 22.015 | O64: 16.688 | P64: 20.828 | Q64: 29.005 | R64: 56.549 | S64: 44.73 | T64: 53.709 | U64: 73.31 | V64: 56.134 | W64: 44.799 | X64: 53.394 | Y64: 72.518 | Z64: 8.6865 | AA64: 5.9243 | AB64: 8.0719 | AC64: 12.326 | AD64: 62.933 | AE64: 49.797 | AF64: 59.495 | AG64: 82.002
A65: 4.58333 | B65: 7.5737 | C65: 5.9342 | D65: 7.205 | E65: 9.8607 | F65: 47.798 | G65: 38.091 | H65: 45.589 | I65: 62.032 | J65: 52.143 | K65: 41.506 | L65: 49.508 | M65: 67.603 | N65: 22.044 | O65: 16.745 | P65: 20.887 | Q65: 29.125 | R65: 56.56 | S65: 44.788 | T65: 53.701 | U65: 73.04 | V65: 56.154 | W65: 44.958 | X65: 53.229 | Y65: 72.322 | Z65: 8.6917 | AA65: 5.8921 | AB65: 8.1072 | AC65: 12.226 | AD65: 62.927 | AE65: 49.797 | AF65: 59.541 | AG65: 82.102
A66: 4.66667 | B66: 7.5762 | C66: 5.9399 | D66: 7.2095 | E66: 9.8401 | F66: 47.802 | G66: 38.072 | H66: 45.576 | I66: 61.878 | J66: 52.151 | K66: 41.511 | L66: 49.507 | M66: 67.417 | N66: 22.077 | O66: 16.637 | P66: 20.911 | Q66: 29.044 | R66: 56.571 | S66: 44.685 | T66: 53.817 | U66: 73.112 | V66: 56.175 | W66: 44.938 | X66: 53.294 | Y66: 72.146 | Z66: 8.7021 | AA66: 5.8074 | AB66: 8.1516 | AC66: 12.312 | AD66: 62.922 | AE66: 49.928 | AF66: 59.733 | AG66: 81.931
A67: 4.75 | B67: 7.579 | C67: 5.9113 | D67: 7.1882 | E67: 9.8256 | F67: 47.806 | G67: 37.989 | H67: 45.511 | I67: 61.755 | J67: 52.16 | K67: 41.524 | L67: 49.501 | M67: 67.382 | N67: 22.112 | O67: 16.561 | P67: 20.91 | Q67: 29.081 | R67: 56.583 | S67: 44.573 | T67: 53.897 | U67: 73.368 | V67: 56.196 | W67: 44.773 | X67: 53.309 | Y67: 71.943 | Z67: 8.7174 | AA67: 5.7293 | AB67: 8.1237 | AC67: 12.223 | AD67: 62.919 | AE67: 49.767 | AF67: 59.823 | AG67: 81.492
A68: 4.83333 | B68: 7.5821 | C68: 5.8766 | D68: 7.2206 | E68: 9.843 | F68: 47.81 | G68: 37.995 | H68: 45.577 | I68: 61.632 | J68: 52.169 | K68: 41.511 | L68: 49.514 | M68: 67.562 | N68: 22.15 | O68: 16.54 | P68: 20.875 | Q68: 29.325 | R68: 56.595 | S68: 44.667 | T68: 53.844 | U68: 73.518 | V68: 56.218 | W68: 44.837 | X68: 53.423 | Y68: 71.879 | Z68: 8.7377 | AA68: 5.6482 | AB68: 8.1048 | AC68: 12.347 | AD68: 62.916 | AE68: 49.67 | AF68: 59.725 | AG68: 81.19
A69: 4.91667 | B69: 7.5855 | C69: 5.8517 | D69: 7.2229 | E69: 9.7646 | F69: 47.814 | G69: 37.966 | H69: 45.59 | I69: 61.566 | J69: 52.178 | K69: 41.464 | L69: 49.568 | M69: 67.459 | N69: 22.19 | O69: 16.496 | P69: 20.761 | Q69: 29.685 | R69: 56.609 | S69: 44.646 | T69: 53.817 | U69: 73.4 | V69: 56.24 | W69: 44.778 | X69: 53.386 | Y69: 71.931 | Z69: 8.7629 | AA69: 5.5444 | AB69: 8.1623 | AC69: 12.399 | AD69: 62.914 | AE69: 49.485 | AF69: 59.735 | AG69: 81.126
A70: 5 | B70: 7.6056 | C70: 5.8423 | D70: 7.3432 | E70: 9.6144 | F70: 47.915 | G70: 38.2 | H70: 45.886 | I70: 60.595 | J70: 52.289 | K70: 42.007 | L70: 50.192 | M70: 66.548 | N70: 22.249 | O70: 16.36 | P70: 20.976 | Q70: 29.525 | R70: 56.718 | S70: 45.087 | T70: 53.983 | U70: 72.562 | V70: 56.369 | W70: 45.238 | X70: 54.013 | Y70: 71.357 | Z70: 8.8062 | AA70: 5.3328 | AB70: 8.1394 | AC70: 12.657 | AD70: 63.024 | AE70: 49.74 | AF70: 60.4 | AG70: 80.847
A71: 5.08333 | B71: 7.6037 | C71: 5.8979 | D71: 7.3466 | E71: 9.5879 | F71: 47.913 | G71: 38.205 | H71: 45.863 | I71: 60.438 | J71: 52.288 | K71: 41.947 | L71: 50.21 | M71: 66.636 | N71: 22.25 | O71: 16.591 | P71: 21.169 | Q71: 29.265 | R71: 56.692 | S71: 45.327 | T71: 53.883 | U71: 72.795 | V71: 56.365 | W71: 45.237 | X71: 54.051 | Y71: 71.8 | Z71: 8.8057 | AA71: 5.5006 | AB71: 8.1191 | AC71: 12.573 | AD71: 63.016 | AE71: 49.727 | AF71: 60.429 | AG71: 81
A72: 5.16667 | B72: 7.6023 | C72: 5.9614 | D72: 7.3261 | E72: 9.5657 | F72: 47.913 | G72: 38.229 | H72: 45.896 | I72: 60.317 | J72: 52.286 | K72: 41.861 | L72: 50.284 | M72: 66.54 | N72: 22.255 | O72: 16.675 | P72: 21.278 | Q72: 29.321 | R72: 56.667 | S72: 45.287 | T72: 53.818 | U72: 72.906 | V72: 56.362 | W72: 45.285 | X72: 54.06 | Y72: 71.996 | Z72: 8.8109 | AA72: 5.6259 | AB72: 8.1944 | AC72: 12.493 | AD72: 63.008 | AE72: 49.751 | AF72: 60.243 | AG72: 80.808
A73: 5.25 | B73: 7.6012 | C73: 5.9885 | D73: 7.3135 | E73: 9.538 | F73: 47.912 | G73: 38.303 | H73: 45.906 | I73: 60.397 | J73: 52.286 | K73: 41.779 | L73: 50.222 | M73: 66.256 | N73: 22.263 | O73: 16.799 | P73: 21.315 | Q73: 29.121 | R73: 56.643 | S73: 45.199 | T73: 53.843 | U73: 72.893 | V73: 56.359 | W73: 45.427 | X73: 53.908 | Y73: 71.882 | Z73: 8.8215 | AA73: 5.7887 | AB73: 8.2234 | AC73: 12.482 | AD73: 63.002 | AE73: 49.754 | AF73: 60.398 | AG73: 80.493
A74: 5.33333 | B74: 7.6004 | C74: 5.975 | D74: 7.3238 | E74: 9.529 | F74: 47.911 | G74: 38.318 | H74: 45.824 | I74: 60.612 | J74: 52.285 | K74: 41.867 | L74: 50.094 | M74: 66.103 | N74: 22.275 | O74: 16.85 | P74: 21.385 | Q74: 28.999 | R74: 56.619 | S74: 45.257 | T74: 53.867 | U74: 72.731 | V74: 56.356 | W74: 45.339 | X74: 53.92 | Y74: 71.611 | Z74: 8.8373 | AA74: 5.8671 | AB74: 8.21 | AC74: 12.748 | AD74: 62.997 | AE74: 49.852 | AF74: 60.265 | AG74: 80.565
A75: 5.41667 | B75: 7.5999 | C75: 5.9417 | D75: 7.3155 | E75: 9.6034 | F75: 47.911 | G75: 38.227 | H75: 45.862 | I75: 60.811 | J75: 52.284 | K75: 41.975 | L75: 50.146 | M75: 66.378 | N75: 22.29 | O75: 16.918 | P75: 21.351 | Q75: 29.071 | R75: 56.596 | S75: 45.273 | T75: 54.092 | U75: 72.64 | V75: 56.354 | W75: 45.271 | X75: 53.965 | Y75: 71.446 | Z75: 8.8582 | AA75: 5.8823 | AB75: 8.1755 | AC75: 12.705 | AD75: 62.992 | AE75: 49.933 | AF75: 60.41 | AG75: 80.978
A76: 5.5 | B76: 7.5997 | C76: 5.9668 | D76: 7.3163 | E76: 9.6493 | F76: 47.911 | G76: 38.11 | H76: 45.87 | I76: 60.959 | J76: 52.284 | K76: 42.066 | L76: 49.961 | M76: 66.245 | N76: 22.308 | O76: 16.874 | P76: 21.433 | Q76: 29.239 | R76: 56.573 | S76: 45.475 | T76: 53.98 | U76: 72.715 | V76: 56.353 | W76: 45.061 | X76: 54.048 | Y76: 71.174 | Z76: 8.8838 | AA76: 5.926 | AB76: 8.1809 | AC76: 12.713 | AD76: 62.988 | AE76: 50.071 | AF76: 60.217 | AG76: 80.215
A77: 5.58333 | B77: 7.5999 | C77: 5.9723 | D77: 7.3254 | E77: 9.6351 | F77: 47.911 | G77: 38.159 | H77: 45.876 | I77: 61.065 | J77: 52.284 | K77: 42.181 | L77: 49.803 | M77: 66.257 | N77: 22.329 | O77: 16.855 | P77: 21.254 | Q77: 29.277 | R77: 56.551 | S77: 45.273 | T77: 53.769 | U77: 72.506 | V77: 56.351 | W77: 45.016 | X77: 53.986 | Y77: 71.113 | Z77: 8.9146 | AA77: 5.9483 | AB77: 8.1653 | AC77: 12.786 | AD77: 62.985 | AE77: 50.284 | AF77: 60.301 | AG77: 79.967
A78: 5.66667 | B78: 7.6003 | C78: 5.9319 | D78: 7.3301 | E78: 9.6062 | F78: 47.911 | G78: 38.196 | H78: 45.904 | I78: 61.03 | J78: 52.285 | K78: 42.12 | L78: 49.807 | M78: 66.701 | N78: 22.354 | O78: 16.791 | P78: 21.21 | Q78: 29.312 | R78: 56.529 | S78: 45.133 | T78: 53.851 | U78: 72.394 | V78: 56.351 | W78: 45.214 | X78: 54.109 | Y78: 71.253 | Z78: 8.9505 | AA78: 5.8663 | AB78: 8.1187 | AC78: 12.641 | AD78: 62.983 | AE78: 50.326 | AF78: 60.366 | AG78: 80.203
A79: 5.75 | B79: 7.6011 | C79: 5.996 | D79: 7.3175 | E79: 9.6642 | F79: 47.911 | G79: 38.124 | H79: 45.916 | I79: 61.051 | J79: 52.285 | K79: 41.983 | L79: 49.977 | M79: 66.633 | N79: 22.382 | O79: 16.754 | P79: 21.314 | Q79: 29.449 | R79: 56.508 | S79: 45.111 | T79: 53.892 | U79: 72.59 | V79: 56.35 | W79: 45.178 | X79: 54.023 | Y79: 71.333 | Z79: 8.9916 | AA79: 5.8333 | AB79: 8.0667 | AC79: 12.866 | AD79: 62.982 | AE79: 50.277 | AF79: 60.402 | AG79: 80.392
A80: 5.83333 | B80: 7.6022 | C80: 6.0016 | D80: 7.3282 | E80: 9.6542 | F80: 47.912 | G80: 38.132 | H80: 45.933 | I80: 61.15 | J80: 52.286 | K80: 42.058 | L80: 49.868 | M80: 66.606 | N80: 22.415 | O80: 16.592 | P80: 21.15 | Q80: 29.816 | R80: 56.488 | S80: 45.132 | T80: 53.89 | U80: 72.435 | V80: 56.35 | W80: 45.072 | X80: 53.957 | Y80: 71.563 | Z80: 9.0377 | AA80: 5.7879 | AB80: 8.1132 | AC80: 12.912 | AD80: 62.981 | AE80: 50.383 | AF80: 60.36 | AG80: 80.511
A81: 5.91667 | B81: 7.6036 | C81: 5.9651 | D81: 7.3322 | E81: 9.6558 | F81: 47.912 | G81: 38.18 | H81: 45.901 | I81: 61.199 | J81: 52.287 | K81: 42.103 | L81: 49.862 | M81: 66.678 | N81: 22.45 | O81: 16.322 | P81: 21.155 | Q81: 29.871 | R81: 56.468 | S81: 45.102 | T81: 53.957 | U81: 72.346 | V81: 56.351 | W81: 45.076 | X81: 54.104 | Y81: 71.537 | Z81: 9.0892 | AA81: 5.7234 | AB81: 8.079 | AC81: 13.078 | AD81: 62.981 | AE81: 50.355 | AF81: 60.329 | AG81: 80.299
A82: 6 | B82: 7.601 | C82: 5.8915 | D82: 7.2935 | E82: 9.8739 | F82: 47.877 | G82: 38.235 | H82: 46.031 | I82: 61.909 | J82: 52.247 | K82: 42.037 | L82: 50.417 | M82: 67.957 | N82: 22.474 | O82: 15.988 | P82: 21.091 | Q82: 31.619 | R82: 56.41 | S82: 44.558 | T82: 54.101 | U82: 73.52 | V82: 56.309 | W82: 45.296 | X82: 53.956 | Y82: 72.966 | Z82: 9.1591 | AA82: 5.6868 | AB82: 7.9089 | AC82: 14.015 | AD82: 62.959 | AE82: 50.04 | AF82: 60.299 | AG82: 81.373
A83: 6.08333 | B83: 7.6002 | C83: 5.918 | D83: 7.3036 | E83: 9.8781 | F83: 47.878 | G83: 38.285 | H83: 46.062 | I83: 61.966 | J83: 52.249 | K83: 42.086 | L83: 50.397 | M83: 67.953 | N83: 22.432 | O83: 16.177 | P83: 21.206 | Q83: 30.807 | R83: 56.412 | S83: 44.843 | T83: 54.131 | U83: 73.209 | V83: 56.312 | W83: 45.379 | X83: 53.877 | Y83: 72.859 | Z83: 9.1073 | AA83: 5.8047 | AB83: 7.983 | AC83: 13.792 | AD83: 62.982 | AE83: 50.223 | AF83: 60.242 | AG83: 81.185
A84: 6.16667 | B84: 7.5997 | C84: 5.9467 | D84: 7.3084 | E84: 9.8755 | F84: 47.879 | G84: 38.263 | H84: 46.087 | I84: 62.069 | J84: 52.253 | K84: 42.01 | L84: 50.361 | M84: 67.996 | N84: 22.393 | O84: 16.293 | P84: 21.253 | Q84: 30.257 | R84: 56.414 | S84: 44.929 | T84: 54.161 | U84: 72.882 | V84: 56.315 | W84: 45.397 | X84: 53.8 | Y84: 73.001 | Z84: 9.0606 | AA84: 5.8951 | AB84: 8.0238 | AC84: 13.644 | AD84: 63.007 | AE84: 50.257 | AF84: 60.298 | AG84: 81.603
A85: 6.25 | B85: 7.5994 | C85: 5.961 | D85: 7.3022 | E85: 9.8615 | F85: 47.88 | G85: 38.259 | H85: 46.134 | I85: 62.012 | J85: 52.256 | K85: 41.998 | L85: 50.255 | M85: 68.039 | N85: 22.358 | O85: 16.436 | P85: 21.321 | Q85: 29.662 | R85: 56.417 | S85: 45.041 | T85: 54.16 | U85: 72.993 | V85: 56.318 | W85: 45.278 | X85: 54.001 | Y85: 73.008 | Z85: 9.019 | AA85: 5.8935 | AB85: 8.0883 | AC85: 13.528 | AD85: 63.032 | AE85: 50.343 | AF85: 60.346 | AG85: 81.696
A86: 6.33333 | B86: 7.5995 | C86: 5.9583 | D86: 7.2759 | E86: 9.857 | F86: 47.882 | G86: 38.317 | H86: 46.25 | I86: 62.049 | J86: 52.26 | K86: 42.01 | L86: 50.224 | M86: 68.055 | N86: 22.326 | O86: 16.569 | P86: 21.355 | Q86: 29.264 | R86: 56.421 | S86: 45.006 | T86: 54.132 | U86: 73.333 | V86: 56.322 | W86: 45.249 | X86: 54.083 | Y86: 72.973 | Z86: 8.9823 | AA86: 5.9164 | AB86: 8.0496 | AC86: 13.235 | AD86: 63.058 | AE86: 50.265 | AF86: 60.297 | AG86: 81.826
A87: 6.41667 | B87: 7.5999 | C87: 5.9316 | D87: 7.2971 | E87: 9.9546 | F87: 47.883 | G87: 38.339 | H87: 46.207 | I87: 62.001 | J87: 52.264 | K87: 42.112 | L87: 50.168 | M87: 67.96 | N87: 22.297 | O87: 16.674 | P87: 21.337 | Q87: 28.816 | R87: 56.425 | S87: 44.984 | T87: 54.067 | U87: 73.383 | V87: 56.327 | W87: 45.187 | X87: 54.207 | Y87: 73.029 | Z87: 8.9507 | AA87: 5.9685 | AB87: 8.1266 | AC87: 12.88 | AD87: 63.086 | AE87: 50.41 | AF87: 60.492 | AG87: 81.837
A88: 6.5 | B88: 7.6007 | C88: 5.9875 | D88: 7.314 | E88: 9.9666 | F88: 47.885 | G88: 38.501 | H88: 46.173 | I88: 61.978 | J88: 52.268 | K88: 42.155 | L88: 50.166 | M88: 67.964 | N88: 22.272 | O88: 16.769 | P88: 21.355 | Q88: 28.738 | R88: 56.43 | S88: 44.96 | T88: 54.097 | U88: 73.418 | V88: 56.332 | W88: 45.227 | X88: 54.178 | Y88: 73.107 | Z88: 8.9244 | AA88: 5.9061 | AB88: 8.1109 | AC88: 12.693 | AD88: 63.114 | AE88: 50.425 | AF88: 60.493 | AG88: 81.847
A89: 6.58333 | B89: 7.6018 | C89: 5.9651 | D89: 7.3035 | E89: 9.9882 | F89: 47.886 | G89: 38.481 | H89: 46.135 | I89: 61.956 | J89: 52.272 | K89: 42.106 | L89: 50.291 | M89: 67.906 | N89: 22.25 | O89: 16.736 | P89: 21.301 | Q89: 28.785 | R89: 56.436 | S89: 44.93 | T89: 54.221 | U89: 73.438 | V89: 56.337 | W89: 45.258 | X89: 54.255 | Y89: 73.427 | Z89: 8.9031 | AA89: 5.9242 | AB89: 8.1441 | AC89: 12.507 | AD89: 63.143 | AE89: 50.474 | AF89: 60.476 | AG89: 82.087
A90: 6.66667 | B90: 7.6031 | C90: 5.9551 | D90: 7.3293 | E90: 9.8505 | F90: 47.888 | G90: 38.518 | H90: 46.102 | I90: 61.933 | J90: 52.276 | K90: 42.035 | L90: 50.245 | M90: 67.992 | N90: 22.232 | O90: 16.78 | P90: 21.303 | Q90: 28.941 | R90: 56.442 | S90: 45.015 | T90: 54.276 | U90: 73.364 | V90: 56.343 | W90: 45.067 | X90: 54.261 | Y90: 73.366 | Z90: 8.8865 | AA90: 5.9484 | AB90: 8.1344 | AC90: 12.418 | AD90: 63.174 | AE90: 50.416 | AF90: 60.34 | AG90: 81.899
A91: 6.75 | B91: 7.6048 | C91: 5.976 | D91: 7.347 | E91: 9.8489 | F91: 47.89 | G91: 38.47 | H91: 46.107 | I91: 61.85 | J91: 52.281 | K91: 42.068 | L91: 50.113 | M91: 67.775 | N91: 22.217 | O91: 16.822 | P91: 21.246 | Q91: 28.688 | R91: 56.448 | S91: 45.028 | T91: 54.284 | U91: 73.383 | V91: 56.349 | W91: 45.081 | X91: 54.181 | Y91: 73.246 | Z91: 8.8756 | AA91: 5.8554 | AB91: 8.0881 | AC91: 12.5 | AD91: 63.204 | AE91: 50.278 | AF91: 60.332 | AG91: 81.835
A92: 6.83333 | B92: 7.6067 | C92: 5.9443 | D92: 7.3575 | E92: 9.8292 | F92: 47.893 | G92: 38.36 | H92: 46.117 | I92: 61.974 | J92: 52.286 | K92: 42.045 | L92: 50.179 | M92: 67.719 | N92: 22.206 | O92: 16.72 | P92: 21.011 | Q92: 29.072 | R92: 56.455 | S92: 45.033 | T92: 54.263 | U92: 73.525 | V92: 56.356 | W92: 45.014 | X92: 54.092 | Y92: 73.304 | Z92: 8.8698 | AA92: 5.8287 | AB92: 8.1278 | AC92: 12.487 | AD92: 63.237 | AE92: 50.334 | AF92: 60.603 | AG92: 81.787
A93: 6.91667 | B93: 7.609 | C93: 5.9087 | D93: 7.3589 | E93: 9.8161 | F93: 47.895 | G93: 38.249 | H93: 46.212 | I93: 61.917 | J93: 52.291 | K93: 42.056 | L93: 50.198 | M93: 67.613 | N93: 22.197 | O93: 16.577 | P93: 20.91 | Q93: 29.316 | R93: 56.463 | S93: 45.007 | T93: 54.243 | U93: 73.453 | V93: 56.363 | W93: 44.929 | X93: 54.247 | Y93: 73.027 | Z93: 8.8689 | AA93: 5.7656 | AB93: 8.1291 | AC93: 12.561 | AD93: 63.27 | AE93: 50.257 | AF93: 60.63 | AG93: 82.044
A94: 7 | B94: 7.6182 | C94: 5.8707 | D94: 7.2933 | E94: 9.8442 | F94: 47.934 | G94: 38.594 | H94: 45.915 | I94: 61.486 | J94: 52.332 | K94: 42.017 | L94: 49.824 | M94: 66.853 | N94: 22.205 | O94: 16.548 | P94: 21.044 | Q94: 29.024 | R94: 56.495 | S94: 45.025 | T94: 53.958 | U94: 73.078 | V94: 56.416 | W94: 44.992 | X94: 54.04 | Y94: 72.143 | Z94: 8.8714 | AA94: 5.5659 | AB94: 8.1733 | AC94: 12.495 | AD94: 63.333 | AE94: 50.213 | AF94: 60.596 | AG94: 80.948
A95: 7.08333 | B95: 7.6129 | C95: 5.9047 | D95: 7.2819 | E95: 9.866 | F95: 47.927 | G95: 38.524 | H95: 45.849 | I95: 61.456 | J95: 52.325 | K95: 42.023 | L95: 49.791 | M95: 66.756 | N95: 22.185 | O95: 16.6 | P95: 21.073 | Q95: 29.277 | R95: 56.507 | S95: 44.862 | T95: 53.949 | U95: 72.679 | V95: 56.398 | W95: 44.951 | X95: 54.008 | Y95: 72.418 | Z95: 8.8473 | AA95: 5.7508 | AB95: 8.222 | AC95: 12.27 | AD95: 63.305 | AE95: 50.079 | AF95: 60.528 | AG95: 80.946
A96: 7.16667 | B96: 7.608 | C96: 5.9351 | D96: 7.2725 | E96: 9.812 | F96: 47.92 | G96: 38.454 | H96: 45.752 | I96: 61.406 | J96: 52.319 | K96: 42.012 | L96: 49.793 | M96: 66.621 | N96: 22.169 | O96: 16.736 | P96: 20.985 | Q96: 28.961 | R96: 56.52 | S96: 44.723 | T96: 53.83 | U96: 73.044 | V96: 56.38 | W96: 44.994 | X96: 54.185 | Y96: 72.198 | Z96: 8.8282 | AA96: 5.8051 | AB96: 8.3292 | AC96: 12.084 | AD96: 63.279 | AE96: 49.914 | AF96: 60.612 | AG96: 80.653
A97: 7.25 | B97: 7.6033 | C97: 5.9326 | D97: 7.2768 | E97: 9.8134 | F97: 47.913 | G97: 38.413 | H97: 45.732 | I97: 61.395 | J97: 52.312 | K97: 41.961 | L97: 49.818 | M97: 66.605 | N97: 22.156 | O97: 16.81 | P97: 20.993 | Q97: 28.418 | R97: 56.534 | S97: 44.814 | T97: 53.778 | U97: 72.93 | V97: 56.363 | W97: 44.878 | X97: 54.03 | Y97: 72.1 | Z97: 8.8142 | AA97: 5.9105 | AB97: 8.3836 | AC97: 12.121 | AD97: 63.253 | AE97: 49.85 | AF97: 60.588 | AG97: 80.353
A98: 7.33333 | B98: 7.5989 | C98: 5.9586 | D98: 7.2758 | E98: 9.7515 | F98: 47.906 | G98: 38.313 | H98: 45.737 | I98: 61.365 | J98: 52.306 | K98: 41.879 | L98: 49.907 | M98: 66.671 | N98: 22.146 | O98: 16.861 | P98: 21.152 | Q98: 28.414 | R98: 56.548 | S98: 44.799 | T98: 53.726 | U98: 72.534 | V98: 56.346 | W98: 44.911 | X98: 53.948 | Y98: 72.069 | Z98: 8.805 | AA98: 5.9855 | AB98: 8.3734 | AC98: 12.264 | AD98: 63.229 | AE98: 49.994 | AF98: 60.459 | AG98: 80.533
A99: 7.41667 | B99: 7.5948 | C99: 5.9649 | D99: 7.2591 | E99: 9.8017 | F99: 47.9 | G99: 38.243 | H99: 45.713 | I99: 61.344 | J99: 52.3 | K99: 41.767 | L99: 49.955 | M99: 66.809 | N99: 22.14 | O99: 16.824 | P99: 21.043 | Q99: 28.352 | R99: 56.563 | S99: 44.798 | T99: 53.76 | U99: 72.502 | V99: 56.33 | W99: 44.82 | X99: 53.915 | Y99: 71.889 | Z99: 8.8008 | AA99: 6.0131 | AB99: 8.3429 | AC99: 12.171 | AD99: 63.206 | AE99: 50.046 | AF99: 60.53 | AG99: 80.698
A100: 7.5 | B100: 7.591 | C100: 5.965 | D100: 7.269 | E100: 9.802 | F100: 47.893 | G100: 38.236 | H100: 45.755 | I100: 61.338 | J100: 52.294 | K100: 41.686 | L100: 50.03 | M100: 66.753 | N100: 22.136 | O100: 16.842 | P100: 21.066 | Q100: 28.423 | R100: 56.579 | S100: 44.896 | T100: 53.801 | U100: 72.355 | V100: 56.314 | W100: 44.744 | X100: 54.005 | Y100: 71.635 | Z100: 8.8019 | AA100: 6.0178 | AB100: 8.2914 | AC100: 12.364 | AD100: 63.183 | AE100: 50.173 | AF100: 60.363 | AG100: 80.804
A101: 7.58333 | B101: 7.5875 | C101: 5.9647 | D101: 7.2896 | E101: 9.8365 | F101: 47.887 | G101: 38.213 | H101: 45.728 | I101: 61.288 | J101: 52.288 | K101: 41.59 | L101: 50 | M101: 66.492 | N101: 22.136 | O101: 16.875 | P101: 21.073 | Q101: 28.496 | R101: 56.595 | S101: 44.968 | T101: 53.941 | U101: 72.567 | V101: 56.299 | W101: 44.722 | X101: 54.073 | Y101: 71.232 | Z101: 8.8074 | AA101: 6.0369 | AB101: 8.2937 | AC101: 12.361 | AD101: 63.162 | AE101: 50.202 | AF101: 60.08 | AG101: 80.996
A102: 7.66667 | B102: 7.5842 | C102: 5.9526 | D102: 7.2809 | E102: 9.8737 | F102: 47.881 | G102: 38.186 | H102: 45.659 | I102: 61.278 | J102: 52.283 | K102: 41.627 | L102: 50.065 | M102: 66.488 | N102: 22.139 | O102: 16.78 | P102: 21.067 | Q102: 28.631 | R102: 56.612 | S102: 44.93 | T102: 54.036 | U102: 72.832 | V102: 56.284 | W102: 44.639 | X102: 54.034 | Y102: 71.004 | Z102: 8.8184 | AA102: 5.976 | AB102: 8.2276 | AC102: 12.326 | AD102: 63.142 | AE102: 50.107 | AF102: 60.11 | AG102: 80.905
A103: 7.75 | B103: 7.5813 | C103: 5.9601 | D103: 7.288 | E103: 9.9321 | F103: 47.875 | G103: 38.172 | H103: 45.728 | I103: 61.35 | J103: 52.278 | K103: 41.694 | L103: 50.092 | M103: 66.742 | N103: 22.144 | O103: 16.753 | P103: 21.068 | Q103: 28.8 | R103: 56.63 | S103: 44.813 | T103: 54.121 | U103: 73.086 | V103: 56.269 | W103: 44.531 | X103: 54.027 | Y103: 71.163 | Z103: 8.8341 | AA103: 5.9074 | AB103: 8.2501 | AC103: 12.403 | AD103: 63.122 | AE103: 50.084 | AF103: 60.194 | AG103: 80.578
A104: 7.83333 | B104: 7.5786 | C104: 5.9186 | D104: 7.3054 | E104: 9.9087 | F104: 47.869 | G104: 38.164 | H104: 45.712 | I104: 61.215 | J104: 52.273 | K104: 41.574 | L104: 50.099 | M104: 66.637 | N104: 22.153 | O104: 16.605 | P104: 21.087 | Q104: 28.836 | R104: 56.648 | S104: 44.76 | T104: 54.234 | U104: 73.327 | V104: 56.255 | W104: 44.474 | X104: 53.99 | Y104: 71.474 | Z104: 8.8546 | AA104: 5.8206 | AB104: 8.2083 | AC104: 12.346 | AD104: 63.102 | AE104: 50.017 | AF104: 60.276 | AG104: 80.815
A105: 7.91667 | B105: 7.5763 | C105: 5.8889 | D105: 7.3046 | E105: 9.8347 | F105: 47.863 | G105: 38.19 | H105: 45.806 | I105: 61.198 | J105: 52.268 | K105: 41.446 | L105: 50.172 | M105: 66.66 | N105: 22.165 | O105: 16.464 | P105: 20.922 | Q105: 29.104 | R105: 56.667 | S105: 44.755 | T105: 54.224 | U105: 73.627 | V105: 56.242 | W105: 44.458 | X105: 54.017 | Y105: 71.69 | Z105: 8.8801 | AA105: 5.6718 | AB105: 8.1399 | AC105: 12.45 | AD105: 63.084 | AE105: 49.955 | AF105: 60.396 | AG105: 81.092
A106: 8 | B106: 7.5829 | C106: 5.8441 | D106: 7.3499 | E106: 9.6078 | F106: 47.913 | G106: 38.072 | H106: 45.835 | I106: 60.917 | J106: 52.321 | K106: 41.41 | L106: 50.109 | M106: 67.089 | N106: 22.18 | O106: 16.519 | P106: 21.106 | Q106: 29.102 | R106: 56.745 | S106: 44.876 | T106: 54.076 | U106: 72.214 | V106: 56.288 | W106: 44.424 | X106: 53.862 | Y106: 71.106 | Z106: 8.9333 | AA106: 5.4832 | AB106: 8.2061 | AC106: 13.121 | AD106: 63.144 | AE106: 50.328 | AF106: 60.311 | AG106: 80.719
A107: 8.08333 | B107: 7.5785 | C107: 5.863 | D107: 7.3684 | E107: 9.6145 | F107: 47.908 | G107: 38.091 | H107: 45.938 | I107: 61.066 | J107: 52.315 | K107: 41.527 | L107: 50.094 | M107: 66.994 | N107: 22.144 | O107: 16.594 | P107: 21.174 | Q107: 29.034 | R107: 56.724 | S107: 44.828 | T107: 54.119 | U107: 72.053 | V107: 56.285 | W107: 44.499 | X107: 53.811 | Y107: 71.596 | Z107: 8.9107 | AA107: 5.6429 | AB107: 8.2217 | AC107: 12.799 | AD107: 63.152 | AE107: 50.337 | AF107: 60.593 | AG107: 80.586
A108: 8.16667 | B108: 7.5744 | C108: 5.8921 | D108: 7.3847 | E108: 9.5888 | F108: 47.903 | G108: 38.097 | H108: 45.899 | I108: 61.13 | J108: 52.31 | K108: 41.298 | L108: 50.089 | M108: 66.71 | N108: 22.111 | O108: 16.751 | P108: 21.125 | Q108: 29.191 | R108: 56.705 | S108: 44.781 | T108: 53.949 | U108: 72.155 | V108: 56.283 | W108: 44.553 | X108: 53.842 | Y108: 71.412 | Z108: 8.8935 | AA108: 5.767 | AB108: 8.2573 | AC108: 12.722 | AD108: 63.161 | AE108: 50.238 | AF108: 60.717 | AG108: 80.423
A109: 8.25 | B109: 7.5707 | C109: 5.9007 | D109: 7.3534 | E109: 9.5758 | F109: 47.898 | G109: 38.099 | H109: 45.823 | I109: 61.226 | J109: 52.305 | K109: 41.306 | L109: 50.054 | M109: 66.631 | N109: 22.081 | O109: 16.786 | P109: 21.202 | Q109: 28.64 | R109: 56.685 | S109: 44.863 | T109: 53.968 | U109: 71.832 | V109: 56.281 | W109: 44.668 | X109: 53.743 | Y109: 71.424 | Z109: 8.8819 | AA109: 5.8618 | AB109: 8.2712 | AC109: 12.711 | AD109: 63.171 | AE109: 50.18 | AF109: 60.712 | AG109: 80.142
A110: 8.33333 | B110: 7.5673 | C110: 5.9253 | D110: 7.32 | E110: 9.5474 | F110: 47.893 | G110: 38.072 | H110: 45.822 | I110: 61.301 | J110: 52.3 | K110: 41.355 | L110: 50.055 | M110: 66.443 | N110: 22.054 | O110: 16.805 | P110: 21.251 | Q110: 28.341 | R110: 56.667 | S110: 44.901 | T110: 54.189 | U110: 71.756 | V110: 56.28 | W110: 44.81 | X110: 53.687 | Y110: 71.345 | Z110: 8.8757 | AA110: 5.9458 | AB110: 8.3152 | AC110: 12.558 | AD110: 63.182 | AE110: 50.162 | AF110: 60.815 | AG110: 80.025
A111: 8.41667 | B111: 7.5642 | C111: 5.9394 | D111: 7.316 | E111: 9.5812 | F111: 47.888 | G111: 38.094 | H111: 45.831 | I111: 61.327 | J111: 52.295 | K111: 41.397 | L111: 50.028 | M111: 66.474 | N111: 22.03 | O111: 16.856 | P111: 21.213 | Q111: 28.249 | R111: 56.649 | S111: 44.833 | T111: 54.206 | U111: 71.976 | V111: 56.279 | W111: 44.77 | X111: 53.47 | Y111: 71.347 | Z111: 8.875 | AA111: 6.009 | AB111: 8.3859 | AC111: 12.542 | AD111: 63.195 | AE111: 50.177 | AF111: 60.934 | AG111: 80.142
A112: 8.5 | B112: 7.5614 | C112: 5.9773 | D112: 7.3314 | E112: 9.6232 | F112: 47.884 | G112: 38.079 | H112: 45.783 | I112: 61.431 | J112: 52.291 | K112: 41.5 | L112: 50.032 | M112: 66.583 | N112: 22.009 | O112: 16.863 | P112: 21.054 | Q112: 27.882 | R112: 56.632 | S112: 44.899 | T112: 54.285 | U112: 71.921 | V112: 56.279 | W112: 44.716 | X112: 53.635 | Y112: 71.349 | Z112: 8.8792 | AA112: 5.9833 | AB112: 8.3013 | AC112: 12.556 | AD112: 63.209 | AE112: 50.183 | AF112: 61.096 | AG112: 80.375
A113: 8.58333 | B113: 7.559 | C113: 5.977 | D113: 7.3223 | E113: 9.6778 | F113: 47.879 | G113: 38.111 | H113: 45.733 | I113: 61.431 | J113: 52.287 | K113: 41.514 | L113: 49.923 | M113: 66.803 | N113: 21.991 | O113: 16.908 | P113: 21.079 | Q113: 27.955 | R113: 56.616 | S113: 44.959 | T113: 54.044 | U113: 71.865 | V113: 56.279 | W113: 44.851 | X113: 53.528 | Y113: 71.488 | Z113: 8.8891 | AA113: 6.0169 | AB113: 8.2459 | AC113: 12.312 | AD113: 63.224 | AE113: 50.169 | AF113: 61.277 | AG113: 80.374
A114: 8.66667 | B114: 7.5569 | C114: 5.9555 | D114: 7.3529 | E114: 9.6944 | F114: 47.875 | G114: 38.098 | H114: 45.743 | I114: 61.597 | J114: 52.283 | K114: 41.648 | L114: 49.94 | M114: 66.942 | N114: 21.977 | O114: 16.913 | P114: 20.994 | Q114: 28.203 | R114: 56.6 | S114: 44.961 | T114: 54.028 | U114: 72.099 | V114: 56.28 | W114: 44.842 | X114: 53.52 | Y114: 71.742 | Z114: 8.9042 | AA114: 5.976 | AB114: 8.1794 | AC114: 12.357 | AD114: 63.239 | AE114: 50.239 | AF114: 61.568 | AG114: 80.327
A115: 8.75 | B115: 7.5551 | C115: 5.9334 | D115: 7.3332 | E115: 9.7217 | F115: 47.871 | G115: 38.069 | H115: 45.707 | I115: 61.616 | J115: 52.28 | K115: 41.706 | L115: 49.946 | M115: 66.803 | N115: 21.965 | O115: 16.78 | P115: 21.016 | Q115: 28.494 | R115: 56.585 | S115: 44.956 | T115: 53.972 | U115: 72.354 | V115: 56.282 | W115: 44.836 | X115: 53.414 | Y115: 71.979 | Z115: 8.9247 | AA115: 5.9311 | AB115: 8.1472 | AC115: 12.503 | AD115: 63.256 | AE115: 50.213 | AF115: 61.415 | AG115: 80.376
A116: 8.83333 | B116: 7.5537 | C116: 5.9353 | D116: 7.3047 | E116: 9.7801 | F116: 47.867 | G116: 38.059 | H116: 45.715 | I116: 61.634 | J116: 52.276 | K116: 41.733 | L116: 50.001 | M116: 66.833 | N116: 21.957 | O116: 16.65 | P116: 20.934 | Q116: 28.693 | R116: 56.571 | S116: 44.92 | T116: 54.111 | U116: 72.366 | V116: 56.284 | W116: 44.922 | X116: 53.493 | Y116: 72.107 | Z116: 8.9505 | AA116: 5.8895 | AB116: 8.1109 | AC116: 12.673 | AD116: 63.273 | AE116: 50.084 | AF116: 61.266 | AG116: 80.393
A117: 8.91667 | B117: 7.5526 | C117: 5.9176 | D117: 7.3224 | E117: 9.8199 | F117: 47.863 | G117: 38.069 | H117: 45.784 | I117: 61.778 | J117: 52.273 | K117: 41.626 | L117: 49.94 | M117: 66.926 | N117: 21.952 | O117: 16.443 | P117: 20.751 | Q117: 28.9 | R117: 56.558 | S117: 44.819 | T117: 54.103 | U117: 72.592 | V117: 56.287 | W117: 44.938 | X117: 53.498 | Y117: 72.344 | Z117: 8.9816 | AA117: 5.7724 | AB117: 8.1341 | AC117: 12.946 | AD117: 63.291 | AE117: 50.153 | AF117: 61.166 | AG117: 80.171
A118: 9 | B118: 7.5293 | C118: 5.8199 | D118: 7.2253 | E118: 9.8404 | F118: 47.714 | G118: 37.717 | H118: 45.549 | I118: 61.765 | J118: 52.116 | K118: 41.28 | L118: 49.665 | M118: 67.559 | N118: 21.884 | O118: 16.127 | P118: 20.721 | Q118: 29.693 | R118: 56.357 | S118: 44.441 | T118: 53.586 | U118: 73.091 | V118: 56.123 | W118: 44.312 | X118: 53.301 | Y118: 72.484 | Z118: 9.0122 | AA118: 5.5278 | AB118: 7.9654 | AC118: 13.438 | AD118: 63.093 | AE118: 48.993 | AF118: 60.032 | AG118: 81.041
A119: 9.08333 | B119: 7.5297 | C119: 5.8353 | D119: 7.2311 | E119: 9.8236 | F119: 47.716 | G119: 37.743 | H119: 45.575 | I119: 61.812 | J119: 52.117 | K119: 41.308 | L119: 49.565 | M119: 67.541 | N119: 21.874 | O119: 16.225 | P119: 20.68 | Q119: 29.293 | R119: 56.35 | S119: 44.427 | T119: 53.56 | U119: 73.051 | V119: 56.127 | W119: 44.3 | X119: 53.347 | Y119: 72.336 | Z119: 8.9803 | AA119: 5.676 | AB119: 8.0399 | AC119: 12.993 | AD119: 63.087 | AE119: 49.248 | AF119: 60.138 | AG119: 80.876
A120: 9.16667 | B120: 7.5305 | C120: 5.8318 | D120: 7.2131 | E120: 9.7442 | F120: 47.719 | G120: 37.787 | H120: 45.581 | I120: 61.814 | J120: 52.118 | K120: 41.4 | L120: 49.684 | M120: 67.762 | N120: 21.867 | O120: 16.303 | P120: 20.825 | Q120: 29.005 | R120: 56.344 | S120: 44.361 | T120: 53.695 | U120: 73.138 | V120: 56.131 | W120: 44.449 | X120: 53.306 | Y120: 72.353 | Z120: 8.9542 | AA120: 5.7314 | AB120: 8.1705 | AC120: 12.848 | AD120: 63.082 | AE120: 49.456 | AF120: 60.148 | AG120: 80.781
A121: 9.25 | B121: 7.5315 | C121: 5.8267 | D121: 7.2099 | E121: 9.7454 | F121: 47.722 | G121: 37.866 | H121: 45.517 | I121: 61.734 | J121: 52.119 | K121: 41.474 | L121: 49.68 | M121: 67.896 | N121: 21.863 | O121: 16.419 | P121: 20.83 | Q121: 28.792 | R121: 56.338 | S121: 44.356 | T121: 53.727 | U121: 73.333 | V121: 56.136 | W121: 44.508 | X121: 53.301 | Y121: 72.566 | Z121: 8.9337 | AA121: 5.7828 | AB121: 8.24 | AC121: 12.521 | AD121: 63.079 | AE121: 49.641 | AF121: 60.403 | AG121: 80.592
A122: 9.33333 | B122: 7.5328 | C122: 5.8705 | D122: 7.2353 | E122: 9.7731 | F122: 47.725 | G122: 37.854 | H122: 45.524 | I122: 61.753 | J122: 52.121 | K122: 41.595 | L122: 49.628 | M122: 67.704 | N122: 21.862 | O122: 16.509 | P122: 21.04 | Q122: 28.421 | R122: 56.332 | S122: 44.393 | T122: 53.89 | U122: 73.633 | V122: 56.141 | W122: 44.505 | X122: 53.442 | Y122: 72.823 | Z122: 8.919 | AA122: 5.9177 | AB122: 8.2435 | AC122: 12.44 | AD122: 63.076 | AE122: 49.778 | AF122: 60.443 | AG122: 80.666
A123: 9.41667 | B123: 7.5344 | C123: 5.8573 | D123: 7.2396 | E123: 9.713 | F123: 47.729 | G123: 37.88 | H123: 45.43 | I123: 61.808 | J123: 52.122 | K123: 41.665 | L123: 49.631 | M123: 67.874 | N123: 21.865 | O123: 16.558 | P123: 21.028 | Q123: 28.192 | R123: 56.328 | S123: 44.407 | T123: 53.931 | U123: 73.728 | V123: 56.147 | W123: 44.547 | X123: 53.321 | Y123: 72.733 | Z123: 8.9099 | AA123: 5.9811 | AB123: 8.2298 | AC123: 12.23 | AD123: 63.074 | AE123: 49.871 | AF123: 60.365 | AG123: 80.614
A124: 9.5 | B124: 7.5364 | C124: 5.8952 | D124: 7.2289 | E124: 9.7501 | F124: 47.732 | G124: 37.851 | H124: 45.453 | I124: 61.89 | J124: 52.124 | K124: 41.621 | L124: 49.564 | M124: 67.716 | N124: 21.871 | O124: 16.581 | P124: 20.962 | Q124: 28.329 | R124: 56.324 | S124: 44.479 | T124: 53.882 | U124: 73.776 | V124: 56.154 | W124: 44.511 | X124: 53.425 | Y124: 72.606 | Z124: 8.9064 | AA124: 5.9578 | AB124: 8.2663 | AC124: 12.473 | AD124: 63.074 | AE124: 49.869 | AF124: 60.303 | AG124: 80.452
A125: 9.58333 | B125: 7.5386 | C125: 5.8794 | D125: 7.258 | E125: 9.7795 | F125: 47.736 | G125: 37.805 | H125: 45.506 | I125: 61.916 | J125: 52.126 | K125: 41.49 | L125: 49.557 | M125: 67.826 | N125: 21.88 | O125: 16.539 | P125: 21.067 | Q125: 28.596 | R125: 56.32 | S125: 44.463 | T125: 53.961 | U125: 73.448 | V125: 56.161 | W125: 44.517 | X125: 53.347 | Y125: 72.478 | Z125: 8.9085 | AA125: 5.973 | AB125: 8.2575 | AC125: 12.634 | AD125: 63.075 | AE125: 49.825 | AF125: 60.342 | AG125: 80.372
A126: 9.66667 | B126: 7.5411 | C126: 5.8721 | D126: 7.2557 | E126: 9.7909 | F126: 47.739 | G126: 37.805 | H126: 45.546 | I126: 61.942 | J126: 52.128 | K126: 41.475 | L126: 49.572 | M126: 67.996 | N126: 21.892 | O126: 16.482 | P126: 20.957 | Q126: 28.751 | R126: 56.317 | S126: 44.415 | T126: 53.964 | U126: 73.248 | V126: 56.169 | W126: 44.473 | X126: 53.406 | Y126: 72.533 | Z126: 8.9166 | AA126: 5.944 | AB126: 8.2172 | AC126: 12.639 | AD126: 63.076 | AE126: 49.832 | AF126: 60.474 | AG126: 80.323
A127: 9.75 | B127: 7.5439 | C127: 5.8562 | D127: 7.2545 | E127: 9.8311 | F127: 47.743 | G127: 37.865 | H127: 45.572 | I127: 61.968 | J127: 52.13 | K127: 41.48 | L127: 49.588 | M127: 67.991 | N127: 21.907 | O127: 16.369 | P127: 20.811 | Q127: 28.674 | R127: 56.315 | S127: 44.382 | T127: 54.009 | U127: 73.383 | V127: 56.178 | W127: 44.37 | X127: 53.344 | Y127: 72.382 | Z127: 8.9303 | AA127: 5.9578 | AB127: 8.278 | AC127: 12.69 | AD127: 63.079 | AE127: 49.91 | AF127: 60.674 | AG127: 80.367
A128: 9.83333 | B128: 7.547 | C128: 5.872 | D128: 7.2359 | E128: 9.8563 | F128: 47.747 | G128: 37.909 | H128: 45.607 | I128: 62.049 | J128: 52.133 | K128: 41.443 | L128: 49.559 | M128: 67.911 | N128: 21.925 | O128: 16.163 | P128: 20.754 | Q128: 28.766 | R128: 56.313 | S128: 44.397 | T128: 53.892 | U128: 73.014 | V128: 56.187 | W128: 44.234 | X128: 53.279 | Y128: 72.312 | Z128: 8.9498 | AA128: 5.9498 | AB128: 8.2191 | AC128: 13.104 | AD128: 63.083 | AE128: 49.752 | AF128: 60.765 | AG128: 80.214
A129: 9.91667 | B129: 7.5504 | C129: 5.8467 | D129: 7.2517 | E129: 9.8653 | F129: 47.752 | G129: 37.955 | H129: 45.63 | I129: 62.12 | J129: 52.136 | K129: 41.443 | L129: 49.615 | M129: 67.83 | N129: 21.947 | O129: 16.118 | P129: 20.595 | Q129: 28.841 | R129: 56.312 | S129: 44.384 | T129: 53.877 | U129: 72.835 | V129: 56.196 | W129: 44.248 | X129: 53.355 | Y129: 72.448 | Z129: 8.9751 | AA129: 5.8298 | AB129: 8.1651 | AC129: 13.235 | AD129: 63.088 | AE129: 49.65 | AF129: 61.033 | AG129: 80.017
A130: 10 | B130: 7.5598 | C130: 5.9348 | D130: 7.2723 | E130: 9.8015 | F130: 47.8 | G130: 38.791 | H130: 45.821 | I130: 61.047 | J130: 52.18 | K130: 42.056 | L130: 49.712 | M130: 67.241 | N130: 21.983 | O130: 16.535 | P130: 20.739 | Q130: 29.29 | R130: 56.359 | S130: 45.473 | T130: 53.79 | U130: 71.97 | V130: 56.261 | W130: 45.002 | X130: 53.477 | Y130: 71.878 | Z130: 9.0212 | AA130: 5.6384 | AB130: 8.1031 | AC130: 13.397 | AD130: 63.153 | AE130: 50.986 | AF130: 60.49 | AG130: 79.837
A131: 10.0833 | B131: 7.56 | C131: 5.9534 | D131: 7.274 | E131: 9.7607 | F131: 47.802 | G131: 38.82 | H131: 45.748 | I131: 60.949 | J131: 52.187 | K131: 42.048 | L131: 49.698 | M131: 66.98 | N131: 21.997 | O131: 16.648 | P131: 20.79 | Q131: 28.909 | R131: 56.359 | S131: 45.553 | T131: 53.673 | U131: 71.949 | V131: 56.259 | W131: 45.154 | X131: 53.529 | Y131: 71.555 | Z131: 8.9982 | AA131: 5.7817 | AB131: 8.1804 | AC131: 13.185 | AD131: 63.139 | AE131: 50.874 | AF131: 60.548 | AG131: 80.24
A132: 10.1667 | B132: 7.5606 | C132: 5.9864 | D132: 7.3114 | E132: 9.7388 | F132: 47.805 | G132: 38.77 | H132: 45.78 | I132: 60.892 | J132: 52.195 | K132: 42.09 | L132: 49.655 | M132: 66.72 | N132: 22.014 | O132: 16.777 | P132: 20.852 | Q132: 28.913 | R132: 56.359 | S132: 45.631 | T132: 53.6 | U132: 71.914 | V132: 56.257 | W132: 45.241 | X132: 53.627 | Y132: 71.321 | Z132: 8.9804 | AA132: 5.8238 | AB132: 8.209 | AC132: 13.134 | AD132: 63.126 | AE132: 50.812 | AF132: 60.407 | AG132: 80.215
A133: 10.25 | B133: 7.5614 | C133: 5.9877 | D133: 7.3038 | E133: 9.7029 | F133: 47.808 | G133: 38.682 | H133: 45.711 | I133: 60.878 | J133: 52.203 | K133: 42.033 | L133: 49.622 | M133: 66.782 | N133: 22.034 | O133: 16.86 | P133: 20.795 | Q133: 29.09 | R133: 56.361 | S133: 45.673 | T133: 53.59 | U133: 71.881 | V133: 56.256 | W133: 45.376 | X133: 53.667 | Y133: 71.119 | Z133: 8.9677 | AA133: 5.9255 | AB133: 8.2635 | AC133: 12.841 | AD133: 63.115 | AE133: 50.981 | AF133: 60.421 | AG133: 80.039
A134: 10.3333 | B134: 7.5626 | C134: 5.9919 | D134: 7.291 | E134: 9.7388 | F134: 47.811 | G134: 38.665 | H134: 45.693 | I134: 60.77 | J134: 52.212 | K134: 42.049 | L134: 49.532 | M134: 66.928 | N134: 22.058 | O134: 16.86 | P134: 20.814 | Q134: 29.006 | R134: 56.362 | S134: 45.708 | T134: 53.643 | U134: 72.272 | V134: 56.256 | W134: 45.313 | X134: 53.569 | Y134: 71.211 | Z134: 8.96 | AA134: 6.0158 | AB134: 8.2833 | AC134: 12.736 | AD134: 63.104 | AE134: 50.88 | AF134: 60.211 | AG134: 80.279
A135: 10.4167 | B135: 7.564 | C135: 5.9893 | D135: 7.2708 | E135: 9.7543 | F135: 47.814 | G135: 38.551 | H135: 45.668 | I135: 60.769 | J135: 52.221 | K135: 42.12 | L135: 49.626 | M135: 66.865 | N135: 22.085 | O135: 16.909 | P135: 21.023 | Q135: 28.984 | R135: 56.364 | S135: 45.676 | T135: 53.701 | U135: 72.562 | V135: 56.256 | W135: 45.205 | X135: 53.56 | Y135: 71.3 | Z135: 8.957 | AA135: 6.1108 | AB135: 8.291 | AC135: 12.55 | AD135: 63.094 | AE135: 50.827 | AF135: 60.19 | AG135: 80.635
A136: 10.5 | B136: 7.5658 | C136: 5.9815 | D136: 7.257 | E136: 9.7367 | F136: 47.817 | G136: 38.557 | H136: 45.747 | I136: 60.842 | J136: 52.229 | K136: 42.136 | L136: 49.679 | M136: 66.63 | N136: 22.116 | O136: 16.975 | P136: 21.047 | Q136: 29.073 | R136: 56.367 | S136: 45.643 | T136: 53.781 | U136: 72.396 | V136: 56.256 | W136: 45.189 | X136: 53.707 | Y136: 71.419 | Z136: 8.9589 | AA136: 6.0973 | AB136: 8.3025 | AC136: 12.397 | AD136: 63.085 | AE136: 50.83 | AF136: 60.297 | AG136: 80.918
A137: 10.5833 | B137: 7.5678 | C137: 5.9943 | D137: 7.226 | E137: 9.6878 | F137: 47.821 | G137: 38.638 | H137: 45.823 | I137: 60.741 | J137: 52.239 | K137: 42.201 | L137: 49.788 | M137: 66.714 | N137: 22.15 | O137: 16.947 | P137: 20.938 | Q137: 28.911 | R137: 56.37 | S137: 45.557 | T137: 53.598 | U137: 72.305 | V137: 56.257 | W137: 45.212 | X137: 53.72 | Y137: 71.399 | Z137: 8.9659 | AA137: 6.1438 | AB137: 8.3944 | AC137: 12.474 | AD137: 63.077 | AE137: 50.934 | AF137: 60.237 | AG137: 81.014
A138: 10.6667 | B138: 7.5701 | C138: 5.9677 | D138: 7.2756 | E138: 9.6378 | F138: 47.825 | G138: 38.654 | H138: 45.894 | I138: 60.722 | J138: 52.248 | K138: 42.273 | L138: 49.788 | M138: 66.687 | N138: 22.187 | O138: 16.884 | P138: 21.019 | Q138: 28.996 | R138: 56.374 | S138: 45.456 | T138: 53.667 | U138: 72.156 | V138: 56.258 | W138: 45.181 | X138: 53.62 | Y138: 71.38 | Z138: 8.9789 | AA138: 6.1231 | AB138: 8.4544 | AC138: 12.388 | AD138: 63.07 | AE138: 50.975 | AF138: 60.277 | AG138: 81.38
A139: 10.75 | B139: 7.5727 | C139: 5.9702 | D139: 7.3125 | E139: 9.6265 | F139: 47.828 | G139: 38.637 | H139: 45.87 | I139: 60.746 | J139: 52.257 | K139: 42.264 | L139: 49.683 | M139: 66.699 | N139: 22.228 | O139: 16.875 | P139: 21.137 | Q139: 29.232 | R139: 56.378 | S139: 45.364 | T139: 53.581 | U139: 72.022 | V139: 56.26 | W139: 45.113 | X139: 53.584 | Y139: 71.282 | Z139: 8.9967 | AA139: 6.0332 | AB139: 8.3661 | AC139: 12.233 | AD139: 63.064 | AE139: 50.894 | AF139: 60.293 | AG139: 81.624
A140: 10.8333 | B140: 7.5757 | C140: 5.9528 | D140: 7.3173 | E140: 9.6446 | F140: 47.832 | G140: 38.57 | H140: 45.854 | I140: 60.81 | J140: 52.267 | K140: 42.164 | L140: 49.653 | M140: 66.76 | N140: 22.272 | O140: 16.77 | P140: 21.067 | Q140: 29.351 | R140: 56.384 | S140: 45.276 | T140: 53.525 | U140: 71.94 | V140: 56.262 | W140: 45.081 | X140: 53.654 | Y140: 71.144 | Z140: 9.0195 | AA140: 5.9151 | AB140: 8.2925 | AC140: 12.639 | AD140: 63.058 | AE140: 50.801 | AF140: 60.307 | AG140: 81.444
A141: 10.9167 | B141: 7.5789 | C141: 5.9178 | D141: 7.3224 | E141: 9.7238 | F141: 47.836 | G141: 38.636 | H141: 45.763 | I141: 60.955 | J141: 52.277 | K141: 42.08 | L141: 49.683 | M141: 66.92 | N141: 22.32 | O141: 16.644 | P141: 21.009 | Q141: 29.673 | R141: 56.39 | S141: 45.146 | T141: 53.472 | U141: 71.984 | V141: 56.265 | W141: 45.119 | X141: 53.629 | Y141: 71.168 | Z141: 9.0474 | AA141: 5.7386 | AB141: 8.2701 | AC141: 12.886 | AD141: 63.054 | AE141: 50.478 | AF141: 60.396 | AG141: 81.16
A142: 11 | B142: 7.5983 | C142: 5.8777 | D142: 7.3365 | E142: 9.7084 | F142: 47.937 | G142: 38.437 | H142: 45.838 | I142: 61.14 | J142: 52.398 | K142: 42.079 | L142: 49.97 | M142: 66.502 | N142: 22.414 | O142: 16.529 | P142: 21.125 | Q142: 30.317 | R142: 56.525 | S142: 45.017 | T142: 54.037 | U142: 72.276 | V142: 56.381 | W142: 45.245 | X142: 53.708 | Y142: 71.079 | Z142: 9.1055 | AA142: 5.5894 | AB142: 8.2444 | AC142: 13.344 | AD142: 63.175 | AE142: 50.195 | AF142: 60.343 | AG142: 80.373
A143: 11.0833 | B143: 7.594 | C143: 5.8795 | D143: 7.3033 | E143: 9.666 | F143: 47.931 | G143: 38.439 | H143: 45.947 | I143: 61.173 | J143: 52.387 | K143: 42.227 | L143: 49.915 | M143: 66.421 | N143: 22.391 | O143: 16.705 | P143: 21.186 | Q143: 29.915 | R143: 56.513 | S143: 44.984 | T143: 54.015 | U143: 72.408 | V143: 56.376 | W143: 45.242 | X143: 53.604 | Y143: 71.12 | Z143: 9.0696 | AA143: 5.7649 | AB143: 8.1958 | AC143: 13.134 | AD143: 63.159 | AE143: 50.461 | AF143: 60.244 | AG143: 80.275
A144: 11.1667 | B144: 7.5901 | C144: 5.935 | D144: 7.3046 | E144: 9.6581 | F144: 47.926 | G144: 38.408 | H144: 45.876 | I144: 61.153 | J144: 52.376 | K144: 42.259 | L144: 49.905 | M144: 66.339 | N144: 22.371 | O144: 16.781 | P144: 21.109 | Q144: 29.691 | R144: 56.502 | S144: 44.996 | T144: 53.935 | U144: 72.258 | V144: 56.371 | W144: 45.276 | X144: 53.681 | Y144: 71.097 | Z144: 9.0392 | AA144: 5.972 | AB144: 8.262 | AC144: 12.996 | AD144: 63.144 | AE144: 50.555 | AF144: 60.317 | AG144: 80.277
A145: 11.25 | B145: 7.5864 | C145: 5.9433 | D145: 7.291 | E145: 9.6686 | F145: 47.921 | G145: 38.398 | H145: 45.914 | I145: 61.042 | J145: 52.365 | K145: 42.191 | L145: 49.999 | M145: 66.257 | N145: 22.355 | O145: 16.891 | P145: 21.333 | Q145: 29.421 | R145: 56.491 | S145: 45.03 | T145: 53.992 | U145: 71.942 | V145: 56.367 | W145: 45.268 | X145: 53.799 | Y145: 71.073 | Z145: 9.014 | AA145: 6.0107 | AB145: 8.2964 | AC145: 12.867 | AD145: 63.13 | AE145: 50.459 | AF145: 60.39 | AG145: 80.427
A146: 11.3333 | B146: 7.5831 | C146: 5.9849 | D146: 7.2935 | E146: 9.6335 | F146: 47.916 | G146: 38.458 | H146: 45.818 | I146: 61.009 | J146: 52.354 | K146: 42.115 | L146: 49.989 | M146: 66.176 | N146: 22.343 | O146: 16.876 | P146: 21.457 | Q146: 29.468 | R146: 56.481 | S146: 45.097 | T146: 53.825 | U146: 71.876 | V146: 56.363 | W146: 45.291 | X146: 53.905 | Y146: 71.174 | Z146: 8.9938 | AA146: 6.0235 | AB146: 8.2723 | AC146: 12.868 | AD146: 63.117 | AE146: 50.656 | AF146: 60.436 | AG146: 80.524
A147: 11.4167 | B147: 7.5801 | C147: 5.9818 | D147: 7.2813 | E147: 9.6115 | F147: 47.912 | G147: 38.477 | H147: 45.821 | I147: 60.977 | J147: 52.344 | K147: 42.059 | L147: 49.958 | M147: 66.096 | N147: 22.335 | O147: 16.891 | P147: 21.353 | Q147: 29.516 | R147: 56.471 | S147: 45.255 | T147: 53.855 | U147: 71.719 | V147: 56.36 | W147: 45.34 | X147: 53.851 | Y147: 71.116 | Z147: 8.9787 | AA147: 6.0191 | AB147: 8.3201 | AC147: 12.912 | AD147: 63.104 | AE147: 50.901 | AF147: 60.278 | AG147: 80.307
A148: 11.5 | B148: 7.5774 | C148: 5.9814 | D148: 7.2859 | E148: 9.6128 | F148: 47.907 | G148: 38.6 | H148: 45.814 | I148: 60.938 | J148: 52.334 | K148: 42.043 | L148: 50.057 | M148: 66.127 | N148: 22.33 | O148: 16.862 | P148: 21.403 | Q148: 29.228 | R148: 56.462 | S148: 45.281 | T148: 53.759 | U148: 71.486 | V148: 56.357 | W148: 45.312 | X148: 53.773 | Y148: 71.154 | Z148: 8.9689 | AA148: 6.0105 | AB148: 8.2606 | AC148: 12.834 | AD148: 63.093 | AE148: 50.765 | AF148: 60.148 | AG148: 80.005
A149: 11.5833 | B149: 7.575 | C149: 6.0012 | D149: 7.2905 | E149: 9.5793 | F149: 47.903 | G149: 38.505 | H149: 45.727 | I149: 60.764 | J149: 52.324 | K149: 41.983 | L149: 50.074 | M149: 66.158 | N149: 22.329 | O149: 16.834 | P149: 21.279 | Q149: 29.234 | R149: 56.454 | S149: 45.429 | T149: 53.669 | U149: 71.435 | V149: 56.355 | W149: 45.277 | X149: 53.793 | Y149: 71.268 | Z149: 8.9648 | AA149: 5.9781 | AB149: 8.2858 | AC149: 12.641 | AD149: 63.082 | AE149: 50.623 | AF149: 60.174 | AG149: 80.149
A150: 11.6667 | B150: 7.5729 | C150: 5.9893 | D150: 7.2692 | E150: 9.5939 | F150: 47.899 | G150: 38.386 | H150: 45.723 | I150: 60.591 | J150: 52.314 | K150: 42.025 | L150: 50.092 | M150: 65.974 | N150: 22.332 | O150: 16.845 | P150: 21.364 | Q150: 29.145 | R150: 56.446 | S150: 45.461 | T150: 53.602 | U150: 71.41 | V150: 56.353 | W150: 45.253 | X150: 53.978 | Y150: 71.271 | Z150: 8.9659 | AA150: 5.9474 | AB150: 8.2964 | AC150: 12.637 | AD150: 63.073 | AE150: 50.599 | AF150: 60.346 | AG150: 79.646
A151: 11.75 | B151: 7.5711 | C151: 5.9921 | D151: 7.2795 | E151: 9.5803 | F151: 47.894 | G151: 38.304 | H151: 45.73 | I151: 60.564 | J151: 52.305 | K151: 42.078 | L151: 50.146 | M151: 65.769 | N151: 22.339 | O151: 16.825 | P151: 21.224 | Q151: 29.076 | R151: 56.439 | S151: 45.514 | T151: 53.652 | U151: 71.499 | V151: 56.352 | W151: 45.435 | X151: 54.011 | Y151: 71.275 | Z151: 8.9722 | AA151: 5.9285 | AB151: 8.2985 | AC151: 12.819 | AD151: 63.064 | AE151: 50.421 | AF151: 60.423 | AG151: 79.46
A152: 11.8333 | B152: 7.5696 | C152: 6.0151 | D152: 7.2759 | E152: 9.6279 | F152: 47.891 | G152: 38.242 | H152: 45.778 | I152: 60.641 | J152: 52.296 | K152: 42.115 | L152: 50.192 | M152: 65.843 | N152: 22.35 | O152: 16.649 | P152: 21.066 | Q152: 29.692 | R152: 56.432 | S152: 45.639 | T152: 53.606 | U152: 71.667 | V152: 56.351 | W152: 45.541 | X152: 54.019 | Y152: 71.373 | Z152: 8.9839 | AA152: 5.8185 | AB152: 8.2496 | AC152: 12.862 | AD152: 63.056 | AE152: 50.289 | AF152: 60.546 | AG152: 79.494
A153: 11.9167 | B153: 7.5685 | C153: 5.9965 | D153: 7.3112 | E153: 9.6473 | F153: 47.887 | G153: 38.274 | H153: 45.789 | I153: 60.957 | J153: 52.287 | K153: 42.165 | L153: 50.247 | M153: 66.12 | N153: 22.364 | O153: 16.576 | P153: 21.074 | Q153: 30.302 | R153: 56.426 | S153: 45.587 | T153: 53.504 | U153: 71.362 | V153: 56.351 | W153: 45.55 | X153: 53.947 | Y153: 71.333 | Z153: 9.0008 | AA153: 5.7003 | AB153: 8.115 | AC153: 13.058 | AD153: 63.049 | AE153: 50.393 | AF153: 60.516 | AG153: 79.583
A154: 12 | B154: 7.5483 | C154: 5.943 | D154: 7.2742 | E154: 9.7781 | F154: 47.759 | G154: 38.476 | H154: 45.717 | I154: 60.888 | J154: 52.135 | K154: 41.915 | L154: 50.093 | M154: 66.86 | N154: 22.321 | O154: 16.389 | P154: 21.119 | Q154: 30.124 | R154: 56.288 | S154: 44.782 | T154: 54.175 | U154: 71.991 | V154: 56.213 | W154: 45.309 | X154: 53.824 | Y154: 72.342 | Z154: 9.0009 | AA154: 5.5582 | AB154: 7.9979 | AC154: 13.671 | AD154: 62.866 | AE154: 49.853 | AF154: 60.911 | AG154: 80.139
A155: 12.0833 | B155: 7.546 | C155: 5.9466 | D155: 7.2493 | E155: 9.7513 | F155: 47.757 | G155: 38.489 | H155: 45.77 | I155: 60.869 | J155: 52.133 | K155: 41.987 | L155: 50.117 | M155: 66.744 | N155: 22.299 | O155: 16.583 | P155: 21.074 | Q155: 29.956 | R155: 56.304 | S155: 44.753 | T155: 54.139 | U155: 71.896 | V155: 56.207 | W155: 45.374 | X155: 53.816 | Y155: 72.227 | Z155: 8.9754 | AA155: 5.7489 | AB155: 8.0861 | AC155: 13.232 | AD155: 62.871 | AE155: 49.977 | AF155: 60.928 | AG155: 79.958
A156: 12.1667 | B156: 7.544 | C156: 5.9379 | D156: 7.2265 | E156: 9.7366 | F156: 47.755 | G156: 38.455 | H156: 45.775 | I156: 60.894 | J156: 52.132 | K156: 42.003 | L156: 50.057 | M156: 66.646 | N156: 22.28 | O156: 16.701 | P156: 21.104 | Q156: 29.934 | R156: 56.32 | S156: 44.694 | T156: 54.168 | U156: 72.019 | V156: 56.202 | W156: 45.409 | X156: 53.769 | Y156: 72.075 | Z156: 8.9551 | AA156: 5.8783 | AB156: 8.1581 | AC156: 12.946 | AD156: 62.878 | AE156: 50.009 | AF156: 60.946 | AG156: 79.811
A157: 12.25 | B157: 7.5423 | C157: 5.954 | D157: 7.2162 | E157: 9.6883 | F157: 47.753 | G157: 38.427 | H157: 45.703 | I157: 60.96 | J157: 52.132 | K157: 42.017 | L157: 50.07 | M157: 66.623 | N157: 22.264 | O157: 16.814 | P157: 21.158 | Q157: 29.383 | R157: 56.337 | S157: 44.726 | T157: 54.308 | U157: 72.145 | V157: 56.197 | W157: 45.376 | X157: 53.696 | Y157: 72.513 | Z157: 8.9399 | AA157: 5.9657 | AB157: 8.2054 | AC157: 12.627 | AD157: 62.886 | AE157: 49.985 | AF157: 60.912 | AG157: 79.917
A158: 12.3333 | B158: 7.5409 | C158: 5.9516 | D158: 7.1773 | E158: 9.7048 | F158: 47.752 | G158: 38.373 | H158: 45.617 | I158: 61.063 | J158: 52.131 | K158: 41.994 | L158: 50.182 | M158: 66.875 | N158: 22.253 | O158: 16.802 | P158: 21.277 | Q158: 28.966 | R158: 56.354 | S158: 44.812 | T158: 54.211 | U158: 71.994 | V158: 56.193 | W158: 45.27 | X158: 53.798 | Y158: 72.353 | Z158: 8.9298 | AA158: 6.0533 | AB158: 8.2454 | AC158: 12.826 | AD158: 62.895 | AE158: 50.047 | AF158: 60.815 | AG158: 80.008
A159: 12.4167 | B159: 7.5398 | C159: 5.9465 | D159: 7.1974 | E159: 9.6503 | F159: 47.75 | G159: 38.36 | H159: 45.642 | I159: 61.146 | J159: 52.13 | K159: 41.94 | L159: 50.244 | M159: 66.916 | N159: 22.244 | O159: 16.814 | P159: 21.242 | Q159: 29.064 | R159: 56.372 | S159: 44.9 | T159: 54.221 | U159: 71.997 | V159: 56.189 | W159: 45.216 | X159: 53.837 | Y159: 72.173 | Z159: 8.9247 | AA159: 6.1472 | AB159: 8.2531 | AC159: 12.882 | AD159: 62.905 | AE159: 50.215 | AF159: 60.76 | AG159: 80.112
A160: 12.5 | B160: 7.539 | C160: 5.9387 | D160: 7.1954 | E160: 9.6496 | F160: 47.749 | G160: 38.371 | H160: 45.671 | I160: 61.158 | J160: 52.13 | K160: 42.001 | L160: 50.216 | M160: 66.972 | N160: 22.239 | O160: 16.798 | P160: 21.323 | Q160: 28.894 | R160: 56.391 | S160: 44.831 | T160: 54.208 | U160: 72.046 | V160: 56.186 | W160: 45.182 | X160: 53.882 | Y160: 71.911 | Z160: 8.9247 | AA160: 6.1197 | AB160: 8.2534 | AC160: 13.143 | AD160: 62.916 | AE160: 50.196 | AF160: 60.759 | AG160: 80.508
A161: 12.5833 | B161: 7.5385 | C161: 5.9452 | D161: 7.1862 | E161: 9.6887 | F161: 47.748 | G161: 38.291 | H161: 45.689 | I161: 61.215 | J161: 52.13 | K161: 41.92 | L161: 50.273 | M161: 66.853 | N161: 22.236 | O161: 16.752 | P161: 21.169 | Q161: 28.829 | R161: 56.411 | S161: 44.895 | T161: 54.313 | U161: 72.325 | V161: 56.183 | W161: 45.195 | X161: 53.85 | Y161: 71.87 | Z161: 8.9299 | AA161: 6.1081 | AB161: 8.2906 | AC161: 12.73 | AD161: 62.927 | AE161: 50.191 | AF161: 60.855 | AG161: 80.185
A162: 12.6667 | B162: 7.5383 | C162: 5.9424 | D162: 7.2329 | E162: 9.6977 | F162: 47.747 | G162: 38.225 | H162: 45.789 | I162: 61.181 | J162: 52.13 | K162: 41.805 | L162: 50.327 | M162: 66.446 | N162: 22.237 | O162: 16.73 | P162: 21.045 | Q162: 28.668 | R162: 56.431 | S162: 44.853 | T162: 54.439 | U162: 72.476 | V162: 56.18 | W162: 45.031 | X162: 53.765 | Y162: 72.141 | Z162: 8.9403 | AA162: 6.077 | AB162: 8.2354 | AC162: 12.741 | AD162: 62.939 | AE162: 49.963 | AF162: 60.694 | AG162: 80.077
A163: 12.75 | B163: 7.5383 | C163: 5.9164 | D163: 7.2305 | E163: 9.7209 | F163: 47.746 | G163: 38.14 | H163: 45.75 | I163: 61.147 | J163: 52.13 | K163: 41.737 | L163: 50.211 | M163: 66.298 | N163: 22.242 | O163: 16.728 | P163: 20.95 | Q163: 28.843 | R163: 56.451 | S163: 44.72 | T163: 54.396 | U163: 72.553 | V163: 56.178 | W163: 44.923 | X163: 53.826 | Y163: 72.238 | Z163: 8.9554 | AA163: 6.0849 | AB163: 8.1967 | AC163: 12.582 | AD163: 62.952 | AE163: 49.966 | AF163: 60.644 | AG163: 80.218
A164: 12.8333 | B164: 7.5386 | C164: 5.8897 | D164: 7.2436 | E164: 9.7228 | F164: 47.746 | G164: 38.113 | H164: 45.835 | I164: 61.252 | J164: 52.131 | K164: 41.661 | L164: 50.237 | M164: 66.245 | N164: 22.25 | O164: 16.796 | P164: 20.955 | Q164: 29.003 | R164: 56.472 | S164: 44.687 | T164: 54.505 | U164: 72.733 | V164: 56.177 | W164: 44.748 | X164: 53.805 | Y164: 72.138 | Z164: 8.9756 | AA164: 6.011 | AB164: 8.1432 | AC164: 12.614 | AD164: 62.966 | AE164: 50.1 | AF164: 60.607 | AG164: 80.4
A165: 12.9167 | B165: 7.5393 | C165: 5.8696 | D165: 7.2507 | E165: 9.7412 | F165: 47.745 | G165: 38.139 | H165: 45.782 | I165: 61.363 | J165: 52.132 | K165: 41.597 | L165: 50.145 | M165: 66.294 | N165: 22.262 | O165: 16.63 | P165: 20.815 | Q165: 29.307 | R165: 56.494 | S165: 44.673 | T165: 54.688 | U165: 72.598 | V165: 56.176 | W165: 44.582 | X165: 53.762 | Y165: 71.885 | Z165: 9.0012 | AA165: 5.8717 | AB165: 8.1161 | AC165: 12.853 | AD165: 62.981 | AE165: 50.1 | AF165: 60.521 | AG165: 80.538
A166: 13 | B166: 7.5473 | C166: 5.8207 | D166: 7.2475 | E166: 9.7636 | F166: 47.809 | G166: 37.975 | H166: 46.002 | I166: 61.277 | J166: 52.199 | K166: 41.481 | L166: 50.045 | M166: 67.262 | N166: 22.314 | O166: 16.326 | P166: 20.942 | Q166: 30.353 | R166: 56.579 | S166: 44.33 | T166: 54.581 | U166: 72.371 | V166: 56.261 | W166: 44.397 | X166: 54.014 | Y166: 72.153 | Z166: 9.0533 | AA166: 5.6133 | AB166: 8.0929 | AC166: 13.442 | AD166: 63.108 | AE166: 49.777 | AF166: 59.999 | AG166: 81.462
A167: 13.0833 | B167: 7.5447 | C167: 5.8506 | D167: 7.2552 | E167: 9.7428 | F167: 47.806 | G167: 37.99 | H167: 45.959 | I167: 61.232 | J167: 52.193 | K167: 41.489 | L167: 50.022 | M167: 67.445 | N167: 22.305 | O167: 16.335 | P167: 21.099 | Q167: 29.977 | R167: 56.553 | S167: 44.357 | T167: 54.519 | U167: 72.225 | V167: 56.258 | W167: 44.456 | X167: 53.978 | Y167: 72.182 | Z167: 9.0276 | AA167: 5.8301 | AB167: 8.1253 | AC167: 13.026 | AD167: 63.096 | AE167: 49.946 | AF167: 59.909 | AG167: 81.378
A168: 13.1667 | B168: 7.5425 | C168: 5.8764 | D168: 7.2596 | E168: 9.6496 | F168: 47.804 | G168: 38.072 | H168: 45.971 | I168: 61.098 | J168: 52.187 | K168: 41.516 | L168: 50.144 | M168: 67.587 | N168: 22.299 | O168: 16.385 | P168: 21.082 | Q168: 29.781 | R168: 56.528 | S168: 44.448 | T168: 54.5 | U168: 72.236 | V168: 56.255 | W168: 44.47 | X168: 54.026 | Y168: 72.157 | Z168: 9.0079 | AA168: 5.9827 | AB168: 8.1896 | AC168: 12.924 | AD168: 63.086 | AE168: 50.022 | AF168: 60 | AG168: 81.096
A169: 13.25 | B169: 7.5406 | C169: 5.8642 | D169: 7.2596 | E169: 9.6404 | F169: 47.802 | G169: 38.008 | H169: 45.98 | I169: 61.192 | J169: 52.181 | K169: 41.524 | L169: 50.222 | M169: 67.606 | N169: 22.297 | O169: 16.404 | P169: 21.208 | Q169: 29.266 | R169: 56.503 | S169: 44.473 | T169: 54.495 | U169: 72.424 | V169: 56.253 | W169: 44.481 | X169: 54.072 | Y169: 72.446 | Z169: 8.9939 | AA169: 6.0343 | AB169: 8.2921 | AC169: 12.888 | AD169: 63.076 | AE169: 50.015 | AF169: 59.983 | AG169: 80.952
A170: 13.3333 | B170: 7.5389 | C170: 5.849 | D170: 7.2514 | E170: 9.6089 | F170: 47.8 | G170: 38.026 | H170: 45.947 | I170: 61.276 | J170: 52.176 | K170: 41.513 | L170: 50.249 | M170: 67.421 | N170: 22.299 | O170: 16.407 | P170: 21.295 | Q170: 29.232 | R170: 56.479 | S170: 44.436 | T170: 54.348 | U170: 72.523 | V170: 56.252 | W170: 44.484 | X170: 54.14 | Y170: 72.796 | Z170: 8.9859 | AA170: 6.0407 | AB170: 8.3723 | AC170: 12.859 | AD170: 63.068 | AE170: 49.942 | AF170: 60.233 | AG170: 81.031
A171: 13.4167 | B171: 7.5375 | C171: 5.8473 | D171: 7.2577 | E171: 9.6637 | F171: 47.798 | G171: 38.08 | H171: 45.913 | I171: 61.478 | J171: 52.171 | K171: 41.553 | L171: 50.198 | M171: 67.236 | N171: 22.304 | O171: 16.504 | P171: 21.256 | Q171: 29.126 | R171: 56.455 | S171: 44.327 | T171: 54.388 | U171: 72.604 | V171: 56.251 | W171: 44.492 | X171: 54.002 | Y171: 72.721 | Z171: 8.9836 | AA171: 6.0883 | AB171: 8.361 | AC171: 13.109 | AD171: 63.06 | AE171: 49.955 | AF171: 60.331 | AG171: 81.072
A172: 13.5 | B172: 7.5365 | C172: 5.8397 | D172: 7.2698 | E172: 9.7025 | F172: 47.797 | G172: 38.061 | H172: 45.865 | I172: 61.69 | J172: 52.166 | K172: 41.567 | L172: 50.108 | M172: 67.003 | N172: 22.313 | O172: 16.502 | P172: 21.25 | Q172: 29.387 | R172: 56.433 | S172: 44.435 | T172: 54.44 | U172: 72.317 | V172: 56.25 | W172: 44.438 | X172: 54.211 | Y172: 72.428 | Z172: 8.9871 | AA172: 6.0706 | AB172: 8.3509 | AC172: 13.048 | AD172: 63.054 | AE172: 49.872 | AF172: 60.506 | AG172: 81.087
A173: 13.5833 | B173: 7.5358 | C173: 5.8722 | D173: 7.2595 | E173: 9.7532 | F173: 47.795 | G173: 38.01 | H173: 45.915 | I173: 61.731 | J173: 52.161 | K173: 41.653 | L173: 50.018 | M173: 66.974 | N173: 22.325 | O173: 16.441 | P173: 21.464 | Q173: 29.537 | R173: 56.411 | S173: 44.601 | T173: 54.448 | U173: 72.311 | V173: 56.25 | W173: 44.411 | X173: 54.234 | Y173: 72.524 | Z173: 8.9966 | AA173: 6.0528 | AB173: 8.4122 | AC173: 13.173 | AD173: 63.048 | AE173: 49.838 | AF173: 60.646 | AG173: 81.103
A174: 13.6667 | B174: 7.5353 | C174: 5.917 | D174: 7.2465 | E174: 9.7425 | F174: 47.794 | G174: 38.021 | H174: 45.925 | I174: 61.608 | J174: 52.156 | K174: 41.501 | L174: 49.967 | M174: 67.02 | N174: 22.341 | O174: 16.416 | P174: 21.395 | Q174: 29.759 | R174: 56.389 | S174: 44.516 | T174: 54.354 | U174: 72.012 | V174: 56.25 | W174: 44.363 | X174: 54.273 | Y174: 72.522 | Z174: 9.0119 | AA174: 6.057 | AB174: 8.3536 | AC174: 12.847 | AD174: 63.043 | AE174: 49.817 | AF174: 60.692 | AG174: 81.047
A175: 13.75 | B175: 7.5351 | C175: 5.8803 | D175: 7.2387 | E175: 9.7539 | F175: 47.793 | G175: 38.075 | H175: 45.876 | I175: 61.633 | J175: 52.152 | K175: 41.504 | L175: 49.974 | M175: 67.065 | N175: 22.361 | O175: 16.302 | P175: 21.281 | Q175: 29.722 | R175: 56.368 | S175: 44.579 | T175: 54.262 | U175: 72.06 | V175: 56.25 | W175: 44.319 | X175: 54.248 | Y175: 72.674 | Z175: 9.0329 | AA175: 5.9631 | AB175: 8.3063 | AC175: 13.102 | AD175: 63.039 | AE175: 49.629 | AF175: 60.64 | AG175: 80.938
A176: 13.8333 | B176: 7.5351 | C176: 5.8937 | D176: 7.2302 | E176: 9.791 | F176: 47.792 | G176: 38.027 | H176: 45.87 | I176: 61.643 | J176: 52.147 | K176: 41.54 | L176: 50.055 | M176: 67.132 | N176: 22.384 | O176: 16.211 | P176: 21.09 | Q176: 29.529 | R176: 56.348 | S176: 44.615 | T176: 54.251 | U176: 72.309 | V176: 56.251 | W176: 44.207 | X176: 54.242 | Y176: 72.666 | Z176: 9.0598 | AA176: 5.8532 | AB176: 8.1646 | AC176: 13.082 | AD176: 63.036 | AE176: 49.534 | AF176: 60.532 | AG176: 80.479
A177: 13.9167 | B177: 7.5355 | C177: 5.8675 | D177: 7.2385 | E177: 9.7908 | F177: 47.791 | G177: 38.015 | H177: 45.856 | I177: 61.545 | J177: 52.143 | K177: 41.62 | L177: 50.046 | M177: 67.078 | N177: 22.41 | O177: 16.139 | P177: 20.97 | Q177: 30.064 | R177: 56.329 | S177: 44.471 | T177: 54.235 | U177: 72.1 | V177: 56.253 | W177: 44.22 | X177: 54.249 | Y177: 72.658 | Z177: 9.0925 | AA177: 5.7787 | AB177: 8.1046 | AC177: 13.351 | AD177: 63.034 | AE177: 49.621 | AF177: 60.424 | AG177: 80.529
A178: 14 | B178: 7.5276 | C178: 5.8999 | D178: 7.1728 | E178: 9.585 | F178: 47.752 | G178: 38.467 | H178: 45.253 | I178: 60.592 | J178: 52.102 | K178: 41.902 | L178: 49.341 | M178: 65.867 | N178: 22.398 | O178: 16.338 | P178: 21.137 | Q178: 30.551 | R178: 56.254 | S178: 44.815 | T178: 53.609 | U178: 72.006 | V178: 56.215 | W178: 45.306 | X178: 53.399 | Y178: 71.511 | Z178: 9.1326 | AA178: 5.6945 | AB178: 8.0312 | AC178: 13.345 | AD178: 62.966 | AE178: 49.872 | AF178: 59.884 | AG178: 80.213
A179: 14.0833 | B179: 7.5309 | C179: 5.9428 | D179: 7.1771 | E179: 9.6103 | F179: 47.759 | G179: 38.448 | H179: 45.194 | I179: 60.598 | J179: 52.11 | K179: 41.982 | L179: 49.417 | M179: 65.798 | N179: 22.376 | O179: 16.475 | P179: 21.173 | Q179: 30.542 | R179: 56.276 | S179: 44.944 | T179: 53.621 | U179: 71.947 | V179: 56.198 | W179: 45.297 | X179: 53.494 | Y179: 71.224 | Z179: 9.0991 | AA179: 5.811 | AB179: 8.087 | AC179: 13.228 | AD179: 62.973 | AE179: 49.974 | AF179: 59.927 | AG179: 79.609
A180: 14.1667 | B180: 7.5345 | C180: 5.9644 | D180: 7.159 | E180: 9.6628 | F180: 47.767 | G180: 38.36 | H180: 45.187 | I180: 60.672 | J180: 52.118 | K180: 41.871 | L180: 49.265 | M180: 65.961 | N180: 22.358 | O180: 16.671 | P180: 21.101 | Q180: 30.116 | R180: 56.299 | S180: 45.034 | T180: 53.653 | U180: 72.031 | V180: 56.182 | W180: 45.222 | X180: 53.417 | Y180: 71.27 | Z180: 9.0715 | AA180: 5.9475 | AB180: 8.1707 | AC180: 13.119 | AD180: 62.981 | AE180: 49.999 | AF180: 59.773 | AG180: 79.624
A181: 14.25 | B181: 7.5384 | C181: 5.9967 | D181: 7.1309 | E181: 9.6703 | F181: 47.775 | G181: 38.417 | H181: 45.21 | I181: 60.678 | J181: 52.126 | K181: 41.94 | L181: 49.216 | M181: 66.086 | N181: 22.344 | O181: 16.831 | P181: 21.117 | Q181: 29.807 | R181: 56.323 | S181: 45.041 | T181: 53.636 | U181: 72.19 | V181: 56.167 | W181: 45.195 | X181: 53.473 | Y181: 71.354 | Z181: 9.0497 | AA181: 6.0259 | AB181: 8.1348 | AC181: 13.416 | AD181: 62.989 | AE181: 49.93 | AF181: 59.747 | AG181: 79.792
A182: 14.3333 | B182: 7.5426 | C182: 5.9949 | D182: 7.1292 | E182: 9.6769 | F182: 47.783 | G182: 38.422 | H182: 45.193 | I182: 60.745 | J182: 52.134 | K182: 41.945 | L182: 49.227 | M182: 65.956 | N182: 22.333 | O182: 16.914 | P182: 21.048 | Q182: 29.647 | R182: 56.347 | S182: 45.146 | T182: 53.624 | U182: 72.713 | V182: 56.152 | W182: 45.178 | X182: 53.177 | Y182: 71.504 | Z182: 9.0338 | AA182: 6.0286 | AB182: 8.1641 | AC182: 13.382 | AD182: 62.999 | AE182: 50.028 | AF182: 59.652 | AG182: 79.68
A183: 14.4167 | B183: 7.547 | C183: 6.0171 | D183: 7.1323 | E183: 9.6874 | F183: 47.791 | G183: 38.465 | H183: 45.174 | I183: 60.812 | J183: 52.143 | K183: 41.96 | L183: 49.218 | M183: 65.981 | N183: 22.325 | O183: 16.983 | P183: 21.073 | Q183: 29.605 | R183: 56.372 | S183: 45.176 | T183: 53.534 | U183: 72.659 | V183: 56.137 | W183: 45.175 | X183: 53.307 | Y183: 71.385 | Z183: 9.0239 | AA183: 6.0465 | AB183: 8.2352 | AC183: 13.416 | AD183: 63.009 | AE183: 50.098 | AF183: 59.6 | AG183: 79.646
A184: 14.5 | B184: 7.5518 | C184: 6.0179 | D184: 7.1491 | E184: 9.7238 | F184: 47.799 | G184: 38.452 | H184: 45.142 | I184: 60.915 | J184: 52.152 | K184: 41.943 | L184: 49.271 | M184: 66.09 | N184: 22.321 | O184: 17.099 | P184: 21.284 | Q184: 29.485 | R184: 56.397 | S184: 45.165 | T184: 53.566 | U184: 72.361 | V184: 56.123 | W184: 45.085 | X184: 53.265 | Y184: 71.451 | Z184: 9.0195 | AA184: 6.0498 | AB184: 8.2864 | AC184: 13.195 | AD184: 63.021 | AE184: 50.184 | AF184: 59.571 | AG184: 79.837
A185: 14.5833 | B185: 7.5568 | C185: 6.0108 | D185: 7.1645 | E185: 9.7028 | F185: 47.808 | G185: 38.431 | H185: 45.125 | I185: 60.946 | J185: 52.161 | K185: 42.002 | L185: 49.264 | M185: 66.022 | N185: 22.319 | O185: 17.072 | P185: 21.398 | Q185: 29.553 | R185: 56.423 | S185: 45.113 | T185: 53.631 | U185: 72.425 | V185: 56.109 | W185: 44.996 | X185: 53.113 | Y185: 71.486 | Z185: 9.0214 | AA185: 5.9772 | AB185: 8.311 | AC185: 13.087 | AD185: 63.033 | AE185: 50.22 | AF185: 59.682 | AG185: 80.352
A186: 14.6667 | B186: 7.5621 | C186: 6.008 | D186: 7.1856 | E186: 9.7358 | F186: 47.816 | G186: 38.498 | H186: 45.18 | I186: 61.013 | J186: 52.17 | K186: 41.815 | L186: 49.355 | M186: 66.214 | N186: 22.322 | O186: 16.935 | P186: 21.317 | Q186: 29.835 | R186: 56.45 | S186: 45.267 | T186: 53.534 | U186: 72.741 | V186: 56.096 | W186: 44.864 | X186: 53.128 | Y186: 71.402 | Z186: 9.0293 | AA186: 5.9484 | AB186: 8.2449 | AC186: 13.132 | AD186: 63.046 | AE186: 50.429 | AF186: 59.804 | AG186: 80.538
A187: 14.75 | B187: 7.5676 | C187: 6.0172 | D187: 7.1968 | E187: 9.7182 | F187: 47.825 | G187: 38.494 | H187: 45.212 | I187: 61.08 | J187: 52.179 | K187: 41.805 | L187: 49.426 | M187: 66.327 | N187: 22.327 | O187: 16.793 | P187: 21.261 | Q187: 29.789 | R187: 56.477 | S187: 45.318 | T187: 53.515 | U187: 72.612 | V187: 56.083 | W187: 44.792 | X187: 52.95 | Y187: 71.319 | Z187: 9.0432 | AA187: 5.8701 | AB187: 8.2107 | AC187: 13.25 | AD187: 63.059 | AE187: 50.58 | AF187: 59.824 | AG187: 80.45
A188: 14.8333 | B188: 7.5735 | C188: 5.9744 | D188: 7.2195 | E188: 9.7017 | F188: 47.834 | G188: 38.492 | H188: 45.216 | I188: 61.147 | J188: 52.189 | K188: 41.77 | L188: 49.406 | M188: 66.497 | N188: 22.336 | O188: 16.624 | P188: 21.143 | Q188: 29.717 | R188: 56.504 | S188: 45.463 | T188: 53.564 | U188: 72.649 | V188: 56.071 | W188: 44.728 | X188: 52.927 | Y188: 71.323 | Z188: 9.063 | AA188: 5.7425 | AB188: 8.0976 | AC188: 13.201 | AD188: 63.074 | AE188: 50.715 | AF188: 59.768 | AG188: 80.488
A189: 14.9167 | B189: 7.5796 | C189: 5.9518 | D189: 7.243 | E189: 9.7628 | F189: 47.843 | G189: 38.511 | H189: 45.221 | I189: 61.214 | J189: 52.199 | K189: 41.861 | L189: 49.566 | M189: 66.496 | N189: 22.348 | O189: 16.493 | P189: 21.008 | Q189: 29.804 | R189: 56.533 | S189: 45.238 | T189: 53.662 | U189: 72.824 | V189: 56.059 | W189: 44.664 | X189: 52.925 | Y189: 71.295 | Z189: 9.0886 | AA189: 5.6089 | AB189: 8.067 | AC189: 13.574 | AD189: 63.09 | AE189: 50.637 | AF189: 59.788 | AG189: 80.047
A190: 15 | B190: 7.593 | C190: 5.8818 | D190: 7.2649 | E190: 9.8095 | F190: 47.89 | G190: 38.206 | H190: 45.761 | I190: 60.95 | J190: 52.252 | K190: 41.652 | L190: 50.146 | M190: 66.244 | N190: 22.394 | O190: 16.196 | P190: 21.204 | Q190: 29.874 | R190: 56.613 | S190: 44.969 | T190: 53.992 | U190: 72.446 | V190: 56.091 | W190: 45.028 | X190: 53.488 | Y190: 71.45 | Z190: 9.0913 | AA190: 5.5046 | AB190: 8.0298 | AC190: 14.082 | AD190: 63.153 | AE190: 49.816 | AF190: 60.357 | AG190: 81.753
A191: 15.0833 | B191: 7.5915 | C191: 5.896 | D191: 7.2435 | E191: 9.7981 | F191: 47.889 | G191: 38.222 | H191: 45.795 | I191: 60.95 | J191: 52.257 | K191: 41.691 | L191: 50.111 | M191: 66.366 | N191: 22.366 | O191: 16.395 | P191: 21.28 | Q191: 29.744 | R191: 56.61 | S191: 45.1 | T191: 53.947 | U191: 72.184 | V191: 56.105 | W191: 45.12 | X191: 53.5 | Y191: 71.488 | Z191: 9.0537 | AA191: 5.6227 | AB191: 8.0223 | AC191: 13.624 | AD191: 63.148 | AE191: 50.07 | AF191: 60.156 | AG191: 80.912
A192: 15.1667 | B192: 7.5902 | C192: 5.9117 | D192: 7.2528 | E192: 9.7436 | F192: 47.889 | G192: 38.191 | H192: 45.892 | I192: 60.95 | J192: 52.262 | K192: 41.676 | L192: 50.142 | M192: 66.233 | N192: 22.341 | O192: 16.598 | P192: 21.39 | Q192: 29.243 | R192: 56.608 | S192: 45.208 | T192: 53.834 | U192: 72.032 | V192: 56.12 | W192: 45.091 | X192: 53.631 | Y192: 71.522 | Z192: 9.0218 | AA192: 5.7985 | AB192: 8.1203 | AC192: 13.495 | AD192: 63.143 | AE192: 50.333 | AF192: 60.169 | AG192: 81.346
A193: 15.25 | B193: 7.5893 | C193: 5.9319 | D193: 7.2829 | E193: 9.8215 | F193: 47.888 | G193: 38.268 | H193: 45.975 | I193: 60.666 | J193: 52.268 | K193: 41.601 | L193: 50.095 | M193: 66.147 | N193: 22.319 | O193: 16.733 | P193: 21.442 | Q193: 28.9 | R193: 56.606 | S193: 45.313 | T193: 53.925 | U193: 72.13 | V193: 56.135 | W193: 44.975 | X193: 53.695 | Y193: 71.556 | Z193: 8.9955 | AA193: 5.882 | AB193: 8.1301 | AC193: 13.005 | AD193: 63.14 | AE193: 50.553 | AF193: 60.118 | AG193: 80.976
A194: 15.3333 | B194: 7.5887 | C194: 5.9628 | D194: 7.3092 | E194: 9.8421 | F194: 47.888 | G194: 38.279 | H194: 45.96 | I194: 60.824 | J194: 52.274 | K194: 41.653 | L194: 50.132 | M194: 66.233 | N194: 22.301 | O194: 16.773 | P194: 21.469 | Q194: 28.903 | R194: 56.605 | S194: 45.304 | T194: 54.076 | U194: 72.422 | V194: 56.15 | W194: 44.957 | X194: 53.755 | Y194: 71.577 | Z194: 8.9748 | AA194: 5.9542 | AB194: 8.1409 | AC194: 12.982 | AD194: 63.138 | AE194: 50.793 | AF194: 59.998 | AG194: 80.985
A195: 15.4167 | B195: 7.5883 | C195: 5.9581 | D195: 7.3076 | E195: 9.8701 | F195: 47.888 | G195: 38.241 | H195: 45.918 | I195: 61.018 | J195: 52.281 | K195: 41.715 | L195: 50.087 | M195: 66.39 | N195: 22.286 | O195: 16.73 | P195: 21.637 | Q195: 28.99 | R195: 56.604 | S195: 45.288 | T195: 54.287 | U195: 72.496 | V195: 56.166 | W195: 44.983 | X195: 53.667 | Y195: 71.629 | Z195: 8.9596 | AA195: 6.027 | AB195: 8.1456 | AC195: 12.916 | AD195: 63.137 | AE195: 50.9 | AF195: 59.939 | AG195: 81.244
A196: 15.5 | B196: 7.5882 | C196: 5.9779 | D196: 7.3074 | E196: 9.8184 | F196: 47.888 | G196: 38.236 | H196: 45.874 | I196: 61.035 | J196: 52.287 | K196: 41.654 | L196: 50.103 | M196: 66.468 | N196: 22.273 | O196: 16.739 | P196: 21.657 | Q196: 28.912 | R196: 56.604 | S196: 45.296 | T196: 54.305 | U196: 72.67 | V196: 56.183 | W196: 44.937 | X196: 53.617 | Y196: 71.691 | Z196: 8.9495 | AA196: 6.0045 | AB196: 8.1455 | AC196: 12.872 | AD196: 63.137 | AE196: 50.903 | AF196: 59.905 | AG196: 81.219
A197: 15.5833 | B197: 7.5885 | C197: 5.9565 | D197: 7.305 | E197: 9.8097 | F197: 47.888 | G197: 38.224 | H197: 45.845 | I197: 60.953 | J197: 52.294 | K197: 41.654 | L197: 49.947 | M197: 66.549 | N197: 22.265 | O197: 16.606 | P197: 21.642 | Q197: 29.172 | R197: 56.605 | S197: 45.287 | T197: 54.389 | U197: 72.577 | V197: 56.2 | W197: 44.924 | X197: 53.665 | Y197: 71.447 | Z197: 8.9449 | AA197: 5.9836 | AB197: 8.2281 | AC197: 12.856 | AD197: 63.138 | AE197: 51.019 | AF197: 59.916 | AG197: 81.251
A198: 15.6667 | B198: 7.589 | C198: 5.9637 | D198: 7.3047 | E198: 9.8239 | F198: 47.889 | G198: 38.234 | H198: 45.885 | I198: 60.987 | J198: 52.301 | K198: 41.668 | L198: 49.859 | M198: 66.702 | N198: 22.259 | O198: 16.639 | P198: 21.585 | Q198: 29.121 | R198: 56.606 | S198: 45.327 | T198: 54.293 | U198: 72.177 | V198: 56.217 | W198: 45 | X198: 53.645 | Y198: 71.353 | Z198: 8.9468 | AA198: 5.9697 | AB198: 8.2339 | AC198: 13.074 | AD198: 63.14 | AE198: 50.987 | AF198: 59.976 | AG198: 81.409
A199: 15.75 | B199: 7.5897 | C199: 5.9223 | D199: 7.3184 | E199: 9.8518 | F199: 47.889 | G199: 38.179 | H199: 45.912 | I199: 61.021 | J199: 52.308 | K199: 41.577 | L199: 49.833 | M199: 66.731 | N199: 22.256 | O199: 16.571 | P199: 21.451 | Q199: 28.855 | R199: 56.608 | S199: 45.292 | T199: 54.275 | U199: 72.397 | V199: 56.235 | W199: 45.061 | X199: 53.563 | Y199: 71.442 | Z199: 8.9541 | AA199: 5.8595 | AB199: 8.1712 | AC199: 13.128 | AD199: 63.143 | AE199: 50.862 | AF199: 60.043 | AG199: 81.445
A200: 15.8333 | B200: 7.5908 | C200: 5.8839 | D200: 7.314 | E200: 9.9383 | F200: 47.89 | G200: 38.168 | H200: 45.892 | I200: 61.055 | J200: 52.315 | K200: 41.504 | L200: 49.941 | M200: 66.691 | N200: 22.256 | O200: 16.425 | P200: 21.259 | Q200: 29.248 | R200: 56.611 | S200: 45.221 | T200: 54.231 | U200: 72.693 | V200: 56.253 | W200: 45.062 | X200: 53.636 | Y200: 71.824 | Z200: 8.9668 | AA200: 5.7484 | AB200: 8.1786 | AC200: 13.013 | AD200: 63.147 | AE200: 50.706 | AF200: 59.907 | AG200: 81.276
... 2210 more rows
